Workbook

Sheet Main
G2: CQG NASDAQ 100 Index Internal Performance | U2: Ribbon | W2: =RTD("cqg.rtd", ,"SystemInfo", "Linetime") -> 44187.40465
B5: Lookback Period: | D5: 12 | E5: Time Frame: | G5: 5 | H5: Number of Stocks Making New Highs: | L5: =Ranked!U2 -> 12 | M5: New Lows: | N5: =Ranked!V2 -> 4 | P5: Symbol | Q5: Description | U5: Last: | V5: NC | W5: %NC | X5: Open | Y5: High | Z5: Low
B6: ="New "&$D$5&"-Bar High Symbols, Descriptions and Net % Daily Change" -> New 12-Bar High Symbols, Descriptions and Net % Daily Change | I6: ="New "&$D$5&"-Bar Low Symbols, Descriptions and Net % Daily Change" -> New 12-Bar Low Symbols, Descriptions and Net % Daily Change | P6: DJI | Q6: =IF(P6="","",RTD("cqg.rtd", ,"ContractData",P6, "LongDescription",, "T")) -> DJ Industrial Average | U6: =IF(P6="","",TEXT(RTD("cqg.rtd",,"ContractData",P6,"LastTradeToday",,"T"),AB6)) -> 30137.8 | V6: =IF(P6="","",TEXT(RTD("cqg.rtd", ,"ContractData", P6, "NetLastTradeToday",, "T"),AB6)) -> -78.6 | W6: =IFERROR(IF(P6="","",RTD("cqg.rtd", ,"ContractData", P6, "PerCentNetLastTrade",, "T")/100),"") -> -0.002601236415 | X6: =IF(P6="","",TEXT(RTD("cqg.rtd", ,"ContractData", P6, "OPen",, "T"),AB6)) -> 30200.2 | Y6: =IF(P6="","",TEXT(RTD("cqg.rtd", ,"ContractData", P6, "HIgh",, "T"),AB6)) -> 30200.2 | Z6: =IF(P6="","",TEXT(RTD("cqg.rtd", ,"ContractData", P6, "LOw",, "T"),AB6)) -> 30034.3 | AA6: =IF(P6="","",IF(LEN(RTD("cqg.rtd",,"ContractData",P6,"TickSize",,"T"))=1,0,LEN(RTD("cqg.rtd",,"ContractData",P6,"TickSize",,"T"))-2)) -> 1 | AB6: =IF(AA6=0,"#",IF(AA6=1,"#.0",IF(AA6=2,"#.00",IF(AA6=3,"#.000",IF(AA6=4,"#.0000",IF(AA6=5,"#.00000",IF(AA6=6,"#.000000",IF(AA6=7,"#.0000000")))))))) -> #.0
A7: =IF(OR(B7<>"",I7<>""),1,0) -> 1 | B7: =Ranked!G2 -> S.US.OKTA | C7: =IF(B7="","",RTD("cqg.rtd", ,"ContractData",B7, "LongDescription",, "T")) -> Okta, Inc. Cl A | G7: =IFERROR(RTD("cqg.rtd", ,"ContractData",B7, "PerCentNetLastTrade",, "T")/100,"") -> 0.03019525296 | I7: =Ranked!Q2 -> S.US.ORLY | J7: =IF(I7="","",RTD("cqg.rtd", ,"ContractData",I7, "LongDescription",, "T")) -> OReilly Automotive Inc | N7: =IFERROR(RTD("cqg.rtd", ,"ContractData",I7, "PerCentNetLastTrade",, "T")/100,"") -> -0.006054044499 | P7: SPY | Q7: =IF(P7="","",RTD("cqg.rtd", ,"ContractData",P7, "LongDescription",, "T")) -> SPDR S&P 500 | U7: =IF(P7="","",TEXT(RTD("cqg.rtd",,"ContractData",P7,"LastTradeToday",,"T"),AB7)) -> 368.28 | V7: =IF(P7="","",TEXT(RTD("cqg.rtd", ,"ContractData", P7, "NetLastTradeToday",, "T"),AB7)) -> .42 | W7: =IFERROR(IF(P7="","",RTD("cqg.rtd", ,"ContractData", P7, "PerCentNetLastTrade",, "T")/100),"") -> 0.001141738705 | X7: =IF(P7="","",TEXT(RTD("cqg.rtd", ,"ContractData", P7, "OPen",, "T"),AB7)) -> 368.21 | Y7: =IF(P7="","",TEXT(RTD("cqg.rtd", ,"ContractData", P7, "HIgh",, "T"),AB7)) -> 368.33 | Z7: =IF(P7="","",TEXT(RTD("cqg.rtd", ,"ContractData", P7, "LOw",, "T"),AB7)) -> 367.06 | AA7: =IF(P7="","",IF(LEN(RTD("cqg.rtd",,"ContractData",P7,"TickSize",,"T"))=1,0,LEN(RTD("cqg.rtd",,"ContractData",P7,"TickSize",,"T"))-2)) -> 2 | AB7: =IF(AA7=0,"#",IF(AA7=1,"#.0",IF(AA7=2,"#.00",IF(AA7=3,"#.000",IF(AA7=4,"#.0000",IF(AA7=5,"#.00000",IF(AA7=6,"#.000000",IF(AA7=7,"#.0000000")))))))) -> #.00
A8: 1 | B8: =Ranked!G3 -> S.US.SPLK | C8: =IF(B8="","",RTD("cqg.rtd", ,"ContractData",B8, "LongDescription",, "T")) -> Splunk, Inc. | G8: =IFERROR(RTD("cqg.rtd", ,"ContractData",B8, "PerCentNetLastTrade",, "T")/100,"") -> 0.01204335608 | I8: =Ranked!Q3 -> S.US.ALXN | J8: =IF(I8="","",RTD("cqg.rtd", ,"ContractData",I8, "LongDescription",, "T")) -> Alexion Pharmaceuticals | N8: =IFERROR(RTD("cqg.rtd", ,"ContractData",I8, "PerCentNetLastTrade",, "T")/100,"") -> -0.009106762255 | P8: RSP | Q8: =IF(P8="","",RTD("cqg.rtd", ,"ContractData",P8, "LongDescription",, "T")) -> Invesco S&P 500 Equal Weight ETF | U8: =IF(P8="","",TEXT(RTD("cqg.rtd",,"ContractData",P8,"LastTradeToday",,"T"),AB8)) -> 125.50 | V8: =IF(P8="","",TEXT(RTD("cqg.rtd", ,"ContractData", P8, "NetLastTradeToday",, "T"),AB8)) -> -.09 | W8: =IFERROR(IF(P8="","",RTD("cqg.rtd", ,"ContractData", P8, "PerCentNetLastTrade",, "T")/100),"") -> -0.0007166175651 | X8: =IF(P8="","",TEXT(RTD("cqg.rtd", ,"ContractData", P8, "OPen",, "T"),AB8)) -> 125.66 | Y8: =IF(P8="","",TEXT(RTD("cqg.rtd", ,"ContractData", P8, "HIgh",, "T"),AB8)) -> 125.67 | Z8: =IF(P8="","",TEXT(RTD("cqg.rtd", ,"ContractData", P8, "LOw",, "T"),AB8)) -> 124.91 | AA8: =IF(P8="","",IF(LEN(RTD("cqg.rtd",,"ContractData",P8,"TickSize",,"T"))=1,0,LEN(RTD("cqg.rtd",,"ContractData",P8,"TickSize",,"T"))-2)) -> 2 | AB8: #.00
A9: 1 | B9: =Ranked!G4 -> S.US.ANSS | C9: =IF(B9="","",RTD("cqg.rtd", ,"ContractData",B9, "LongDescription",, "T")) -> ANSYS Inc | G9: =IFERROR(RTD("cqg.rtd", ,"ContractData",B9, "PerCentNetLastTrade",, "T")/100,"") -> 0.0117713162 | I9: =Ranked!Q4 -> S.US.PDD | J9: =IF(I9="","",RTD("cqg.rtd", ,"ContractData",I9, "LongDescription",, "T")) -> Pinduoduo Inc | N9: =IFERROR(RTD("cqg.rtd", ,"ContractData",I9, "PerCentNetLastTrade",, "T")/100,"") -> -0.02314972425 | P9: NDX | Q9: =IF(P9="","",RTD("cqg.rtd", ,"ContractData",P9, "LongDescription",, "T")) -> NASDAQ-100 Index | U9: =IF(P9="","",TEXT(RTD("cqg.rtd",,"ContractData",P9,"LastTradeToday",,"T"),AB9)) -> 12737.66 | V9: =IF(P9="","",TEXT(RTD("cqg.rtd", ,"ContractData", P9, "NetLastTradeToday",, "T"),AB9)) -> 47.67 | W9: =IFERROR(IF(P9="","",RTD("cqg.rtd", ,"ContractData", P9, "PerCentNetLastTrade",, "T")/100),"") -> 0.003756424218 | X9: =IF(P9="","",TEXT(RTD("cqg.rtd", ,"ContractData", P9, "OPen",, "T"),AB9)) -> 12715.48 | Y9: =IF(P9="","",TEXT(RTD("cqg.rtd", ,"ContractData", P9, "HIgh",, "T"),AB9)) -> 12761.23 | Z9: =IF(P9="","",TEXT(RTD("cqg.rtd", ,"ContractData", P9, "LOw",, "T"),AB9)) -> 12688.02 | AA9: =IF(P9="","",IF(LEN(RTD("cqg.rtd",,"ContractData",P9,"TickSize",,"T"))=1,0,LEN(RTD("cqg.rtd",,"ContractData",P9,"TickSize",,"T"))-2)) -> 2 | AB9: #.00
A10: 1 | B10: =Ranked!G5 -> S.US.IDXX | C10: =IF(B10="","",RTD("cqg.rtd", ,"ContractData",B10, "LongDescription",, "T")) -> IDEXX Laboratories Inc | G10: =IFERROR(RTD("cqg.rtd", ,"ContractData",B10, "PerCentNetLastTrade",, "T")/100,"") -> 0.01108887437 | I10: =Ranked!Q5 -> S.US.GILD | J10: =IF(I10="","",RTD("cqg.rtd", ,"ContractData",I10, "LongDescription",, "T")) -> Gilead Sciences Inc | N10: =IFERROR(RTD("cqg.rtd", ,"ContractData",I10, "PerCentNetLastTrade",, "T")/100,"") -> -0.02408609498 | P10: S.MSFT | Q10: =IF(P10="","",RTD("cqg.rtd", ,"ContractData",P10, "LongDescription",, "T")) -> Microsoft Corporation | U10: =IF(P10="","",TEXT(RTD("cqg.rtd",,"ContractData",P10,"LastTradeToday",,"T"),AB10)) -> 224.73 | V10: =IF(P10="","",TEXT(RTD("cqg.rtd", ,"ContractData", P10, "NetLastTradeToday",, "T"),AB10)) -> 2.14 | W10: =IFERROR(IF(P10="","",RTD("cqg.rtd", ,"ContractData", P10, "PerCentNetLastTrade",, "T")/100),"") -> 0.009614088683 | X10: =IF(P10="","",TEXT(RTD("cqg.rtd", ,"ContractData", P10, "OPen",, "T"),AB10)) -> 222.69 | Y10: =IF(P10="","",TEXT(RTD("cqg.rtd", ,"ContractData", P10, "HIgh",, "T"),AB10)) -> 225.63 | Z10: =IF(P10="","",TEXT(RTD("cqg.rtd", ,"ContractData", P10, "LOw",, "T"),AB10)) -> 221.85 | AA10: =IF(P10="","",IF(LEN(RTD("cqg.rtd",,"ContractData",P10,"TickSize",,"T"))=1,0,LEN(RTD("cqg.rtd",,"ContractData",P10,"TickSize",,"T"))-2)) -> 2 | AB10: #.00
A11: 1 | B11: =Ranked!G6 -> S.US.EXC | C11: =IF(B11="","",RTD("cqg.rtd", ,"ContractData",B11, "LongDescription",, "T")) -> Exelon Corporation | G11: =IFERROR(RTD("cqg.rtd", ,"ContractData",B11, "PerCentNetLastTrade",, "T")/100,"") -> 0.009636232233 | I11: =Ranked!Q6 ->  | J11: =IF(I11="","",RTD("cqg.rtd", ,"ContractData",I11, "LongDescription",, "T")) ->  | N11: =IFERROR(RTD("cqg.rtd", ,"ContractData",I11, "PerCentNetLastTrade",, "T")/100,"") ->  | P11: S.AMZN | Q11: =IF(P11="","",RTD("cqg.rtd", ,"ContractData",P11, "LongDescription",, "T")) -> Amazon.com Inc | U11: =IF(P11="","",TEXT(RTD("cqg.rtd",,"ContractData",P11,"LastTradeToday",,"T"),AB11)) -> 3205.10 | V11: =IF(P11="","",TEXT(RTD("cqg.rtd", ,"ContractData", P11, "NetLastTradeToday",, "T"),AB11)) -> -1.08 | W11: =IFERROR(IF(P11="","",RTD("cqg.rtd", ,"ContractData", P11, "PerCentNetLastTrade",, "T")/100),"") -> -0.0003368494595 | X11: =IF(P11="","",TEXT(RTD("cqg.rtd", ,"ContractData", P11, "OPen",, "T"),AB11)) -> 3202.84 | Y11: =IF(P11="","",TEXT(RTD("cqg.rtd", ,"ContractData", P11, "HIgh",, "T"),AB11)) -> 3222.00 | Z11: =IF(P11="","",TEXT(RTD("cqg.rtd", ,"ContractData", P11, "LOw",, "T"),AB11)) -> 3188.00 | AA11: =IF(P11="","",IF(LEN(RTD("cqg.rtd",,"ContractData",P11,"TickSize",,"T"))=1,0,LEN(RTD("cqg.rtd",,"ContractData",P11,"TickSize",,"T"))-2)) -> 2 | AB11: #.00
A12: 1 | B12: =Ranked!G7 -> S.US.CERN | C12: =IF(B12="","",RTD("cqg.rtd", ,"ContractData",B12, "LongDescription",, "T")) -> Cerner Corporation | G12: =IFERROR(RTD("cqg.rtd", ,"ContractData",B12, "PerCentNetLastTrade",, "T")/100,"") -> 0.007181094138 | I12: =Ranked!Q7 ->  | J12: =IF(I12="","",RTD("cqg.rtd", ,"ContractData",I12, "LongDescription",, "T")) ->  | N12: =IFERROR(RTD("cqg.rtd", ,"ContractData",I12, "PerCentNetLastTrade",, "T")/100,"") ->  | P12: S.AAPL | Q12: =IF(P12="","",RTD("cqg.rtd", ,"ContractData",P12, "LongDescription",, "T")) -> Apple Inc | U12: =IF(P12="","",TEXT(RTD("cqg.rtd",,"ContractData",P12,"LastTradeToday",,"T"),AB12)) -> 133.16 | V12: =IF(P12="","",TEXT(RTD("cqg.rtd", ,"ContractData", P12, "NetLastTradeToday",, "T"),AB12)) -> 4.93 | W12: =IFERROR(IF(P12="","",RTD("cqg.rtd", ,"ContractData", P12, "PerCentNetLastTrade",, "T")/100),"") -> 0.03844654137 | X12: =IF(P12="","",TEXT(RTD("cqg.rtd", ,"ContractData", P12, "OPen",, "T"),AB12)) -> 131.61 | Y12: =IF(P12="","",TEXT(RTD("cqg.rtd", ,"ContractData", P12, "HIgh",, "T"),AB12)) -> 134.40 | Z12: =IF(P12="","",TEXT(RTD("cqg.rtd", ,"ContractData", P12, "LOw",, "T"),AB12)) -> 130.40 | AA12: =IF(P12="","",IF(LEN(RTD("cqg.rtd",,"ContractData",P12,"TickSize",,"T"))=1,0,LEN(RTD("cqg.rtd",,"ContractData",P12,"TickSize",,"T"))-2)) -> 2 | AB12: #.00
A13: 1 | B13: =Ranked!G8 -> S.US.VRSN | C13: =IF(B13="","",RTD("cqg.rtd", ,"ContractData",B13, "LongDescription",, "T")) -> Verisign Inc | G13: =IFERROR(RTD("cqg.rtd", ,"ContractData",B13, "PerCentNetLastTrade",, "T")/100,"") -> 0.006421890269 | I13: =Ranked!Q8 ->  | J13: =IF(I13="","",RTD("cqg.rtd", ,"ContractData",I13, "LongDescription",, "T")) ->  | N13: =IFERROR(RTD("cqg.rtd", ,"ContractData",I13, "PerCentNetLastTrade",, "T")/100,"") ->  | P13: S.INTC | Q13: =IF(P13="","",RTD("cqg.rtd", ,"ContractData",P13, "LongDescription",, "T")) -> Intel Corporation | U13: =IF(P13="","",TEXT(RTD("cqg.rtd",,"ContractData",P13,"LastTradeToday",,"T"),AB13)) -> 46.05 | V13: =IF(P13="","",TEXT(RTD("cqg.rtd", ,"ContractData", P13, "NetLastTradeToday",, "T"),AB13)) -> -.31 | W13: =IFERROR(IF(P13="","",RTD("cqg.rtd", ,"ContractData", P13, "PerCentNetLastTrade",, "T")/100),"") -> -0.006686798965 | X13: =IF(P13="","",TEXT(RTD("cqg.rtd", ,"ContractData", P13, "OPen",, "T"),AB13)) -> 46.25 | Y13: =IF(P13="","",TEXT(RTD("cqg.rtd", ,"ContractData", P13, "HIgh",, "T"),AB13)) -> 46.34 | Z13: =IF(P13="","",TEXT(RTD("cqg.rtd", ,"ContractData", P13, "LOw",, "T"),AB13)) -> 45.76 | AA13: =IF(P13="","",IF(LEN(RTD("cqg.rtd",,"ContractData",P13,"TickSize",,"T"))=1,0,LEN(RTD("cqg.rtd",,"ContractData",P13,"TickSize",,"T"))-2)) -> 2 | AB13: #.00
A14: 1 | B14: =Ranked!G9 -> S.US.CPRT | C14: =IF(B14="","",RTD("cqg.rtd", ,"ContractData",B14, "LongDescription",, "T")) -> Copart Inc | G14: =IFERROR(RTD("cqg.rtd", ,"ContractData",B14, "PerCentNetLastTrade",, "T")/100,"") -> 0.005974791292 | I14: =Ranked!Q9 ->  | J14: =IF(I14="","",RTD("cqg.rtd", ,"ContractData",I14, "LongDescription",, "T")) ->  | N14: =IFERROR(RTD("cqg.rtd", ,"ContractData",I14, "PerCentNetLastTrade",, "T")/100,"") ->  | P14: CLE | Q14: =IF(P14="","",RTD("cqg.rtd", ,"ContractData",P14, "LongDescription",, "T")) -> Crude Light (Globex), Feb 21 | U14: =IF(P14="","",TEXT(RTD("cqg.rtd",,"ContractData",P14,"LastTradeToday",,"T"),AB14)) -> 47.31 | V14: =IF(P14="","",TEXT(RTD("cqg.rtd", ,"ContractData", P14, "NetLastTradeToday",, "T"),AB14)) -> -.66 | W14: =IFERROR(IF(P14="","",RTD("cqg.rtd", ,"ContractData", P14, "PerCentNetLastTrade",, "T")/100),"") -> -0.01375859912 | X14: =IF(P14="","",TEXT(RTD("cqg.rtd", ,"ContractData", P14, "OPen",, "T"),AB14)) -> 47.93 | Y14: =IF(P14="","",TEXT(RTD("cqg.rtd", ,"ContractData", P14, "HIgh",, "T"),AB14)) -> 47.96 | Z14: =IF(P14="","",TEXT(RTD("cqg.rtd", ,"ContractData", P14, "LOw",, "T"),AB14)) -> 46.60 | AA14: =IF(P14="","",IF(LEN(RTD("cqg.rtd",,"ContractData",P14,"TickSize",,"T"))=1,0,LEN(RTD("cqg.rtd",,"ContractData",P14,"TickSize",,"T"))-2)) -> 2 | AB14: #.00
A15: 1 | B15: =Ranked!G10 -> S.US.ROST | C15: =IF(B15="","",RTD("cqg.rtd", ,"ContractData",B15, "LongDescription",, "T")) -> Ross Stores Inc | G15: =IFERROR(RTD("cqg.rtd", ,"ContractData",B15, "PerCentNetLastTrade",, "T")/100,"") -> 0.001626851614 | I15: =Ranked!Q10 ->  | J15: =IF(I15="","",RTD("cqg.rtd", ,"ContractData",I15, "LongDescription",, "T")) ->  | N15: =IFERROR(RTD("cqg.rtd", ,"ContractData",I15, "PerCentNetLastTrade",, "T")/100,"") ->  | P15: GCE | Q15: =IF(P15="","",RTD("cqg.rtd", ,"ContractData",P15, "LongDescription",, "T")) -> Gold (Globex), Feb 21 | U15: =IF(P15="","",TEXT(RTD("cqg.rtd",,"ContractData",P15,"LastTradeToday",,"T"),AB15)) -> 1875.5 | V15: =IF(P15="","",TEXT(RTD("cqg.rtd", ,"ContractData", P15, "NetLastTradeToday",, "T"),AB15)) -> -7.3 | W15: =IFERROR(IF(P15="","",RTD("cqg.rtd", ,"ContractData", P15, "PerCentNetLastTrade",, "T")/100),"") -> -0.003877204164 | X15: =IF(P15="","",TEXT(RTD("cqg.rtd", ,"ContractData", P15, "OPen",, "T"),AB15)) -> 1883.0 | Y15: =IF(P15="","",TEXT(RTD("cqg.rtd", ,"ContractData", P15, "HIgh",, "T"),AB15)) -> 1889.4 | Z15: =IF(P15="","",TEXT(RTD("cqg.rtd", ,"ContractData", P15, "LOw",, "T"),AB15)) -> 1870.5 | AA15: =IF(P15="","",IF(LEN(RTD("cqg.rtd",,"ContractData",P15,"TickSize",,"T"))=1,0,LEN(RTD("cqg.rtd",,"ContractData",P15,"TickSize",,"T"))-2)) -> 1 | AB15: #.0
A16: 1 | B16: =Ranked!G11 -> S.US.CSX | C16: =IF(B16="","",RTD("cqg.rtd", ,"ContractData",B16, "LongDescription",, "T")) -> CSX Corporation | G16: =IFERROR(RTD("cqg.rtd", ,"ContractData",B16, "PerCentNetLastTrade",, "T")/100,"") -> 0.001560932099 | I16: =Ranked!Q11 ->  | J16: =IF(I16="","",RTD("cqg.rtd", ,"ContractData",I16, "LongDescription",, "T")) ->  | N16: =IFERROR(RTD("cqg.rtd", ,"ContractData",I16, "PerCentNetLastTrade",, "T")/100,"") ->  | P16: EU6 | Q16: =IF(P16="","",RTD("cqg.rtd", ,"ContractData",P16, "LongDescription",, "T")) -> Euro FX (Globex), Mar 21 | U16: =IF(P16="","",TEXT(RTD("cqg.rtd",,"ContractData",P16,"LastTradeToday",,"T"),AB16)) -> 1.22375 | V16: =IF(P16="","",TEXT(RTD("cqg.rtd", ,"ContractData", P16, "NetLastTradeToday",, "T"),AB16)) -> -.00425 | W16: =IFERROR(IF(P16="","",RTD("cqg.rtd", ,"ContractData", P16, "PerCentNetLastTrade",, "T")/100),"") -> -0.003460912052 | X16: =IF(P16="","",TEXT(RTD("cqg.rtd", ,"ContractData", P16, "OPen",, "T"),AB16)) -> 1.22710 | Y16: =IF(P16="","",TEXT(RTD("cqg.rtd", ,"ContractData", P16, "HIgh",, "T"),AB16)) -> 1.22905 | Z16: =IF(P16="","",TEXT(RTD("cqg.rtd", ,"ContractData", P16, "LOw",, "T"),AB16)) -> 1.22330 | AA16: =IF(P16="","",IF(LEN(RTD("cqg.rtd",,"ContractData",P16,"TickSize",,"T"))=1,0,LEN(RTD("cqg.rtd",,"ContractData",P16,"TickSize",,"T"))-2)) -> 5 | AB16: #.00000
A17: 1 | B17: =Ranked!G12 -> S.US.GOOG | C17: =IF(B17="","",RTD("cqg.rtd", ,"ContractData",B17, "LongDescription",, "T")) -> Alphabet, Inc. Class C | G17: =IFERROR(RTD("cqg.rtd", ,"ContractData",B17, "PerCentNetLastTrade",, "T")/100,"") -> -0.001535038548 | I17: =Ranked!Q12 ->  | J17: =IF(I17="","",RTD("cqg.rtd", ,"ContractData",I17, "LongDescription",, "T")) ->  | N17: =IFERROR(RTD("cqg.rtd", ,"ContractData",I17, "PerCentNetLastTrade",, "T")/100,"") ->  | P17: S.HD | Q17: =IF(P17="","",RTD("cqg.rtd", ,"ContractData",P17, "LongDescription",, "T")) -> Home Depot, Inc. | U17: =IF(P17="","",TEXT(RTD("cqg.rtd",,"ContractData",P17,"LastTradeToday",,"T"),AB17)) -> 269.93 | V17: =IF(P17="","",TEXT(RTD("cqg.rtd", ,"ContractData", P17, "NetLastTradeToday",, "T"),AB17)) -> -1.06 | W17: =IFERROR(IF(P17="","",RTD("cqg.rtd", ,"ContractData", P17, "PerCentNetLastTrade",, "T")/100),"") -> -0.003911583453 | X17: =IF(P17="","",TEXT(RTD("cqg.rtd", ,"ContractData", P17, "OPen",, "T"),AB17)) -> 270.06 | Y17: =IF(P17="","",TEXT(RTD("cqg.rtd", ,"ContractData", P17, "HIgh",, "T"),AB17)) -> 270.68 | Z17: =IF(P17="","",TEXT(RTD("cqg.rtd", ,"ContractData", P17, "LOw",, "T"),AB17)) -> 268.51 | AA17: =IF(P17="","",IF(LEN(RTD("cqg.rtd",,"ContractData",P17,"TickSize",,"T"))=1,0,LEN(RTD("cqg.rtd",,"ContractData",P17,"TickSize",,"T"))-2)) -> 2 | AB17: #.00
A18: 1 | B18: =Ranked!G13 -> S.US.LRCX | C18: =IF(B18="","",RTD("cqg.rtd", ,"ContractData",B18, "LongDescription",, "T")) -> LAM Research Corporation | G18: =IFERROR(RTD("cqg.rtd", ,"ContractData",B18, "PerCentNetLastTrade",, "T")/100,"") -> -0.00645655278 | I18: =Ranked!Q13 ->  | J18: =IF(I18="","",RTD("cqg.rtd", ,"ContractData",I18, "LongDescription",, "T")) ->  | N18: =IFERROR(RTD("cqg.rtd", ,"ContractData",I18, "PerCentNetLastTrade",, "T")/100,"") ->  | P18: S.IBM | Q18: =IF(P18="","",RTD("cqg.rtd", ,"ContractData",P18, "LongDescription",, "T")) -> International Business Machines | U18: =IF(P18="","",TEXT(RTD("cqg.rtd",,"ContractData",P18,"LastTradeToday",,"T"),AB18)) -> 122.70 | V18: =IF(P18="","",TEXT(RTD("cqg.rtd", ,"ContractData", P18, "NetLastTradeToday",, "T"),AB18)) -> -.69 | W18: =IFERROR(IF(P18="","",RTD("cqg.rtd", ,"ContractData", P18, "PerCentNetLastTrade",, "T")/100),"") -> -0.005592025286 | X18: =IF(P18="","",TEXT(RTD("cqg.rtd", ,"ContractData", P18, "OPen",, "T"),AB18)) -> 123.31 | Y18: =IF(P18="","",TEXT(RTD("cqg.rtd", ,"ContractData", P18, "HIgh",, "T"),AB18)) -> 123.41 | Z18: =IF(P18="","",TEXT(RTD("cqg.rtd", ,"ContractData", P18, "LOw",, "T"),AB18)) -> 122.41 | AA18: =IF(P18="","",IF(LEN(RTD("cqg.rtd",,"ContractData",P18,"TickSize",,"T"))=1,0,LEN(RTD("cqg.rtd",,"ContractData",P18,"TickSize",,"T"))-2)) -> 2 | AB18: #.00
A19: 0 | B19: =Ranked!G14 ->  | C19: =IF(B19="","",RTD("cqg.rtd", ,"ContractData",B19, "LongDescription",, "T")) ->  | G19: =IFERROR(RTD("cqg.rtd", ,"ContractData",B19, "PerCentNetLastTrade",, "T")/100,"") ->  | I19: =Ranked!Q14 ->  | J19: =IF(I19="","",RTD("cqg.rtd", ,"ContractData",I19, "LongDescription",, "T")) ->  | N19: =IFERROR(RTD("cqg.rtd", ,"ContractData",I19, "PerCentNetLastTrade",, "T")/100,"") ->  | P19: S.INTC | Q19: =IF(P19="","",RTD("cqg.rtd", ,"ContractData",P19, "LongDescription",, "T")) -> Intel Corporation | U19: =IF(P19="","",TEXT(RTD("cqg.rtd",,"ContractData",P19,"LastTradeToday",,"T"),AB19)) -> 46.05 | V19: =IF(P19="","",TEXT(RTD("cqg.rtd", ,"ContractData", P19, "NetLastTradeToday",, "T"),AB19)) -> -.31 | W19: =IFERROR(IF(P19="","",RTD("cqg.rtd", ,"ContractData", P19, "PerCentNetLastTrade",, "T")/100),"") -> -0.006686798965 | X19: =IF(P19="","",TEXT(RTD("cqg.rtd", ,"ContractData", P19, "OPen",, "T"),AB19)) -> 46.25 | Y19: =IF(P19="","",TEXT(RTD("cqg.rtd", ,"ContractData", P19, "HIgh",, "T"),AB19)) -> 46.34 | Z19: =IF(P19="","",TEXT(RTD("cqg.rtd", ,"ContractData", P19, "LOw",, "T"),AB19)) -> 45.76 | AA19: =IF(P19="","",IF(LEN(RTD("cqg.rtd",,"ContractData",P19,"TickSize",,"T"))=1,0,LEN(RTD("cqg.rtd",,"ContractData",P19,"TickSize",,"T"))-2)) -> 2 | AB19: #.00
A20: 0 | B20: =Ranked!G15 ->  | C20: =IF(B20="","",RTD("cqg.rtd", ,"ContractData",B20, "LongDescription",, "T")) ->  | G20: =IFERROR(RTD("cqg.rtd", ,"ContractData",B20, "PerCentNetLastTrade",, "T")/100,"") ->  | I20: =Ranked!Q15 ->  | J20: =IF(I20="","",RTD("cqg.rtd", ,"ContractData",I20, "LongDescription",, "T")) ->  | N20: =IFERROR(RTD("cqg.rtd", ,"ContractData",I20, "PerCentNetLastTrade",, "T")/100,"") ->  | P20: S.JNJ | Q20: =IF(P20="","",RTD("cqg.rtd", ,"ContractData",P20, "LongDescription",, "T")) -> Johnson & Johnson | U20: =IF(P20="","",TEXT(RTD("cqg.rtd",,"ContractData",P20,"LastTradeToday",,"T"),AB20)) -> 152.94 | V20: =IF(P20="","",TEXT(RTD("cqg.rtd", ,"ContractData", P20, "NetLastTradeToday",, "T"),AB20)) -> -.08 | W20: =IFERROR(IF(P20="","",RTD("cqg.rtd", ,"ContractData", P20, "PerCentNetLastTrade",, "T")/100),"") -> -0.0005228074761 | X20: =IF(P20="","",TEXT(RTD("cqg.rtd", ,"ContractData", P20, "OPen",, "T"),AB20)) -> 152.40 | Y20: =IF(P20="","",TEXT(RTD("cqg.rtd", ,"ContractData", P20, "HIgh",, "T"),AB20)) -> 153.11 | Z20: =IF(P20="","",TEXT(RTD("cqg.rtd", ,"ContractData", P20, "LOw",, "T"),AB20)) -> 151.86 | AA20: =IF(P20="","",IF(LEN(RTD("cqg.rtd",,"ContractData",P20,"TickSize",,"T"))=1,0,LEN(RTD("cqg.rtd",,"ContractData",P20,"TickSize",,"T"))-2)) -> 2 | AB20: #.00
A21: 0 | B21: =Ranked!G16 ->  | C21: =IF(B21="","",RTD("cqg.rtd", ,"ContractData",B21, "LongDescription",, "T")) ->  | G21: =IFERROR(RTD("cqg.rtd", ,"ContractData",B21, "PerCentNetLastTrade",, "T")/100,"") ->  | I21: =Ranked!Q16 ->  | J21: =IF(I21="","",RTD("cqg.rtd", ,"ContractData",I21, "LongDescription",, "T")) ->  | N21: =IFERROR(RTD("cqg.rtd", ,"ContractData",I21, "PerCentNetLastTrade",, "T")/100,"") ->  | P21: S.JPM | Q21: =IF(P21="","",RTD("cqg.rtd", ,"ContractData",P21, "LongDescription",, "T")) -> JPMorgan Chase & Co. | U21: =IF(P21="","",TEXT(RTD("cqg.rtd",,"ContractData",P21,"LastTradeToday",,"T"),AB21)) -> 123.13 | V21: =IF(P21="","",TEXT(RTD("cqg.rtd", ,"ContractData", P21, "NetLastTradeToday",, "T"),AB21)) -> -.42 | W21: =IFERROR(IF(P21="","",RTD("cqg.rtd", ,"ContractData", P21, "PerCentNetLastTrade",, "T")/100),"") -> -0.003399433428 | X21: =IF(P21="","",TEXT(RTD("cqg.rtd", ,"ContractData", P21, "OPen",, "T"),AB21)) -> 123.39 | Y21: =IF(P21="","",TEXT(RTD("cqg.rtd", ,"ContractData", P21, "HIgh",, "T"),AB21)) -> 123.52 | Z21: =IF(P21="","",TEXT(RTD("cqg.rtd", ,"ContractData", P21, "LOw",, "T"),AB21)) -> 122.53 | AA21: =IF(P21="","",IF(LEN(RTD("cqg.rtd",,"ContractData",P21,"TickSize",,"T"))=1,0,LEN(RTD("cqg.rtd",,"ContractData",P21,"TickSize",,"T"))-2)) -> 2 | AB21: #.00
A22: 0 | B22: =Ranked!G17 ->  | C22: =IF(B22="","",RTD("cqg.rtd", ,"ContractData",B22, "LongDescription",, "T")) ->  | G22: =IFERROR(RTD("cqg.rtd", ,"ContractData",B22, "PerCentNetLastTrade",, "T")/100,"") ->  | I22: =Ranked!Q17 ->  | J22: =IF(I22="","",RTD("cqg.rtd", ,"ContractData",I22, "LongDescription",, "T")) ->  | N22: =IFERROR(RTD("cqg.rtd", ,"ContractData",I22, "PerCentNetLastTrade",, "T")/100,"") ->  | P22: S.MCD | Q22: =IF(P22="","",RTD("cqg.rtd", ,"ContractData",P22, "LongDescription",, "T")) -> McDonald's Corporation | U22: =IF(P22="","",TEXT(RTD("cqg.rtd",,"ContractData",P22,"LastTradeToday",,"T"),AB22)) -> 211.72 | V22: =IF(P22="","",TEXT(RTD("cqg.rtd", ,"ContractData", P22, "NetLastTradeToday",, "T"),AB22)) -> .05 | W22: =IFERROR(IF(P22="","",RTD("cqg.rtd", ,"ContractData", P22, "PerCentNetLastTrade",, "T")/100),"") -> 0.0002362167525 | X22: =IF(P22="","",TEXT(RTD("cqg.rtd", ,"ContractData", P22, "OPen",, "T"),AB22)) -> 211.20 | Y22: =IF(P22="","",TEXT(RTD("cqg.rtd", ,"ContractData", P22, "HIgh",, "T"),AB22)) -> 211.90 | Z22: =IF(P22="","",TEXT(RTD("cqg.rtd", ,"ContractData", P22, "LOw",, "T"),AB22)) -> 210.37 | AA22: =IF(P22="","",IF(LEN(RTD("cqg.rtd",,"ContractData",P22,"TickSize",,"T"))=1,0,LEN(RTD("cqg.rtd",,"ContractData",P22,"TickSize",,"T"))-2)) -> 2 | AB22: #.00
A23: 0 | B23: =Ranked!G18 ->  | C23: =IF(B23="","",RTD("cqg.rtd", ,"ContractData",B23, "LongDescription",, "T")) ->  | G23: =IFERROR(RTD("cqg.rtd", ,"ContractData",B23, "PerCentNetLastTrade",, "T")/100,"") ->  | I23: =Ranked!Q18 ->  | J23: =IF(I23="","",RTD("cqg.rtd", ,"ContractData",I23, "LongDescription",, "T")) ->  | N23: =IFERROR(RTD("cqg.rtd", ,"ContractData",I23, "PerCentNetLastTrade",, "T")/100,"") ->  | P23: S.BA | Q23: =IF(P23="","",RTD("cqg.rtd", ,"ContractData",P23, "LongDescription",, "T")) -> Boeing Company | U23: =IF(P23="","",TEXT(RTD("cqg.rtd",,"ContractData",P23,"LastTradeToday",,"T"),AB23)) -> 222.24 | V23: =IF(P23="","",TEXT(RTD("cqg.rtd", ,"ContractData", P23, "NetLastTradeToday",, "T"),AB23)) -> 2.93 | W23: =IFERROR(IF(P23="","",RTD("cqg.rtd", ,"ContractData", P23, "PerCentNetLastTrade",, "T")/100),"") -> 0.0133600839 | X23: =IF(P23="","",TEXT(RTD("cqg.rtd", ,"ContractData", P23, "OPen",, "T"),AB23)) -> 223.28 | Y23: =IF(P23="","",TEXT(RTD("cqg.rtd", ,"ContractData", P23, "HIgh",, "T"),AB23)) -> 223.89 | Z23: =IF(P23="","",TEXT(RTD("cqg.rtd", ,"ContractData", P23, "LOw",, "T"),AB23)) -> 218.55 | AA23: =IF(P23="","",IF(LEN(RTD("cqg.rtd",,"ContractData",P23,"TickSize",,"T"))=1,0,LEN(RTD("cqg.rtd",,"ContractData",P23,"TickSize",,"T"))-2)) -> 2 | AB23: #.00
A24: 0 | B24: =Ranked!G19 ->  | C24: =IF(B24="","",RTD("cqg.rtd", ,"ContractData",B24, "LongDescription",, "T")) ->  | G24: =IFERROR(RTD("cqg.rtd", ,"ContractData",B24, "PerCentNetLastTrade",, "T")/100,"") ->  | I24: =Ranked!Q19 ->  | J24: =IF(I24="","",RTD("cqg.rtd", ,"ContractData",I24, "LongDescription",, "T")) ->  | N24: =IFERROR(RTD("cqg.rtd", ,"ContractData",I24, "PerCentNetLastTrade",, "T")/100,"") ->  | O24: Chart Symbol: | R24: S.QQQ | S24: Time Frame: | U24: 5 | V24: Sessions: | W24: All | Y24: NASDAQ closes in:
A25: 0 | B25: =Ranked!G20 ->  | C25: =IF(B25="","",RTD("cqg.rtd", ,"ContractData",B25, "LongDescription",, "T")) ->  | G25: =IFERROR(RTD("cqg.rtd", ,"ContractData",B25, "PerCentNetLastTrade",, "T")/100,"") ->  | I25: =Ranked!Q20 ->  | J25: =IF(I25="","",RTD("cqg.rtd", ,"ContractData",I25, "LongDescription",, "T")) ->  | N25: =IFERROR(RTD("cqg.rtd", ,"ContractData",I25, "PerCentNetLastTrade",, "T")/100,"") ->  | O25: Description: | R25: =RTD("cqg.rtd", ,"ContractData",R24, "LongDescription",, "T") -> Invesco QQQ Trust | U25: Last: | V25: =RTD("cqg.rtd", ,"ContractData",R24, "LastTradeToday",, "T") -> 310.19 | W25: NC: | X25: =RTD("cqg.rtd", ,"ContractData",R24, "NetChange",, "T") -> 1.27 | Y25: =IF(0.625-MOD(W2,1)<0,"Market is Closed",0.625-MOD(W2,1)) -> 0.2203472222
A26: 0 | B26: =Ranked!G21 ->  | C26: =IF(B26="","",RTD("cqg.rtd", ,"ContractData",B26, "LongDescription",, "T")) ->  | G26: =IFERROR(RTD("cqg.rtd", ,"ContractData",B26, "PerCentNetLastTrade",, "T")/100,"") ->  | I26: =Ranked!Q21 ->  | J26: =IF(I26="","",RTD("cqg.rtd", ,"ContractData",I26, "LongDescription",, "T")) ->  | N26: =IFERROR(RTD("cqg.rtd", ,"ContractData",I26, "PerCentNetLastTrade",, "T")/100,"") -> 
A27: 0 | B27: =Ranked!G22 ->  | C27: =IF(B27="","",RTD("cqg.rtd", ,"ContractData",B27, "LongDescription",, "T")) ->  | G27: =IFERROR(RTD("cqg.rtd", ,"ContractData",B27, "PerCentNetLastTrade",, "T")/100,"") ->  | I27: =Ranked!Q22 ->  | J27: =IF(I27="","",RTD("cqg.rtd", ,"ContractData",I27, "LongDescription",, "T")) ->  | N27: =IFERROR(RTD("cqg.rtd", ,"ContractData",I27, "PerCentNetLastTrade",, "T")/100,"") -> 
A28: 0 | B28: =Ranked!G23 ->  | C28: =IF(B28="","",RTD("cqg.rtd", ,"ContractData",B28, "LongDescription",, "T")) ->  | G28: =IFERROR(RTD("cqg.rtd", ,"ContractData",B28, "PerCentNetLastTrade",, "T")/100,"") ->  | I28: =Ranked!Q23 ->  | J28: =IF(I28="","",RTD("cqg.rtd", ,"ContractData",I28, "LongDescription",, "T")) ->  | N28: =IFERROR(RTD("cqg.rtd", ,"ContractData",I28, "PerCentNetLastTrade",, "T")/100,"") -> 
A29: 0 | B29: =Ranked!G24 ->  | C29: =IF(B29="","",RTD("cqg.rtd", ,"ContractData",B29, "LongDescription",, "T")) ->  | G29: =IFERROR(RTD("cqg.rtd", ,"ContractData",B29, "PerCentNetLastTrade",, "T")/100,"") ->  | I29: =Ranked!Q24 ->  | J29: =IF(I29="","",RTD("cqg.rtd", ,"ContractData",I29, "LongDescription",, "T")) ->  | N29: =IFERROR(RTD("cqg.rtd", ,"ContractData",I29, "PerCentNetLastTrade",, "T")/100,"") -> 
A30: 0 | B30: =Ranked!G25 ->  | C30: =IF(B30="","",RTD("cqg.rtd", ,"ContractData",B30, "LongDescription",, "T")) ->  | G30: =IFERROR(RTD("cqg.rtd", ,"ContractData",B30, "PerCentNetLastTrade",, "T")/100,"") ->  | I30: =Ranked!Q25 ->  | J30: =IF(I30="","",RTD("cqg.rtd", ,"ContractData",I30, "LongDescription",, "T")) ->  | N30: =IFERROR(RTD("cqg.rtd", ,"ContractData",I30, "PerCentNetLastTrade",, "T")/100,"") -> 
A31: 0 | B31: =Ranked!G26 ->  | C31: =IF(B31="","",RTD("cqg.rtd", ,"ContractData",B31, "LongDescription",, "T")) ->  | G31: =IFERROR(RTD("cqg.rtd", ,"ContractData",B31, "PerCentNetLastTrade",, "T")/100,"") ->  | I31: =Ranked!Q26 ->  | J31: =IF(I31="","",RTD("cqg.rtd", ,"ContractData",I31, "LongDescription",, "T")) ->  | N31: =IFERROR(RTD("cqg.rtd", ,"ContractData",I31, "PerCentNetLastTrade",, "T")/100,"") -> 
A32: 0 | B32: =Ranked!G27 ->  | C32: =IF(B32="","",RTD("cqg.rtd", ,"ContractData",B32, "LongDescription",, "T")) ->  | G32: =IFERROR(RTD("cqg.rtd", ,"ContractData",B32, "PerCentNetLastTrade",, "T")/100,"") ->  | I32: =Ranked!Q27 ->  | J32: =IF(I32="","",RTD("cqg.rtd", ,"ContractData",I32, "LongDescription",, "T")) ->  | N32: =IFERROR(RTD("cqg.rtd", ,"ContractData",I32, "PerCentNetLastTrade",, "T")/100,"") -> 
A33: 0 | B33: =Ranked!G28 ->  | C33: =IF(B33="","",RTD("cqg.rtd", ,"ContractData",B33, "LongDescription",, "T")) ->  | G33: =IFERROR(RTD("cqg.rtd", ,"ContractData",B33, "PerCentNetLastTrade",, "T")/100,"") ->  | I33: =Ranked!Q28 ->  | J33: =IF(I33="","",RTD("cqg.rtd", ,"ContractData",I33, "LongDescription",, "T")) ->  | N33: =IFERROR(RTD("cqg.rtd", ,"ContractData",I33, "PerCentNetLastTrade",, "T")/100,"") -> 
A34: 0 | B34: =Ranked!G29 ->  | C34: =IF(B34="","",RTD("cqg.rtd", ,"ContractData",B34, "LongDescription",, "T")) ->  | G34: =IFERROR(RTD("cqg.rtd", ,"ContractData",B34, "PerCentNetLastTrade",, "T")/100,"") ->  | I34: =Ranked!Q29 ->  | J34: =IF(I34="","",RTD("cqg.rtd", ,"ContractData",I34, "LongDescription",, "T")) ->  | N34: =IFERROR(RTD("cqg.rtd", ,"ContractData",I34, "PerCentNetLastTrade",, "T")/100,"") -> 
A35: 0 | B35: =Ranked!G30 ->  | C35: =IF(B35="","",RTD("cqg.rtd", ,"ContractData",B35, "LongDescription",, "T")) ->  | G35: =IFERROR(RTD("cqg.rtd", ,"ContractData",B35, "PerCentNetLastTrade",, "T")/100,"") ->  | I35: =Ranked!Q30 ->  | J35: =IF(I35="","",RTD("cqg.rtd", ,"ContractData",I35, "LongDescription",, "T")) ->  | N35: =IFERROR(RTD("cqg.rtd", ,"ContractData",I35, "PerCentNetLastTrade",, "T")/100,"") -> 
A36: 0 | B36: =Ranked!G31 ->  | C36: =IF(B36="","",RTD("cqg.rtd", ,"ContractData",B36, "LongDescription",, "T")) ->  | G36: =IFERROR(RTD("cqg.rtd", ,"ContractData",B36, "PerCentNetLastTrade",, "T")/100,"") ->  | I36: =Ranked!Q31 ->  | J36: =IF(I36="","",RTD("cqg.rtd", ,"ContractData",I36, "LongDescription",, "T")) ->  | N36: =IFERROR(RTD("cqg.rtd", ,"ContractData",I36, "PerCentNetLastTrade",, "T")/100,"") -> 
A37: 0 | B37: =Ranked!G32 ->  | C37: =IF(B37="","",RTD("cqg.rtd", ,"ContractData",B37, "LongDescription",, "T")) ->  | G37: =IFERROR(RTD("cqg.rtd", ,"ContractData",B37, "PerCentNetLastTrade",, "T")/100,"") ->  | I37: =Ranked!Q32 ->  | J37: =IF(I37="","",RTD("cqg.rtd", ,"ContractData",I37, "LongDescription",, "T")) ->  | N37: =IFERROR(RTD("cqg.rtd", ,"ContractData",I37, "PerCentNetLastTrade",, "T")/100,"") -> 
A38: 0 | B38: =Ranked!G33 ->  | C38: =IF(B38="","",RTD("cqg.rtd", ,"ContractData",B38, "LongDescription",, "T")) ->  | G38: =IFERROR(RTD("cqg.rtd", ,"ContractData",B38, "PerCentNetLastTrade",, "T")/100,"") ->  | I38: =Ranked!Q33 ->  | J38: =IF(I38="","",RTD("cqg.rtd", ,"ContractData",I38, "LongDescription",, "T")) ->  | N38: =IFERROR(RTD("cqg.rtd", ,"ContractData",I38, "PerCentNetLastTrade",, "T")/100,"") -> 
A39: 0 | B39: =Ranked!G34 ->  | C39: =IF(B39="","",RTD("cqg.rtd", ,"ContractData",B39, "LongDescription",, "T")) ->  | G39: =IFERROR(RTD("cqg.rtd", ,"ContractData",B39, "PerCentNetLastTrade",, "T")/100,"") ->  | I39: =Ranked!Q34 ->  | J39: =IF(I39="","",RTD("cqg.rtd", ,"ContractData",I39, "LongDescription",, "T")) ->  | N39: =IFERROR(RTD("cqg.rtd", ,"ContractData",I39, "PerCentNetLastTrade",, "T")/100,"") -> 
A40: 0 | B40: =Ranked!G35 ->  | C40: =IF(B40="","",RTD("cqg.rtd", ,"ContractData",B40, "LongDescription",, "T")) ->  | G40: =IFERROR(RTD("cqg.rtd", ,"ContractData",B40, "PerCentNetLastTrade",, "T")/100,"") ->  | I40: =Ranked!Q35 ->  | J40: =IF(I40="","",RTD("cqg.rtd", ,"ContractData",I40, "LongDescription",, "T")) ->  | N40: =IFERROR(RTD("cqg.rtd", ,"ContractData",I40, "PerCentNetLastTrade",, "T")/100,"") -> 
A41: 0 | B41: =Ranked!G36 ->  | C41: =IF(B41="","",RTD("cqg.rtd", ,"ContractData",B41, "LongDescription",, "T")) ->  | G41: =IFERROR(RTD("cqg.rtd", ,"ContractData",B41, "PerCentNetLastTrade",, "T")/100,"") ->  | I41: =Ranked!Q36 ->  | J41: =IF(I41="","",RTD("cqg.rtd", ,"ContractData",I41, "LongDescription",, "T")) ->  | N41: =IFERROR(RTD("cqg.rtd", ,"ContractData",I41, "PerCentNetLastTrade",, "T")/100,"") -> 
A42: 0 | B42: =Ranked!G37 ->  | C42: =IF(B42="","",RTD("cqg.rtd", ,"ContractData",B42, "LongDescription",, "T")) ->  | G42: =IFERROR(RTD("cqg.rtd", ,"ContractData",B42, "PerCentNetLastTrade",, "T")/100,"") ->  | I42: =Ranked!Q37 ->  | J42: =IF(I42="","",RTD("cqg.rtd", ,"ContractData",I42, "LongDescription",, "T")) ->  | N42: =IFERROR(RTD("cqg.rtd", ,"ContractData",I42, "PerCentNetLastTrade",, "T")/100,"") -> 
A43: 0 | B43: =Ranked!G38 ->  | C43: =IF(B43="","",RTD("cqg.rtd", ,"ContractData",B43, "LongDescription",, "T")) ->  | G43: =IFERROR(RTD("cqg.rtd", ,"ContractData",B43, "PerCentNetLastTrade",, "T")/100,"") ->  | I43: =Ranked!Q38 ->  | J43: =IF(I43="","",RTD("cqg.rtd", ,"ContractData",I43, "LongDescription",, "T")) ->  | N43: =IFERROR(RTD("cqg.rtd", ,"ContractData",I43, "PerCentNetLastTrade",, "T")/100,"") -> 
A44: 0 | B44: =Ranked!G39 ->  | C44: =IF(B44="","",RTD("cqg.rtd", ,"ContractData",B44, "LongDescription",, "T")) ->  | G44: =IFERROR(RTD("cqg.rtd", ,"ContractData",B44, "PerCentNetLastTrade",, "T")/100,"") ->  | I44: =Ranked!Q39 ->  | J44: =IF(I44="","",RTD("cqg.rtd", ,"ContractData",I44, "LongDescription",, "T")) ->  | N44: =IFERROR(RTD("cqg.rtd", ,"ContractData",I44, "PerCentNetLastTrade",, "T")/100,"") -> 
A45: 0 | B45: =Ranked!G40 ->  | C45: =IF(B45="","",RTD("cqg.rtd", ,"ContractData",B45, "LongDescription",, "T")) ->  | G45: =IFERROR(RTD("cqg.rtd", ,"ContractData",B45, "PerCentNetLastTrade",, "T")/100,"") ->  | I45: =Ranked!Q40 ->  | J45: =IF(I45="","",RTD("cqg.rtd", ,"ContractData",I45, "LongDescription",, "T")) ->  | N45: =IFERROR(RTD("cqg.rtd", ,"ContractData",I45, "PerCentNetLastTrade",, "T")/100,"") -> 
A46: 0 | B46: =Ranked!G41 ->  | C46: =IF(B46="","",RTD("cqg.rtd", ,"ContractData",B46, "LongDescription",, "T")) ->  | G46: =IFERROR(RTD("cqg.rtd", ,"ContractData",B46, "PerCentNetLastTrade",, "T")/100,"") ->  | I46: =Ranked!Q41 ->  | J46: =IF(I46="","",RTD("cqg.rtd", ,"ContractData",I46, "LongDescription",, "T")) ->  | N46: =IFERROR(RTD("cqg.rtd", ,"ContractData",I46, "PerCentNetLastTrade",, "T")/100,"") -> 
C47: Copyright © 2019 | I47: =IF(OR(I46<>"",B46<>""),"Please check Ranked Tab for a full view","") ->  | X47: Designed by Thom Hartle

Sheet Data (hidden)
A1: Symbol | B1: =Main!D5 -> 12 | C1: =Main!G5 -> 5 | H1: 0 | I1: 0 | S1: UP
A2: S.US.AAPL | B2: =IFERROR(RTD("cqg.rtd",,"StudyData",A2,"Bar",, "High",$C$1,"0",,,,,"T"),"") -> 133.18 | C2: =IFERROR(RTD("cqg.rtd",,"StudyData",A2,"Bar",, "Low",$C$1,"0",,,,,"T"),"") -> 132.84 | D2: =IFERROR(RTD("cqg.rtd",,"StudyData","HiLevel("&A2&",Period1:="&$B$1&",AllowGaps:=0,InputChoice1:=High,InputChoice3:=High)","Bar",, "Close",$C$1,"-1",,,,,"T"),"") -> 134.4 | E2: =IFERROR(RTD("cqg.rtd",,"StudyData","LoLevel("&A2&",Period2:="&$B$1&",AllowGaps:=0,InputChoice2:=Low,InputChoice4:=Low)","Bar",, "Close",$C$1,"-1",,,,,"T"),"") -> 131.55 | F2: =IF(B2="",0,IFERROR(IF(B2>D2,1,0),"")) -> 0 | G2: =IF(C2="",0,IFERROR(IF(C2<E2,1,0),"")) -> 0 | H2: =IF(F2=1,INT(H1+1),H1+0.001) -> 0.001 | I2: =IF(G2=1,INT(I1+1),I1+0.001) -> 0.001 | J2: =A2 -> S.US.AAPL | K2: =RTD("cqg.rtd", ,"ContractData",A2, "PerCentNetLastTrade",, "T")/100 -> 0.03844654137 | L2: =RANK($K2,$K$2:K$103)+COUNTIF($K$2:K2,K2)-1 -> 3 | M2: =J2 -> S.US.AAPL | N2: 1 | O2: =IFERROR(VLOOKUP(N2,$L$2:$M$103,2,FALSE),"") -> S.US.PTON | P2: =RTD("cqg.rtd", ,"ContractData",O2, "PerCentNetLastTrade",, "T")/100 -> 0.1336657663 | Q2: =VLOOKUP(O2,$A$2:$H103,8,FALSE) -> 9.006 | S2: 1 | T2: =IFERROR(VLOOKUP(S2,$H$2:$J$103,3,FALSE),"") -> S.US.ANSS
A3: S.US.ADBE | B3: =IFERROR(RTD("cqg.rtd",,"StudyData",A3,"Bar",, "High",$C$1,"0",,,,,"T"),"") -> 503 | C3: =IFERROR(RTD("cqg.rtd",,"StudyData",A3,"Bar",, "Low",$C$1,"0",,,,,"T"),"") -> 502.55 | D3: =IFERROR(RTD("cqg.rtd",,"StudyData","HiLevel("&A3&",Period1:="&$B$1&",AllowGaps:=0,InputChoice1:=High,InputChoice3:=High)","Bar",, "Close",$C$1,"-1",,,,,"T"),"") -> 503.35 | E3: =IFERROR(RTD("cqg.rtd",,"StudyData","LoLevel("&A3&",Period2:="&$B$1&",AllowGaps:=0,InputChoice2:=Low,InputChoice4:=Low)","Bar",, "Close",$C$1,"-1",,,,,"T"),"") -> 497.65 | F3: =IF(B3="",0,IFERROR(IF(B3>D3,1,0),"")) -> 0 | G3: =IF(C3="",0,IFERROR(IF(C3<E3,1,0),"")) -> 0 | H3: =IF(F3=1,INT(H2+1),H2+0.001) -> 0.002 | I3: 0.002 | J3: =A3 -> S.US.ADBE | K3: =RTD("cqg.rtd", ,"ContractData",A3, "PerCentNetLastTrade",, "T")/100 -> 0.008708039888 | L3: =RANK($K3,$K$2:K$103)+COUNTIF($K$2:K3,K3)-1 -> 22 | M3: =J3 -> S.US.ADBE | N3: =N2+1 -> 2 | O3: =IFERROR(VLOOKUP(N3,$L$2:$M$103,2,FALSE),"") -> S.US.WDAY | P3: =RTD("cqg.rtd", ,"ContractData",O3, "PerCentNetLastTrade",, "T")/100 -> 0.04890227798 | Q3: =VLOOKUP(O3,$A$2:$H104,8,FALSE) -> 12.003 | S3: =S2+1 -> 2 | T3: =IFERROR(VLOOKUP(S3,$H$2:$J$103,3,FALSE),"") -> S.US.CERN
A4: S.US.ADI | B4: =IFERROR(RTD("cqg.rtd",,"StudyData",A4,"Bar",, "High",$C$1,"0",,,,,"T"),"") -> 143.63 | C4: =IFERROR(RTD("cqg.rtd",,"StudyData",A4,"Bar",, "Low",$C$1,"0",,,,,"T"),"") -> 143.45 | D4: =IFERROR(RTD("cqg.rtd",,"StudyData","HiLevel("&A4&",Period1:="&$B$1&",AllowGaps:=0,InputChoice1:=High,InputChoice3:=High)","Bar",, "Close",$C$1,"-1",,,,,"T"),"") -> 143.68 | E4: =IFERROR(RTD("cqg.rtd",,"StudyData","LoLevel("&A4&",Period2:="&$B$1&",AllowGaps:=0,InputChoice2:=Low,InputChoice4:=Low)","Bar",, "Close",$C$1,"-1",,,,,"T"),"") -> 142.67 | F4: =IF(B4="",0,IFERROR(IF(B4>D4,1,0),"")) -> 0 | G4: 0 | H4: 0.003 | I4: 0.003 | J4: S.US.ADI | K4: =RTD("cqg.rtd", ,"ContractData",A4, "PerCentNetLastTrade",, "T")/100 -> 0.007013114524 | L4: =RANK($K4,$K$2:K$103)+COUNTIF($K$2:K4,K4)-1 -> 26 | M4: S.US.ADI | N4: =N3+1 -> 3 | O4: S.US.AAPL | P4: =RTD("cqg.rtd", ,"ContractData",O4, "PerCentNetLastTrade",, "T")/100 -> 0.03844654137 | Q4: =VLOOKUP(O4,$A$2:$H105,8,FALSE) -> 0.001 | S4: =S3+1 -> 3 | T4: S.US.CPRT
A5: S.US.ADP | B5: =IFERROR(RTD("cqg.rtd",,"StudyData",A5,"Bar",, "High",$C$1,"0",,,,,"T"),"") -> 176.1 | C5: =IFERROR(RTD("cqg.rtd",,"StudyData",A5,"Bar",, "Low",$C$1,"0",,,,,"T"),"") -> 175.96 | D5: =IFERROR(RTD("cqg.rtd",,"StudyData","HiLevel("&A5&",Period1:="&$B$1&",AllowGaps:=0,InputChoice1:=High,InputChoice3:=High)","Bar",, "Close",$C$1,"-1",,,,,"T"),"") -> 177.02 | E5: =IFERROR(RTD("cqg.rtd",,"StudyData","LoLevel("&A5&",Period2:="&$B$1&",AllowGaps:=0,InputChoice2:=Low,InputChoice4:=Low)","Bar",, "Close",$C$1,"-1",,,,,"T"),"") -> 175.46 | F5: 0 | G5: 0 | H5: 0.004 | I5: 0.004 | J5: S.US.ADP | K5: =RTD("cqg.rtd", ,"ContractData",A5, "PerCentNetLastTrade",, "T")/100 -> -0.007831427123 | L5: =RANK($K5,$K$2:K$103)+COUNTIF($K$2:K5,K5)-1 -> 81 | M5: S.US.ADP | N5: 4 | O5: S.US.ILMN | P5: =RTD("cqg.rtd", ,"ContractData",O5, "PerCentNetLastTrade",, "T")/100 -> 0.03176791771 | Q5: =VLOOKUP(O5,$A$2:$H106,8,FALSE) -> 7.001 | S5: 4 | T5: S.US.CSX
A6: S.US.ADSK | B6: =IFERROR(RTD("cqg.rtd",,"StudyData",A6,"Bar",, "High",$C$1,"0",,,,,"T"),"") -> 303.3 | C6: =IFERROR(RTD("cqg.rtd",,"StudyData",A6,"Bar",, "Low",$C$1,"0",,,,,"T"),"") -> 302.88 | D6: =IFERROR(RTD("cqg.rtd",,"StudyData","HiLevel("&A6&",Period1:="&$B$1&",AllowGaps:=0,InputChoice1:=High,InputChoice3:=High)","Bar",, "Close",$C$1,"-1",,,,,"T"),"") -> 303.36 | E6: =IFERROR(RTD("cqg.rtd",,"StudyData","LoLevel("&A6&",Period2:="&$B$1&",AllowGaps:=0,InputChoice2:=Low,InputChoice4:=Low)","Bar",, "Close",$C$1,"-1",,,,,"T"),"") -> 300 | F6: 0 | G6: 0 | H6: 0.005 | I6: 0.005 | J6: S.US.ADSK | K6: =RTD("cqg.rtd", ,"ContractData",A6, "PerCentNetLastTrade",, "T")/100 -> 0.007311885137 | L6: =RANK($K6,$K$2:K$103)+COUNTIF($K$2:K6,K6)-1 -> 24 | M6: S.US.ADSK | N6: 5 | O6: S.US.OKTA | P6: =RTD("cqg.rtd", ,"ContractData",O6, "PerCentNetLastTrade",, "T")/100 -> 0.03019525296 | Q6: =VLOOKUP(O6,$A$2:$H107,8,FALSE) -> 9 | S6: 5 | T6: S.US.EXC
A7: S.US.AEP | B7: =IFERROR(RTD("cqg.rtd",,"StudyData",A7,"Bar",, "High",$C$1,"0",,,,,"T"),"") -> 81.81 | C7: =IFERROR(RTD("cqg.rtd",,"StudyData",A7,"Bar",, "Low",$C$1,"0",,,,,"T"),"") -> 81.66 | D7: =IFERROR(RTD("cqg.rtd",,"StudyData","HiLevel("&A7&",Period1:="&$B$1&",AllowGaps:=0,InputChoice1:=High,InputChoice3:=High)","Bar",, "Close",$C$1,"-1",,,,,"T"),"") -> 82 | E7: =IFERROR(RTD("cqg.rtd",,"StudyData","LoLevel("&A7&",Period2:="&$B$1&",AllowGaps:=0,InputChoice2:=Low,InputChoice4:=Low)","Bar",, "Close",$C$1,"-1",,,,,"T"),"") -> 81.44 | F7: 0 | G7: 0 | H7: 0.006 | I7: 0.006 | J7: S.US.AEP | K7: =RTD("cqg.rtd", ,"ContractData",A7, "PerCentNetLastTrade",, "T")/100 -> -0.004018509498 | L7: =RANK($K7,$K$2:K$103)+COUNTIF($K$2:K7,K7)-1 -> 57 | M7: S.US.AEP | N7: 6 | O7: S.US.SWKS | P7: =RTD("cqg.rtd", ,"ContractData",O7, "PerCentNetLastTrade",, "T")/100 -> 0.02552298423 | Q7: =VLOOKUP(O7,$A$2:$H108,8,FALSE) -> 11.001 | S7: 6 | T7: S.US.GOOG
A8: S.US.ALGN | B8: =IFERROR(RTD("cqg.rtd",,"StudyData",A8,"Bar",, "High",$C$1,"0",,,,,"T"),"") -> 531.13 | C8: =IFERROR(RTD("cqg.rtd",,"StudyData",A8,"Bar",, "Low",$C$1,"0",,,,,"T"),"") -> 530.61 | D8: =IFERROR(RTD("cqg.rtd",,"StudyData","HiLevel("&A8&",Period1:="&$B$1&",AllowGaps:=0,InputChoice1:=High,InputChoice3:=High)","Bar",, "Close",$C$1,"-1",,,,,"T"),"") -> 532.19 | E8: =IFERROR(RTD("cqg.rtd",,"StudyData","LoLevel("&A8&",Period2:="&$B$1&",AllowGaps:=0,InputChoice2:=Low,InputChoice4:=Low)","Bar",, "Close",$C$1,"-1",,,,,"T"),"") -> 527.6 | F8: 0 | G8: 0 | H8: 0.007 | I8: 0.007 | J8: S.US.ALGN | K8: =RTD("cqg.rtd", ,"ContractData",A8, "PerCentNetLastTrade",, "T")/100 -> 0.0002449548718 | L8: =RANK($K8,$K$2:K$103)+COUNTIF($K$2:K8,K8)-1 -> 46 | M8: S.US.ALGN | N8: 7 | O8: S.US.MTCH | P8: =RTD("cqg.rtd", ,"ContractData",O8, "PerCentNetLastTrade",, "T")/100 -> 0.02458644178 | Q8: =VLOOKUP(O8,$A$2:$H109,8,FALSE) -> 8.01 | S8: 7 | T8: S.US.IDXX
A9: S.US.ALXN | B9: =IFERROR(RTD("cqg.rtd",,"StudyData",A9,"Bar",, "High",$C$1,"0",,,,,"T"),"") -> 153.53 | C9: =IFERROR(RTD("cqg.rtd",,"StudyData",A9,"Bar",, "Low",$C$1,"0",,,,,"T"),"") -> 153.16 | D9: =IFERROR(RTD("cqg.rtd",,"StudyData","HiLevel("&A9&",Period1:="&$B$1&",AllowGaps:=0,InputChoice1:=High,InputChoice3:=High)","Bar",, "Close",$C$1,"-1",,,,,"T"),"") -> 154.03 | E9: =IFERROR(RTD("cqg.rtd",,"StudyData","LoLevel("&A9&",Period2:="&$B$1&",AllowGaps:=0,InputChoice2:=Low,InputChoice4:=Low)","Bar",, "Close",$C$1,"-1",,,,,"T"),"") -> 153.24 | F9: 0 | G9: 1 | H9: 0.008 | I9: 1 | J9: S.US.ALXN | K9: =RTD("cqg.rtd", ,"ContractData",A9, "PerCentNetLastTrade",, "T")/100 -> -0.009106762255 | L9: =RANK($K9,$K$2:K$103)+COUNTIF($K$2:K9,K9)-1 -> 85 | M9: S.US.ALXN | N9: 8 | O9: S.US.CDNS | P9: =RTD("cqg.rtd", ,"ContractData",O9, "PerCentNetLastTrade",, "T")/100 -> 0.02391254839 | Q9: =VLOOKUP(O9,$A$2:$H110,8,FALSE) -> 1.007 | S9: 8 | T9: S.US.LRCX
A10: S.US.AMAT | B10: =IFERROR(RTD("cqg.rtd",,"StudyData",A10,"Bar",, "High",$C$1,"0",,,,,"T"),"") -> 86.32 | C10: =IFERROR(RTD("cqg.rtd",,"StudyData",A10,"Bar",, "Low",$C$1,"0",,,,,"T"),"") -> 86.25 | D10: =IFERROR(RTD("cqg.rtd",,"StudyData","HiLevel("&A10&",Period1:="&$B$1&",AllowGaps:=0,InputChoice1:=High,InputChoice3:=High)","Bar",, "Close",$C$1,"-1",,,,,"T"),"") -> 86.55 | E10: =IFERROR(RTD("cqg.rtd",,"StudyData","LoLevel("&A10&",Period2:="&$B$1&",AllowGaps:=0,InputChoice2:=Low,InputChoice4:=Low)","Bar",, "Close",$C$1,"-1",,,,,"T"),"") -> 85.94 | F10: 0 | G10: 0 | H10: 0.009 | I10: 1.001 | J10: S.US.AMAT | K10: =RTD("cqg.rtd", ,"ContractData",A10, "PerCentNetLastTrade",, "T")/100 -> -0.001851637542 | L10: =RANK($K10,$K$2:K$103)+COUNTIF($K$2:K10,K10)-1 -> 51 | M10: S.US.AMAT | N10: 9 | O10: S.US.PYPL | P10: =RTD("cqg.rtd", ,"ContractData",O10, "PerCentNetLastTrade",, "T")/100 -> 0.01707891637 | Q10: =VLOOKUP(O10,$A$2:$H111,8,FALSE) -> 9.007 | S10: 9 | T10: S.US.OKTA
A11: S.US.AMD | B11: =IFERROR(RTD("cqg.rtd",,"StudyData",A11,"Bar",, "High",$C$1,"0",,,,,"T"),"") -> 92.52 | C11: =IFERROR(RTD("cqg.rtd",,"StudyData",A11,"Bar",, "Low",$C$1,"0",,,,,"T"),"") -> 92.27 | D11: =IFERROR(RTD("cqg.rtd",,"StudyData","HiLevel("&A11&",Period1:="&$B$1&",AllowGaps:=0,InputChoice1:=High,InputChoice3:=High)","Bar",, "Close",$C$1,"-1",,,,,"T"),"") -> 92.76 | E11: =IFERROR(RTD("cqg.rtd",,"StudyData","LoLevel("&A11&",Period2:="&$B$1&",AllowGaps:=0,InputChoice2:=Low,InputChoice4:=Low)","Bar",, "Close",$C$1,"-1",,,,,"T"),"") -> 91.8 | F11: 0 | G11: 0 | H11: 0.01 | I11: 1.002 | J11: S.US.AMD | K11: =RTD("cqg.rtd", ,"ContractData",A11, "PerCentNetLastTrade",, "T")/100 -> -0.008580928886 | L11: =RANK($K11,$K$2:K$103)+COUNTIF($K$2:K11,K11)-1 -> 82 | M11: S.US.AMD | N11: 10 | O11: S.US.ISRG | P11: =RTD("cqg.rtd", ,"ContractData",O11, "PerCentNetLastTrade",, "T")/100 -> 0.01678766455 | Q11: =VLOOKUP(O11,$A$2:$H112,8,FALSE) -> 7.005 | S11: 10 | T11: S.US.ROST
A12: S.US.AMGN | B12: =IFERROR(RTD("cqg.rtd",,"StudyData",A12,"Bar",, "High",$C$1,"0",,,,,"T"),"") -> 221.73 | C12: =IFERROR(RTD("cqg.rtd",,"StudyData",A12,"Bar",, "Low",$C$1,"0",,,,,"T"),"") -> 221.44 | D12: =IFERROR(RTD("cqg.rtd",,"StudyData","HiLevel("&A12&",Period1:="&$B$1&",AllowGaps:=0,InputChoice1:=High,InputChoice3:=High)","Bar",, "Close",$C$1,"-1",,,,,"T"),"") -> 223.47 | E12: =IFERROR(RTD("cqg.rtd",,"StudyData","LoLevel("&A12&",Period2:="&$B$1&",AllowGaps:=0,InputChoice2:=Low,InputChoice4:=Low)","Bar",, "Close",$C$1,"-1",,,,,"T"),"") -> 221.2 | F12: 0 | G12: 0 | H12: 0.011 | I12: 1.003 | J12: S.US.AMGN | K12: =RTD("cqg.rtd", ,"ContractData",A12, "PerCentNetLastTrade",, "T")/100 -> -0.02507588755 | L12: =RANK($K12,$K$2:K$103)+COUNTIF($K$2:K12,K12)-1 -> 101 | M12: S.US.AMGN | N12: 11 | O12: S.US.MELI | P12: =RTD("cqg.rtd", ,"ContractData",O12, "PerCentNetLastTrade",, "T")/100 -> 0.0159727662 | Q12: =VLOOKUP(O12,$A$2:$H113,8,FALSE) -> 8.005 | S12: 11 | T12: S.US.SPLK
A13: S.US.AMZN | B13: =IFERROR(RTD("cqg.rtd",,"StudyData",A13,"Bar",, "High",$C$1,"0",,,,,"T"),"") -> 3208.65 | C13: =IFERROR(RTD("cqg.rtd",,"StudyData",A13,"Bar",, "Low",$C$1,"0",,,,,"T"),"") -> 3203.9 | D13: =IFERROR(RTD("cqg.rtd",,"StudyData","HiLevel("&A13&",Period1:="&$B$1&",AllowGaps:=0,InputChoice1:=High,InputChoice3:=High)","Bar",, "Close",$C$1,"-1",,,,,"T"),"") -> 3222 | E13: =IFERROR(RTD("cqg.rtd",,"StudyData","LoLevel("&A13&",Period2:="&$B$1&",AllowGaps:=0,InputChoice2:=Low,InputChoice4:=Low)","Bar",, "Close",$C$1,"-1",,,,,"T"),"") -> 3188 | F13: 0 | G13: 0 | H13: 0.012 | I13: 1.004 | J13: S.US.AMZN | K13: =RTD("cqg.rtd", ,"ContractData",A13, "PerCentNetLastTrade",, "T")/100 -> -0.0003368494595 | L13: =RANK($K13,$K$2:K$103)+COUNTIF($K$2:K13,K13)-1 -> 47 | M13: S.US.AMZN | N13: 12 | O13: S.US.CHKP | P13: =RTD("cqg.rtd", ,"ContractData",O13, "PerCentNetLastTrade",, "T")/100 -> 0.01590926991 | Q13: =VLOOKUP(O13,$A$2:$H114,8,FALSE) -> 2.001 | S13: 12 | T13: S.US.VRSN
A14: S.US.ANSS | B14: =IFERROR(RTD("cqg.rtd",,"StudyData",A14,"Bar",, "High",$C$1,"0",,,,,"T"),"") -> 360.25 | C14: =IFERROR(RTD("cqg.rtd",,"StudyData",A14,"Bar",, "Low",$C$1,"0",,,,,"T"),"") -> 360.14 | D14: =IFERROR(RTD("cqg.rtd",,"StudyData","HiLevel("&A14&",Period1:="&$B$1&",AllowGaps:=0,InputChoice1:=High,InputChoice3:=High)","Bar",, "Close",$C$1,"-1",,,,,"T"),"") -> 360 | E14: =IFERROR(RTD("cqg.rtd",,"StudyData","LoLevel("&A14&",Period2:="&$B$1&",AllowGaps:=0,InputChoice2:=Low,InputChoice4:=Low)","Bar",, "Close",$C$1,"-1",,,,,"T"),"") -> 355.93 | F14: 1 | G14: 0 | H14: 1 | I14: 1.005 | J14: S.US.ANSS | K14: =RTD("cqg.rtd", ,"ContractData",A14, "PerCentNetLastTrade",, "T")/100 -> 0.0117713162 | L14: =RANK($K14,$K$2:K$103)+COUNTIF($K$2:K14,K14)-1 -> 16 | M14: S.US.ANSS | N14: 13 | O14: S.US.SNPS | P14: =RTD("cqg.rtd", ,"ContractData",O14, "PerCentNetLastTrade",, "T")/100 -> 0.01510383889 | Q14: =VLOOKUP(O14,$A$2:$H115,8,FALSE) -> 10.004 | S14: 13
A15: S.US.ASML | B15: =IFERROR(RTD("cqg.rtd",,"StudyData",A15,"Bar",, "High",$C$1,"0",,,,,"T"),"") -> 476.65 | C15: =IFERROR(RTD("cqg.rtd",,"StudyData",A15,"Bar",, "Low",$C$1,"0",,,,,"T"),"") -> 476.4 | D15: =IFERROR(RTD("cqg.rtd",,"StudyData","HiLevel("&A15&",Period1:="&$B$1&",AllowGaps:=0,InputChoice1:=High,InputChoice3:=High)","Bar",, "Close",$C$1,"-1",,,,,"T"),"") -> 476.95 | E15: =IFERROR(RTD("cqg.rtd",,"StudyData","LoLevel("&A15&",Period2:="&$B$1&",AllowGaps:=0,InputChoice2:=Low,InputChoice4:=Low)","Bar",, "Close",$C$1,"-1",,,,,"T"),"") -> 474.25 | F15: 0 | G15: 0 | H15: 1.001 | I15: 1.006 | J15: S.US.ASML | K15: =RTD("cqg.rtd", ,"ContractData",A15, "PerCentNetLastTrade",, "T")/100 -> 0.00929572693 | L15: =RANK($K15,$K$2:K$103)+COUNTIF($K$2:K15,K15)-1 -> 20 | M15: S.US.ASML | N15: 14 | O15: S.US.JD | P15: =RTD("cqg.rtd", ,"ContractData",O15, "PerCentNetLastTrade",, "T")/100 -> 0.01364087302 | Q15: =VLOOKUP(O15,$A$2:$H116,8,FALSE) -> 7.006 | S15: 14
A16: S.US.ATVI | B16: =IFERROR(RTD("cqg.rtd",,"StudyData",A16,"Bar",, "High",$C$1,"0",,,,,"T"),"") -> 89.02 | C16: =IFERROR(RTD("cqg.rtd",,"StudyData",A16,"Bar",, "Low",$C$1,"0",,,,,"T"),"") -> 88.97 | D16: =IFERROR(RTD("cqg.rtd",,"StudyData","HiLevel("&A16&",Period1:="&$B$1&",AllowGaps:=0,InputChoice1:=High,InputChoice3:=High)","Bar",, "Close",$C$1,"-1",,,,,"T"),"") -> 89.23 | E16: =IFERROR(RTD("cqg.rtd",,"StudyData","LoLevel("&A16&",Period2:="&$B$1&",AllowGaps:=0,InputChoice2:=Low,InputChoice4:=Low)","Bar",, "Close",$C$1,"-1",,,,,"T"),"") -> 88.8 | F16: 0 | G16: 0 | H16: 1.002 | I16: 1.007 | J16: S.US.ATVI | K16: =RTD("cqg.rtd", ,"ContractData",A16, "PerCentNetLastTrade",, "T")/100 -> 0.002026798784 | L16: =RANK($K16,$K$2:K$103)+COUNTIF($K$2:K16,K16)-1 -> 38 | M16: S.US.ATVI | N16: 15 | O16: S.US.SPLK | P16: =RTD("cqg.rtd", ,"ContractData",O16, "PerCentNetLastTrade",, "T")/100 -> 0.01204335608 | Q16: =VLOOKUP(O16,$A$2:$H117,8,FALSE) -> 11 | S16: 15
A17: S.US.AVGO | B17: =IFERROR(RTD("cqg.rtd",,"StudyData",A17,"Bar",, "High",$C$1,"0",,,,,"T"),"") -> 430.27 | C17: =IFERROR(RTD("cqg.rtd",,"StudyData",A17,"Bar",, "Low",$C$1,"0",,,,,"T"),"") -> 429.8 | D17: =IFERROR(RTD("cqg.rtd",,"StudyData","HiLevel("&A17&",Period1:="&$B$1&",AllowGaps:=0,InputChoice1:=High,InputChoice3:=High)","Bar",, "Close",$C$1,"-1",,,,,"T"),"") -> 432.15 | E17: =IFERROR(RTD("cqg.rtd",,"StudyData","LoLevel("&A17&",Period2:="&$B$1&",AllowGaps:=0,InputChoice2:=Low,InputChoice4:=Low)","Bar",, "Close",$C$1,"-1",,,,,"T"),"") -> 428.3 | F17: 0 | G17: 0 | H17: 1.003 | I17: 1.008 | J17: S.US.AVGO | K17: =RTD("cqg.rtd", ,"ContractData",A17, "PerCentNetLastTrade",, "T")/100 -> 0.003101100541 | L17: =RANK($K17,$K$2:K$103)+COUNTIF($K$2:K17,K17)-1 -> 36 | M17: S.US.AVGO | N17: 16 | O17: S.US.ANSS | P17: =RTD("cqg.rtd", ,"ContractData",O17, "PerCentNetLastTrade",, "T")/100 -> 0.0117713162 | Q17: =VLOOKUP(O17,$A$2:$H118,8,FALSE) -> 1 | S17: 16
A18: S.US.BIDU | B18: =IFERROR(RTD("cqg.rtd",,"StudyData",A18,"Bar",, "High",$C$1,"0",,,,,"T"),"") -> 192.84 | C18: =IFERROR(RTD("cqg.rtd",,"StudyData",A18,"Bar",, "Low",$C$1,"0",,,,,"T"),"") -> 191.52 | D18: =IFERROR(RTD("cqg.rtd",,"StudyData","HiLevel("&A18&",Period1:="&$B$1&",AllowGaps:=0,InputChoice1:=High,InputChoice3:=High)","Bar",, "Close",$C$1,"-1",,,,,"T"),"") -> 195.63 | E18: =IFERROR(RTD("cqg.rtd",,"StudyData","LoLevel("&A18&",Period2:="&$B$1&",AllowGaps:=0,InputChoice2:=Low,InputChoice4:=Low)","Bar",, "Close",$C$1,"-1",,,,,"T"),"") -> 190.38 | F18: 0 | G18: 0 | H18: 1.004 | I18: 1.009 | J18: S.US.BIDU | K18: =RTD("cqg.rtd", ,"ContractData",A18, "PerCentNetLastTrade",, "T")/100 -> -0.007458048477 | L18: =RANK($K18,$K$2:K$103)+COUNTIF($K$2:K18,K18)-1 -> 80 | M18: S.US.BIDU | N18: 17 | O18: S.US.IDXX | P18: =RTD("cqg.rtd", ,"ContractData",O18, "PerCentNetLastTrade",, "T")/100 -> 0.01108887437 | Q18: =VLOOKUP(O18,$A$2:$H119,8,FALSE) -> 7 | S18: 17
A19: S.US.BIIB | B19: =IFERROR(RTD("cqg.rtd",,"StudyData",A19,"Bar",, "High",$C$1,"0",,,,,"T"),"") -> 245.45 | C19: =IFERROR(RTD("cqg.rtd",,"StudyData",A19,"Bar",, "Low",$C$1,"0",,,,,"T"),"") -> 245.26 | D19: =IFERROR(RTD("cqg.rtd",,"StudyData","HiLevel("&A19&",Period1:="&$B$1&",AllowGaps:=0,InputChoice1:=High,InputChoice3:=High)","Bar",, "Close",$C$1,"-1",,,,,"T"),"") -> 247.19 | E19: =IFERROR(RTD("cqg.rtd",,"StudyData","LoLevel("&A19&",Period2:="&$B$1&",AllowGaps:=0,InputChoice2:=Low,InputChoice4:=Low)","Bar",, "Close",$C$1,"-1",,,,,"T"),"") -> 244.6 | F19: 0 | G19: 0 | H19: 1.005 | I19: 1.01 | J19: S.US.BIIB | K19: =RTD("cqg.rtd", ,"ContractData",A19, "PerCentNetLastTrade",, "T")/100 -> -0.01220199742 | L19: =RANK($K19,$K$2:K$103)+COUNTIF($K$2:K19,K19)-1 -> 88 | M19: S.US.BIIB | N19: 18 | O19: S.US.EXC | P19: =RTD("cqg.rtd", ,"ContractData",O19, "PerCentNetLastTrade",, "T")/100 -> 0.009636232233 | Q19: =VLOOKUP(O19,$A$2:$H120,8,FALSE) -> 5 | S19: 18
A20: S.US.BKNG | B20: =IFERROR(RTD("cqg.rtd",,"StudyData",A20,"Bar",, "High",$C$1,"0",,,,,"T"),"") ->  | C20: =IFERROR(RTD("cqg.rtd",,"StudyData",A20,"Bar",, "Low",$C$1,"0",,,,,"T"),"") ->  | D20: =IFERROR(RTD("cqg.rtd",,"StudyData","HiLevel("&A20&",Period1:="&$B$1&",AllowGaps:=0,InputChoice1:=High,InputChoice3:=High)","Bar",, "Close",$C$1,"-1",,,,,"T"),"") -> 2057.17 | E20: =IFERROR(RTD("cqg.rtd",,"StudyData","LoLevel("&A20&",Period2:="&$B$1&",AllowGaps:=0,InputChoice2:=Low,InputChoice4:=Low)","Bar",, "Close",$C$1,"-1",,,,,"T"),"") -> 2042.91 | F20: 0 | G20: 0 | H20: 1.006 | I20: 1.011 | J20: S.US.BKNG | K20: =RTD("cqg.rtd", ,"ContractData",A20, "PerCentNetLastTrade",, "T")/100 -> -0.006106759501 | L20: =RANK($K20,$K$2:K$103)+COUNTIF($K$2:K20,K20)-1 -> 69 | M20: S.US.BKNG | N20: 19 | O20: S.US.MSFT | P20: =RTD("cqg.rtd", ,"ContractData",O20, "PerCentNetLastTrade",, "T")/100 -> 0.009614088683 | Q20: =VLOOKUP(O20,$A$2:$H121,8,FALSE) -> 8.009 | S20: 19
A21: S.US.CDNS | B21: =IFERROR(RTD("cqg.rtd",,"StudyData",A21,"Bar",, "High",$C$1,"0",,,,,"T"),"") -> 134.88 | C21: =IFERROR(RTD("cqg.rtd",,"StudyData",A21,"Bar",, "Low",$C$1,"0",,,,,"T"),"") -> 134.67 | D21: =IFERROR(RTD("cqg.rtd",,"StudyData","HiLevel("&A21&",Period1:="&$B$1&",AllowGaps:=0,InputChoice1:=High,InputChoice3:=High)","Bar",, "Close",$C$1,"-1",,,,,"T"),"") -> 134.91 | E21: =IFERROR(RTD("cqg.rtd",,"StudyData","LoLevel("&A21&",Period2:="&$B$1&",AllowGaps:=0,InputChoice2:=Low,InputChoice4:=Low)","Bar",, "Close",$C$1,"-1",,,,,"T"),"") -> 132.86 | F21: 0 | G21: 0 | H21: 1.007 | I21: 1.012 | J21: S.US.CDNS | K21: =RTD("cqg.rtd", ,"ContractData",A21, "PerCentNetLastTrade",, "T")/100 -> 0.02391254839 | L21: =RANK($K21,$K$2:K$103)+COUNTIF($K$2:K21,K21)-1 -> 8 | M21: S.US.CDNS | N21: 20 | O21: S.US.ASML | P21: =RTD("cqg.rtd", ,"ContractData",O21, "PerCentNetLastTrade",, "T")/100 -> 0.00929572693 | Q21: =VLOOKUP(O21,$A$2:$H122,8,FALSE) -> 1.001 | S21: 20
A22: S.US.CDW | B22: =IFERROR(RTD("cqg.rtd",,"StudyData",A22,"Bar",, "High",$C$1,"0",,,,,"T"),"") -> 131.07 | C22: =IFERROR(RTD("cqg.rtd",,"StudyData",A22,"Bar",, "Low",$C$1,"0",,,,,"T"),"") -> 130.88 | D22: =IFERROR(RTD("cqg.rtd",,"StudyData","HiLevel("&A22&",Period1:="&$B$1&",AllowGaps:=0,InputChoice1:=High,InputChoice3:=High)","Bar",, "Close",$C$1,"-1",,,,,"T"),"") -> 131.64 | E22: =IFERROR(RTD("cqg.rtd",,"StudyData","LoLevel("&A22&",Period2:="&$B$1&",AllowGaps:=0,InputChoice2:=Low,InputChoice4:=Low)","Bar",, "Close",$C$1,"-1",,,,,"T"),"") -> 130.17 | F22: 0 | G22: 0 | H22: 1.008 | I22: 1.013 | J22: S.US.CDW | K22: =RTD("cqg.rtd", ,"ContractData",A22, "PerCentNetLastTrade",, "T")/100 -> 0.0003053668219 | L22: =RANK($K22,$K$2:K$103)+COUNTIF($K$2:K22,K22)-1 -> 45 | M22: S.US.CDW | N22: 21 | O22: S.US.DOCU | P22: =RTD("cqg.rtd", ,"ContractData",O22, "PerCentNetLastTrade",, "T")/100 -> 0.009072580645 | Q22: =VLOOKUP(O22,$A$2:$H123,8,FALSE) -> 4.004 | S22: 21
A23: S.US.CERN | B23: =IFERROR(RTD("cqg.rtd",,"StudyData",A23,"Bar",, "High",$C$1,"0",,,,,"T"),"") -> 77.15 | C23: =IFERROR(RTD("cqg.rtd",,"StudyData",A23,"Bar",, "Low",$C$1,"0",,,,,"T"),"") -> 77.08 | D23: =IFERROR(RTD("cqg.rtd",,"StudyData","HiLevel("&A23&",Period1:="&$B$1&",AllowGaps:=0,InputChoice1:=High,InputChoice3:=High)","Bar",, "Close",$C$1,"-1",,,,,"T"),"") -> 77.13 | E23: =IFERROR(RTD("cqg.rtd",,"StudyData","LoLevel("&A23&",Period2:="&$B$1&",AllowGaps:=0,InputChoice2:=Low,InputChoice4:=Low)","Bar",, "Close",$C$1,"-1",,,,,"T"),"") -> 76.53 | F23: 1 | G23: 0 | H23: 2 | I23: 1.014 | J23: S.US.CERN | K23: =RTD("cqg.rtd", ,"ContractData",A23, "PerCentNetLastTrade",, "T")/100 -> 0.007181094138 | L23: =RANK($K23,$K$2:K$103)+COUNTIF($K$2:K23,K23)-1 -> 25 | M23: S.US.CERN | N23: 22 | O23: S.US.ADBE | P23: =RTD("cqg.rtd", ,"ContractData",O23, "PerCentNetLastTrade",, "T")/100 -> 0.008708039888 | Q23: =VLOOKUP(O23,$A$2:$H124,8,FALSE) -> 0.002 | S23: 22
A24: S.US.CHKP | B24: =IFERROR(RTD("cqg.rtd",,"StudyData",A24,"Bar",, "High",$C$1,"0",,,,,"T"),"") -> 129.09 | C24: =IFERROR(RTD("cqg.rtd",,"StudyData",A24,"Bar",, "Low",$C$1,"0",,,,,"T"),"") -> 128.9 | D24: =IFERROR(RTD("cqg.rtd",,"StudyData","HiLevel("&A24&",Period1:="&$B$1&",AllowGaps:=0,InputChoice1:=High,InputChoice3:=High)","Bar",, "Close",$C$1,"-1",,,,,"T"),"") -> 129.7 | E24: =IFERROR(RTD("cqg.rtd",,"StudyData","LoLevel("&A24&",Period2:="&$B$1&",AllowGaps:=0,InputChoice2:=Low,InputChoice4:=Low)","Bar",, "Close",$C$1,"-1",,,,,"T"),"") -> 127.74 | F24: 0 | G24: 0 | H24: 2.001 | I24: 1.015 | J24: S.US.CHKP | K24: =RTD("cqg.rtd", ,"ContractData",A24, "PerCentNetLastTrade",, "T")/100 -> 0.01590926991 | L24: =RANK($K24,$K$2:K$103)+COUNTIF($K$2:K24,K24)-1 -> 12 | M24: S.US.CHKP | N24: 23 | O24: S.US.TMUS | P24: =RTD("cqg.rtd", ,"ContractData",O24, "PerCentNetLastTrade",, "T")/100 -> 0.007372139456 | Q24: =VLOOKUP(O24,$A$2:$H125,8,FALSE) -> 11.004 | S24: 23
A25: S.US.CHTR | B25: =IFERROR(RTD("cqg.rtd",,"StudyData",A25,"Bar",, "High",$C$1,"0",,,,,"T"),"") -> 652.15 | C25: =IFERROR(RTD("cqg.rtd",,"StudyData",A25,"Bar",, "Low",$C$1,"0",,,,,"T"),"") -> 651.82 | D25: =IFERROR(RTD("cqg.rtd",,"StudyData","HiLevel("&A25&",Period1:="&$B$1&",AllowGaps:=0,InputChoice1:=High,InputChoice3:=High)","Bar",, "Close",$C$1,"-1",,,,,"T"),"") -> 654.79 | E25: =IFERROR(RTD("cqg.rtd",,"StudyData","LoLevel("&A25&",Period2:="&$B$1&",AllowGaps:=0,InputChoice2:=Low,InputChoice4:=Low)","Bar",, "Close",$C$1,"-1",,,,,"T"),"") -> 649.13 | F25: 0 | G25: 0 | H25: 2.002 | I25: 1.016 | J25: S.US.CHTR | K25: =RTD("cqg.rtd", ,"ContractData",A25, "PerCentNetLastTrade",, "T")/100 -> -0.003879698789 | L25: =RANK($K25,$K$2:K$103)+COUNTIF($K$2:K25,K25)-1 -> 56 | M25: S.US.CHTR | N25: 24 | O25: S.US.ADSK | P25: =RTD("cqg.rtd", ,"ContractData",O25, "PerCentNetLastTrade",, "T")/100 -> 0.007311885137 | Q25: =VLOOKUP(O25,$A$2:$H126,8,FALSE) -> 0.005 | S25: 24
A26: S.US.CMCSA | B26: =IFERROR(RTD("cqg.rtd",,"StudyData",A26,"Bar",, "High",$C$1,"0",,,,,"T"),"") -> 50.14 | C26: =IFERROR(RTD("cqg.rtd",,"StudyData",A26,"Bar",, "Low",$C$1,"0",,,,,"T"),"") -> 50.11 | D26: =IFERROR(RTD("cqg.rtd",,"StudyData","HiLevel("&A26&",Period1:="&$B$1&",AllowGaps:=0,InputChoice1:=High,InputChoice3:=High)","Bar",, "Close",$C$1,"-1",,,,,"T"),"") -> 50.24 | E26: =IFERROR(RTD("cqg.rtd",,"StudyData","LoLevel("&A26&",Period2:="&$B$1&",AllowGaps:=0,InputChoice2:=Low,InputChoice4:=Low)","Bar",, "Close",$C$1,"-1",,,,,"T"),"") -> 49.81 | F26: 0 | G26: 0 | H26: 2.003 | I26: 1.017 | J26: S.US.CMCSA | K26: =RTD("cqg.rtd", ,"ContractData",A26, "PerCentNetLastTrade",, "T")/100 -> -0.004566210046 | L26: =RANK($K26,$K$2:K$103)+COUNTIF($K$2:K26,K26)-1 -> 58 | M26: S.US.CMCSA | N26: 25 | O26: S.US.CERN | P26: =RTD("cqg.rtd", ,"ContractData",O26, "PerCentNetLastTrade",, "T")/100 -> 0.007181094138 | Q26: =VLOOKUP(O26,$A$2:$H127,8,FALSE) -> 2 | S26: 25
A27: S.US.COST | B27: =IFERROR(RTD("cqg.rtd",,"StudyData",A27,"Bar",, "High",$C$1,"0",,,,,"T"),"") -> 362.44 | C27: =IFERROR(RTD("cqg.rtd",,"StudyData",A27,"Bar",, "Low",$C$1,"0",,,,,"T"),"") -> 362.06 | D27: =IFERROR(RTD("cqg.rtd",,"StudyData","HiLevel("&A27&",Period1:="&$B$1&",AllowGaps:=0,InputChoice1:=High,InputChoice3:=High)","Bar",, "Close",$C$1,"-1",,,,,"T"),"") -> 363.82 | E27: =IFERROR(RTD("cqg.rtd",,"StudyData","LoLevel("&A27&",Period2:="&$B$1&",AllowGaps:=0,InputChoice2:=Low,InputChoice4:=Low)","Bar",, "Close",$C$1,"-1",,,,,"T"),"") -> 360.75 | F27: 0 | G27: 0 | H27: 2.004 | I27: 1.018 | J27: S.US.COST | K27: =RTD("cqg.rtd", ,"ContractData",A27, "PerCentNetLastTrade",, "T")/100 -> -0.006932076609 | L27: =RANK($K27,$K$2:K$103)+COUNTIF($K$2:K27,K27)-1 -> 79 | M27: S.US.COST | N27: 26 | O27: S.US.ADI | P27: =RTD("cqg.rtd", ,"ContractData",O27, "PerCentNetLastTrade",, "T")/100 -> 0.007013114524 | Q27: =VLOOKUP(O27,$A$2:$H128,8,FALSE) -> 0.003 | S27: 26
A28: S.US.CPRT | B28: =IFERROR(RTD("cqg.rtd",,"StudyData",A28,"Bar",, "High",$C$1,"0",,,,,"T"),"") -> 122.91 | C28: =IFERROR(RTD("cqg.rtd",,"StudyData",A28,"Bar",, "Low",$C$1,"0",,,,,"T"),"") -> 122.6 | D28: =IFERROR(RTD("cqg.rtd",,"StudyData","HiLevel("&A28&",Period1:="&$B$1&",AllowGaps:=0,InputChoice1:=High,InputChoice3:=High)","Bar",, "Close",$C$1,"-1",,,,,"T"),"") -> 122.82 | E28: =IFERROR(RTD("cqg.rtd",,"StudyData","LoLevel("&A28&",Period2:="&$B$1&",AllowGaps:=0,InputChoice2:=Low,InputChoice4:=Low)","Bar",, "Close",$C$1,"-1",,,,,"T"),"") -> 121.97 | F28: 1 | G28: 0 | H28: 3 | I28: 1.019 | J28: S.US.CPRT | K28: =RTD("cqg.rtd", ,"ContractData",A28, "PerCentNetLastTrade",, "T")/100 -> 0.005974791292 | L28: =RANK($K28,$K$2:K$103)+COUNTIF($K$2:K28,K28)-1 -> 29 | M28: S.US.CPRT | N28: 27 | O28: S.US.INTU | P28: =RTD("cqg.rtd", ,"ContractData",O28, "PerCentNetLastTrade",, "T")/100 -> 0.006836379113 | Q28: =VLOOKUP(O28,$A$2:$H129,8,FALSE) -> 7.004 | S28: 27
A29: S.US.CSCO | B29: =IFERROR(RTD("cqg.rtd",,"StudyData",A29,"Bar",, "High",$C$1,"0",,,,,"T"),"") -> 44.93 | C29: =IFERROR(RTD("cqg.rtd",,"StudyData",A29,"Bar",, "Low",$C$1,"0",,,,,"T"),"") -> 44.89 | D29: =IFERROR(RTD("cqg.rtd",,"StudyData","HiLevel("&A29&",Period1:="&$B$1&",AllowGaps:=0,InputChoice1:=High,InputChoice3:=High)","Bar",, "Close",$C$1,"-1",,,,,"T"),"") -> 44.98 | E29: =IFERROR(RTD("cqg.rtd",,"StudyData","LoLevel("&A29&",Period2:="&$B$1&",AllowGaps:=0,InputChoice2:=Low,InputChoice4:=Low)","Bar",, "Close",$C$1,"-1",,,,,"T"),"") -> 44.71 | F29: 0 | G29: 0 | H29: 3.001 | I29: 1.02 | J29: S.US.CSCO | K29: =RTD("cqg.rtd", ,"ContractData",A29, "PerCentNetLastTrade",, "T")/100 -> 0.0008912655971 | L29: =RANK($K29,$K$2:K$103)+COUNTIF($K$2:K29,K29)-1 -> 44 | M29: S.US.CSCO | N29: 28 | O29: S.US.VRSN | P29: =RTD("cqg.rtd", ,"ContractData",O29, "PerCentNetLastTrade",, "T")/100 -> 0.006421890269 | Q29: =VLOOKUP(O29,$A$2:$H130,8,FALSE) -> 12 | S29: 28
A30: S.US.CSX | B30: =IFERROR(RTD("cqg.rtd",,"StudyData",A30,"Bar",, "High",$C$1,"0",,,,,"T"),"") -> 89.84 | C30: =IFERROR(RTD("cqg.rtd",,"StudyData",A30,"Bar",, "Low",$C$1,"0",,,,,"T"),"") -> 89.73 | D30: =IFERROR(RTD("cqg.rtd",,"StudyData","HiLevel("&A30&",Period1:="&$B$1&",AllowGaps:=0,InputChoice1:=High,InputChoice3:=High)","Bar",, "Close",$C$1,"-1",,,,,"T"),"") -> 89.81 | E30: =IFERROR(RTD("cqg.rtd",,"StudyData","LoLevel("&A30&",Period2:="&$B$1&",AllowGaps:=0,InputChoice2:=Low,InputChoice4:=Low)","Bar",, "Close",$C$1,"-1",,,,,"T"),"") -> 89.1 | F30: 1 | G30: 0 | H30: 4 | I30: 1.021 | J30: S.US.CSX | K30: =RTD("cqg.rtd", ,"ContractData",A30, "PerCentNetLastTrade",, "T")/100 -> 0.001560932099 | L30: =RANK($K30,$K$2:K$103)+COUNTIF($K$2:K30,K30)-1 -> 42 | M30: S.US.CSX | N30: 29 | O30: S.US.CPRT | P30: =RTD("cqg.rtd", ,"ContractData",O30, "PerCentNetLastTrade",, "T")/100 -> 0.005974791292 | Q30: =VLOOKUP(O30,$A$2:$H131,8,FALSE) -> 3 | S30: 29
A31: S.US.CTAS | B31: =IFERROR(RTD("cqg.rtd",,"StudyData",A31,"Bar",, "High",$C$1,"0",,,,,"T"),"") -> 342.05 | C31: =IFERROR(RTD("cqg.rtd",,"StudyData",A31,"Bar",, "Low",$C$1,"0",,,,,"T"),"") -> 340.64 | D31: =IFERROR(RTD("cqg.rtd",,"StudyData","HiLevel("&A31&",Period1:="&$B$1&",AllowGaps:=0,InputChoice1:=High,InputChoice3:=High)","Bar",, "Close",$C$1,"-1",,,,,"T"),"") -> 343.45 | E31: =IFERROR(RTD("cqg.rtd",,"StudyData","LoLevel("&A31&",Period2:="&$B$1&",AllowGaps:=0,InputChoice2:=Low,InputChoice4:=Low)","Bar",, "Close",$C$1,"-1",,,,,"T"),"") -> 334.13 | F31: 0 | G31: 0 | H31: 4.001 | I31: 1.022 | J31: S.US.CTAS | K31: =RTD("cqg.rtd", ,"ContractData",A31, "PerCentNetLastTrade",, "T")/100 -> -0.01375205848 | L31: =RANK($K31,$K$2:K$103)+COUNTIF($K$2:K31,K31)-1 -> 91 | M31: S.US.CTAS | N31: 30 | O31: S.US.NXPI | P31: =RTD("cqg.rtd", ,"ContractData",O31, "PerCentNetLastTrade",, "T")/100 -> 0.005858753105 | Q31: =VLOOKUP(O31,$A$2:$H132,8,FALSE) -> 8.016 | S31: 30
A32: S.US.CTSH | B32: =IFERROR(RTD("cqg.rtd",,"StudyData",A32,"Bar",, "High",$C$1,"0",,,,,"T"),"") -> 80.77 | C32: =IFERROR(RTD("cqg.rtd",,"StudyData",A32,"Bar",, "Low",$C$1,"0",,,,,"T"),"") -> 80.69 | D32: =IFERROR(RTD("cqg.rtd",,"StudyData","HiLevel("&A32&",Period1:="&$B$1&",AllowGaps:=0,InputChoice1:=High,InputChoice3:=High)","Bar",, "Close",$C$1,"-1",,,,,"T"),"") -> 80.96 | E32: =IFERROR(RTD("cqg.rtd",,"StudyData","LoLevel("&A32&",Period2:="&$B$1&",AllowGaps:=0,InputChoice2:=Low,InputChoice4:=Low)","Bar",, "Close",$C$1,"-1",,,,,"T"),"") -> 80.13 | F32: 0 | G32: 0 | H32: 4.002 | I32: 1.023 | J32: S.US.CTSH | K32: =RTD("cqg.rtd", ,"ContractData",A32, "PerCentNetLastTrade",, "T")/100 -> 0.003728097428 | L32: =RANK($K32,$K$2:K$103)+COUNTIF($K$2:K32,K32)-1 -> 33 | M32: S.US.CTSH | N32: 31 | O32: S.US.MXIM | P32: =RTD("cqg.rtd", ,"ContractData",O32, "PerCentNetLastTrade",, "T")/100 -> 0.005751173709 | Q32: =VLOOKUP(O32,$A$2:$H133,8,FALSE) -> 8.012 | S32: 31
A33: S.US.DLTR | B33: =IFERROR(RTD("cqg.rtd",,"StudyData",A33,"Bar",, "High",$C$1,"0",,,,,"T"),"") -> 109.42 | C33: =IFERROR(RTD("cqg.rtd",,"StudyData",A33,"Bar",, "Low",$C$1,"0",,,,,"T"),"") -> 109.25 | D33: =IFERROR(RTD("cqg.rtd",,"StudyData","HiLevel("&A33&",Period1:="&$B$1&",AllowGaps:=0,InputChoice1:=High,InputChoice3:=High)","Bar",, "Close",$C$1,"-1",,,,,"T"),"") -> 110.54 | E33: =IFERROR(RTD("cqg.rtd",,"StudyData","LoLevel("&A33&",Period2:="&$B$1&",AllowGaps:=0,InputChoice2:=Low,InputChoice4:=Low)","Bar",, "Close",$C$1,"-1",,,,,"T"),"") -> 108.35 | F33: 0 | G33: 0 | H33: 4.003 | I33: 1.024 | J33: S.US.DLTR | K33: =RTD("cqg.rtd", ,"ContractData",A33, "PerCentNetLastTrade",, "T")/100 -> -0.01918938307 | L33: =RANK($K33,$K$2:K$103)+COUNTIF($K$2:K33,K33)-1 -> 96 | M33: S.US.DLTR | N33: 32 | O33: S.US.MRVL | P33: =RTD("cqg.rtd", ,"ContractData",O33, "PerCentNetLastTrade",, "T")/100 -> 0.00380952381 | Q33: =VLOOKUP(O33,$A$2:$H134,8,FALSE) -> 8.008 | S33: 32
A34: S.US.DOCU | B34: =IFERROR(RTD("cqg.rtd",,"StudyData",A34,"Bar",, "High",$C$1,"0",,,,,"T"),"") -> 250.73 | C34: =IFERROR(RTD("cqg.rtd",,"StudyData",A34,"Bar",, "Low",$C$1,"0",,,,,"T"),"") -> 250.11 | D34: =IFERROR(RTD("cqg.rtd",,"StudyData","HiLevel("&A34&",Period1:="&$B$1&",AllowGaps:=0,InputChoice1:=High,InputChoice3:=High)","Bar",, "Close",$C$1,"-1",,,,,"T"),"") -> 252.79 | E34: =IFERROR(RTD("cqg.rtd",,"StudyData","LoLevel("&A34&",Period2:="&$B$1&",AllowGaps:=0,InputChoice2:=Low,InputChoice4:=Low)","Bar",, "Close",$C$1,"-1",,,,,"T"),"") -> 247.66 | F34: 0 | G34: 0 | H34: 4.004 | I34: 1.025 | J34: S.US.DOCU | K34: =RTD("cqg.rtd", ,"ContractData",A34, "PerCentNetLastTrade",, "T")/100 -> 0.009072580645 | L34: =RANK($K34,$K$2:K$103)+COUNTIF($K$2:K34,K34)-1 -> 21 | M34: S.US.DOCU | N34: 33 | O34: S.US.CTSH | P34: =RTD("cqg.rtd", ,"ContractData",O34, "PerCentNetLastTrade",, "T")/100 -> 0.003728097428 | Q34: =VLOOKUP(O34,$A$2:$H135,8,FALSE) -> 4.002 | S34: 33
A35: S.US.DXCM | B35: =IFERROR(RTD("cqg.rtd",,"StudyData",A35,"Bar",, "High",$C$1,"0",,,,,"T"),"") -> 348.08 | C35: =IFERROR(RTD("cqg.rtd",,"StudyData",A35,"Bar",, "Low",$C$1,"0",,,,,"T"),"") -> 347.36 | D35: =IFERROR(RTD("cqg.rtd",,"StudyData","HiLevel("&A35&",Period1:="&$B$1&",AllowGaps:=0,InputChoice1:=High,InputChoice3:=High)","Bar",, "Close",$C$1,"-1",,,,,"T"),"") -> 349.46 | E35: =IFERROR(RTD("cqg.rtd",,"StudyData","LoLevel("&A35&",Period2:="&$B$1&",AllowGaps:=0,InputChoice2:=Low,InputChoice4:=Low)","Bar",, "Close",$C$1,"-1",,,,,"T"),"") -> 345.43 | F35: 0 | G35: 0 | H35: 4.005 | I35: 1.026 | J35: S.US.DXCM | K35: =RTD("cqg.rtd", ,"ContractData",A35, "PerCentNetLastTrade",, "T")/100 -> -0.003181883331 | L35: =RANK($K35,$K$2:K$103)+COUNTIF($K$2:K35,K35)-1 -> 54 | M35: S.US.DXCM | N35: 34 | O35: S.US.KDP | P35: =RTD("cqg.rtd", ,"ContractData",O35, "PerCentNetLastTrade",, "T")/100 -> 0.003249918752 | Q35: =VLOOKUP(O35,$A$2:$H136,8,FALSE) -> 7.007 | S35: 34
A36: S.US.EA | B36: =IFERROR(RTD("cqg.rtd",,"StudyData",A36,"Bar",, "High",$C$1,"0",,,,,"T"),"") -> 140.29 | C36: =IFERROR(RTD("cqg.rtd",,"StudyData",A36,"Bar",, "Low",$C$1,"0",,,,,"T"),"") -> 140.22 | D36: =IFERROR(RTD("cqg.rtd",,"StudyData","HiLevel("&A36&",Period1:="&$B$1&",AllowGaps:=0,InputChoice1:=High,InputChoice3:=High)","Bar",, "Close",$C$1,"-1",,,,,"T"),"") -> 140.89 | E36: =IFERROR(RTD("cqg.rtd",,"StudyData","LoLevel("&A36&",Period2:="&$B$1&",AllowGaps:=0,InputChoice2:=Low,InputChoice4:=Low)","Bar",, "Close",$C$1,"-1",,,,,"T"),"") -> 139.83 | F36: 0 | G36: 0 | H36: 4.006 | I36: 1.027 | J36: S.US.EA | K36: =RTD("cqg.rtd", ,"ContractData",A36, "PerCentNetLastTrade",, "T")/100 -> -0.005247854762 | L36: =RANK($K36,$K$2:K$103)+COUNTIF($K$2:K36,K36)-1 -> 64 | M36: S.US.EA | N36: 35 | O36: S.US.KHC | P36: =RTD("cqg.rtd", ,"ContractData",O36, "PerCentNetLastTrade",, "T")/100 -> 0.003181949667 | Q36: =VLOOKUP(O36,$A$2:$H137,8,FALSE) -> 7.008 | S36: 35
A37: S.US.EBAY | B37: =IFERROR(RTD("cqg.rtd",,"StudyData",A37,"Bar",, "High",$C$1,"0",,,,,"T"),"") -> 51.66 | C37: =IFERROR(RTD("cqg.rtd",,"StudyData",A37,"Bar",, "Low",$C$1,"0",,,,,"T"),"") -> 51.54 | D37: =IFERROR(RTD("cqg.rtd",,"StudyData","HiLevel("&A37&",Period1:="&$B$1&",AllowGaps:=0,InputChoice1:=High,InputChoice3:=High)","Bar",, "Close",$C$1,"-1",,,,,"T"),"") -> 51.73 | E37: =IFERROR(RTD("cqg.rtd",,"StudyData","LoLevel("&A37&",Period2:="&$B$1&",AllowGaps:=0,InputChoice2:=Low,InputChoice4:=Low)","Bar",, "Close",$C$1,"-1",,,,,"T"),"") -> 51.28 | F37: 0 | G37: 0 | H37: 4.007 | I37: 1.028 | J37: S.US.EBAY | K37: =RTD("cqg.rtd", ,"ContractData",A37, "PerCentNetLastTrade",, "T")/100 -> 0.001745200698 | L37: =RANK($K37,$K$2:K$103)+COUNTIF($K$2:K37,K37)-1 -> 40 | M37: S.US.EBAY | N37: 36 | O37: S.US.AVGO | P37: =RTD("cqg.rtd", ,"ContractData",O37, "PerCentNetLastTrade",, "T")/100 -> 0.003101100541 | Q37: =VLOOKUP(O37,$A$2:$H138,8,FALSE) -> 1.003 | S37: 36
A38: S.US.EXC | B38: =IFERROR(RTD("cqg.rtd",,"StudyData",A38,"Bar",, "High",$C$1,"0",,,,,"T"),"") -> 41.91 | C38: =IFERROR(RTD("cqg.rtd",,"StudyData",A38,"Bar",, "Low",$C$1,"0",,,,,"T"),"") -> 41.82 | D38: =IFERROR(RTD("cqg.rtd",,"StudyData","HiLevel("&A38&",Period1:="&$B$1&",AllowGaps:=0,InputChoice1:=High,InputChoice3:=High)","Bar",, "Close",$C$1,"-1",,,,,"T"),"") -> 41.86 | E38: =IFERROR(RTD("cqg.rtd",,"StudyData","LoLevel("&A38&",Period2:="&$B$1&",AllowGaps:=0,InputChoice2:=Low,InputChoice4:=Low)","Bar",, "Close",$C$1,"-1",,,,,"T"),"") -> 41.48 | F38: 1 | G38: 0 | H38: 5 | I38: 1.029 | J38: S.US.EXC | K38: =RTD("cqg.rtd", ,"ContractData",A38, "PerCentNetLastTrade",, "T")/100 -> 0.009636232233 | L38: =RANK($K38,$K$2:K$103)+COUNTIF($K$2:K38,K38)-1 -> 18 | M38: S.US.EXC | N38: 37 | O38: S.US.PAYX | P38: =RTD("cqg.rtd", ,"ContractData",O38, "PerCentNetLastTrade",, "T")/100 -> 0.002381198882 | Q38: =VLOOKUP(O38,$A$2:$H139,8,FALSE) -> 9.002 | S38: 37
A39: S.US.FAST | B39: =IFERROR(RTD("cqg.rtd",,"StudyData",A39,"Bar",, "High",$C$1,"0",,,,,"T"),"") -> 49.48 | C39: =IFERROR(RTD("cqg.rtd",,"StudyData",A39,"Bar",, "Low",$C$1,"0",,,,,"T"),"") -> 49.38 | D39: =IFERROR(RTD("cqg.rtd",,"StudyData","HiLevel("&A39&",Period1:="&$B$1&",AllowGaps:=0,InputChoice1:=High,InputChoice3:=High)","Bar",, "Close",$C$1,"-1",,,,,"T"),"") -> 49.67 | E39: =IFERROR(RTD("cqg.rtd",,"StudyData","LoLevel("&A39&",Period2:="&$B$1&",AllowGaps:=0,InputChoice2:=Low,InputChoice4:=Low)","Bar",, "Close",$C$1,"-1",,,,,"T"),"") -> 49.2 | F39: 0 | G39: 0 | H39: 5.001 | I39: 1.03 | J39: S.US.FAST | K39: =RTD("cqg.rtd", ,"ContractData",A39, "PerCentNetLastTrade",, "T")/100 -> -0.002620439428 | L39: =RANK($K39,$K$2:K$103)+COUNTIF($K$2:K39,K39)-1 -> 53 | M39: S.US.FAST | N39: 38 | O39: S.US.ATVI | P39: =RTD("cqg.rtd", ,"ContractData",O39, "PerCentNetLastTrade",, "T")/100 -> 0.002026798784 | Q39: =VLOOKUP(O39,$A$2:$H140,8,FALSE) -> 1.002 | S39: 38
A40: S.US.FB | B40: =IFERROR(RTD("cqg.rtd",,"StudyData",A40,"Bar",, "High",$C$1,"0",,,,,"T"),"") -> 269.64 | C40: =IFERROR(RTD("cqg.rtd",,"StudyData",A40,"Bar",, "Low",$C$1,"0",,,,,"T"),"") -> 269.33 | D40: =IFERROR(RTD("cqg.rtd",,"StudyData","HiLevel("&A40&",Period1:="&$B$1&",AllowGaps:=0,InputChoice1:=High,InputChoice3:=High)","Bar",, "Close",$C$1,"-1",,,,,"T"),"") -> 271.34 | E40: =IFERROR(RTD("cqg.rtd",,"StudyData","LoLevel("&A40&",Period2:="&$B$1&",AllowGaps:=0,InputChoice2:=Low,InputChoice4:=Low)","Bar",, "Close",$C$1,"-1",,,,,"T"),"") -> 267.9 | F40: 0 | G40: 0 | H40: 5.002 | I40: 1.031 | J40: S.US.FB | K40: =RTD("cqg.rtd", ,"ContractData",A40, "PerCentNetLastTrade",, "T")/100 -> -0.01191392646 | L40: =RANK($K40,$K$2:K$103)+COUNTIF($K$2:K40,K40)-1 -> 87 | M40: S.US.FB | N40: 39 | O40: S.US.TXN | P40: =RTD("cqg.rtd", ,"ContractData",O40, "PerCentNetLastTrade",, "T")/100 -> 0.001908514437 | Q40: =VLOOKUP(O40,$A$2:$H141,8,FALSE) -> 11.006 | S40: 39
A41: S.US.FISV | B41: =IFERROR(RTD("cqg.rtd",,"StudyData",A41,"Bar",, "High",$C$1,"0",,,,,"T"),"") -> 110.77 | C41: =IFERROR(RTD("cqg.rtd",,"StudyData",A41,"Bar",, "Low",$C$1,"0",,,,,"T"),"") -> 110.64 | D41: =IFERROR(RTD("cqg.rtd",,"StudyData","HiLevel("&A41&",Period1:="&$B$1&",AllowGaps:=0,InputChoice1:=High,InputChoice3:=High)","Bar",, "Close",$C$1,"-1",,,,,"T"),"") -> 111.57 | E41: =IFERROR(RTD("cqg.rtd",,"StudyData","LoLevel("&A41&",Period2:="&$B$1&",AllowGaps:=0,InputChoice2:=Low,InputChoice4:=Low)","Bar",, "Close",$C$1,"-1",,,,,"T"),"") -> 110.19 | F41: 0 | G41: 0 | H41: 5.003 | I41: 1.032 | J41: S.US.FISV | K41: =RTD("cqg.rtd", ,"ContractData",A41, "PerCentNetLastTrade",, "T")/100 -> -0.01564583519 | L41: =RANK($K41,$K$2:K$103)+COUNTIF($K$2:K41,K41)-1 -> 93 | M41: S.US.FISV | N41: 40 | O41: S.US.EBAY | P41: =RTD("cqg.rtd", ,"ContractData",O41, "PerCentNetLastTrade",, "T")/100 -> 0.001745200698 | Q41: =VLOOKUP(O41,$A$2:$H142,8,FALSE) -> 4.007 | S41: 40
A42: S.US.FOX | B42: =IFERROR(RTD("cqg.rtd",,"StudyData",A42,"Bar",, "High",$C$1,"0",,,,,"T"),"") -> 27.24 | C42: =IFERROR(RTD("cqg.rtd",,"StudyData",A42,"Bar",, "Low",$C$1,"0",,,,,"T"),"") -> 27.22 | D42: =IFERROR(RTD("cqg.rtd",,"StudyData","HiLevel("&A42&",Period1:="&$B$1&",AllowGaps:=0,InputChoice1:=High,InputChoice3:=High)","Bar",, "Close",$C$1,"-1",,,,,"T"),"") -> 27.31 | E42: =IFERROR(RTD("cqg.rtd",,"StudyData","LoLevel("&A42&",Period2:="&$B$1&",AllowGaps:=0,InputChoice2:=Low,InputChoice4:=Low)","Bar",, "Close",$C$1,"-1",,,,,"T"),"") -> 26.98 | F42: 0 | G42: 0 | H42: 5.004 | I42: 1.033 | J42: S.US.FOX | K42: =RTD("cqg.rtd", ,"ContractData",A42, "PerCentNetLastTrade",, "T")/100 -> -0.00547645126 | L42: =RANK($K42,$K$2:K$103)+COUNTIF($K$2:K42,K42)-1 -> 65 | M42: S.US.FOX | N42: 41 | O42: S.US.ROST | P42: =RTD("cqg.rtd", ,"ContractData",O42, "PerCentNetLastTrade",, "T")/100 -> 0.001626851614 | Q42: =VLOOKUP(O42,$A$2:$H143,8,FALSE) -> 10 | S42: 41
A43: S.US.FOXA | B43: =IFERROR(RTD("cqg.rtd",,"StudyData",A43,"Bar",, "High",$C$1,"0",,,,,"T"),"") -> 27.53 | C43: =IFERROR(RTD("cqg.rtd",,"StudyData",A43,"Bar",, "Low",$C$1,"0",,,,,"T"),"") -> 27.51 | D43: =IFERROR(RTD("cqg.rtd",,"StudyData","HiLevel("&A43&",Period1:="&$B$1&",AllowGaps:=0,InputChoice1:=High,InputChoice3:=High)","Bar",, "Close",$C$1,"-1",,,,,"T"),"") -> 27.59 | E43: =IFERROR(RTD("cqg.rtd",,"StudyData","LoLevel("&A43&",Period2:="&$B$1&",AllowGaps:=0,InputChoice2:=Low,InputChoice4:=Low)","Bar",, "Close",$C$1,"-1",,,,,"T"),"") -> 27.22 | F43: 0 | G43: 0 | H43: 5.005 | I43: 1.034 | J43: S.US.FOXA | K43: =RTD("cqg.rtd", ,"ContractData",A43, "PerCentNetLastTrade",, "T")/100 -> -0.006854256854 | L43: =RANK($K43,$K$2:K$103)+COUNTIF($K$2:K43,K43)-1 -> 77 | M43: S.US.FOXA | N43: 42 | O43: S.US.CSX | P43: =RTD("cqg.rtd", ,"ContractData",O43, "PerCentNetLastTrade",, "T")/100 -> 0.001560932099 | Q43: =VLOOKUP(O43,$A$2:$H144,8,FALSE) -> 4 | S43: 42
A44: S.US.GILD | B44: =IFERROR(RTD("cqg.rtd",,"StudyData",A44,"Bar",, "High",$C$1,"0",,,,,"T"),"") -> 57.19 | C44: =IFERROR(RTD("cqg.rtd",,"StudyData",A44,"Bar",, "Low",$C$1,"0",,,,,"T"),"") -> 57.1 | D44: =IFERROR(RTD("cqg.rtd",,"StudyData","HiLevel("&A44&",Period1:="&$B$1&",AllowGaps:=0,InputChoice1:=High,InputChoice3:=High)","Bar",, "Close",$C$1,"-1",,,,,"T"),"") -> 57.97 | E44: =IFERROR(RTD("cqg.rtd",,"StudyData","LoLevel("&A44&",Period2:="&$B$1&",AllowGaps:=0,InputChoice2:=Low,InputChoice4:=Low)","Bar",, "Close",$C$1,"-1",,,,,"T"),"") -> 57.12 | F44: 0 | G44: 1 | H44: 5.006 | I44: 2 | J44: S.US.GILD | K44: =RTD("cqg.rtd", ,"ContractData",A44, "PerCentNetLastTrade",, "T")/100 -> -0.02408609498 | L44: =RANK($K44,$K$2:K$103)+COUNTIF($K$2:K44,K44)-1 -> 100 | M44: S.US.GILD | N44: 43 | O44: S.US.INCY | P44: =RTD("cqg.rtd", ,"ContractData",O44, "PerCentNetLastTrade",, "T")/100 -> 0.001379786133 | Q44: =VLOOKUP(O44,$A$2:$H145,8,FALSE) -> 7.002 | S44: 43
A45: S.US.GOOG | B45: =IFERROR(RTD("cqg.rtd",,"StudyData",A45,"Bar",, "High",$C$1,"0",,,,,"T"),"") -> 1737.11 | C45: =IFERROR(RTD("cqg.rtd",,"StudyData",A45,"Bar",, "Low",$C$1,"0",,,,,"T"),"") -> 1735.07 | D45: =IFERROR(RTD("cqg.rtd",,"StudyData","HiLevel("&A45&",Period1:="&$B$1&",AllowGaps:=0,InputChoice1:=High,InputChoice3:=High)","Bar",, "Close",$C$1,"-1",,,,,"T"),"") -> 1736.78 | E45: =IFERROR(RTD("cqg.rtd",,"StudyData","LoLevel("&A45&",Period2:="&$B$1&",AllowGaps:=0,InputChoice2:=Low,InputChoice4:=Low)","Bar",, "Close",$C$1,"-1",,,,,"T"),"") -> 1721.31 | F45: 1 | G45: 0 | H45: 6 | I45: 2.001 | J45: S.US.GOOG | K45: =RTD("cqg.rtd", ,"ContractData",A45, "PerCentNetLastTrade",, "T")/100 -> -0.001535038548 | L45: =RANK($K45,$K$2:K$103)+COUNTIF($K$2:K45,K45)-1 -> 50 | M45: S.US.GOOG | N45: 44 | O45: S.US.CSCO | P45: =RTD("cqg.rtd", ,"ContractData",O45, "PerCentNetLastTrade",, "T")/100 -> 0.0008912655971 | Q45: =VLOOKUP(O45,$A$2:$H146,8,FALSE) -> 3.001 | S45: 44
A46: S.US.GOOGL | B46: =IFERROR(RTD("cqg.rtd",,"StudyData",A46,"Bar",, "High",$C$1,"0",,,,,"T"),"") -> 1732.19 | C46: =IFERROR(RTD("cqg.rtd",,"StudyData",A46,"Bar",, "Low",$C$1,"0",,,,,"T"),"") -> 1730.5 | D46: =IFERROR(RTD("cqg.rtd",,"StudyData","HiLevel("&A46&",Period1:="&$B$1&",AllowGaps:=0,InputChoice1:=High,InputChoice3:=High)","Bar",, "Close",$C$1,"-1",,,,,"T"),"") -> 1732.2 | E46: =IFERROR(RTD("cqg.rtd",,"StudyData","LoLevel("&A46&",Period2:="&$B$1&",AllowGaps:=0,InputChoice2:=Low,InputChoice4:=Low)","Bar",, "Close",$C$1,"-1",,,,,"T"),"") -> 1717.3 | F46: 0 | G46: 0 | H46: 6.001 | I46: 2.002 | J46: S.US.GOOGL | K46: =RTD("cqg.rtd", ,"ContractData",A46, "PerCentNetLastTrade",, "T")/100 -> -0.001366340743 | L46: =RANK($K46,$K$2:K$103)+COUNTIF($K$2:K46,K46)-1 -> 49 | M46: S.US.GOOGL | N46: 45 | O46: S.US.CDW | P46: =RTD("cqg.rtd", ,"ContractData",O46, "PerCentNetLastTrade",, "T")/100 -> 0.0003053668219 | Q46: =VLOOKUP(O46,$A$2:$H147,8,FALSE) -> 1.008 | S46: 45
A47: S.US.IDXX | B47: =IFERROR(RTD("cqg.rtd",,"StudyData",A47,"Bar",, "High",$C$1,"0",,,,,"T"),"") -> 495.11 | C47: =IFERROR(RTD("cqg.rtd",,"StudyData",A47,"Bar",, "Low",$C$1,"0",,,,,"T"),"") -> 494.62 | D47: =IFERROR(RTD("cqg.rtd",,"StudyData","HiLevel("&A47&",Period1:="&$B$1&",AllowGaps:=0,InputChoice1:=High,InputChoice3:=High)","Bar",, "Close",$C$1,"-1",,,,,"T"),"") -> 494.97 | E47: =IFERROR(RTD("cqg.rtd",,"StudyData","LoLevel("&A47&",Period2:="&$B$1&",AllowGaps:=0,InputChoice2:=Low,InputChoice4:=Low)","Bar",, "Close",$C$1,"-1",,,,,"T"),"") -> 489.85 | F47: 1 | G47: 0 | H47: 7 | I47: 2.003 | J47: S.US.IDXX | K47: =RTD("cqg.rtd", ,"ContractData",A47, "PerCentNetLastTrade",, "T")/100 -> 0.01108887437 | L47: =RANK($K47,$K$2:K$103)+COUNTIF($K$2:K47,K47)-1 -> 17 | M47: S.US.IDXX | N47: 46 | O47: S.US.ALGN | P47: =RTD("cqg.rtd", ,"ContractData",O47, "PerCentNetLastTrade",, "T")/100 -> 0.0002449548718 | Q47: =VLOOKUP(O47,$A$2:$H148,8,FALSE) -> 0.007 | S47: 46
A48: S.US.ILMN | B48: =IFERROR(RTD("cqg.rtd",,"StudyData",A48,"Bar",, "High",$C$1,"0",,,,,"T"),"") -> 375.37 | C48: =IFERROR(RTD("cqg.rtd",,"StudyData",A48,"Bar",, "Low",$C$1,"0",,,,,"T"),"") -> 374.15 | D48: =IFERROR(RTD("cqg.rtd",,"StudyData","HiLevel("&A48&",Period1:="&$B$1&",AllowGaps:=0,InputChoice1:=High,InputChoice3:=High)","Bar",, "Close",$C$1,"-1",,,,,"T"),"") -> 378.33 | E48: =IFERROR(RTD("cqg.rtd",,"StudyData","LoLevel("&A48&",Period2:="&$B$1&",AllowGaps:=0,InputChoice2:=Low,InputChoice4:=Low)","Bar",, "Close",$C$1,"-1",,,,,"T"),"") -> 372.01 | F48: 0 | G48: 0 | H48: 7.001 | I48: 2.004 | J48: S.US.ILMN | K48: =RTD("cqg.rtd", ,"ContractData",A48, "PerCentNetLastTrade",, "T")/100 -> 0.03176791771 | L48: =RANK($K48,$K$2:K$103)+COUNTIF($K$2:K48,K48)-1 -> 4 | M48: S.US.ILMN | N48: 47 | O48: S.US.AMZN | P48: =RTD("cqg.rtd", ,"ContractData",O48, "PerCentNetLastTrade",, "T")/100 -> -0.0003368494595 | Q48: =VLOOKUP(O48,$A$2:$H149,8,FALSE) -> 0.012 | S48: 47
A49: S.US.INCY | B49: =IFERROR(RTD("cqg.rtd",,"StudyData",A49,"Bar",, "High",$C$1,"0",,,,,"T"),"") -> 87.27 | C49: =IFERROR(RTD("cqg.rtd",,"StudyData",A49,"Bar",, "Low",$C$1,"0",,,,,"T"),"") -> 87.09 | D49: =IFERROR(RTD("cqg.rtd",,"StudyData","HiLevel("&A49&",Period1:="&$B$1&",AllowGaps:=0,InputChoice1:=High,InputChoice3:=High)","Bar",, "Close",$C$1,"-1",,,,,"T"),"") -> 87.88 | E49: =IFERROR(RTD("cqg.rtd",,"StudyData","LoLevel("&A49&",Period2:="&$B$1&",AllowGaps:=0,InputChoice2:=Low,InputChoice4:=Low)","Bar",, "Close",$C$1,"-1",,,,,"T"),"") -> 86.87 | F49: 0 | G49: 0 | H49: 7.002 | I49: 2.005 | J49: S.US.INCY | K49: =RTD("cqg.rtd", ,"ContractData",A49, "PerCentNetLastTrade",, "T")/100 -> 0.001379786133 | L49: =RANK($K49,$K$2:K$103)+COUNTIF($K$2:K49,K49)-1 -> 43 | M49: S.US.INCY | N49: 48 | O49: S.US.MCHP | P49: =RTD("cqg.rtd", ,"ContractData",O49, "PerCentNetLastTrade",, "T")/100 -> -0.00115942029 | Q49: =VLOOKUP(O49,$A$2:$H150,8,FALSE) -> 8.003 | S49: 48
A50: S.US.INTC | B50: =IFERROR(RTD("cqg.rtd",,"StudyData",A50,"Bar",, "High",$C$1,"0",,,,,"T"),"") -> 46.11 | C50: =IFERROR(RTD("cqg.rtd",,"StudyData",A50,"Bar",, "Low",$C$1,"0",,,,,"T"),"") -> 46.04 | D50: =IFERROR(RTD("cqg.rtd",,"StudyData","HiLevel("&A50&",Period1:="&$B$1&",AllowGaps:=0,InputChoice1:=High,InputChoice3:=High)","Bar",, "Close",$C$1,"-1",,,,,"T"),"") -> 46.19 | E50: =IFERROR(RTD("cqg.rtd",,"StudyData","LoLevel("&A50&",Period2:="&$B$1&",AllowGaps:=0,InputChoice2:=Low,InputChoice4:=Low)","Bar",, "Close",$C$1,"-1",,,,,"T"),"") -> 45.76 | F50: 0 | G50: 0 | H50: 7.003 | I50: 2.006 | J50: S.US.INTC | K50: =RTD("cqg.rtd", ,"ContractData",A50, "PerCentNetLastTrade",, "T")/100 -> -0.006686798965 | L50: =RANK($K50,$K$2:K$103)+COUNTIF($K$2:K50,K50)-1 -> 75 | M50: S.US.INTC | N50: 49 | O50: S.US.GOOGL | P50: =RTD("cqg.rtd", ,"ContractData",O50, "PerCentNetLastTrade",, "T")/100 -> -0.001366340743 | Q50: =VLOOKUP(O50,$A$2:$H151,8,FALSE) -> 6.001 | S50: 49
A51: S.US.INTU | B51: =IFERROR(RTD("cqg.rtd",,"StudyData",A51,"Bar",, "High",$C$1,"0",,,,,"T"),"") -> 378.64 | C51: =IFERROR(RTD("cqg.rtd",,"StudyData",A51,"Bar",, "Low",$C$1,"0",,,,,"T"),"") -> 378.43 | D51: =IFERROR(RTD("cqg.rtd",,"StudyData","HiLevel("&A51&",Period1:="&$B$1&",AllowGaps:=0,InputChoice1:=High,InputChoice3:=High)","Bar",, "Close",$C$1,"-1",,,,,"T"),"") -> 379.08 | E51: =IFERROR(RTD("cqg.rtd",,"StudyData","LoLevel("&A51&",Period2:="&$B$1&",AllowGaps:=0,InputChoice2:=Low,InputChoice4:=Low)","Bar",, "Close",$C$1,"-1",,,,,"T"),"") -> 375.1 | F51: 0 | G51: 0 | H51: 7.004 | I51: 2.007 | J51: S.US.INTU | K51: =RTD("cqg.rtd", ,"ContractData",A51, "PerCentNetLastTrade",, "T")/100 -> 0.006836379113 | L51: =RANK($K51,$K$2:K$103)+COUNTIF($K$2:K51,K51)-1 -> 27 | M51: S.US.INTU | N51: 50 | O51: S.US.GOOG | P51: =RTD("cqg.rtd", ,"ContractData",O51, "PerCentNetLastTrade",, "T")/100 -> -0.001535038548 | Q51: =VLOOKUP(O51,$A$2:$H152,8,FALSE) -> 6 | S51: 50
A52: S.US.ISRG | B52: =IFERROR(RTD("cqg.rtd",,"StudyData",A52,"Bar",, "High",$C$1,"0",,,,,"T"),"") -> 803.1 | C52: =IFERROR(RTD("cqg.rtd",,"StudyData",A52,"Bar",, "Low",$C$1,"0",,,,,"T"),"") -> 802.45 | D52: =IFERROR(RTD("cqg.rtd",,"StudyData","HiLevel("&A52&",Period1:="&$B$1&",AllowGaps:=0,InputChoice1:=High,InputChoice3:=High)","Bar",, "Close",$C$1,"-1",,,,,"T"),"") -> 806.16 | E52: =IFERROR(RTD("cqg.rtd",,"StudyData","LoLevel("&A52&",Period2:="&$B$1&",AllowGaps:=0,InputChoice2:=Low,InputChoice4:=Low)","Bar",, "Close",$C$1,"-1",,,,,"T"),"") -> 796.31 | F52: 0 | G52: 0 | H52: 7.005 | I52: 2.008 | J52: S.US.ISRG | K52: =RTD("cqg.rtd", ,"ContractData",A52, "PerCentNetLastTrade",, "T")/100 -> 0.01678766455 | L52: =RANK($K52,$K$2:K$103)+COUNTIF($K$2:K52,K52)-1 -> 10 | M52: S.US.ISRG | N52: 51 | O52: S.US.AMAT | P52: =RTD("cqg.rtd", ,"ContractData",O52, "PerCentNetLastTrade",, "T")/100 -> -0.001851637542 | Q52: =VLOOKUP(O52,$A$2:$H153,8,FALSE) -> 0.009 | S52: 51
A53: S.US.JD | B53: =IFERROR(RTD("cqg.rtd",,"StudyData",A53,"Bar",, "High",$C$1,"0",,,,,"T"),"") -> 81.82 | C53: =IFERROR(RTD("cqg.rtd",,"StudyData",A53,"Bar",, "Low",$C$1,"0",,,,,"T"),"") -> 81.73 | D53: =IFERROR(RTD("cqg.rtd",,"StudyData","HiLevel("&A53&",Period1:="&$B$1&",AllowGaps:=0,InputChoice1:=High,InputChoice3:=High)","Bar",, "Close",$C$1,"-1",,,,,"T"),"") -> 81.82 | E53: =IFERROR(RTD("cqg.rtd",,"StudyData","LoLevel("&A53&",Period2:="&$B$1&",AllowGaps:=0,InputChoice2:=Low,InputChoice4:=Low)","Bar",, "Close",$C$1,"-1",,,,,"T"),"") -> 80.83 | F53: 0 | G53: 0 | H53: 7.006 | I53: 2.009 | J53: S.US.JD | K53: =RTD("cqg.rtd", ,"ContractData",A53, "PerCentNetLastTrade",, "T")/100 -> 0.01364087302 | L53: =RANK($K53,$K$2:K$103)+COUNTIF($K$2:K53,K53)-1 -> 14 | M53: S.US.JD | N53: 52 | O53: S.US.TEAM | P53: =RTD("cqg.rtd", ,"ContractData",O53, "PerCentNetLastTrade",, "T")/100 -> -0.002175752448 | Q53: =VLOOKUP(O53,$A$2:$H154,8,FALSE) -> 11.003 | S53: 52
A54: S.US.KDP | B54: =IFERROR(RTD("cqg.rtd",,"StudyData",A54,"Bar",, "High",$C$1,"0",,,,,"T"),"") -> 30.87 | C54: =IFERROR(RTD("cqg.rtd",,"StudyData",A54,"Bar",, "Low",$C$1,"0",,,,,"T"),"") -> 30.84 | D54: =IFERROR(RTD("cqg.rtd",,"StudyData","HiLevel("&A54&",Period1:="&$B$1&",AllowGaps:=0,InputChoice1:=High,InputChoice3:=High)","Bar",, "Close",$C$1,"-1",,,,,"T"),"") -> 30.92 | E54: =IFERROR(RTD("cqg.rtd",,"StudyData","LoLevel("&A54&",Period2:="&$B$1&",AllowGaps:=0,InputChoice2:=Low,InputChoice4:=Low)","Bar",, "Close",$C$1,"-1",,,,,"T"),"") -> 30.79 | F54: 0 | G54: 0 | H54: 7.007 | I54: 2.01 | J54: S.US.KDP | K54: =RTD("cqg.rtd", ,"ContractData",A54, "PerCentNetLastTrade",, "T")/100 -> 0.003249918752 | L54: =RANK($K54,$K$2:K$103)+COUNTIF($K$2:K54,K54)-1 -> 34 | M54: S.US.KDP | N54: 53 | O54: S.US.FAST | P54: =RTD("cqg.rtd", ,"ContractData",O54, "PerCentNetLastTrade",, "T")/100 -> -0.002620439428 | Q54: =VLOOKUP(O54,$A$2:$H155,8,FALSE) -> 5.001
A55: S.US.KHC | B55: =IFERROR(RTD("cqg.rtd",,"StudyData",A55,"Bar",, "High",$C$1,"0",,,,,"T"),"") -> 34.69 | C55: =IFERROR(RTD("cqg.rtd",,"StudyData",A55,"Bar",, "Low",$C$1,"0",,,,,"T"),"") -> 34.66 | D55: =IFERROR(RTD("cqg.rtd",,"StudyData","HiLevel("&A55&",Period1:="&$B$1&",AllowGaps:=0,InputChoice1:=High,InputChoice3:=High)","Bar",, "Close",$C$1,"-1",,,,,"T"),"") -> 34.69 | E55: =IFERROR(RTD("cqg.rtd",,"StudyData","LoLevel("&A55&",Period2:="&$B$1&",AllowGaps:=0,InputChoice2:=Low,InputChoice4:=Low)","Bar",, "Close",$C$1,"-1",,,,,"T"),"") -> 34.37 | F55: 0 | G55: 0 | H55: 7.008 | I55: 2.011 | J55: S.US.KHC | K55: =RTD("cqg.rtd", ,"ContractData",A55, "PerCentNetLastTrade",, "T")/100 -> 0.003181949667 | L55: =RANK($K55,$K$2:K$103)+COUNTIF($K$2:K55,K55)-1 -> 35 | M55: S.US.KHC | N55: 54 | O55: S.US.DXCM | P55: =RTD("cqg.rtd", ,"ContractData",O55, "PerCentNetLastTrade",, "T")/100 -> -0.003181883331 | Q55: =VLOOKUP(O55,$A$2:$H156,8,FALSE) -> 4.005
A56: S.US.KLAC | B56: =IFERROR(RTD("cqg.rtd",,"StudyData",A56,"Bar",, "High",$C$1,"0",,,,,"T"),"") -> 259.27 | C56: =IFERROR(RTD("cqg.rtd",,"StudyData",A56,"Bar",, "Low",$C$1,"0",,,,,"T"),"") -> 258.91 | D56: =IFERROR(RTD("cqg.rtd",,"StudyData","HiLevel("&A56&",Period1:="&$B$1&",AllowGaps:=0,InputChoice1:=High,InputChoice3:=High)","Bar",, "Close",$C$1,"-1",,,,,"T"),"") -> 260.16 | E56: =IFERROR(RTD("cqg.rtd",,"StudyData","LoLevel("&A56&",Period2:="&$B$1&",AllowGaps:=0,InputChoice2:=Low,InputChoice4:=Low)","Bar",, "Close",$C$1,"-1",,,,,"T"),"") -> 257.58 | F56: 0 | G56: 0 | H56: 7.009 | I56: 2.012 | J56: S.US.KLAC | K56: =RTD("cqg.rtd", ,"ContractData",A56, "PerCentNetLastTrade",, "T")/100 -> -0.005752195421 | L56: =RANK($K56,$K$2:K$103)+COUNTIF($K$2:K56,K56)-1 -> 66 | M56: S.US.KLAC | N56: 55 | O56: S.US.VRSK | P56: =RTD("cqg.rtd", ,"ContractData",O56, "PerCentNetLastTrade",, "T")/100 -> -0.003402870247 | Q56: =VLOOKUP(O56,$A$2:$H157,8,FALSE) -> 11.007
A57: S.US.LRCX | B57: =IFERROR(RTD("cqg.rtd",,"StudyData",A57,"Bar",, "High",$C$1,"0",,,,,"T"),"") -> 480.2 | C57: =IFERROR(RTD("cqg.rtd",,"StudyData",A57,"Bar",, "Low",$C$1,"0",,,,,"T"),"") -> 479.57 | D57: =IFERROR(RTD("cqg.rtd",,"StudyData","HiLevel("&A57&",Period1:="&$B$1&",AllowGaps:=0,InputChoice1:=High,InputChoice3:=High)","Bar",, "Close",$C$1,"-1",,,,,"T"),"") -> 480.13 | E57: =IFERROR(RTD("cqg.rtd",,"StudyData","LoLevel("&A57&",Period2:="&$B$1&",AllowGaps:=0,InputChoice2:=Low,InputChoice4:=Low)","Bar",, "Close",$C$1,"-1",,,,,"T"),"") -> 476.51 | F57: 1 | G57: 0 | H57: 8 | I57: 2.013 | J57: S.US.LRCX | K57: =RTD("cqg.rtd", ,"ContractData",A57, "PerCentNetLastTrade",, "T")/100 -> -0.00645655278 | L57: =RANK($K57,$K$2:K$103)+COUNTIF($K$2:K57,K57)-1 -> 73 | M57: S.US.LRCX | N57: 56 | O57: S.US.CHTR | P57: =RTD("cqg.rtd", ,"ContractData",O57, "PerCentNetLastTrade",, "T")/100 -> -0.003879698789 | Q57: =VLOOKUP(O57,$A$2:$H158,8,FALSE) -> 2.002
A58: S.US.LULU | B58: =IFERROR(RTD("cqg.rtd",,"StudyData",A58,"Bar",, "High",$C$1,"0",,,,,"T"),"") -> 366.56 | C58: =IFERROR(RTD("cqg.rtd",,"StudyData",A58,"Bar",, "Low",$C$1,"0",,,,,"T"),"") -> 365.49 | D58: =IFERROR(RTD("cqg.rtd",,"StudyData","HiLevel("&A58&",Period1:="&$B$1&",AllowGaps:=0,InputChoice1:=High,InputChoice3:=High)","Bar",, "Close",$C$1,"-1",,,,,"T"),"") -> 372.06 | E58: =IFERROR(RTD("cqg.rtd",,"StudyData","LoLevel("&A58&",Period2:="&$B$1&",AllowGaps:=0,InputChoice2:=Low,InputChoice4:=Low)","Bar",, "Close",$C$1,"-1",,,,,"T"),"") -> 365.2 | F58: 0 | G58: 0 | H58: 8.001 | I58: 2.014 | J58: S.US.LULU | K58: =RTD("cqg.rtd", ,"ContractData",A58, "PerCentNetLastTrade",, "T")/100 -> -0.02078200321 | L58: =RANK($K58,$K$2:K$103)+COUNTIF($K$2:K58,K58)-1 -> 97 | M58: S.US.LULU | N58: 57 | O58: S.US.AEP | P58: =RTD("cqg.rtd", ,"ContractData",O58, "PerCentNetLastTrade",, "T")/100 -> -0.004018509498 | Q58: =VLOOKUP(O58,$A$2:$H159,8,FALSE) -> 0.006
A59: S.US.MAR | B59: =IFERROR(RTD("cqg.rtd",,"StudyData",A59,"Bar",, "High",$C$1,"0",,,,,"T"),"") -> 126.53 | C59: =IFERROR(RTD("cqg.rtd",,"StudyData",A59,"Bar",, "Low",$C$1,"0",,,,,"T"),"") -> 126.26 | D59: =IFERROR(RTD("cqg.rtd",,"StudyData","HiLevel("&A59&",Period1:="&$B$1&",AllowGaps:=0,InputChoice1:=High,InputChoice3:=High)","Bar",, "Close",$C$1,"-1",,,,,"T"),"") -> 126.6 | E59: =IFERROR(RTD("cqg.rtd",,"StudyData","LoLevel("&A59&",Period2:="&$B$1&",AllowGaps:=0,InputChoice2:=Low,InputChoice4:=Low)","Bar",, "Close",$C$1,"-1",,,,,"T"),"") -> 124.44 | F59: 0 | G59: 0 | H59: 8.002 | I59: 2.015 | J59: S.US.MAR | K59: =RTD("cqg.rtd", ,"ContractData",A59, "PerCentNetLastTrade",, "T")/100 -> -0.006361922714 | L59: =RANK($K59,$K$2:K$103)+COUNTIF($K$2:K59,K59)-1 -> 72 | M59: S.US.MAR | N59: 58 | O59: S.US.CMCSA | P59: =RTD("cqg.rtd", ,"ContractData",O59, "PerCentNetLastTrade",, "T")/100 -> -0.004566210046 | Q59: =VLOOKUP(O59,$A$2:$H160,8,FALSE) -> 2.003
A60: S.US.MCHP | B60: =IFERROR(RTD("cqg.rtd",,"StudyData",A60,"Bar",, "High",$C$1,"0",,,,,"T"),"") -> 138.15 | C60: =IFERROR(RTD("cqg.rtd",,"StudyData",A60,"Bar",, "Low",$C$1,"0",,,,,"T"),"") -> 137.84 | D60: =IFERROR(RTD("cqg.rtd",,"StudyData","HiLevel("&A60&",Period1:="&$B$1&",AllowGaps:=0,InputChoice1:=High,InputChoice3:=High)","Bar",, "Close",$C$1,"-1",,,,,"T"),"") -> 138.63 | E60: =IFERROR(RTD("cqg.rtd",,"StudyData","LoLevel("&A60&",Period2:="&$B$1&",AllowGaps:=0,InputChoice2:=Low,InputChoice4:=Low)","Bar",, "Close",$C$1,"-1",,,,,"T"),"") -> 137.48 | F60: 0 | G60: 0 | H60: 8.003 | I60: 2.016 | J60: S.US.MCHP | K60: =RTD("cqg.rtd", ,"ContractData",A60, "PerCentNetLastTrade",, "T")/100 -> -0.00115942029 | L60: =RANK($K60,$K$2:K$103)+COUNTIF($K$2:K60,K60)-1 -> 48 | M60: S.US.MCHP | N60: 59 | O60: S.US.VRTX | P60: =RTD("cqg.rtd", ,"ContractData",O60, "PerCentNetLastTrade",, "T")/100 -> -0.00464719676 | Q60: =VLOOKUP(O60,$A$2:$H161,8,FALSE) -> 12.001
A61: S.US.MDLZ | B61: =IFERROR(RTD("cqg.rtd",,"StudyData",A61,"Bar",, "High",$C$1,"0",,,,,"T"),"") -> 57.3 | C61: =IFERROR(RTD("cqg.rtd",,"StudyData",A61,"Bar",, "Low",$C$1,"0",,,,,"T"),"") -> 57.26 | D61: =IFERROR(RTD("cqg.rtd",,"StudyData","HiLevel("&A61&",Period1:="&$B$1&",AllowGaps:=0,InputChoice1:=High,InputChoice3:=High)","Bar",, "Close",$C$1,"-1",,,,,"T"),"") -> 57.61 | E61: =IFERROR(RTD("cqg.rtd",,"StudyData","LoLevel("&A61&",Period2:="&$B$1&",AllowGaps:=0,InputChoice2:=Low,InputChoice4:=Low)","Bar",, "Close",$C$1,"-1",,,,,"T"),"") -> 57.17 | F61: 0 | G61: 0 | H61: 8.004 | I61: 2.017 | J61: S.US.MDLZ | K61: =RTD("cqg.rtd", ,"ContractData",A61, "PerCentNetLastTrade",, "T")/100 -> -0.006761442441 | L61: =RANK($K61,$K$2:K$103)+COUNTIF($K$2:K61,K61)-1 -> 76 | M61: S.US.MDLZ | N61: 60 | O61: S.US.SIRI | P61: =RTD("cqg.rtd", ,"ContractData",O61, "PerCentNetLastTrade",, "T")/100 -> -0.004754358162 | Q61: =VLOOKUP(O61,$A$2:$H162,8,FALSE) -> 10.003
A62: S.US.MELI | B62: =IFERROR(RTD("cqg.rtd",,"StudyData",A62,"Bar",, "High",$C$1,"0",,,,,"T"),"") -> 1729.34 | C62: =IFERROR(RTD("cqg.rtd",,"StudyData",A62,"Bar",, "Low",$C$1,"0",,,,,"T"),"") -> 1725.01 | D62: =IFERROR(RTD("cqg.rtd",,"StudyData","HiLevel("&A62&",Period1:="&$B$1&",AllowGaps:=0,InputChoice1:=High,InputChoice3:=High)","Bar",, "Close",$C$1,"-1",,,,,"T"),"") -> 1735.75 | E62: =IFERROR(RTD("cqg.rtd",,"StudyData","LoLevel("&A62&",Period2:="&$B$1&",AllowGaps:=0,InputChoice2:=Low,InputChoice4:=Low)","Bar",, "Close",$C$1,"-1",,,,,"T"),"") -> 1716.24 | F62: 0 | G62: 0 | H62: 8.005 | I62: 2.018 | J62: S.US.MELI | K62: =RTD("cqg.rtd", ,"ContractData",A62, "PerCentNetLastTrade",, "T")/100 -> 0.0159727662 | L62: =RANK($K62,$K$2:K$103)+COUNTIF($K$2:K62,K62)-1 -> 11 | M62: S.US.MELI | N62: 61 | O62: S.US.MNST | P62: =RTD("cqg.rtd", ,"ContractData",O62, "PerCentNetLastTrade",, "T")/100 -> -0.00505788468 | Q62: =VLOOKUP(O62,$A$2:$H163,8,FALSE) -> 8.006
A63: S.US.MNST | B63: =IFERROR(RTD("cqg.rtd",,"StudyData",A63,"Bar",, "High",$C$1,"0",,,,,"T"),"") -> 88.52 | C63: =IFERROR(RTD("cqg.rtd",,"StudyData",A63,"Bar",, "Low",$C$1,"0",,,,,"T"),"") -> 88.41 | D63: =IFERROR(RTD("cqg.rtd",,"StudyData","HiLevel("&A63&",Period1:="&$B$1&",AllowGaps:=0,InputChoice1:=High,InputChoice3:=High)","Bar",, "Close",$C$1,"-1",,,,,"T"),"") -> 88.79 | E63: =IFERROR(RTD("cqg.rtd",,"StudyData","LoLevel("&A63&",Period2:="&$B$1&",AllowGaps:=0,InputChoice2:=Low,InputChoice4:=Low)","Bar",, "Close",$C$1,"-1",,,,,"T"),"") -> 88.09 | F63: 0 | G63: 0 | H63: 8.006 | I63: 2.019 | J63: S.US.MNST | K63: =RTD("cqg.rtd", ,"ContractData",A63, "PerCentNetLastTrade",, "T")/100 -> -0.00505788468 | L63: =RANK($K63,$K$2:K$103)+COUNTIF($K$2:K63,K63)-1 -> 61 | M63: S.US.MNST | N63: 62 | O63: S.US.SGEN | P63: =RTD("cqg.rtd", ,"ContractData",O63, "PerCentNetLastTrade",, "T")/100 -> -0.005105135463 | Q63: =VLOOKUP(O63,$A$2:$H164,8,FALSE) -> 10.002
A64: S.US.MRNA | B64: =IFERROR(RTD("cqg.rtd",,"StudyData",A64,"Bar",, "High",$C$1,"0",,,,,"T"),"") -> 130.98 | C64: =IFERROR(RTD("cqg.rtd",,"StudyData",A64,"Bar",, "Low",$C$1,"0",,,,,"T"),"") -> 129.75 | D64: =IFERROR(RTD("cqg.rtd",,"StudyData","HiLevel("&A64&",Period1:="&$B$1&",AllowGaps:=0,InputChoice1:=High,InputChoice3:=High)","Bar",, "Close",$C$1,"-1",,,,,"T"),"") -> 139.26 | E64: =IFERROR(RTD("cqg.rtd",,"StudyData","LoLevel("&A64&",Period2:="&$B$1&",AllowGaps:=0,InputChoice2:=Low,InputChoice4:=Low)","Bar",, "Close",$C$1,"-1",,,,,"T"),"") -> 125.21 | F64: 0 | G64: 0 | H64: 8.007 | I64: 2.02 | J64: S.US.MRNA | K64: =RTD("cqg.rtd", ,"ContractData",A64, "PerCentNetLastTrade",, "T")/100 -> -0.0600867679 | L64: =RANK($K64,$K$2:K$103)+COUNTIF($K$2:K64,K64)-1 -> 102 | M64: S.US.MRNA | N64: 63 | O64: S.US.PCAR | P64: =RTD("cqg.rtd", ,"ContractData",O64, "PerCentNetLastTrade",, "T")/100 -> -0.005241700641 | Q64: =VLOOKUP(O64,$A$2:$H165,8,FALSE) -> 9.003
A65: S.US.MRVL | B65: =IFERROR(RTD("cqg.rtd",,"StudyData",A65,"Bar",, "High",$C$1,"0",,,,,"T"),"") -> 47.45 | C65: =IFERROR(RTD("cqg.rtd",,"StudyData",A65,"Bar",, "Low",$C$1,"0",,,,,"T"),"") -> 47.4 | D65: =IFERROR(RTD("cqg.rtd",,"StudyData","HiLevel("&A65&",Period1:="&$B$1&",AllowGaps:=0,InputChoice1:=High,InputChoice3:=High)","Bar",, "Close",$C$1,"-1",,,,,"T"),"") -> 47.62 | E65: =IFERROR(RTD("cqg.rtd",,"StudyData","LoLevel("&A65&",Period2:="&$B$1&",AllowGaps:=0,InputChoice2:=Low,InputChoice4:=Low)","Bar",, "Close",$C$1,"-1",,,,,"T"),"") -> 47.24 | F65: 0 | G65: 0 | H65: 8.008 | I65: 2.021 | J65: S.US.MRVL | K65: =RTD("cqg.rtd", ,"ContractData",A65, "PerCentNetLastTrade",, "T")/100 -> 0.00380952381 | L65: =RANK($K65,$K$2:K$103)+COUNTIF($K$2:K65,K65)-1 -> 32 | M65: S.US.MRVL | N65: 64 | O65: S.US.EA | P65: =RTD("cqg.rtd", ,"ContractData",O65, "PerCentNetLastTrade",, "T")/100 -> -0.005247854762 | Q65: =VLOOKUP(O65,$A$2:$H166,8,FALSE) -> 4.006
A66: S.US.MSFT | B66: =IFERROR(RTD("cqg.rtd",,"StudyData",A66,"Bar",, "High",$C$1,"0",,,,,"T"),"") -> 224.74 | C66: =IFERROR(RTD("cqg.rtd",,"StudyData",A66,"Bar",, "Low",$C$1,"0",,,,,"T"),"") -> 224.49 | D66: =IFERROR(RTD("cqg.rtd",,"StudyData","HiLevel("&A66&",Period1:="&$B$1&",AllowGaps:=0,InputChoice1:=High,InputChoice3:=High)","Bar",, "Close",$C$1,"-1",,,,,"T"),"") -> 225.63 | E66: =IFERROR(RTD("cqg.rtd",,"StudyData","LoLevel("&A66&",Period2:="&$B$1&",AllowGaps:=0,InputChoice2:=Low,InputChoice4:=Low)","Bar",, "Close",$C$1,"-1",,,,,"T"),"") -> 223.45 | F66: 0 | G66: 0 | H66: 8.009 | I66: 2.022 | J66: S.US.MSFT | K66: =RTD("cqg.rtd", ,"ContractData",A66, "PerCentNetLastTrade",, "T")/100 -> 0.009614088683 | L66: =RANK($K66,$K$2:K$103)+COUNTIF($K$2:K66,K66)-1 -> 19 | M66: S.US.MSFT | N66: 65 | O66: S.US.FOX | P66: =RTD("cqg.rtd", ,"ContractData",O66, "PerCentNetLastTrade",, "T")/100 -> -0.00547645126 | Q66: =VLOOKUP(O66,$A$2:$H167,8,FALSE) -> 5.004
A67: S.US.MTCH | B67: =IFERROR(RTD("cqg.rtd",,"StudyData",A67,"Bar",, "High",$C$1,"0",,,,,"T"),"") -> 158.38 | C67: =IFERROR(RTD("cqg.rtd",,"StudyData",A67,"Bar",, "Low",$C$1,"0",,,,,"T"),"") -> 157.92 | D67: =IFERROR(RTD("cqg.rtd",,"StudyData","HiLevel("&A67&",Period1:="&$B$1&",AllowGaps:=0,InputChoice1:=High,InputChoice3:=High)","Bar",, "Close",$C$1,"-1",,,,,"T"),"") -> 158.4 | E67: =IFERROR(RTD("cqg.rtd",,"StudyData","LoLevel("&A67&",Period2:="&$B$1&",AllowGaps:=0,InputChoice2:=Low,InputChoice4:=Low)","Bar",, "Close",$C$1,"-1",,,,,"T"),"") -> 155.36 | F67: =IF(B67="",0,IFERROR(IF(B67>D67,1,0),"")) -> 0 | G67: =IF(C67="",0,IFERROR(IF(C67<E67,1,0),"")) -> 0 | H67: =IF(F67=1,INT(H66+1),H66+0.001) -> 8.01 | I67: 2.023 | J67: =A67 -> S.US.MTCH | K67: =RTD("cqg.rtd", ,"ContractData",A67, "PerCentNetLastTrade",, "T")/100 -> 0.02458644178 | L67: =RANK($K67,$K$2:K$103)+COUNTIF($K$2:K67,K67)-1 -> 7 | M67: =J67 -> S.US.MTCH | N67: 66 | O67: =IFERROR(VLOOKUP(N67,$L$2:$M$103,2,FALSE),"") -> S.US.KLAC | P67: =RTD("cqg.rtd", ,"ContractData",O67, "PerCentNetLastTrade",, "T")/100 -> -0.005752195421 | Q67: =VLOOKUP(O67,$A$2:$H168,8,FALSE) -> 7.009
A68: S.US.MU | B68: =IFERROR(RTD("cqg.rtd",,"StudyData",A68,"Bar",, "High",$C$1,"0",,,,,"T"),"") -> 70.9 | C68: =IFERROR(RTD("cqg.rtd",,"StudyData",A68,"Bar",, "Low",$C$1,"0",,,,,"T"),"") -> 70.81 | D68: =IFERROR(RTD("cqg.rtd",,"StudyData","HiLevel("&A68&",Period1:="&$B$1&",AllowGaps:=0,InputChoice1:=High,InputChoice3:=High)","Bar",, "Close",$C$1,"-1",,,,,"T"),"") -> 71.56 | E68: =IFERROR(RTD("cqg.rtd",,"StudyData","LoLevel("&A68&",Period2:="&$B$1&",AllowGaps:=0,InputChoice2:=Low,InputChoice4:=Low)","Bar",, "Close",$C$1,"-1",,,,,"T"),"") -> 70.58 | F68: 0 | G68: 0 | H68: 8.011 | I68: 2.024 | J68: S.US.MU | K68: =RTD("cqg.rtd", ,"ContractData",A68, "PerCentNetLastTrade",, "T")/100 -> -0.009094725059 | L68: =RANK($K68,$K$2:K$103)+COUNTIF($K$2:K68,K68)-1 -> 84 | M68: S.US.MU | N68: =N67+1 -> 67 | O68: S.US.QCOM | P68: =RTD("cqg.rtd", ,"ContractData",O68, "PerCentNetLastTrade",, "T")/100 -> -0.005994550409 | Q68: =VLOOKUP(O68,$A$2:$H169,8,FALSE) -> 9.008
A69: S.US.MXIM | B69: =IFERROR(RTD("cqg.rtd",,"StudyData",A69,"Bar",, "High",$C$1,"0",,,,,"T"),"") -> 85.73 | C69: =IFERROR(RTD("cqg.rtd",,"StudyData",A69,"Bar",, "Low",$C$1,"0",,,,,"T"),"") -> 85.69 | D69: =IFERROR(RTD("cqg.rtd",,"StudyData","HiLevel("&A69&",Period1:="&$B$1&",AllowGaps:=0,InputChoice1:=High,InputChoice3:=High)","Bar",, "Close",$C$1,"-1",,,,,"T"),"") -> 85.79 | E69: =IFERROR(RTD("cqg.rtd",,"StudyData","LoLevel("&A69&",Period2:="&$B$1&",AllowGaps:=0,InputChoice2:=Low,InputChoice4:=Low)","Bar",, "Close",$C$1,"-1",,,,,"T"),"") -> 85.12 | F69: 0 | G69: 0 | H69: 8.012 | I69: 2.025 | J69: S.US.MXIM | K69: =RTD("cqg.rtd", ,"ContractData",A69, "PerCentNetLastTrade",, "T")/100 -> 0.005751173709 | L69: =RANK($K69,$K$2:K$103)+COUNTIF($K$2:K69,K69)-1 -> 31 | M69: S.US.MXIM | N69: 68 | O69: S.US.ORLY | P69: =RTD("cqg.rtd", ,"ContractData",O69, "PerCentNetLastTrade",, "T")/100 -> -0.006054044499 | Q69: =VLOOKUP(O69,$A$2:$H170,8,FALSE) -> 9.001
A70: S.US.NFLX | B70: =IFERROR(RTD("cqg.rtd",,"StudyData",A70,"Bar",, "High",$C$1,"0",,,,,"T"),"") -> 525.76 | C70: =IFERROR(RTD("cqg.rtd",,"StudyData",A70,"Bar",, "Low",$C$1,"0",,,,,"T"),"") -> 525.01 | D70: =IFERROR(RTD("cqg.rtd",,"StudyData","HiLevel("&A70&",Period1:="&$B$1&",AllowGaps:=0,InputChoice1:=High,InputChoice3:=High)","Bar",, "Close",$C$1,"-1",,,,,"T"),"") -> 529.3 | E70: =IFERROR(RTD("cqg.rtd",,"StudyData","LoLevel("&A70&",Period2:="&$B$1&",AllowGaps:=0,InputChoice2:=Low,InputChoice4:=Low)","Bar",, "Close",$C$1,"-1",,,,,"T"),"") -> 521.27 | F70: 0 | G70: 0 | H70: 8.013 | I70: 2.026 | J70: S.US.NFLX | K70: =RTD("cqg.rtd", ,"ContractData",A70, "PerCentNetLastTrade",, "T")/100 -> -0.006598476111 | L70: =RANK($K70,$K$2:K$103)+COUNTIF($K$2:K70,K70)-1 -> 74 | M70: S.US.NFLX | N70: 69 | O70: S.US.BKNG | P70: =RTD("cqg.rtd", ,"ContractData",O70, "PerCentNetLastTrade",, "T")/100 -> -0.006106759501 | Q70: =VLOOKUP(O70,$A$2:$H171,8,FALSE) -> 1.006
A71: S.US.NTES | B71: =IFERROR(RTD("cqg.rtd",,"StudyData",A71,"Bar",, "High",$C$1,"0",,,,,"T"),"") -> 91.84 | C71: =IFERROR(RTD("cqg.rtd",,"StudyData",A71,"Bar",, "Low",$C$1,"0",,,,,"T"),"") -> 91.75 | D71: =IFERROR(RTD("cqg.rtd",,"StudyData","HiLevel("&A71&",Period1:="&$B$1&",AllowGaps:=0,InputChoice1:=High,InputChoice3:=High)","Bar",, "Close",$C$1,"-1",,,,,"T"),"") -> 92.74 | E71: =IFERROR(RTD("cqg.rtd",,"StudyData","LoLevel("&A71&",Period2:="&$B$1&",AllowGaps:=0,InputChoice2:=Low,InputChoice4:=Low)","Bar",, "Close",$C$1,"-1",,,,,"T"),"") -> 91.6 | F71: 0 | G71: 0 | H71: 8.014 | I71: 2.027 | J71: S.US.NTES | K71: =RTD("cqg.rtd", ,"ContractData",A71, "PerCentNetLastTrade",, "T")/100 -> -0.01248251372 | L71: =RANK($K71,$K$2:K$103)+COUNTIF($K$2:K71,K71)-1 -> 89 | M71: S.US.NTES | N71: 70 | O71: S.US.NVDA | P71: =RTD("cqg.rtd", ,"ContractData",O71, "PerCentNetLastTrade",, "T")/100 -> -0.006225505822 | Q71: =VLOOKUP(O71,$A$2:$H172,8,FALSE) -> 8.015
A72: S.US.NVDA | B72: =IFERROR(RTD("cqg.rtd",,"StudyData",A72,"Bar",, "High",$C$1,"0",,,,,"T"),"") -> 530.24 | C72: =IFERROR(RTD("cqg.rtd",,"StudyData",A72,"Bar",, "Low",$C$1,"0",,,,,"T"),"") -> 529.53 | D72: =IFERROR(RTD("cqg.rtd",,"StudyData","HiLevel("&A72&",Period1:="&$B$1&",AllowGaps:=0,InputChoice1:=High,InputChoice3:=High)","Bar",, "Close",$C$1,"-1",,,,,"T"),"") -> 531.85 | E72: =IFERROR(RTD("cqg.rtd",,"StudyData","LoLevel("&A72&",Period2:="&$B$1&",AllowGaps:=0,InputChoice2:=Low,InputChoice4:=Low)","Bar",, "Close",$C$1,"-1",,,,,"T"),"") -> 527.21 | F72: 0 | G72: 0 | H72: 8.015 | I72: 2.028 | J72: S.US.NVDA | K72: =RTD("cqg.rtd", ,"ContractData",A72, "PerCentNetLastTrade",, "T")/100 -> -0.006225505822 | L72: =RANK($K72,$K$2:K$103)+COUNTIF($K$2:K72,K72)-1 -> 70 | M72: S.US.NVDA | N72: 71 | O72: S.US.SBUX | P72: =RTD("cqg.rtd", ,"ContractData",O72, "PerCentNetLastTrade",, "T")/100 -> -0.006314357878 | Q72: =VLOOKUP(O72,$A$2:$H173,8,FALSE) -> 10.001
A73: S.US.NXPI | B73: =IFERROR(RTD("cqg.rtd",,"StudyData",A73,"Bar",, "High",$C$1,"0",,,,,"T"),"") -> 158.38 | C73: =IFERROR(RTD("cqg.rtd",,"StudyData",A73,"Bar",, "Low",$C$1,"0",,,,,"T"),"") -> 157.9 | D73: =IFERROR(RTD("cqg.rtd",,"StudyData","HiLevel("&A73&",Period1:="&$B$1&",AllowGaps:=0,InputChoice1:=High,InputChoice3:=High)","Bar",, "Close",$C$1,"-1",,,,,"T"),"") -> 159.6 | E73: =IFERROR(RTD("cqg.rtd",,"StudyData","LoLevel("&A73&",Period2:="&$B$1&",AllowGaps:=0,InputChoice2:=Low,InputChoice4:=Low)","Bar",, "Close",$C$1,"-1",,,,,"T"),"") -> 156.12 | F73: 0 | G73: 0 | H73: 8.016 | I73: 2.029 | J73: S.US.NXPI | K73: =RTD("cqg.rtd", ,"ContractData",A73, "PerCentNetLastTrade",, "T")/100 -> 0.005858753105 | L73: =RANK($K73,$K$2:K$103)+COUNTIF($K$2:K73,K73)-1 -> 30 | M73: S.US.NXPI | N73: 72 | O73: S.US.MAR | P73: =RTD("cqg.rtd", ,"ContractData",O73, "PerCentNetLastTrade",, "T")/100 -> -0.006361922714 | Q73: =VLOOKUP(O73,$A$2:$H174,8,FALSE) -> 8.002
A74: S.US.OKTA | B74: =IFERROR(RTD("cqg.rtd",,"StudyData",A74,"Bar",, "High",$C$1,"0",,,,,"T"),"") -> 284.16 | C74: =IFERROR(RTD("cqg.rtd",,"StudyData",A74,"Bar",, "Low",$C$1,"0",,,,,"T"),"") -> 282.85 | D74: =IFERROR(RTD("cqg.rtd",,"StudyData","HiLevel("&A74&",Period1:="&$B$1&",AllowGaps:=0,InputChoice1:=High,InputChoice3:=High)","Bar",, "Close",$C$1,"-1",,,,,"T"),"") -> 283.23 | E74: =IFERROR(RTD("cqg.rtd",,"StudyData","LoLevel("&A74&",Period2:="&$B$1&",AllowGaps:=0,InputChoice2:=Low,InputChoice4:=Low)","Bar",, "Close",$C$1,"-1",,,,,"T"),"") -> 277.7 | F74: 1 | G74: 0 | H74: 9 | I74: 2.03 | J74: S.US.OKTA | K74: =RTD("cqg.rtd", ,"ContractData",A74, "PerCentNetLastTrade",, "T")/100 -> 0.03019525296 | L74: =RANK($K74,$K$2:K$103)+COUNTIF($K$2:K74,K74)-1 -> 5 | M74: S.US.OKTA | N74: 73 | O74: S.US.LRCX | P74: =RTD("cqg.rtd", ,"ContractData",O74, "PerCentNetLastTrade",, "T")/100 -> -0.00645655278 | Q74: =VLOOKUP(O74,$A$2:$H175,8,FALSE) -> 8
A75: S.US.ORLY | B75: =IFERROR(RTD("cqg.rtd",,"StudyData",A75,"Bar",, "High",$C$1,"0",,,,,"T"),"") -> 449.85 | C75: =IFERROR(RTD("cqg.rtd",,"StudyData",A75,"Bar",, "Low",$C$1,"0",,,,,"T"),"") -> 449.62 | D75: =IFERROR(RTD("cqg.rtd",,"StudyData","HiLevel("&A75&",Period1:="&$B$1&",AllowGaps:=0,InputChoice1:=High,InputChoice3:=High)","Bar",, "Close",$C$1,"-1",,,,,"T"),"") -> 452.8 | E75: =IFERROR(RTD("cqg.rtd",,"StudyData","LoLevel("&A75&",Period2:="&$B$1&",AllowGaps:=0,InputChoice2:=Low,InputChoice4:=Low)","Bar",, "Close",$C$1,"-1",,,,,"T"),"") -> 449.63 | F75: 0 | G75: 1 | H75: 9.001 | I75: 3 | J75: S.US.ORLY | K75: =RTD("cqg.rtd", ,"ContractData",A75, "PerCentNetLastTrade",, "T")/100 -> -0.006054044499 | L75: =RANK($K75,$K$2:K$103)+COUNTIF($K$2:K75,K75)-1 -> 68 | M75: S.US.ORLY | N75: 74 | O75: S.US.NFLX | P75: =RTD("cqg.rtd", ,"ContractData",O75, "PerCentNetLastTrade",, "T")/100 -> -0.006598476111 | Q75: =VLOOKUP(O75,$A$2:$H176,8,FALSE) -> 8.013
A76: S.US.PAYX | B76: =IFERROR(RTD("cqg.rtd",,"StudyData",A76,"Bar",, "High",$C$1,"0",,,,,"T"),"") -> 96.82 | C76: =IFERROR(RTD("cqg.rtd",,"StudyData",A76,"Bar",, "Low",$C$1,"0",,,,,"T"),"") -> 96.7 | D76: =IFERROR(RTD("cqg.rtd",,"StudyData","HiLevel("&A76&",Period1:="&$B$1&",AllowGaps:=0,InputChoice1:=High,InputChoice3:=High)","Bar",, "Close",$C$1,"-1",,,,,"T"),"") -> 96.99 | E76: =IFERROR(RTD("cqg.rtd",,"StudyData","LoLevel("&A76&",Period2:="&$B$1&",AllowGaps:=0,InputChoice2:=Low,InputChoice4:=Low)","Bar",, "Close",$C$1,"-1",,,,,"T"),"") -> 96.51 | F76: 0 | G76: 0 | H76: 9.002 | I76: 3.001 | J76: S.US.PAYX | K76: =RTD("cqg.rtd", ,"ContractData",A76, "PerCentNetLastTrade",, "T")/100 -> 0.002381198882 | L76: =RANK($K76,$K$2:K$103)+COUNTIF($K$2:K76,K76)-1 -> 37 | M76: S.US.PAYX | N76: 75 | O76: S.US.INTC | P76: =RTD("cqg.rtd", ,"ContractData",O76, "PerCentNetLastTrade",, "T")/100 -> -0.006686798965 | Q76: =VLOOKUP(O76,$A$2:$H177,8,FALSE) -> 7.003
A77: S.US.PCAR | B77: =IFERROR(RTD("cqg.rtd",,"StudyData",A77,"Bar",, "High",$C$1,"0",,,,,"T"),"") -> 85.4 | C77: =IFERROR(RTD("cqg.rtd",,"StudyData",A77,"Bar",, "Low",$C$1,"0",,,,,"T"),"") -> 85.23 | D77: =IFERROR(RTD("cqg.rtd",,"StudyData","HiLevel("&A77&",Period1:="&$B$1&",AllowGaps:=0,InputChoice1:=High,InputChoice3:=High)","Bar",, "Close",$C$1,"-1",,,,,"T"),"") -> 85.44 | E77: =IFERROR(RTD("cqg.rtd",,"StudyData","LoLevel("&A77&",Period2:="&$B$1&",AllowGaps:=0,InputChoice2:=Low,InputChoice4:=Low)","Bar",, "Close",$C$1,"-1",,,,,"T"),"") -> 84.8 | F77: 0 | G77: 0 | H77: 9.003 | I77: 3.002 | J77: S.US.PCAR | K77: =RTD("cqg.rtd", ,"ContractData",A77, "PerCentNetLastTrade",, "T")/100 -> -0.005241700641 | L77: =RANK($K77,$K$2:K$103)+COUNTIF($K$2:K77,K77)-1 -> 63 | M77: S.US.PCAR | N77: 76 | O77: S.US.MDLZ | P77: =RTD("cqg.rtd", ,"ContractData",O77, "PerCentNetLastTrade",, "T")/100 -> -0.006761442441 | Q77: =VLOOKUP(O77,$A$2:$H178,8,FALSE) -> 8.004
A78: S.US.PDD | B78: =IFERROR(RTD("cqg.rtd",,"StudyData",A78,"Bar",, "High",$C$1,"0",,,,,"T"),"") -> 144.21 | C78: =IFERROR(RTD("cqg.rtd",,"StudyData",A78,"Bar",, "Low",$C$1,"0",,,,,"T"),"") -> 143.45 | D78: =IFERROR(RTD("cqg.rtd",,"StudyData","HiLevel("&A78&",Period1:="&$B$1&",AllowGaps:=0,InputChoice1:=High,InputChoice3:=High)","Bar",, "Close",$C$1,"-1",,,,,"T"),"") -> 145.49 | E78: =IFERROR(RTD("cqg.rtd",,"StudyData","LoLevel("&A78&",Period2:="&$B$1&",AllowGaps:=0,InputChoice2:=Low,InputChoice4:=Low)","Bar",, "Close",$C$1,"-1",,,,,"T"),"") -> 143.5 | F78: 0 | G78: 1 | H78: 9.004 | I78: 4 | J78: S.US.PDD | K78: =RTD("cqg.rtd", ,"ContractData",A78, "PerCentNetLastTrade",, "T")/100 -> -0.02314972425 | L78: =RANK($K78,$K$2:K$103)+COUNTIF($K$2:K78,K78)-1 -> 99 | M78: S.US.PDD | N78: 77 | O78: S.US.FOXA | P78: =RTD("cqg.rtd", ,"ContractData",O78, "PerCentNetLastTrade",, "T")/100 -> -0.006854256854 | Q78: =VLOOKUP(O78,$A$2:$H179,8,FALSE) -> 5.005
A79: S.US.PEP | B79: =IFERROR(RTD("cqg.rtd",,"StudyData",A79,"Bar",, "High",$C$1,"0",,,,,"T"),"") -> 144.16 | C79: =IFERROR(RTD("cqg.rtd",,"StudyData",A79,"Bar",, "Low",$C$1,"0",,,,,"T"),"") -> 144.06 | D79: =IFERROR(RTD("cqg.rtd",,"StudyData","HiLevel("&A79&",Period1:="&$B$1&",AllowGaps:=0,InputChoice1:=High,InputChoice3:=High)","Bar",, "Close",$C$1,"-1",,,,,"T"),"") -> 144.77 | E79: =IFERROR(RTD("cqg.rtd",,"StudyData","LoLevel("&A79&",Period2:="&$B$1&",AllowGaps:=0,InputChoice2:=Low,InputChoice4:=Low)","Bar",, "Close",$C$1,"-1",,,,,"T"),"") -> 143.77 | F79: 0 | G79: 0 | H79: 9.005 | I79: 4.001 | J79: S.US.PEP | K79: =RTD("cqg.rtd", ,"ContractData",A79, "PerCentNetLastTrade",, "T")/100 -> -0.008665749656 | L79: =RANK($K79,$K$2:K$103)+COUNTIF($K$2:K79,K79)-1 -> 83 | M79: S.US.PEP | N79: 78 | O79: S.US.XEL | P79: =RTD("cqg.rtd", ,"ContractData",O79, "PerCentNetLastTrade",, "T")/100 -> -0.006881786206 | Q79: =VLOOKUP(O79,$A$2:$H180,8,FALSE) -> 12.004
A80: S.US.PTON | B80: =IFERROR(RTD("cqg.rtd",,"StudyData",A80,"Bar",, "High",$C$1,"0",,,,,"T"),"") -> 164.37 | C80: =IFERROR(RTD("cqg.rtd",,"StudyData",A80,"Bar",, "Low",$C$1,"0",,,,,"T"),"") -> 163.5 | D80: =IFERROR(RTD("cqg.rtd",,"StudyData","HiLevel("&A80&",Period1:="&$B$1&",AllowGaps:=0,InputChoice1:=High,InputChoice3:=High)","Bar",, "Close",$C$1,"-1",,,,,"T"),"") -> 166.23 | E80: =IFERROR(RTD("cqg.rtd",,"StudyData","LoLevel("&A80&",Period2:="&$B$1&",AllowGaps:=0,InputChoice2:=Low,InputChoice4:=Low)","Bar",, "Close",$C$1,"-1",,,,,"T"),"") -> 161.2 | F80: 0 | G80: 0 | H80: 9.006 | I80: 4.002 | J80: S.US.PTON | K80: =RTD("cqg.rtd", ,"ContractData",A80, "PerCentNetLastTrade",, "T")/100 -> 0.1336657663 | L80: =RANK($K80,$K$2:K$103)+COUNTIF($K$2:K80,K80)-1 -> 1 | M80: S.US.PTON | N80: 79 | O80: S.US.COST | P80: =RTD("cqg.rtd", ,"ContractData",O80, "PerCentNetLastTrade",, "T")/100 -> -0.006932076609 | Q80: =VLOOKUP(O80,$A$2:$H181,8,FALSE) -> 2.004
A81: S.US.PYPL | B81: =IFERROR(RTD("cqg.rtd",,"StudyData",A81,"Bar",, "High",$C$1,"0",,,,,"T"),"") -> 241.79 | C81: =IFERROR(RTD("cqg.rtd",,"StudyData",A81,"Bar",, "Low",$C$1,"0",,,,,"T"),"") -> 241.42 | D81: =IFERROR(RTD("cqg.rtd",,"StudyData","HiLevel("&A81&",Period1:="&$B$1&",AllowGaps:=0,InputChoice1:=High,InputChoice3:=High)","Bar",, "Close",$C$1,"-1",,,,,"T"),"") -> 242.08 | E81: =IFERROR(RTD("cqg.rtd",,"StudyData","LoLevel("&A81&",Period2:="&$B$1&",AllowGaps:=0,InputChoice2:=Low,InputChoice4:=Low)","Bar",, "Close",$C$1,"-1",,,,,"T"),"") -> 238.69 | F81: 0 | G81: 0 | H81: 9.007 | I81: 4.003 | J81: S.US.PYPL | K81: =RTD("cqg.rtd", ,"ContractData",A81, "PerCentNetLastTrade",, "T")/100 -> 0.01707891637 | L81: =RANK($K81,$K$2:K$103)+COUNTIF($K$2:K81,K81)-1 -> 9 | M81: S.US.PYPL | N81: 80 | O81: S.US.BIDU | P81: =RTD("cqg.rtd", ,"ContractData",O81, "PerCentNetLastTrade",, "T")/100 -> -0.007458048477 | Q81: =VLOOKUP(O81,$A$2:$H182,8,FALSE) -> 1.004
A82: S.US.QCOM | B82: =IFERROR(RTD("cqg.rtd",,"StudyData",A82,"Bar",, "High",$C$1,"0",,,,,"T"),"") -> 146.07 | C82: =IFERROR(RTD("cqg.rtd",,"StudyData",A82,"Bar",, "Low",$C$1,"0",,,,,"T"),"") -> 145.92 | D82: =IFERROR(RTD("cqg.rtd",,"StudyData","HiLevel("&A82&",Period1:="&$B$1&",AllowGaps:=0,InputChoice1:=High,InputChoice3:=High)","Bar",, "Close",$C$1,"-1",,,,,"T"),"") -> 146.6 | E82: =IFERROR(RTD("cqg.rtd",,"StudyData","LoLevel("&A82&",Period2:="&$B$1&",AllowGaps:=0,InputChoice2:=Low,InputChoice4:=Low)","Bar",, "Close",$C$1,"-1",,,,,"T"),"") -> 145.64 | F82: 0 | G82: 0 | H82: 9.008 | I82: 4.004 | J82: S.US.QCOM | K82: =RTD("cqg.rtd", ,"ContractData",A82, "PerCentNetLastTrade",, "T")/100 -> -0.005994550409 | L82: =RANK($K82,$K$2:K$103)+COUNTIF($K$2:K82,K82)-1 -> 67 | M82: S.US.QCOM | N82: 81 | O82: S.US.ADP | P82: =RTD("cqg.rtd", ,"ContractData",O82, "PerCentNetLastTrade",, "T")/100 -> -0.007831427123 | Q82: =VLOOKUP(O82,$A$2:$H183,8,FALSE) -> 0.004
A83: S.US.REGN | B83: =IFERROR(RTD("cqg.rtd",,"StudyData",A83,"Bar",, "High",$C$1,"0",,,,,"T"),"") -> 493 | C83: =IFERROR(RTD("cqg.rtd",,"StudyData",A83,"Bar",, "Low",$C$1,"0",,,,,"T"),"") -> 491.63 | D83: =IFERROR(RTD("cqg.rtd",,"StudyData","HiLevel("&A83&",Period1:="&$B$1&",AllowGaps:=0,InputChoice1:=High,InputChoice3:=High)","Bar",, "Close",$C$1,"-1",,,,,"T"),"") -> 494.93 | E83: =IFERROR(RTD("cqg.rtd",,"StudyData","LoLevel("&A83&",Period2:="&$B$1&",AllowGaps:=0,InputChoice2:=Low,InputChoice4:=Low)","Bar",, "Close",$C$1,"-1",,,,,"T"),"") -> 488.5 | F83: 0 | G83: 0 | H83: 9.009 | I83: 4.005 | J83: S.US.REGN | K83: =RTD("cqg.rtd", ,"ContractData",A83, "PerCentNetLastTrade",, "T")/100 -> -0.01026694045 | L83: =RANK($K83,$K$2:K$103)+COUNTIF($K$2:K83,K83)-1 -> 86 | M83: S.US.REGN | N83: 82 | O83: S.US.AMD | P83: =RTD("cqg.rtd", ,"ContractData",O83, "PerCentNetLastTrade",, "T")/100 -> -0.008580928886 | Q83: =VLOOKUP(O83,$A$2:$H184,8,FALSE) -> 0.01
A84: S.US.ROST | B84: =IFERROR(RTD("cqg.rtd",,"StudyData",A84,"Bar",, "High",$C$1,"0",,,,,"T"),"") -> 117.08 | C84: =IFERROR(RTD("cqg.rtd",,"StudyData",A84,"Bar",, "Low",$C$1,"0",,,,,"T"),"") -> 116.83 | D84: =IFERROR(RTD("cqg.rtd",,"StudyData","HiLevel("&A84&",Period1:="&$B$1&",AllowGaps:=0,InputChoice1:=High,InputChoice3:=High)","Bar",, "Close",$C$1,"-1",,,,,"T"),"") -> 117 | E84: =IFERROR(RTD("cqg.rtd",,"StudyData","LoLevel("&A84&",Period2:="&$B$1&",AllowGaps:=0,InputChoice2:=Low,InputChoice4:=Low)","Bar",, "Close",$C$1,"-1",,,,,"T"),"") -> 115.52 | F84: 1 | G84: 0 | H84: 10 | I84: 4.006 | J84: S.US.ROST | K84: =RTD("cqg.rtd", ,"ContractData",A84, "PerCentNetLastTrade",, "T")/100 -> 0.001626851614 | L84: =RANK($K84,$K$2:K$103)+COUNTIF($K$2:K84,K84)-1 -> 41 | M84: S.US.ROST | N84: 83 | O84: S.US.PEP | P84: =RTD("cqg.rtd", ,"ContractData",O84, "PerCentNetLastTrade",, "T")/100 -> -0.008665749656 | Q84: =VLOOKUP(O84,$A$2:$H185,8,FALSE) -> 9.005
A85: S.US.SBUX | B85: =IFERROR(RTD("cqg.rtd",,"StudyData",A85,"Bar",, "High",$C$1,"0",,,,,"T"),"") -> 102.32 | C85: =IFERROR(RTD("cqg.rtd",,"StudyData",A85,"Bar",, "Low",$C$1,"0",,,,,"T"),"") -> 102.23 | D85: =IFERROR(RTD("cqg.rtd",,"StudyData","HiLevel("&A85&",Period1:="&$B$1&",AllowGaps:=0,InputChoice1:=High,InputChoice3:=High)","Bar",, "Close",$C$1,"-1",,,,,"T"),"") -> 102.4 | E85: =IFERROR(RTD("cqg.rtd",,"StudyData","LoLevel("&A85&",Period2:="&$B$1&",AllowGaps:=0,InputChoice2:=Low,InputChoice4:=Low)","Bar",, "Close",$C$1,"-1",,,,,"T"),"") -> 101.89 | F85: 0 | G85: 0 | H85: 10.001 | I85: 4.007 | J85: S.US.SBUX | K85: =RTD("cqg.rtd", ,"ContractData",A85, "PerCentNetLastTrade",, "T")/100 -> -0.006314357878 | L85: =RANK($K85,$K$2:K$103)+COUNTIF($K$2:K85,K85)-1 -> 71 | M85: S.US.SBUX | N85: 84 | O85: S.US.MU | P85: =RTD("cqg.rtd", ,"ContractData",O85, "PerCentNetLastTrade",, "T")/100 -> -0.009094725059 | Q85: =VLOOKUP(O85,$A$2:$H186,8,FALSE) -> 8.011
A86: S.US.SGEN | B86: =IFERROR(RTD("cqg.rtd",,"StudyData",A86,"Bar",, "High",$C$1,"0",,,,,"T"),"") -> 196.99 | C86: =IFERROR(RTD("cqg.rtd",,"StudyData",A86,"Bar",, "Low",$C$1,"0",,,,,"T"),"") -> 196.62 | D86: =IFERROR(RTD("cqg.rtd",,"StudyData","HiLevel("&A86&",Period1:="&$B$1&",AllowGaps:=0,InputChoice1:=High,InputChoice3:=High)","Bar",, "Close",$C$1,"-1",,,,,"T"),"") -> 198.25 | E86: =IFERROR(RTD("cqg.rtd",,"StudyData","LoLevel("&A86&",Period2:="&$B$1&",AllowGaps:=0,InputChoice2:=Low,InputChoice4:=Low)","Bar",, "Close",$C$1,"-1",,,,,"T"),"") -> 196.12 | F86: 0 | G86: 0 | H86: 10.002 | I86: 4.008 | J86: S.US.SGEN | K86: =RTD("cqg.rtd", ,"ContractData",A86, "PerCentNetLastTrade",, "T")/100 -> -0.005105135463 | L86: =RANK($K86,$K$2:K$103)+COUNTIF($K$2:K86,K86)-1 -> 62 | M86: S.US.SGEN | N86: 85 | O86: S.US.ALXN | P86: =RTD("cqg.rtd", ,"ContractData",O86, "PerCentNetLastTrade",, "T")/100 -> -0.009106762255 | Q86: =VLOOKUP(O86,$A$2:$H187,8,FALSE) -> 0.008
A87: S.US.SIRI | B87: =IFERROR(RTD("cqg.rtd",,"StudyData",A87,"Bar",, "High",$C$1,"0",,,,,"T"),"") -> 6.29 | C87: =IFERROR(RTD("cqg.rtd",,"StudyData",A87,"Bar",, "Low",$C$1,"0",,,,,"T"),"") -> 6.28 | D87: =IFERROR(RTD("cqg.rtd",,"StudyData","HiLevel("&A87&",Period1:="&$B$1&",AllowGaps:=0,InputChoice1:=High,InputChoice3:=High)","Bar",, "Close",$C$1,"-1",,,,,"T"),"") -> 6.31 | E87: =IFERROR(RTD("cqg.rtd",,"StudyData","LoLevel("&A87&",Period2:="&$B$1&",AllowGaps:=0,InputChoice2:=Low,InputChoice4:=Low)","Bar",, "Close",$C$1,"-1",,,,,"T"),"") -> 6.25 | F87: 0 | G87: 0 | H87: 10.003 | I87: 4.009 | J87: S.US.SIRI | K87: =RTD("cqg.rtd", ,"ContractData",A87, "PerCentNetLastTrade",, "T")/100 -> -0.004754358162 | L87: =RANK($K87,$K$2:K$103)+COUNTIF($K$2:K87,K87)-1 -> 60 | M87: S.US.SIRI | N87: 86 | O87: S.US.REGN | P87: =RTD("cqg.rtd", ,"ContractData",O87, "PerCentNetLastTrade",, "T")/100 -> -0.01026694045 | Q87: =VLOOKUP(O87,$A$2:$H188,8,FALSE) -> 9.009
A88: S.US.SNPS | B88: =IFERROR(RTD("cqg.rtd",,"StudyData",A88,"Bar",, "High",$C$1,"0",,,,,"T"),"") -> 258.16 | C88: =IFERROR(RTD("cqg.rtd",,"StudyData",A88,"Bar",, "Low",$C$1,"0",,,,,"T"),"") -> 257.87 | D88: =IFERROR(RTD("cqg.rtd",,"StudyData","HiLevel("&A88&",Period1:="&$B$1&",AllowGaps:=0,InputChoice1:=High,InputChoice3:=High)","Bar",, "Close",$C$1,"-1",,,,,"T"),"") -> 258.48 | E88: =IFERROR(RTD("cqg.rtd",,"StudyData","LoLevel("&A88&",Period2:="&$B$1&",AllowGaps:=0,InputChoice2:=Low,InputChoice4:=Low)","Bar",, "Close",$C$1,"-1",,,,,"T"),"") -> 256 | F88: 0 | G88: 0 | H88: 10.004 | I88: 4.01 | J88: S.US.SNPS | K88: =RTD("cqg.rtd", ,"ContractData",A88, "PerCentNetLastTrade",, "T")/100 -> 0.01510383889 | L88: =RANK($K88,$K$2:K$103)+COUNTIF($K$2:K88,K88)-1 -> 13 | M88: S.US.SNPS | N88: 87 | O88: S.US.FB | P88: =RTD("cqg.rtd", ,"ContractData",O88, "PerCentNetLastTrade",, "T")/100 -> -0.01191392646 | Q88: =VLOOKUP(O88,$A$2:$H189,8,FALSE) -> 5.002
A89: S.US.SPLK | B89: =IFERROR(RTD("cqg.rtd",,"StudyData",A89,"Bar",, "High",$C$1,"0",,,,,"T"),"") -> 176.55 | C89: =IFERROR(RTD("cqg.rtd",,"StudyData",A89,"Bar",, "Low",$C$1,"0",,,,,"T"),"") -> 176.28 | D89: =IFERROR(RTD("cqg.rtd",,"StudyData","HiLevel("&A89&",Period1:="&$B$1&",AllowGaps:=0,InputChoice1:=High,InputChoice3:=High)","Bar",, "Close",$C$1,"-1",,,,,"T"),"") -> 176.5 | E89: =IFERROR(RTD("cqg.rtd",,"StudyData","LoLevel("&A89&",Period2:="&$B$1&",AllowGaps:=0,InputChoice2:=Low,InputChoice4:=Low)","Bar",, "Close",$C$1,"-1",,,,,"T"),"") -> 173.83 | F89: 1 | G89: 0 | H89: 11 | I89: 4.011 | J89: S.US.SPLK | K89: =RTD("cqg.rtd", ,"ContractData",A89, "PerCentNetLastTrade",, "T")/100 -> 0.01204335608 | L89: =RANK($K89,$K$2:K$103)+COUNTIF($K$2:K89,K89)-1 -> 15 | M89: S.US.SPLK | N89: 88 | O89: S.US.BIIB | P89: =RTD("cqg.rtd", ,"ContractData",O89, "PerCentNetLastTrade",, "T")/100 -> -0.01220199742 | Q89: =VLOOKUP(O89,$A$2:$H190,8,FALSE) -> 1.005
A90: S.US.SWKS | B90: =IFERROR(RTD("cqg.rtd",,"StudyData",A90,"Bar",, "High",$C$1,"0",,,,,"T"),"") -> 151.58 | C90: =IFERROR(RTD("cqg.rtd",,"StudyData",A90,"Bar",, "Low",$C$1,"0",,,,,"T"),"") -> 151.47 | D90: =IFERROR(RTD("cqg.rtd",,"StudyData","HiLevel("&A90&",Period1:="&$B$1&",AllowGaps:=0,InputChoice1:=High,InputChoice3:=High)","Bar",, "Close",$C$1,"-1",,,,,"T"),"") -> 151.6 | E90: =IFERROR(RTD("cqg.rtd",,"StudyData","LoLevel("&A90&",Period2:="&$B$1&",AllowGaps:=0,InputChoice2:=Low,InputChoice4:=Low)","Bar",, "Close",$C$1,"-1",,,,,"T"),"") -> 149.06 | F90: 0 | G90: 0 | H90: 11.001 | I90: 4.012 | J90: S.US.SWKS | K90: =RTD("cqg.rtd", ,"ContractData",A90, "PerCentNetLastTrade",, "T")/100 -> 0.02552298423 | L90: =RANK($K90,$K$2:K$103)+COUNTIF($K$2:K90,K90)-1 -> 6 | M90: S.US.SWKS | N90: 89 | O90: S.US.NTES | P90: =RTD("cqg.rtd", ,"ContractData",O90, "PerCentNetLastTrade",, "T")/100 -> -0.01248251372 | Q90: =VLOOKUP(O90,$A$2:$H191,8,FALSE) -> 8.014
A91: S.US.TCOM | B91: =IFERROR(RTD("cqg.rtd",,"StudyData",A91,"Bar",, "High",$C$1,"0",,,,,"T"),"") -> 33.07 | C91: =IFERROR(RTD("cqg.rtd",,"StudyData",A91,"Bar",, "Low",$C$1,"0",,,,,"T"),"") -> 33.04 | D91: =IFERROR(RTD("cqg.rtd",,"StudyData","HiLevel("&A91&",Period1:="&$B$1&",AllowGaps:=0,InputChoice1:=High,InputChoice3:=High)","Bar",, "Close",$C$1,"-1",,,,,"T"),"") -> 33.3 | E91: =IFERROR(RTD("cqg.rtd",,"StudyData","LoLevel("&A91&",Period2:="&$B$1&",AllowGaps:=0,InputChoice2:=Low,InputChoice4:=Low)","Bar",, "Close",$C$1,"-1",,,,,"T"),"") -> 32.97 | F91: 0 | G91: 0 | H91: 11.002 | I91: 4.013 | J91: S.US.TCOM | K91: =RTD("cqg.rtd", ,"ContractData",A91, "PerCentNetLastTrade",, "T")/100 -> -0.01666666667 | L91: =RANK($K91,$K$2:K$103)+COUNTIF($K$2:K91,K91)-1 -> 95 | M91: S.US.TCOM | N91: 90 | O91: S.US.XLNX | P91: =RTD("cqg.rtd", ,"ContractData",O91, "PerCentNetLastTrade",, "T")/100 -> -0.01314702643 | Q91: =VLOOKUP(O91,$A$2:$H192,8,FALSE) -> 12.005
A92: S.US.TEAM | B92: =IFERROR(RTD("cqg.rtd",,"StudyData",A92,"Bar",, "High",$C$1,"0",,,,,"T"),"") -> 247.85 | C92: =IFERROR(RTD("cqg.rtd",,"StudyData",A92,"Bar",, "Low",$C$1,"0",,,,,"T"),"") -> 247.23 | D92: =IFERROR(RTD("cqg.rtd",,"StudyData","HiLevel("&A92&",Period1:="&$B$1&",AllowGaps:=0,InputChoice1:=High,InputChoice3:=High)","Bar",, "Close",$C$1,"-1",,,,,"T"),"") -> 249.87 | E92: =IFERROR(RTD("cqg.rtd",,"StudyData","LoLevel("&A92&",Period2:="&$B$1&",AllowGaps:=0,InputChoice2:=Low,InputChoice4:=Low)","Bar",, "Close",$C$1,"-1",,,,,"T"),"") -> 246.31 | F92: 0 | G92: 0 | H92: 11.003 | I92: 4.014 | J92: S.US.TEAM | K92: =RTD("cqg.rtd", ,"ContractData",A92, "PerCentNetLastTrade",, "T")/100 -> -0.002175752448 | L92: =RANK($K92,$K$2:K$103)+COUNTIF($K$2:K92,K92)-1 -> 52 | M92: S.US.TEAM | N92: 91 | O92: S.US.CTAS | P92: =RTD("cqg.rtd", ,"ContractData",O92, "PerCentNetLastTrade",, "T")/100 -> -0.01375205848 | Q92: =VLOOKUP(O92,$A$2:$H193,8,FALSE) -> 4.001
A93: S.US.TMUS | B93: =IFERROR(RTD("cqg.rtd",,"StudyData",A93,"Bar",, "High",$C$1,"0",,,,,"T"),"") -> 131.3 | C93: =IFERROR(RTD("cqg.rtd",,"StudyData",A93,"Bar",, "Low",$C$1,"0",,,,,"T"),"") -> 131.15 | D93: =IFERROR(RTD("cqg.rtd",,"StudyData","HiLevel("&A93&",Period1:="&$B$1&",AllowGaps:=0,InputChoice1:=High,InputChoice3:=High)","Bar",, "Close",$C$1,"-1",,,,,"T"),"") -> 131.89 | E93: =IFERROR(RTD("cqg.rtd",,"StudyData","LoLevel("&A93&",Period2:="&$B$1&",AllowGaps:=0,InputChoice2:=Low,InputChoice4:=Low)","Bar",, "Close",$C$1,"-1",,,,,"T"),"") -> 131.07 | F93: 0 | G93: 0 | H93: 11.004 | I93: 4.015 | J93: S.US.TMUS | K93: =RTD("cqg.rtd", ,"ContractData",A93, "PerCentNetLastTrade",, "T")/100 -> 0.007372139456 | L93: =RANK($K93,$K$2:K$103)+COUNTIF($K$2:K93,K93)-1 -> 23 | M93: S.US.TMUS | N93: 92 | O93: S.US.WBA | P93: =RTD("cqg.rtd", ,"ContractData",O93, "PerCentNetLastTrade",, "T")/100 -> -0.01499877059 | Q93: =VLOOKUP(O93,$A$2:$H194,8,FALSE) -> 12.002
A94: S.US.TSLA | B94: =IFERROR(RTD("cqg.rtd",,"StudyData",A94,"Bar",, "High",$C$1,"0",,,,,"T"),"") -> 637.01 | C94: =IFERROR(RTD("cqg.rtd",,"StudyData",A94,"Bar",, "Low",$C$1,"0",,,,,"T"),"") -> 635 | D94: =IFERROR(RTD("cqg.rtd",,"StudyData","HiLevel("&A94&",Period1:="&$B$1&",AllowGaps:=0,InputChoice1:=High,InputChoice3:=High)","Bar",, "Close",$C$1,"-1",,,,,"T"),"") -> 641.45 | E94: =IFERROR(RTD("cqg.rtd",,"StudyData","LoLevel("&A94&",Period2:="&$B$1&",AllowGaps:=0,InputChoice2:=Low,InputChoice4:=Low)","Bar",, "Close",$C$1,"-1",,,,,"T"),"") -> 632.02 | F94: 0 | G94: 0 | H94: 11.005 | I94: 4.016 | J94: S.US.TSLA | K94: =RTD("cqg.rtd", ,"ContractData",A94, "PerCentNetLastTrade",, "T")/100 -> -0.02186624811 | L94: =RANK($K94,$K$2:K$103)+COUNTIF($K$2:K94,K94)-1 -> 98 | M94: S.US.TSLA | N94: 93 | O94: S.US.FISV | P94: =RTD("cqg.rtd", ,"ContractData",O94, "PerCentNetLastTrade",, "T")/100 -> -0.01564583519 | Q94: =VLOOKUP(O94,$A$2:$H195,8,FALSE) -> 5.003
A95: S.US.TXN | B95: =IFERROR(RTD("cqg.rtd",,"StudyData",A95,"Bar",, "High",$C$1,"0",,,,,"T"),"") -> 162.8 | C95: =IFERROR(RTD("cqg.rtd",,"StudyData",A95,"Bar",, "Low",$C$1,"0",,,,,"T"),"") -> 162.69 | D95: =IFERROR(RTD("cqg.rtd",,"StudyData","HiLevel("&A95&",Period1:="&$B$1&",AllowGaps:=0,InputChoice1:=High,InputChoice3:=High)","Bar",, "Close",$C$1,"-1",,,,,"T"),"") -> 163.46 | E95: =IFERROR(RTD("cqg.rtd",,"StudyData","LoLevel("&A95&",Period2:="&$B$1&",AllowGaps:=0,InputChoice2:=Low,InputChoice4:=Low)","Bar",, "Close",$C$1,"-1",,,,,"T"),"") -> 162.32 | F95: 0 | G95: 0 | H95: 11.006 | I95: 4.017 | J95: S.US.TXN | K95: =RTD("cqg.rtd", ,"ContractData",A95, "PerCentNetLastTrade",, "T")/100 -> 0.001908514437 | L95: =RANK($K95,$K$2:K$103)+COUNTIF($K$2:K95,K95)-1 -> 39 | M95: S.US.TXN | N95: 94 | O95: S.US.ZM | P95: =RTD("cqg.rtd", ,"ContractData",O95, "PerCentNetLastTrade",, "T")/100 -> -0.01638261975 | Q95: =VLOOKUP(O95,$A$2:$H196,8,FALSE) -> 12.006
A96: S.US.VRSK | B96: =IFERROR(RTD("cqg.rtd",,"StudyData",A96,"Bar",, "High",$C$1,"0",,,,,"T"),"") -> 202.16 | C96: =IFERROR(RTD("cqg.rtd",,"StudyData",A96,"Bar",, "Low",$C$1,"0",,,,,"T"),"") -> 201.92 | D96: =IFERROR(RTD("cqg.rtd",,"StudyData","HiLevel("&A96&",Period1:="&$B$1&",AllowGaps:=0,InputChoice1:=High,InputChoice3:=High)","Bar",, "Close",$C$1,"-1",,,,,"T"),"") -> 202.27 | E96: =IFERROR(RTD("cqg.rtd",,"StudyData","LoLevel("&A96&",Period2:="&$B$1&",AllowGaps:=0,InputChoice2:=Low,InputChoice4:=Low)","Bar",, "Close",$C$1,"-1",,,,,"T"),"") -> 200.81 | F96: 0 | G96: 0 | H96: 11.007 | I96: 4.018 | J96: S.US.VRSK | K96: =RTD("cqg.rtd", ,"ContractData",A96, "PerCentNetLastTrade",, "T")/100 -> -0.003402870247 | L96: =RANK($K96,$K$2:K$103)+COUNTIF($K$2:K96,K96)-1 -> 55 | M96: S.US.VRSK | N96: 95 | O96: S.US.TCOM | P96: =RTD("cqg.rtd", ,"ContractData",O96, "PerCentNetLastTrade",, "T")/100 -> -0.01666666667 | Q96: =VLOOKUP(O96,$A$2:$H197,8,FALSE) -> 11.002
A97: S.US.VRSN | B97: =IFERROR(RTD("cqg.rtd",,"StudyData",A97,"Bar",, "High",$C$1,"0",,,,,"T"),"") -> 216.38 | C97: =IFERROR(RTD("cqg.rtd",,"StudyData",A97,"Bar",, "Low",$C$1,"0",,,,,"T"),"") -> 216.12 | D97: =IFERROR(RTD("cqg.rtd",,"StudyData","HiLevel("&A97&",Period1:="&$B$1&",AllowGaps:=0,InputChoice1:=High,InputChoice3:=High)","Bar",, "Close",$C$1,"-1",,,,,"T"),"") -> 216.26 | E97: =IFERROR(RTD("cqg.rtd",,"StudyData","LoLevel("&A97&",Period2:="&$B$1&",AllowGaps:=0,InputChoice2:=Low,InputChoice4:=Low)","Bar",, "Close",$C$1,"-1",,,,,"T"),"") -> 213.84 | F97: 1 | G97: 0 | H97: 12 | I97: 4.019 | J97: S.US.VRSN | K97: =RTD("cqg.rtd", ,"ContractData",A97, "PerCentNetLastTrade",, "T")/100 -> 0.006421890269 | L97: =RANK($K97,$K$2:K$103)+COUNTIF($K$2:K97,K97)-1 -> 28 | M97: S.US.VRSN | N97: 96 | O97: S.US.DLTR | P97: =RTD("cqg.rtd", ,"ContractData",O97, "PerCentNetLastTrade",, "T")/100 -> -0.01918938307 | Q97: =VLOOKUP(O97,$A$2:$H198,8,FALSE) -> 4.003
A98: S.US.VRTX | B98: =IFERROR(RTD("cqg.rtd",,"StudyData",A98,"Bar",, "High",$C$1,"0",,,,,"T"),"") -> 233.57 | C98: =IFERROR(RTD("cqg.rtd",,"StudyData",A98,"Bar",, "Low",$C$1,"0",,,,,"T"),"") -> 233.33 | D98: =IFERROR(RTD("cqg.rtd",,"StudyData","HiLevel("&A98&",Period1:="&$B$1&",AllowGaps:=0,InputChoice1:=High,InputChoice3:=High)","Bar",, "Close",$C$1,"-1",,,,,"T"),"") -> 234.99 | E98: =IFERROR(RTD("cqg.rtd",,"StudyData","LoLevel("&A98&",Period2:="&$B$1&",AllowGaps:=0,InputChoice2:=Low,InputChoice4:=Low)","Bar",, "Close",$C$1,"-1",,,,,"T"),"") -> 232.37 | F98: 0 | G98: 0 | H98: 12.001 | I98: 4.02 | J98: S.US.VRTX | K98: =RTD("cqg.rtd", ,"ContractData",A98, "PerCentNetLastTrade",, "T")/100 -> -0.00464719676 | L98: =RANK($K98,$K$2:K$103)+COUNTIF($K$2:K98,K98)-1 -> 59 | M98: S.US.VRTX | N98: 97 | O98: S.US.LULU | P98: =RTD("cqg.rtd", ,"ContractData",O98, "PerCentNetLastTrade",, "T")/100 -> -0.02078200321 | Q98: =VLOOKUP(O98,$A$2:$H199,8,FALSE) -> 8.001
A99: S.US.WBA | B99: =IFERROR(RTD("cqg.rtd",,"StudyData",A99,"Bar",, "High",$C$1,"0",,,,,"T"),"") -> 40.08 | C99: =IFERROR(RTD("cqg.rtd",,"StudyData",A99,"Bar",, "Low",$C$1,"0",,,,,"T"),"") -> 40.03 | D99: =IFERROR(RTD("cqg.rtd",,"StudyData","HiLevel("&A99&",Period1:="&$B$1&",AllowGaps:=0,InputChoice1:=High,InputChoice3:=High)","Bar",, "Close",$C$1,"-1",,,,,"T"),"") -> 40.33 | E99: =IFERROR(RTD("cqg.rtd",,"StudyData","LoLevel("&A99&",Period2:="&$B$1&",AllowGaps:=0,InputChoice2:=Low,InputChoice4:=Low)","Bar",, "Close",$C$1,"-1",,,,,"T"),"") -> 39.73 | F99: 0 | G99: 0 | H99: 12.002 | I99: 4.021 | J99: S.US.WBA | K99: =RTD("cqg.rtd", ,"ContractData",A99, "PerCentNetLastTrade",, "T")/100 -> -0.01499877059 | L99: =RANK($K99,$K$2:K$103)+COUNTIF($K$2:K99,K99)-1 -> 92 | M99: S.US.WBA | N99: 98 | O99: S.US.TSLA | P99: =RTD("cqg.rtd", ,"ContractData",O99, "PerCentNetLastTrade",, "T")/100 -> -0.02186624811 | Q99: =VLOOKUP(O99,$A$2:$H200,8,FALSE) -> 11.005
A100: S.US.WDAY | B100: =IFERROR(RTD("cqg.rtd",,"StudyData",A100,"Bar",, "High",$C$1,"0",,,,,"T"),"") -> 254.59 | C100: =IFERROR(RTD("cqg.rtd",,"StudyData",A100,"Bar",, "Low",$C$1,"0",,,,,"T"),"") -> 254.02 | D100: =IFERROR(RTD("cqg.rtd",,"StudyData","HiLevel("&A100&",Period1:="&$B$1&",AllowGaps:=0,InputChoice1:=High,InputChoice3:=High)","Bar",, "Close",$C$1,"-1",,,,,"T"),"") -> 254.68 | E100: =IFERROR(RTD("cqg.rtd",,"StudyData","LoLevel("&A100&",Period2:="&$B$1&",AllowGaps:=0,InputChoice2:=Low,InputChoice4:=Low)","Bar",, "Close",$C$1,"-1",,,,,"T"),"") -> 245.82 | F100: 0 | G100: 0 | H100: 12.003 | I100: 4.022 | J100: S.US.WDAY | K100: =RTD("cqg.rtd", ,"ContractData",A100, "PerCentNetLastTrade",, "T")/100 -> 0.04890227798 | L100: =RANK($K100,$K$2:K$103)+COUNTIF($K$2:K100,K100)-1 -> 2 | M100: S.US.WDAY | N100: 99 | O100: S.US.PDD | P100: =RTD("cqg.rtd", ,"ContractData",O100, "PerCentNetLastTrade",, "T")/100 -> -0.02314972425 | Q100: =VLOOKUP(O100,$A$2:$H201,8,FALSE) -> 9.004
A101: S.US.XEL | B101: =IFERROR(RTD("cqg.rtd",,"StudyData",A101,"Bar",, "High",$C$1,"0",,,,,"T"),"") -> 64.95 | C101: =IFERROR(RTD("cqg.rtd",,"StudyData",A101,"Bar",, "Low",$C$1,"0",,,,,"T"),"") -> 64.85 | D101: =IFERROR(RTD("cqg.rtd",,"StudyData","HiLevel("&A101&",Period1:="&$B$1&",AllowGaps:=0,InputChoice1:=High,InputChoice3:=High)","Bar",, "Close",$C$1,"-1",,,,,"T"),"") -> 65.11 | E101: =IFERROR(RTD("cqg.rtd",,"StudyData","LoLevel("&A101&",Period2:="&$B$1&",AllowGaps:=0,InputChoice2:=Low,InputChoice4:=Low)","Bar",, "Close",$C$1,"-1",,,,,"T"),"") -> 64.51 | F101: 0 | G101: 0 | H101: 12.004 | I101: 4.023 | J101: S.US.XEL | K101: =RTD("cqg.rtd", ,"ContractData",A101, "PerCentNetLastTrade",, "T")/100 -> -0.006881786206 | L101: =RANK($K101,$K$2:K$103)+COUNTIF($K$2:K101,K101)-1 -> 78 | M101: S.US.XEL | N101: 100 | O101: S.US.GILD | P101: =RTD("cqg.rtd", ,"ContractData",O101, "PerCentNetLastTrade",, "T")/100 -> -0.02408609498 | Q101: =VLOOKUP(O101,$A$2:$H202,8,FALSE) -> 5.006
A102: S.US.XLNX | B102: =IFERROR(RTD("cqg.rtd",,"StudyData",A102,"Bar",, "High",$C$1,"0",,,,,"T"),"") -> 143.51 | C102: =IFERROR(RTD("cqg.rtd",,"StudyData",A102,"Bar",, "Low",$C$1,"0",,,,,"T"),"") -> 143.18 | D102: =IFERROR(RTD("cqg.rtd",,"StudyData","HiLevel("&A102&",Period1:="&$B$1&",AllowGaps:=0,InputChoice1:=High,InputChoice3:=High)","Bar",, "Close",$C$1,"-1",,,,,"T"),"") -> 144.19 | E102: =IFERROR(RTD("cqg.rtd",,"StudyData","LoLevel("&A102&",Period2:="&$B$1&",AllowGaps:=0,InputChoice2:=Low,InputChoice4:=Low)","Bar",, "Close",$C$1,"-1",,,,,"T"),"") -> 142.52 | F102: 0 | G102: 0 | H102: 12.005 | I102: 4.024 | J102: S.US.XLNX | K102: =RTD("cqg.rtd", ,"ContractData",A102, "PerCentNetLastTrade",, "T")/100 -> -0.01314702643 | L102: =RANK($K102,$K$2:K$103)+COUNTIF($K$2:K102,K102)-1 -> 90 | M102: S.US.XLNX | N102: 101 | O102: S.US.AMGN | P102: =RTD("cqg.rtd", ,"ContractData",O102, "PerCentNetLastTrade",, "T")/100 -> -0.02507588755 | Q102: =VLOOKUP(O102,$A$2:$H203,8,FALSE) -> 0.011
A103: S.US.ZM | B103: =IFERROR(RTD("cqg.rtd",,"StudyData",A103,"Bar",, "High",$C$1,"0",,,,,"T"),"") -> 402.64 | C103: =IFERROR(RTD("cqg.rtd",,"StudyData",A103,"Bar",, "Low",$C$1,"0",,,,,"T"),"") -> 401.74 | D103: =IFERROR(RTD("cqg.rtd",,"StudyData","HiLevel("&A103&",Period1:="&$B$1&",AllowGaps:=0,InputChoice1:=High,InputChoice3:=High)","Bar",, "Close",$C$1,"-1",,,,,"T"),"") -> 412.38 | E103: =IFERROR(RTD("cqg.rtd",,"StudyData","LoLevel("&A103&",Period2:="&$B$1&",AllowGaps:=0,InputChoice2:=Low,InputChoice4:=Low)","Bar",, "Close",$C$1,"-1",,,,,"T"),"") -> 401.28 | F103: 0 | G103: 0 | H103: 12.006 | I103: 4.025 | J103: S.US.ZM | K103: =RTD("cqg.rtd", ,"ContractData",A103, "PerCentNetLastTrade",, "T")/100 -> -0.01638261975 | L103: =RANK($K103,$K$2:K$103)+COUNTIF($K$2:K103,K103)-1 -> 94 | M103: S.US.ZM | N103: 102 | O103: S.US.MRNA | P103: =RTD("cqg.rtd", ,"ContractData",O103, "PerCentNetLastTrade",, "T")/100 -> -0.0600867679 | Q103: =VLOOKUP(O103,$A$2:$H204,8,FALSE) -> 8.007

Sheet Ranked
H1: New Highs | R1: New Lows
A2: 1 | B2: =IFERROR(VLOOKUP(A2,Data!$H$2:$J$103,3,FALSE),"") -> S.US.ANSS | C2: =IFERROR(RTD("cqg.rtd", ,"ContractData",B2, "PerCentNetLastTrade",, "T")/100,"") -> 0.0117713162 | D2: =IFERROR(RANK($C2,$C$2:C$103)+COUNTIF($C$2:C2,C2)-1,"") -> 3 | E2: =IF(B2="","",B2) -> S.US.ANSS | F2: 1 | G2: =IFERROR(VLOOKUP(F2,$D$2:$E$103,2,FALSE),"") -> S.US.OKTA | H2: =IF(G2="","",RTD("cqg.rtd", ,"ContractData",G2, "LongDescription",, "T")) -> Okta, Inc. Cl A | I2: =IFERROR(RTD("cqg.rtd", ,"ContractData",G2, "PerCentNetLastTrade",, "T")/100,"") -> 0.03019525296 | J2: =IF(I2<>"",1,0) -> 1 | K2: 1 | L2: =IFERROR(VLOOKUP(A2,Data!$I$2:$J$103,2,FALSE),"") -> S.US.ALXN | M2: =IFERROR(RTD("cqg.rtd", ,"ContractData",L2, "PerCentNetLastTrade",, "T")/100,"") -> -0.009106762255 | N2: =IFERROR(RANK($M2,$M$2:M$104)+COUNTIF($M$2:M2,M2)-1,"") -> 2 | O2: =IF(L2="","",L2) -> S.US.ALXN | P2: 1 | Q2: =IFERROR(VLOOKUP(P2,$N$2:$O$103,2,FALSE),"") -> S.US.ORLY | R2: =IF(Q2="","",RTD("cqg.rtd", ,"ContractData",Q2, "LongDescription",, "T")) -> OReilly Automotive Inc | S2: =IFERROR(RTD("cqg.rtd", ,"ContractData",Q2, "PerCentNetLastTrade",, "T")/100,"") -> -0.006054044499 | T2: =IF(S2<>"",1,0) -> 1 | U2: =COUNTIF(J2:J105,"1") -> 12 | V2: =COUNTIF(T2:T105,"1") -> 4
A3: =A2+1 -> 2 | B3: =IFERROR(VLOOKUP(A3,Data!$H$2:$J$103,3,FALSE),"") -> S.US.CERN | C3: =IFERROR(RTD("cqg.rtd", ,"ContractData",B3, "PerCentNetLastTrade",, "T")/100,"") -> 0.007181094138 | D3: =IFERROR(RANK($C3,$C$2:C$103)+COUNTIF($C$2:C3,C3)-1,"") -> 6 | E3: =IF(B3="","",B3) -> S.US.CERN | F3: =F2+1 -> 2 | G3: =IFERROR(VLOOKUP(F3,$D$2:$E$103,2,FALSE),"") -> S.US.SPLK | H3: =IF(G3="","",RTD("cqg.rtd", ,"ContractData",G3, "LongDescription",, "T")) -> Splunk, Inc. | I3: =IFERROR(RTD("cqg.rtd", ,"ContractData",G3, "PerCentNetLastTrade",, "T")/100,"") -> 0.01204335608 | J3: =IF(I3<>"",1,0) -> 1 | K3: =K2+1 -> 2 | L3: =IFERROR(VLOOKUP(A3,Data!$I$2:$J$103,2,FALSE),"") -> S.US.GILD | M3: =IFERROR(RTD("cqg.rtd", ,"ContractData",L3, "PerCentNetLastTrade",, "T")/100,"") -> -0.02408609498 | N3: =IFERROR(RANK($M3,$M$2:M$104)+COUNTIF($M$2:M3,M3)-1,"") -> 4 | O3: =IF(L3="","",L3) -> S.US.GILD | P3: =P2+1 -> 2 | Q3: =IFERROR(VLOOKUP(P3,$N$2:$O$103,2,FALSE),"") -> S.US.ALXN | R3: =IF(Q3="","",RTD("cqg.rtd", ,"ContractData",Q3, "LongDescription",, "T")) -> Alexion Pharmaceuticals | S3: =IFERROR(RTD("cqg.rtd", ,"ContractData",Q3, "PerCentNetLastTrade",, "T")/100,"") -> -0.009106762255 | T3: =IF(S3<>"",1,0) -> 1
A4: =A3+1 -> 3 | B4: =IFERROR(VLOOKUP(A4,Data!$H$2:$J$103,3,FALSE),"") -> S.US.CPRT | C4: =IFERROR(RTD("cqg.rtd", ,"ContractData",B4, "PerCentNetLastTrade",, "T")/100,"") -> 0.005974791292 | D4: =IFERROR(RANK($C4,$C$2:C$103)+COUNTIF($C$2:C4,C4)-1,"") -> 8 | E4: S.US.CPRT | F4: =F3+1 -> 3 | G4: S.US.ANSS | H4: =IF(G4="","",RTD("cqg.rtd", ,"ContractData",G4, "LongDescription",, "T")) -> ANSYS Inc | I4: =IFERROR(RTD("cqg.rtd", ,"ContractData",G4, "PerCentNetLastTrade",, "T")/100,"") -> 0.0117713162 | J4: 1 | K4: =K3+1 -> 3 | L4: =IFERROR(VLOOKUP(A4,Data!$I$2:$J$103,2,FALSE),"") -> S.US.ORLY | M4: =IFERROR(RTD("cqg.rtd", ,"ContractData",L4, "PerCentNetLastTrade",, "T")/100,"") -> -0.006054044499 | N4: =IFERROR(RANK($M4,$M$2:M$104)+COUNTIF($M$2:M4,M4)-1,"") -> 1 | O4: S.US.ORLY | P4: =P3+1 -> 3 | Q4: S.US.PDD | R4: =IF(Q4="","",RTD("cqg.rtd", ,"ContractData",Q4, "LongDescription",, "T")) -> Pinduoduo Inc | S4: =IFERROR(RTD("cqg.rtd", ,"ContractData",Q4, "PerCentNetLastTrade",, "T")/100,"") -> -0.02314972425 | T4: 1
A5: 4 | B5: =IFERROR(VLOOKUP(A5,Data!$H$2:$J$103,3,FALSE),"") -> S.US.CSX | C5: =IFERROR(RTD("cqg.rtd", ,"ContractData",B5, "PerCentNetLastTrade",, "T")/100,"") -> 0.001560932099 | D5: =IFERROR(RANK($C5,$C$2:C$103)+COUNTIF($C$2:C5,C5)-1,"") -> 10 | E5: S.US.CSX | F5: 4 | G5: S.US.IDXX | H5: =IF(G5="","",RTD("cqg.rtd", ,"ContractData",G5, "LongDescription",, "T")) -> IDEXX Laboratories Inc | I5: =IFERROR(RTD("cqg.rtd", ,"ContractData",G5, "PerCentNetLastTrade",, "T")/100,"") -> 0.01108887437 | J5: 1 | K5: 4 | L5: =IFERROR(VLOOKUP(A5,Data!$I$2:$J$103,2,FALSE),"") -> S.US.PDD | M5: =IFERROR(RTD("cqg.rtd", ,"ContractData",L5, "PerCentNetLastTrade",, "T")/100,"") -> -0.02314972425 | N5: =IFERROR(RANK($M5,$M$2:M$104)+COUNTIF($M$2:M5,M5)-1,"") -> 3 | O5: S.US.PDD | P5: 4 | Q5: S.US.GILD | R5: =IF(Q5="","",RTD("cqg.rtd", ,"ContractData",Q5, "LongDescription",, "T")) -> Gilead Sciences Inc | S5: =IFERROR(RTD("cqg.rtd", ,"ContractData",Q5, "PerCentNetLastTrade",, "T")/100,"") -> -0.02408609498 | T5: 1
A6: 5 | B6: =IFERROR(VLOOKUP(A6,Data!$H$2:$J$103,3,FALSE),"") -> S.US.EXC | C6: =IFERROR(RTD("cqg.rtd", ,"ContractData",B6, "PerCentNetLastTrade",, "T")/100,"") -> 0.009636232233 | D6: =IFERROR(RANK($C6,$C$2:C$103)+COUNTIF($C$2:C6,C6)-1,"") -> 5 | E6: S.US.EXC | F6: 5 | G6: S.US.EXC | H6: =IF(G6="","",RTD("cqg.rtd", ,"ContractData",G6, "LongDescription",, "T")) -> Exelon Corporation | I6: =IFERROR(RTD("cqg.rtd", ,"ContractData",G6, "PerCentNetLastTrade",, "T")/100,"") -> 0.009636232233 | J6: 1 | K6: 5 | L6: =IFERROR(VLOOKUP(A6,Data!$I$2:$J$103,2,FALSE),"") ->  | M6: =IFERROR(RTD("cqg.rtd", ,"ContractData",L6, "PerCentNetLastTrade",, "T")/100,"") ->  | N6: =IFERROR(RANK($M6,$M$2:M$104)+COUNTIF($M$2:M6,M6)-1,"") ->  | P6: 5 | R6: =IF(Q6="","",RTD("cqg.rtd", ,"ContractData",Q6, "LongDescription",, "T")) ->  | S6: =IFERROR(RTD("cqg.rtd", ,"ContractData",Q6, "PerCentNetLastTrade",, "T")/100,"") ->  | T6: 0
A7: 6 | B7: =IFERROR(VLOOKUP(A7,Data!$H$2:$J$103,3,FALSE),"") -> S.US.GOOG | C7: =IFERROR(RTD("cqg.rtd", ,"ContractData",B7, "PerCentNetLastTrade",, "T")/100,"") -> -0.001535038548 | D7: =IFERROR(RANK($C7,$C$2:C$103)+COUNTIF($C$2:C7,C7)-1,"") -> 11 | E7: S.US.GOOG | F7: 6 | G7: S.US.CERN | H7: =IF(G7="","",RTD("cqg.rtd", ,"ContractData",G7, "LongDescription",, "T")) -> Cerner Corporation | I7: =IFERROR(RTD("cqg.rtd", ,"ContractData",G7, "PerCentNetLastTrade",, "T")/100,"") -> 0.007181094138 | J7: 1 | K7: 6 | L7: =IFERROR(VLOOKUP(A7,Data!$I$2:$J$103,2,FALSE),"") ->  | M7: =IFERROR(RTD("cqg.rtd", ,"ContractData",L7, "PerCentNetLastTrade",, "T")/100,"") ->  | N7: =IFERROR(RANK($M7,$M$2:M$104)+COUNTIF($M$2:M7,M7)-1,"") ->  | P7: 6 | R7: =IF(Q7="","",RTD("cqg.rtd", ,"ContractData",Q7, "LongDescription",, "T")) ->  | S7: =IFERROR(RTD("cqg.rtd", ,"ContractData",Q7, "PerCentNetLastTrade",, "T")/100,"") ->  | T7: 0
A8: 7 | B8: =IFERROR(VLOOKUP(A8,Data!$H$2:$J$103,3,FALSE),"") -> S.US.IDXX | C8: =IFERROR(RTD("cqg.rtd", ,"ContractData",B8, "PerCentNetLastTrade",, "T")/100,"") -> 0.01108887437 | D8: =IFERROR(RANK($C8,$C$2:C$103)+COUNTIF($C$2:C8,C8)-1,"") -> 4 | E8: S.US.IDXX | F8: 7 | G8: S.US.VRSN | H8: =IF(G8="","",RTD("cqg.rtd", ,"ContractData",G8, "LongDescription",, "T")) -> Verisign Inc | I8: =IFERROR(RTD("cqg.rtd", ,"ContractData",G8, "PerCentNetLastTrade",, "T")/100,"") -> 0.006421890269 | J8: 1 | K8: 7 | L8: =IFERROR(VLOOKUP(A8,Data!$I$2:$J$103,2,FALSE),"") ->  | M8: =IFERROR(RTD("cqg.rtd", ,"ContractData",L8, "PerCentNetLastTrade",, "T")/100,"") ->  | N8: =IFERROR(RANK($M8,$M$2:M$104)+COUNTIF($M$2:M8,M8)-1,"") ->  | P8: 7 | R8: =IF(Q8="","",RTD("cqg.rtd", ,"ContractData",Q8, "LongDescription",, "T")) ->  | S8: =IFERROR(RTD("cqg.rtd", ,"ContractData",Q8, "PerCentNetLastTrade",, "T")/100,"") ->  | T8: 0
A9: 8 | B9: =IFERROR(VLOOKUP(A9,Data!$H$2:$J$103,3,FALSE),"") -> S.US.LRCX | C9: =IFERROR(RTD("cqg.rtd", ,"ContractData",B9, "PerCentNetLastTrade",, "T")/100,"") -> -0.00645655278 | D9: =IFERROR(RANK($C9,$C$2:C$103)+COUNTIF($C$2:C9,C9)-1,"") -> 12 | E9: S.US.LRCX | F9: 8 | G9: S.US.CPRT | H9: =IF(G9="","",RTD("cqg.rtd", ,"ContractData",G9, "LongDescription",, "T")) -> Copart Inc | I9: =IFERROR(RTD("cqg.rtd", ,"ContractData",G9, "PerCentNetLastTrade",, "T")/100,"") -> 0.005974791292 | J9: 1 | K9: 8 | L9: =IFERROR(VLOOKUP(A9,Data!$I$2:$J$103,2,FALSE),"") ->  | M9: =IFERROR(RTD("cqg.rtd", ,"ContractData",L9, "PerCentNetLastTrade",, "T")/100,"") ->  | N9: =IFERROR(RANK($M9,$M$2:M$104)+COUNTIF($M$2:M9,M9)-1,"") ->  | P9: 8 | R9: =IF(Q9="","",RTD("cqg.rtd", ,"ContractData",Q9, "LongDescription",, "T")) ->  | S9: =IFERROR(RTD("cqg.rtd", ,"ContractData",Q9, "PerCentNetLastTrade",, "T")/100,"") ->  | T9: 0
A10: 9 | B10: =IFERROR(VLOOKUP(A10,Data!$H$2:$J$103,3,FALSE),"") -> S.US.OKTA | C10: =IFERROR(RTD("cqg.rtd", ,"ContractData",B10, "PerCentNetLastTrade",, "T")/100,"") -> 0.03019525296 | D10: =IFERROR(RANK($C10,$C$2:C$103)+COUNTIF($C$2:C10,C10)-1,"") -> 1 | E10: S.US.OKTA | F10: 9 | G10: S.US.ROST | H10: =IF(G10="","",RTD("cqg.rtd", ,"ContractData",G10, "LongDescription",, "T")) -> Ross Stores Inc | I10: =IFERROR(RTD("cqg.rtd", ,"ContractData",G10, "PerCentNetLastTrade",, "T")/100,"") -> 0.001626851614 | J10: 1 | K10: 9 | L10: =IFERROR(VLOOKUP(A10,Data!$I$2:$J$103,2,FALSE),"") ->  | M10: =IFERROR(RTD("cqg.rtd", ,"ContractData",L10, "PerCentNetLastTrade",, "T")/100,"") ->  | N10: =IFERROR(RANK($M10,$M$2:M$104)+COUNTIF($M$2:M10,M10)-1,"") ->  | P10: 9 | R10: =IF(Q10="","",RTD("cqg.rtd", ,"ContractData",Q10, "LongDescription",, "T")) ->  | S10: =IFERROR(RTD("cqg.rtd", ,"ContractData",Q10, "PerCentNetLastTrade",, "T")/100,"") ->  | T10: 0
A11: 10 | B11: =IFERROR(VLOOKUP(A11,Data!$H$2:$J$103,3,FALSE),"") -> S.US.ROST | C11: =IFERROR(RTD("cqg.rtd", ,"ContractData",B11, "PerCentNetLastTrade",, "T")/100,"") -> 0.001626851614 | D11: =IFERROR(RANK($C11,$C$2:C$103)+COUNTIF($C$2:C11,C11)-1,"") -> 9 | E11: S.US.ROST | F11: 10 | G11: S.US.CSX | H11: =IF(G11="","",RTD("cqg.rtd", ,"ContractData",G11, "LongDescription",, "T")) -> CSX Corporation | I11: =IFERROR(RTD("cqg.rtd", ,"ContractData",G11, "PerCentNetLastTrade",, "T")/100,"") -> 0.001560932099 | J11: 1 | K11: 10 | L11: =IFERROR(VLOOKUP(A11,Data!$I$2:$J$103,2,FALSE),"") ->  | M11: =IFERROR(RTD("cqg.rtd", ,"ContractData",L11, "PerCentNetLastTrade",, "T")/100,"") ->  | N11: =IFERROR(RANK($M11,$M$2:M$104)+COUNTIF($M$2:M11,M11)-1,"") ->  | P11: 10 | R11: =IF(Q11="","",RTD("cqg.rtd", ,"ContractData",Q11, "LongDescription",, "T")) ->  | S11: =IFERROR(RTD("cqg.rtd", ,"ContractData",Q11, "PerCentNetLastTrade",, "T")/100,"") ->  | T11: 0
A12: 11 | B12: =IFERROR(VLOOKUP(A12,Data!$H$2:$J$103,3,FALSE),"") -> S.US.SPLK | C12: =IFERROR(RTD("cqg.rtd", ,"ContractData",B12, "PerCentNetLastTrade",, "T")/100,"") -> 0.01204335608 | D12: =IFERROR(RANK($C12,$C$2:C$103)+COUNTIF($C$2:C12,C12)-1,"") -> 2 | E12: S.US.SPLK | F12: 11 | G12: S.US.GOOG | H12: =IF(G12="","",RTD("cqg.rtd", ,"ContractData",G12, "LongDescription",, "T")) -> Alphabet, Inc. Class C | I12: =IFERROR(RTD("cqg.rtd", ,"ContractData",G12, "PerCentNetLastTrade",, "T")/100,"") -> -0.001535038548 | J12: 1 | K12: 11 | L12: =IFERROR(VLOOKUP(A12,Data!$I$2:$J$103,2,FALSE),"") ->  | M12: =IFERROR(RTD("cqg.rtd", ,"ContractData",L12, "PerCentNetLastTrade",, "T")/100,"") ->  | N12: =IFERROR(RANK($M12,$M$2:M$104)+COUNTIF($M$2:M12,M12)-1,"") ->  | P12: 11 | R12: =IF(Q12="","",RTD("cqg.rtd", ,"ContractData",Q12, "LongDescription",, "T")) ->  | S12: =IFERROR(RTD("cqg.rtd", ,"ContractData",Q12, "PerCentNetLastTrade",, "T")/100,"") ->  | T12: 0
A13: 12 | B13: =IFERROR(VLOOKUP(A13,Data!$H$2:$J$103,3,FALSE),"") -> S.US.VRSN | C13: =IFERROR(RTD("cqg.rtd", ,"ContractData",B13, "PerCentNetLastTrade",, "T")/100,"") -> 0.006421890269 | D13: =IFERROR(RANK($C13,$C$2:C$103)+COUNTIF($C$2:C13,C13)-1,"") -> 7 | E13: S.US.VRSN | F13: 12 | G13: S.US.LRCX | H13: =IF(G13="","",RTD("cqg.rtd", ,"ContractData",G13, "LongDescription",, "T")) -> LAM Research Corporation | I13: =IFERROR(RTD("cqg.rtd", ,"ContractData",G13, "PerCentNetLastTrade",, "T")/100,"") -> -0.00645655278 | J13: 1 | K13: 12 | L13: =IFERROR(VLOOKUP(A13,Data!$I$2:$J$103,2,FALSE),"") ->  | M13: =IFERROR(RTD("cqg.rtd", ,"ContractData",L13, "PerCentNetLastTrade",, "T")/100,"") ->  | N13: =IFERROR(RANK($M13,$M$2:M$104)+COUNTIF($M$2:M13,M13)-1,"") ->  | P13: 12 | R13: =IF(Q13="","",RTD("cqg.rtd", ,"ContractData",Q13, "LongDescription",, "T")) ->  | S13: =IFERROR(RTD("cqg.rtd", ,"ContractData",Q13, "PerCentNetLastTrade",, "T")/100,"") ->  | T13: 0
A14: 13 | B14: =IFERROR(VLOOKUP(A14,Data!$H$2:$J$103,3,FALSE),"") ->  | C14: =IFERROR(RTD("cqg.rtd", ,"ContractData",B14, "PerCentNetLastTrade",, "T")/100,"") ->  | D14: =IFERROR(RANK($C14,$C$2:C$103)+COUNTIF($C$2:C14,C14)-1,"") ->  | F14: 13 | H14: =IF(G14="","",RTD("cqg.rtd", ,"ContractData",G14, "LongDescription",, "T")) ->  | I14: =IFERROR(RTD("cqg.rtd", ,"ContractData",G14, "PerCentNetLastTrade",, "T")/100,"") ->  | J14: 0 | K14: 13 | L14: =IFERROR(VLOOKUP(A14,Data!$I$2:$J$103,2,FALSE),"") ->  | M14: =IFERROR(RTD("cqg.rtd", ,"ContractData",L14, "PerCentNetLastTrade",, "T")/100,"") ->  | N14: =IFERROR(RANK($M14,$M$2:M$104)+COUNTIF($M$2:M14,M14)-1,"") ->  | P14: 13 | R14: =IF(Q14="","",RTD("cqg.rtd", ,"ContractData",Q14, "LongDescription",, "T")) ->  | S14: =IFERROR(RTD("cqg.rtd", ,"ContractData",Q14, "PerCentNetLastTrade",, "T")/100,"") ->  | T14: 0
A15: 14 | B15: =IFERROR(VLOOKUP(A15,Data!$H$2:$J$103,3,FALSE),"") ->  | C15: =IFERROR(RTD("cqg.rtd", ,"ContractData",B15, "PerCentNetLastTrade",, "T")/100,"") ->  | D15: =IFERROR(RANK($C15,$C$2:C$103)+COUNTIF($C$2:C15,C15)-1,"") ->  | F15: 14 | H15: =IF(G15="","",RTD("cqg.rtd", ,"ContractData",G15, "LongDescription",, "T")) ->  | I15: =IFERROR(RTD("cqg.rtd", ,"ContractData",G15, "PerCentNetLastTrade",, "T")/100,"") ->  | J15: 0 | K15: 14 | L15: =IFERROR(VLOOKUP(A15,Data!$I$2:$J$103,2,FALSE),"") ->  | M15: =IFERROR(RTD("cqg.rtd", ,"ContractData",L15, "PerCentNetLastTrade",, "T")/100,"") ->  | N15: =IFERROR(RANK($M15,$M$2:M$104)+COUNTIF($M$2:M15,M15)-1,"") ->  | P15: 14 | R15: =IF(Q15="","",RTD("cqg.rtd", ,"ContractData",Q15, "LongDescription",, "T")) ->  | S15: =IFERROR(RTD("cqg.rtd", ,"ContractData",Q15, "PerCentNetLastTrade",, "T")/100,"") ->  | T15: 0
A16: 15 | B16: =IFERROR(VLOOKUP(A16,Data!$H$2:$J$103,3,FALSE),"") ->  | C16: =IFERROR(RTD("cqg.rtd", ,"ContractData",B16, "PerCentNetLastTrade",, "T")/100,"") ->  | D16: =IFERROR(RANK($C16,$C$2:C$103)+COUNTIF($C$2:C16,C16)-1,"") ->  | F16: 15 | H16: =IF(G16="","",RTD("cqg.rtd", ,"ContractData",G16, "LongDescription",, "T")) ->  | I16: =IFERROR(RTD("cqg.rtd", ,"ContractData",G16, "PerCentNetLastTrade",, "T")/100,"") ->  | J16: 0 | K16: 15 | L16: =IFERROR(VLOOKUP(A16,Data!$I$2:$J$103,2,FALSE),"") ->  | M16: =IFERROR(RTD("cqg.rtd", ,"ContractData",L16, "PerCentNetLastTrade",, "T")/100,"") ->  | N16: =IFERROR(RANK($M16,$M$2:M$104)+COUNTIF($M$2:M16,M16)-1,"") ->  | P16: 15 | R16: =IF(Q16="","",RTD("cqg.rtd", ,"ContractData",Q16, "LongDescription",, "T")) ->  | S16: =IFERROR(RTD("cqg.rtd", ,"ContractData",Q16, "PerCentNetLastTrade",, "T")/100,"") ->  | T16: 0
A17: 16 | B17: =IFERROR(VLOOKUP(A17,Data!$H$2:$J$103,3,FALSE),"") ->  | C17: =IFERROR(RTD("cqg.rtd", ,"ContractData",B17, "PerCentNetLastTrade",, "T")/100,"") ->  | D17: =IFERROR(RANK($C17,$C$2:C$103)+COUNTIF($C$2:C17,C17)-1,"") ->  | F17: 16 | H17: =IF(G17="","",RTD("cqg.rtd", ,"ContractData",G17, "LongDescription",, "T")) ->  | I17: =IFERROR(RTD("cqg.rtd", ,"ContractData",G17, "PerCentNetLastTrade",, "T")/100,"") ->  | J17: 0 | K17: 16 | L17: =IFERROR(VLOOKUP(A17,Data!$I$2:$J$103,2,FALSE),"") ->  | M17: =IFERROR(RTD("cqg.rtd", ,"ContractData",L17, "PerCentNetLastTrade",, "T")/100,"") ->  | N17: =IFERROR(RANK($M17,$M$2:M$104)+COUNTIF($M$2:M17,M17)-1,"") ->  | P17: 16 | R17: =IF(Q17="","",RTD("cqg.rtd", ,"ContractData",Q17, "LongDescription",, "T")) ->  | S17: =IFERROR(RTD("cqg.rtd", ,"ContractData",Q17, "PerCentNetLastTrade",, "T")/100,"") ->  | T17: 0
A18: 17 | B18: =IFERROR(VLOOKUP(A18,Data!$H$2:$J$103,3,FALSE),"") ->  | C18: =IFERROR(RTD("cqg.rtd", ,"ContractData",B18, "PerCentNetLastTrade",, "T")/100,"") ->  | D18: =IFERROR(RANK($C18,$C$2:C$103)+COUNTIF($C$2:C18,C18)-1,"") ->  | F18: 17 | H18: =IF(G18="","",RTD("cqg.rtd", ,"ContractData",G18, "LongDescription",, "T")) ->  | I18: =IFERROR(RTD("cqg.rtd", ,"ContractData",G18, "PerCentNetLastTrade",, "T")/100,"") ->  | J18: 0 | K18: 17 | L18: =IFERROR(VLOOKUP(A18,Data!$I$2:$J$103,2,FALSE),"") ->  | M18: =IFERROR(RTD("cqg.rtd", ,"ContractData",L18, "PerCentNetLastTrade",, "T")/100,"") ->  | N18: =IFERROR(RANK($M18,$M$2:M$104)+COUNTIF($M$2:M18,M18)-1,"") ->  | P18: 17 | R18: =IF(Q18="","",RTD("cqg.rtd", ,"ContractData",Q18, "LongDescription",, "T")) ->  | S18: =IFERROR(RTD("cqg.rtd", ,"ContractData",Q18, "PerCentNetLastTrade",, "T")/100,"") ->  | T18: 0
A19: 18 | B19: =IFERROR(VLOOKUP(A19,Data!$H$2:$J$103,3,FALSE),"") ->  | C19: =IFERROR(RTD("cqg.rtd", ,"ContractData",B19, "PerCentNetLastTrade",, "T")/100,"") ->  | D19: =IFERROR(RANK($C19,$C$2:C$103)+COUNTIF($C$2:C19,C19)-1,"") ->  | F19: 18 | H19: =IF(G19="","",RTD("cqg.rtd", ,"ContractData",G19, "LongDescription",, "T")) ->  | I19: =IFERROR(RTD("cqg.rtd", ,"ContractData",G19, "PerCentNetLastTrade",, "T")/100,"") ->  | J19: 0 | K19: 18 | L19: =IFERROR(VLOOKUP(A19,Data!$I$2:$J$103,2,FALSE),"") ->  | M19: =IFERROR(RTD("cqg.rtd", ,"ContractData",L19, "PerCentNetLastTrade",, "T")/100,"") ->  | N19: =IFERROR(RANK($M19,$M$2:M$104)+COUNTIF($M$2:M19,M19)-1,"") ->  | P19: 18 | R19: =IF(Q19="","",RTD("cqg.rtd", ,"ContractData",Q19, "LongDescription",, "T")) ->  | S19: =IFERROR(RTD("cqg.rtd", ,"ContractData",Q19, "PerCentNetLastTrade",, "T")/100,"") ->  | T19: 0
A20: 19 | B20: =IFERROR(VLOOKUP(A20,Data!$H$2:$J$103,3,FALSE),"") ->  | C20: =IFERROR(RTD("cqg.rtd", ,"ContractData",B20, "PerCentNetLastTrade",, "T")/100,"") ->  | D20: =IFERROR(RANK($C20,$C$2:C$103)+COUNTIF($C$2:C20,C20)-1,"") ->  | F20: 19 | H20: =IF(G20="","",RTD("cqg.rtd", ,"ContractData",G20, "LongDescription",, "T")) ->  | I20: =IFERROR(RTD("cqg.rtd", ,"ContractData",G20, "PerCentNetLastTrade",, "T")/100,"") ->  | J20: 0 | K20: 19 | L20: =IFERROR(VLOOKUP(A20,Data!$I$2:$J$103,2,FALSE),"") ->  | M20: =IFERROR(RTD("cqg.rtd", ,"ContractData",L20, "PerCentNetLastTrade",, "T")/100,"") ->  | N20: =IFERROR(RANK($M20,$M$2:M$104)+COUNTIF($M$2:M20,M20)-1,"") ->  | P20: 19 | R20: =IF(Q20="","",RTD("cqg.rtd", ,"ContractData",Q20, "LongDescription",, "T")) ->  | S20: =IFERROR(RTD("cqg.rtd", ,"ContractData",Q20, "PerCentNetLastTrade",, "T")/100,"") ->  | T20: 0
A21: 20 | B21: =IFERROR(VLOOKUP(A21,Data!$H$2:$J$103,3,FALSE),"") ->  | C21: =IFERROR(RTD("cqg.rtd", ,"ContractData",B21, "PerCentNetLastTrade",, "T")/100,"") ->  | D21: =IFERROR(RANK($C21,$C$2:C$103)+COUNTIF($C$2:C21,C21)-1,"") ->  | F21: 20 | H21: =IF(G21="","",RTD("cqg.rtd", ,"ContractData",G21, "LongDescription",, "T")) ->  | I21: =IFERROR(RTD("cqg.rtd", ,"ContractData",G21, "PerCentNetLastTrade",, "T")/100,"") ->  | J21: 0 | K21: 20 | L21: =IFERROR(VLOOKUP(A21,Data!$I$2:$J$103,2,FALSE),"") ->  | M21: =IFERROR(RTD("cqg.rtd", ,"ContractData",L21, "PerCentNetLastTrade",, "T")/100,"") ->  | N21: =IFERROR(RANK($M21,$M$2:M$104)+COUNTIF($M$2:M21,M21)-1,"") ->  | P21: 20 | R21: =IF(Q21="","",RTD("cqg.rtd", ,"ContractData",Q21, "LongDescription",, "T")) ->  | S21: =IFERROR(RTD("cqg.rtd", ,"ContractData",Q21, "PerCentNetLastTrade",, "T")/100,"") ->  | T21: 0
A22: 21 | B22: =IFERROR(VLOOKUP(A22,Data!$H$2:$J$103,3,FALSE),"") ->  | C22: =IFERROR(RTD("cqg.rtd", ,"ContractData",B22, "PerCentNetLastTrade",, "T")/100,"") ->  | D22: =IFERROR(RANK($C22,$C$2:C$103)+COUNTIF($C$2:C22,C22)-1,"") ->  | F22: 21 | H22: =IF(G22="","",RTD("cqg.rtd", ,"ContractData",G22, "LongDescription",, "T")) ->  | I22: =IFERROR(RTD("cqg.rtd", ,"ContractData",G22, "PerCentNetLastTrade",, "T")/100,"") ->  | J22: 0 | K22: 21 | L22: =IFERROR(VLOOKUP(A22,Data!$I$2:$J$103,2,FALSE),"") ->  | M22: =IFERROR(RTD("cqg.rtd", ,"ContractData",L22, "PerCentNetLastTrade",, "T")/100,"") ->  | N22: =IFERROR(RANK($M22,$M$2:M$104)+COUNTIF($M$2:M22,M22)-1,"") ->  | P22: 21 | R22: =IF(Q22="","",RTD("cqg.rtd", ,"ContractData",Q22, "LongDescription",, "T")) ->  | S22: =IFERROR(RTD("cqg.rtd", ,"ContractData",Q22, "PerCentNetLastTrade",, "T")/100,"") ->  | T22: 0
A23: 22 | B23: =IFERROR(VLOOKUP(A23,Data!$H$2:$J$103,3,FALSE),"") ->  | C23: =IFERROR(RTD("cqg.rtd", ,"ContractData",B23, "PerCentNetLastTrade",, "T")/100,"") ->  | D23: =IFERROR(RANK($C23,$C$2:C$103)+COUNTIF($C$2:C23,C23)-1,"") ->  | F23: 22 | H23: =IF(G23="","",RTD("cqg.rtd", ,"ContractData",G23, "LongDescription",, "T")) ->  | I23: =IFERROR(RTD("cqg.rtd", ,"ContractData",G23, "PerCentNetLastTrade",, "T")/100,"") ->  | J23: 0 | K23: 22 | L23: =IFERROR(VLOOKUP(A23,Data!$I$2:$J$103,2,FALSE),"") ->  | M23: =IFERROR(RTD("cqg.rtd", ,"ContractData",L23, "PerCentNetLastTrade",, "T")/100,"") ->  | N23: =IFERROR(RANK($M23,$M$2:M$104)+COUNTIF($M$2:M23,M23)-1,"") ->  | P23: 22 | R23: =IF(Q23="","",RTD("cqg.rtd", ,"ContractData",Q23, "LongDescription",, "T")) ->  | S23: =IFERROR(RTD("cqg.rtd", ,"ContractData",Q23, "PerCentNetLastTrade",, "T")/100,"") ->  | T23: 0
A24: 23 | B24: =IFERROR(VLOOKUP(A24,Data!$H$2:$J$103,3,FALSE),"") ->  | C24: =IFERROR(RTD("cqg.rtd", ,"ContractData",B24, "PerCentNetLastTrade",, "T")/100,"") ->  | D24: =IFERROR(RANK($C24,$C$2:C$103)+COUNTIF($C$2:C24,C24)-1,"") ->  | F24: 23 | H24: =IF(G24="","",RTD("cqg.rtd", ,"ContractData",G24, "LongDescription",, "T")) ->  | I24: =IFERROR(RTD("cqg.rtd", ,"ContractData",G24, "PerCentNetLastTrade",, "T")/100,"") ->  | J24: 0 | K24: 23 | L24: =IFERROR(VLOOKUP(A24,Data!$I$2:$J$103,2,FALSE),"") ->  | M24: =IFERROR(RTD("cqg.rtd", ,"ContractData",L24, "PerCentNetLastTrade",, "T")/100,"") ->  | N24: =IFERROR(RANK($M24,$M$2:M$104)+COUNTIF($M$2:M24,M24)-1,"") ->  | P24: 23 | R24: =IF(Q24="","",RTD("cqg.rtd", ,"ContractData",Q24, "LongDescription",, "T")) ->  | S24: =IFERROR(RTD("cqg.rtd", ,"ContractData",Q24, "PerCentNetLastTrade",, "T")/100,"") ->  | T24: 0
A25: 24 | B25: =IFERROR(VLOOKUP(A25,Data!$H$2:$J$103,3,FALSE),"") ->  | C25: =IFERROR(RTD("cqg.rtd", ,"ContractData",B25, "PerCentNetLastTrade",, "T")/100,"") ->  | D25: =IFERROR(RANK($C25,$C$2:C$103)+COUNTIF($C$2:C25,C25)-1,"") ->  | F25: 24 | H25: =IF(G25="","",RTD("cqg.rtd", ,"ContractData",G25, "LongDescription",, "T")) ->  | I25: =IFERROR(RTD("cqg.rtd", ,"ContractData",G25, "PerCentNetLastTrade",, "T")/100,"") ->  | J25: 0 | K25: 24 | L25: =IFERROR(VLOOKUP(A25,Data!$I$2:$J$103,2,FALSE),"") ->  | M25: =IFERROR(RTD("cqg.rtd", ,"ContractData",L25, "PerCentNetLastTrade",, "T")/100,"") ->  | N25: =IFERROR(RANK($M25,$M$2:M$104)+COUNTIF($M$2:M25,M25)-1,"") ->  | P25: 24 | R25: =IF(Q25="","",RTD("cqg.rtd", ,"ContractData",Q25, "LongDescription",, "T")) ->  | S25: =IFERROR(RTD("cqg.rtd", ,"ContractData",Q25, "PerCentNetLastTrade",, "T")/100,"") ->  | T25: 0
A26: 25 | B26: =IFERROR(VLOOKUP(A26,Data!$H$2:$J$103,3,FALSE),"") ->  | C26: =IFERROR(RTD("cqg.rtd", ,"ContractData",B26, "PerCentNetLastTrade",, "T")/100,"") ->  | D26: =IFERROR(RANK($C26,$C$2:C$103)+COUNTIF($C$2:C26,C26)-1,"") ->  | F26: 25 | H26: =IF(G26="","",RTD("cqg.rtd", ,"ContractData",G26, "LongDescription",, "T")) ->  | I26: =IFERROR(RTD("cqg.rtd", ,"ContractData",G26, "PerCentNetLastTrade",, "T")/100,"") ->  | J26: 0 | K26: 25 | L26: =IFERROR(VLOOKUP(A26,Data!$I$2:$J$103,2,FALSE),"") ->  | M26: =IFERROR(RTD("cqg.rtd", ,"ContractData",L26, "PerCentNetLastTrade",, "T")/100,"") ->  | N26: =IFERROR(RANK($M26,$M$2:M$104)+COUNTIF($M$2:M26,M26)-1,"") ->  | P26: 25 | R26: =IF(Q26="","",RTD("cqg.rtd", ,"ContractData",Q26, "LongDescription",, "T")) ->  | S26: =IFERROR(RTD("cqg.rtd", ,"ContractData",Q26, "PerCentNetLastTrade",, "T")/100,"") ->  | T26: 0
A27: 26 | B27: =IFERROR(VLOOKUP(A27,Data!$H$2:$J$103,3,FALSE),"") ->  | C27: =IFERROR(RTD("cqg.rtd", ,"ContractData",B27, "PerCentNetLastTrade",, "T")/100,"") ->  | D27: =IFERROR(RANK($C27,$C$2:C$103)+COUNTIF($C$2:C27,C27)-1,"") ->  | F27: 26 | H27: =IF(G27="","",RTD("cqg.rtd", ,"ContractData",G27, "LongDescription",, "T")) ->  | I27: =IFERROR(RTD("cqg.rtd", ,"ContractData",G27, "PerCentNetLastTrade",, "T")/100,"") ->  | J27: 0 | K27: 26 | L27: =IFERROR(VLOOKUP(A27,Data!$I$2:$J$103,2,FALSE),"") ->  | M27: =IFERROR(RTD("cqg.rtd", ,"ContractData",L27, "PerCentNetLastTrade",, "T")/100,"") ->  | N27: =IFERROR(RANK($M27,$M$2:M$104)+COUNTIF($M$2:M27,M27)-1,"") ->  | P27: 26 | R27: =IF(Q27="","",RTD("cqg.rtd", ,"ContractData",Q27, "LongDescription",, "T")) ->  | S27: =IFERROR(RTD("cqg.rtd", ,"ContractData",Q27, "PerCentNetLastTrade",, "T")/100,"") ->  | T27: 0
A28: 27 | B28: =IFERROR(VLOOKUP(A28,Data!$H$2:$J$103,3,FALSE),"") ->  | C28: =IFERROR(RTD("cqg.rtd", ,"ContractData",B28, "PerCentNetLastTrade",, "T")/100,"") ->  | D28: =IFERROR(RANK($C28,$C$2:C$103)+COUNTIF($C$2:C28,C28)-1,"") ->  | F28: 27 | H28: =IF(G28="","",RTD("cqg.rtd", ,"ContractData",G28, "LongDescription",, "T")) ->  | I28: =IFERROR(RTD("cqg.rtd", ,"ContractData",G28, "PerCentNetLastTrade",, "T")/100,"") ->  | J28: 0 | K28: 27 | L28: =IFERROR(VLOOKUP(A28,Data!$I$2:$J$103,2,FALSE),"") ->  | M28: =IFERROR(RTD("cqg.rtd", ,"ContractData",L28, "PerCentNetLastTrade",, "T")/100,"") ->  | N28: =IFERROR(RANK($M28,$M$2:M$104)+COUNTIF($M$2:M28,M28)-1,"") ->  | P28: 27 | R28: =IF(Q28="","",RTD("cqg.rtd", ,"ContractData",Q28, "LongDescription",, "T")) ->  | S28: =IFERROR(RTD("cqg.rtd", ,"ContractData",Q28, "PerCentNetLastTrade",, "T")/100,"") ->  | T28: 0
A29: 28 | B29: =IFERROR(VLOOKUP(A29,Data!$H$2:$J$103,3,FALSE),"") ->  | C29: =IFERROR(RTD("cqg.rtd", ,"ContractData",B29, "PerCentNetLastTrade",, "T")/100,"") ->  | D29: =IFERROR(RANK($C29,$C$2:C$103)+COUNTIF($C$2:C29,C29)-1,"") ->  | F29: 28 | H29: =IF(G29="","",RTD("cqg.rtd", ,"ContractData",G29, "LongDescription",, "T")) ->  | I29: =IFERROR(RTD("cqg.rtd", ,"ContractData",G29, "PerCentNetLastTrade",, "T")/100,"") ->  | J29: 0 | K29: 28 | L29: =IFERROR(VLOOKUP(A29,Data!$I$2:$J$103,2,FALSE),"") ->  | M29: =IFERROR(RTD("cqg.rtd", ,"ContractData",L29, "PerCentNetLastTrade",, "T")/100,"") ->  | N29: =IFERROR(RANK($M29,$M$2:M$104)+COUNTIF($M$2:M29,M29)-1,"") ->  | P29: 28 | R29: =IF(Q29="","",RTD("cqg.rtd", ,"ContractData",Q29, "LongDescription",, "T")) ->  | S29: =IFERROR(RTD("cqg.rtd", ,"ContractData",Q29, "PerCentNetLastTrade",, "T")/100,"") ->  | T29: 0
A30: 29 | B30: =IFERROR(VLOOKUP(A30,Data!$H$2:$J$103,3,FALSE),"") ->  | C30: =IFERROR(RTD("cqg.rtd", ,"ContractData",B30, "PerCentNetLastTrade",, "T")/100,"") ->  | D30: =IFERROR(RANK($C30,$C$2:C$103)+COUNTIF($C$2:C30,C30)-1,"") ->  | F30: 29 | H30: =IF(G30="","",RTD("cqg.rtd", ,"ContractData",G30, "LongDescription",, "T")) ->  | I30: =IFERROR(RTD("cqg.rtd", ,"ContractData",G30, "PerCentNetLastTrade",, "T")/100,"") ->  | J30: 0 | K30: 29 | L30: =IFERROR(VLOOKUP(A30,Data!$I$2:$J$103,2,FALSE),"") ->  | M30: =IFERROR(RTD("cqg.rtd", ,"ContractData",L30, "PerCentNetLastTrade",, "T")/100,"") ->  | N30: =IFERROR(RANK($M30,$M$2:M$104)+COUNTIF($M$2:M30,M30)-1,"") ->  | P30: 29 | R30: =IF(Q30="","",RTD("cqg.rtd", ,"ContractData",Q30, "LongDescription",, "T")) ->  | S30: =IFERROR(RTD("cqg.rtd", ,"ContractData",Q30, "PerCentNetLastTrade",, "T")/100,"") ->  | T30: 0
A31: 30 | B31: =IFERROR(VLOOKUP(A31,Data!$H$2:$J$103,3,FALSE),"") ->  | C31: =IFERROR(RTD("cqg.rtd", ,"ContractData",B31, "PerCentNetLastTrade",, "T")/100,"") ->  | D31: =IFERROR(RANK($C31,$C$2:C$103)+COUNTIF($C$2:C31,C31)-1,"") ->  | F31: 30 | H31: =IF(G31="","",RTD("cqg.rtd", ,"ContractData",G31, "LongDescription",, "T")) ->  | I31: =IFERROR(RTD("cqg.rtd", ,"ContractData",G31, "PerCentNetLastTrade",, "T")/100,"") ->  | J31: 0 | K31: 30 | L31: =IFERROR(VLOOKUP(A31,Data!$I$2:$J$103,2,FALSE),"") ->  | M31: =IFERROR(RTD("cqg.rtd", ,"ContractData",L31, "PerCentNetLastTrade",, "T")/100,"") ->  | N31: =IFERROR(RANK($M31,$M$2:M$104)+COUNTIF($M$2:M31,M31)-1,"") ->  | P31: 30 | R31: =IF(Q31="","",RTD("cqg.rtd", ,"ContractData",Q31, "LongDescription",, "T")) ->  | S31: =IFERROR(RTD("cqg.rtd", ,"ContractData",Q31, "PerCentNetLastTrade",, "T")/100,"") ->  | T31: 0
A32: 31 | B32: =IFERROR(VLOOKUP(A32,Data!$H$2:$J$103,3,FALSE),"") ->  | C32: =IFERROR(RTD("cqg.rtd", ,"ContractData",B32, "PerCentNetLastTrade",, "T")/100,"") ->  | D32: =IFERROR(RANK($C32,$C$2:C$103)+COUNTIF($C$2:C32,C32)-1,"") ->  | F32: 31 | H32: =IF(G32="","",RTD("cqg.rtd", ,"ContractData",G32, "LongDescription",, "T")) ->  | I32: =IFERROR(RTD("cqg.rtd", ,"ContractData",G32, "PerCentNetLastTrade",, "T")/100,"") ->  | J32: 0 | K32: 31 | L32: =IFERROR(VLOOKUP(A32,Data!$I$2:$J$103,2,FALSE),"") ->  | M32: =IFERROR(RTD("cqg.rtd", ,"ContractData",L32, "PerCentNetLastTrade",, "T")/100,"") ->  | N32: =IFERROR(RANK($M32,$M$2:M$104)+COUNTIF($M$2:M32,M32)-1,"") ->  | P32: 31 | R32: =IF(Q32="","",RTD("cqg.rtd", ,"ContractData",Q32, "LongDescription",, "T")) ->  | S32: =IFERROR(RTD("cqg.rtd", ,"ContractData",Q32, "PerCentNetLastTrade",, "T")/100,"") ->  | T32: 0
A33: 32 | B33: =IFERROR(VLOOKUP(A33,Data!$H$2:$J$103,3,FALSE),"") ->  | C33: =IFERROR(RTD("cqg.rtd", ,"ContractData",B33, "PerCentNetLastTrade",, "T")/100,"") ->  | D33: =IFERROR(RANK($C33,$C$2:C$103)+COUNTIF($C$2:C33,C33)-1,"") ->  | F33: 32 | H33: =IF(G33="","",RTD("cqg.rtd", ,"ContractData",G33, "LongDescription",, "T")) ->  | I33: =IFERROR(RTD("cqg.rtd", ,"ContractData",G33, "PerCentNetLastTrade",, "T")/100,"") ->  | J33: 0 | K33: 32 | L33: =IFERROR(VLOOKUP(A33,Data!$I$2:$J$103,2,FALSE),"") ->  | M33: =IFERROR(RTD("cqg.rtd", ,"ContractData",L33, "PerCentNetLastTrade",, "T")/100,"") ->  | N33: =IFERROR(RANK($M33,$M$2:M$104)+COUNTIF($M$2:M33,M33)-1,"") ->  | P33: 32 | R33: =IF(Q33="","",RTD("cqg.rtd", ,"ContractData",Q33, "LongDescription",, "T")) ->  | S33: =IFERROR(RTD("cqg.rtd", ,"ContractData",Q33, "PerCentNetLastTrade",, "T")/100,"") ->  | T33: 0
A34: 33 | B34: =IFERROR(VLOOKUP(A34,Data!$H$2:$J$103,3,FALSE),"") ->  | C34: =IFERROR(RTD("cqg.rtd", ,"ContractData",B34, "PerCentNetLastTrade",, "T")/100,"") ->  | D34: =IFERROR(RANK($C34,$C$2:C$103)+COUNTIF($C$2:C34,C34)-1,"") ->  | F34: 33 | H34: =IF(G34="","",RTD("cqg.rtd", ,"ContractData",G34, "LongDescription",, "T")) ->  | I34: =IFERROR(RTD("cqg.rtd", ,"ContractData",G34, "PerCentNetLastTrade",, "T")/100,"") ->  | J34: 0 | K34: 33 | L34: =IFERROR(VLOOKUP(A34,Data!$I$2:$J$103,2,FALSE),"") ->  | M34: =IFERROR(RTD("cqg.rtd", ,"ContractData",L34, "PerCentNetLastTrade",, "T")/100,"") ->  | N34: =IFERROR(RANK($M34,$M$2:M$104)+COUNTIF($M$2:M34,M34)-1,"") ->  | P34: 33 | R34: =IF(Q34="","",RTD("cqg.rtd", ,"ContractData",Q34, "LongDescription",, "T")) ->  | S34: =IFERROR(RTD("cqg.rtd", ,"ContractData",Q34, "PerCentNetLastTrade",, "T")/100,"") ->  | T34: 0
A35: 34 | B35: =IFERROR(VLOOKUP(A35,Data!$H$2:$J$103,3,FALSE),"") ->  | C35: =IFERROR(RTD("cqg.rtd", ,"ContractData",B35, "PerCentNetLastTrade",, "T")/100,"") ->  | D35: =IFERROR(RANK($C35,$C$2:C$103)+COUNTIF($C$2:C35,C35)-1,"") ->  | F35: 34 | H35: =IF(G35="","",RTD("cqg.rtd", ,"ContractData",G35, "LongDescription",, "T")) ->  | I35: =IFERROR(RTD("cqg.rtd", ,"ContractData",G35, "PerCentNetLastTrade",, "T")/100,"") ->  | J35: 0 | K35: 34 | L35: =IFERROR(VLOOKUP(A35,Data!$I$2:$J$103,2,FALSE),"") ->  | M35: =IFERROR(RTD("cqg.rtd", ,"ContractData",L35, "PerCentNetLastTrade",, "T")/100,"") ->  | N35: =IFERROR(RANK($M35,$M$2:M$104)+COUNTIF($M$2:M35,M35)-1,"") ->  | P35: 34 | R35: =IF(Q35="","",RTD("cqg.rtd", ,"ContractData",Q35, "LongDescription",, "T")) ->  | S35: =IFERROR(RTD("cqg.rtd", ,"ContractData",Q35, "PerCentNetLastTrade",, "T")/100,"") ->  | T35: 0
A36: 35 | B36: =IFERROR(VLOOKUP(A36,Data!$H$2:$J$103,3,FALSE),"") ->  | C36: =IFERROR(RTD("cqg.rtd", ,"ContractData",B36, "PerCentNetLastTrade",, "T")/100,"") ->  | D36: =IFERROR(RANK($C36,$C$2:C$103)+COUNTIF($C$2:C36,C36)-1,"") ->  | F36: 35 | H36: =IF(G36="","",RTD("cqg.rtd", ,"ContractData",G36, "LongDescription",, "T")) ->  | I36: =IFERROR(RTD("cqg.rtd", ,"ContractData",G36, "PerCentNetLastTrade",, "T")/100,"") ->  | J36: 0 | K36: 35 | L36: =IFERROR(VLOOKUP(A36,Data!$I$2:$J$103,2,FALSE),"") ->  | M36: =IFERROR(RTD("cqg.rtd", ,"ContractData",L36, "PerCentNetLastTrade",, "T")/100,"") ->  | N36: =IFERROR(RANK($M36,$M$2:M$104)+COUNTIF($M$2:M36,M36)-1,"") ->  | P36: 35 | R36: =IF(Q36="","",RTD("cqg.rtd", ,"ContractData",Q36, "LongDescription",, "T")) ->  | S36: =IFERROR(RTD("cqg.rtd", ,"ContractData",Q36, "PerCentNetLastTrade",, "T")/100,"") ->  | T36: 0
A37: 36 | B37: =IFERROR(VLOOKUP(A37,Data!$H$2:$J$103,3,FALSE),"") ->  | C37: =IFERROR(RTD("cqg.rtd", ,"ContractData",B37, "PerCentNetLastTrade",, "T")/100,"") ->  | D37: =IFERROR(RANK($C37,$C$2:C$103)+COUNTIF($C$2:C37,C37)-1,"") ->  | F37: 36 | H37: =IF(G37="","",RTD("cqg.rtd", ,"ContractData",G37, "LongDescription",, "T")) ->  | I37: =IFERROR(RTD("cqg.rtd", ,"ContractData",G37, "PerCentNetLastTrade",, "T")/100,"") ->  | J37: 0 | K37: 36 | L37: =IFERROR(VLOOKUP(A37,Data!$I$2:$J$103,2,FALSE),"") ->  | M37: =IFERROR(RTD("cqg.rtd", ,"ContractData",L37, "PerCentNetLastTrade",, "T")/100,"") ->  | N37: =IFERROR(RANK($M37,$M$2:M$104)+COUNTIF($M$2:M37,M37)-1,"") ->  | P37: 36 | R37: =IF(Q37="","",RTD("cqg.rtd", ,"ContractData",Q37, "LongDescription",, "T")) ->  | S37: =IFERROR(RTD("cqg.rtd", ,"ContractData",Q37, "PerCentNetLastTrade",, "T")/100,"") ->  | T37: 0
A38: 37 | B38: =IFERROR(VLOOKUP(A38,Data!$H$2:$J$103,3,FALSE),"") ->  | C38: =IFERROR(RTD("cqg.rtd", ,"ContractData",B38, "PerCentNetLastTrade",, "T")/100,"") ->  | D38: =IFERROR(RANK($C38,$C$2:C$103)+COUNTIF($C$2:C38,C38)-1,"") ->  | F38: 37 | H38: =IF(G38="","",RTD("cqg.rtd", ,"ContractData",G38, "LongDescription",, "T")) ->  | I38: =IFERROR(RTD("cqg.rtd", ,"ContractData",G38, "PerCentNetLastTrade",, "T")/100,"") ->  | J38: 0 | K38: 37 | L38: =IFERROR(VLOOKUP(A38,Data!$I$2:$J$103,2,FALSE),"") ->  | M38: =IFERROR(RTD("cqg.rtd", ,"ContractData",L38, "PerCentNetLastTrade",, "T")/100,"") ->  | N38: =IFERROR(RANK($M38,$M$2:M$104)+COUNTIF($M$2:M38,M38)-1,"") ->  | P38: 37 | R38: =IF(Q38="","",RTD("cqg.rtd", ,"ContractData",Q38, "LongDescription",, "T")) ->  | S38: =IFERROR(RTD("cqg.rtd", ,"ContractData",Q38, "PerCentNetLastTrade",, "T")/100,"") ->  | T38: 0
A39: 38 | B39: =IFERROR(VLOOKUP(A39,Data!$H$2:$J$103,3,FALSE),"") ->  | C39: =IFERROR(RTD("cqg.rtd", ,"ContractData",B39, "PerCentNetLastTrade",, "T")/100,"") ->  | D39: =IFERROR(RANK($C39,$C$2:C$103)+COUNTIF($C$2:C39,C39)-1,"") ->  | F39: 38 | H39: =IF(G39="","",RTD("cqg.rtd", ,"ContractData",G39, "LongDescription",, "T")) ->  | I39: =IFERROR(RTD("cqg.rtd", ,"ContractData",G39, "PerCentNetLastTrade",, "T")/100,"") ->  | J39: 0 | K39: 38 | L39: =IFERROR(VLOOKUP(A39,Data!$I$2:$J$103,2,FALSE),"") ->  | M39: =IFERROR(RTD("cqg.rtd", ,"ContractData",L39, "PerCentNetLastTrade",, "T")/100,"") ->  | N39: =IFERROR(RANK($M39,$M$2:M$104)+COUNTIF($M$2:M39,M39)-1,"") ->  | P39: 38 | R39: =IF(Q39="","",RTD("cqg.rtd", ,"ContractData",Q39, "LongDescription",, "T")) ->  | S39: =IFERROR(RTD("cqg.rtd", ,"ContractData",Q39, "PerCentNetLastTrade",, "T")/100,"") ->  | T39: 0
A40: 39 | B40: =IFERROR(VLOOKUP(A40,Data!$H$2:$J$103,3,FALSE),"") ->  | C40: =IFERROR(RTD("cqg.rtd", ,"ContractData",B40, "PerCentNetLastTrade",, "T")/100,"") ->  | D40: =IFERROR(RANK($C40,$C$2:C$103)+COUNTIF($C$2:C40,C40)-1,"") ->  | F40: 39 | H40: =IF(G40="","",RTD("cqg.rtd", ,"ContractData",G40, "LongDescription",, "T")) ->  | I40: =IFERROR(RTD("cqg.rtd", ,"ContractData",G40, "PerCentNetLastTrade",, "T")/100,"") ->  | J40: 0 | K40: 39 | L40: =IFERROR(VLOOKUP(A40,Data!$I$2:$J$103,2,FALSE),"") ->  | M40: =IFERROR(RTD("cqg.rtd", ,"ContractData",L40, "PerCentNetLastTrade",, "T")/100,"") ->  | N40: =IFERROR(RANK($M40,$M$2:M$104)+COUNTIF($M$2:M40,M40)-1,"") ->  | P40: 39 | R40: =IF(Q40="","",RTD("cqg.rtd", ,"ContractData",Q40, "LongDescription",, "T")) ->  | S40: =IFERROR(RTD("cqg.rtd", ,"ContractData",Q40, "PerCentNetLastTrade",, "T")/100,"") ->  | T40: 0
A41: 40 | B41: =IFERROR(VLOOKUP(A41,Data!$H$2:$J$103,3,FALSE),"") ->  | C41: =IFERROR(RTD("cqg.rtd", ,"ContractData",B41, "PerCentNetLastTrade",, "T")/100,"") ->  | D41: =IFERROR(RANK($C41,$C$2:C$103)+COUNTIF($C$2:C41,C41)-1,"") ->  | F41: 40 | H41: =IF(G41="","",RTD("cqg.rtd", ,"ContractData",G41, "LongDescription",, "T")) ->  | I41: =IFERROR(RTD("cqg.rtd", ,"ContractData",G41, "PerCentNetLastTrade",, "T")/100,"") ->  | J41: 0 | K41: 40 | L41: =IFERROR(VLOOKUP(A41,Data!$I$2:$J$103,2,FALSE),"") ->  | M41: =IFERROR(RTD("cqg.rtd", ,"ContractData",L41, "PerCentNetLastTrade",, "T")/100,"") ->  | N41: =IFERROR(RANK($M41,$M$2:M$104)+COUNTIF($M$2:M41,M41)-1,"") ->  | P41: 40 | R41: =IF(Q41="","",RTD("cqg.rtd", ,"ContractData",Q41, "LongDescription",, "T")) ->  | S41: =IFERROR(RTD("cqg.rtd", ,"ContractData",Q41, "PerCentNetLastTrade",, "T")/100,"") ->  | T41: 0
A42: 41 | B42: =IFERROR(VLOOKUP(A42,Data!$H$2:$J$103,3,FALSE),"") ->  | C42: =IFERROR(RTD("cqg.rtd", ,"ContractData",B42, "PerCentNetLastTrade",, "T")/100,"") ->  | D42: =IFERROR(RANK($C42,$C$2:C$103)+COUNTIF($C$2:C42,C42)-1,"") ->  | F42: 41 | H42: =IF(G42="","",RTD("cqg.rtd", ,"ContractData",G42, "LongDescription",, "T")) ->  | I42: =IFERROR(RTD("cqg.rtd", ,"ContractData",G42, "PerCentNetLastTrade",, "T")/100,"") ->  | J42: 0 | K42: 41 | L42: =IFERROR(VLOOKUP(A42,Data!$I$2:$J$103,2,FALSE),"") ->  | M42: =IFERROR(RTD("cqg.rtd", ,"ContractData",L42, "PerCentNetLastTrade",, "T")/100,"") ->  | N42: =IFERROR(RANK($M42,$M$2:M$104)+COUNTIF($M$2:M42,M42)-1,"") ->  | P42: 41 | R42: =IF(Q42="","",RTD("cqg.rtd", ,"ContractData",Q42, "LongDescription",, "T")) ->  | S42: =IFERROR(RTD("cqg.rtd", ,"ContractData",Q42, "PerCentNetLastTrade",, "T")/100,"") ->  | T42: 0
A43: 42 | B43: =IFERROR(VLOOKUP(A43,Data!$H$2:$J$103,3,FALSE),"") ->  | C43: =IFERROR(RTD("cqg.rtd", ,"ContractData",B43, "PerCentNetLastTrade",, "T")/100,"") ->  | D43: =IFERROR(RANK($C43,$C$2:C$103)+COUNTIF($C$2:C43,C43)-1,"") ->  | F43: 42 | H43: =IF(G43="","",RTD("cqg.rtd", ,"ContractData",G43, "LongDescription",, "T")) ->  | I43: =IFERROR(RTD("cqg.rtd", ,"ContractData",G43, "PerCentNetLastTrade",, "T")/100,"") ->  | J43: 0 | K43: 42 | L43: =IFERROR(VLOOKUP(A43,Data!$I$2:$J$103,2,FALSE),"") ->  | M43: =IFERROR(RTD("cqg.rtd", ,"ContractData",L43, "PerCentNetLastTrade",, "T")/100,"") ->  | N43: =IFERROR(RANK($M43,$M$2:M$104)+COUNTIF($M$2:M43,M43)-1,"") ->  | P43: 42 | R43: =IF(Q43="","",RTD("cqg.rtd", ,"ContractData",Q43, "LongDescription",, "T")) ->  | S43: =IFERROR(RTD("cqg.rtd", ,"ContractData",Q43, "PerCentNetLastTrade",, "T")/100,"") ->  | T43: 0
A44: 43 | B44: =IFERROR(VLOOKUP(A44,Data!$H$2:$J$103,3,FALSE),"") ->  | C44: =IFERROR(RTD("cqg.rtd", ,"ContractData",B44, "PerCentNetLastTrade",, "T")/100,"") ->  | D44: =IFERROR(RANK($C44,$C$2:C$103)+COUNTIF($C$2:C44,C44)-1,"") ->  | F44: 43 | H44: =IF(G44="","",RTD("cqg.rtd", ,"ContractData",G44, "LongDescription",, "T")) ->  | I44: =IFERROR(RTD("cqg.rtd", ,"ContractData",G44, "PerCentNetLastTrade",, "T")/100,"") ->  | J44: 0 | K44: 43 | L44: =IFERROR(VLOOKUP(A44,Data!$I$2:$J$103,2,FALSE),"") ->  | M44: =IFERROR(RTD("cqg.rtd", ,"ContractData",L44, "PerCentNetLastTrade",, "T")/100,"") ->  | N44: =IFERROR(RANK($M44,$M$2:M$104)+COUNTIF($M$2:M44,M44)-1,"") ->  | P44: 43 | R44: =IF(Q44="","",RTD("cqg.rtd", ,"ContractData",Q44, "LongDescription",, "T")) ->  | S44: =IFERROR(RTD("cqg.rtd", ,"ContractData",Q44, "PerCentNetLastTrade",, "T")/100,"") ->  | T44: 0
A45: 44 | B45: =IFERROR(VLOOKUP(A45,Data!$H$2:$J$103,3,FALSE),"") ->  | C45: =IFERROR(RTD("cqg.rtd", ,"ContractData",B45, "PerCentNetLastTrade",, "T")/100,"") ->  | D45: =IFERROR(RANK($C45,$C$2:C$103)+COUNTIF($C$2:C45,C45)-1,"") ->  | F45: 44 | H45: =IF(G45="","",RTD("cqg.rtd", ,"ContractData",G45, "LongDescription",, "T")) ->  | I45: =IFERROR(RTD("cqg.rtd", ,"ContractData",G45, "PerCentNetLastTrade",, "T")/100,"") ->  | J45: 0 | K45: 44 | L45: =IFERROR(VLOOKUP(A45,Data!$I$2:$J$103,2,FALSE),"") ->  | M45: =IFERROR(RTD("cqg.rtd", ,"ContractData",L45, "PerCentNetLastTrade",, "T")/100,"") ->  | N45: =IFERROR(RANK($M45,$M$2:M$104)+COUNTIF($M$2:M45,M45)-1,"") ->  | P45: 44 | R45: =IF(Q45="","",RTD("cqg.rtd", ,"ContractData",Q45, "LongDescription",, "T")) ->  | S45: =IFERROR(RTD("cqg.rtd", ,"ContractData",Q45, "PerCentNetLastTrade",, "T")/100,"") ->  | T45: 0
A46: 45 | B46: =IFERROR(VLOOKUP(A46,Data!$H$2:$J$103,3,FALSE),"") ->  | C46: =IFERROR(RTD("cqg.rtd", ,"ContractData",B46, "PerCentNetLastTrade",, "T")/100,"") ->  | D46: =IFERROR(RANK($C46,$C$2:C$103)+COUNTIF($C$2:C46,C46)-1,"") ->  | F46: 45 | H46: =IF(G46="","",RTD("cqg.rtd", ,"ContractData",G46, "LongDescription",, "T")) ->  | I46: =IFERROR(RTD("cqg.rtd", ,"ContractData",G46, "PerCentNetLastTrade",, "T")/100,"") ->  | J46: 0 | K46: 45 | L46: =IFERROR(VLOOKUP(A46,Data!$I$2:$J$103,2,FALSE),"") ->  | M46: =IFERROR(RTD("cqg.rtd", ,"ContractData",L46, "PerCentNetLastTrade",, "T")/100,"") ->  | N46: =IFERROR(RANK($M46,$M$2:M$104)+COUNTIF($M$2:M46,M46)-1,"") ->  | P46: 45 | R46: =IF(Q46="","",RTD("cqg.rtd", ,"ContractData",Q46, "LongDescription",, "T")) ->  | S46: =IFERROR(RTD("cqg.rtd", ,"ContractData",Q46, "PerCentNetLastTrade",, "T")/100,"") ->  | T46: 0
A47: 46 | B47: =IFERROR(VLOOKUP(A47,Data!$H$2:$J$103,3,FALSE),"") ->  | C47: =IFERROR(RTD("cqg.rtd", ,"ContractData",B47, "PerCentNetLastTrade",, "T")/100,"") ->  | D47: =IFERROR(RANK($C47,$C$2:C$103)+COUNTIF($C$2:C47,C47)-1,"") ->  | F47: 46 | H47: =IF(G47="","",RTD("cqg.rtd", ,"ContractData",G47, "LongDescription",, "T")) ->  | I47: =IFERROR(RTD("cqg.rtd", ,"ContractData",G47, "PerCentNetLastTrade",, "T")/100,"") ->  | J47: 0 | K47: 46 | L47: =IFERROR(VLOOKUP(A47,Data!$I$2:$J$103,2,FALSE),"") ->  | M47: =IFERROR(RTD("cqg.rtd", ,"ContractData",L47, "PerCentNetLastTrade",, "T")/100,"") ->  | N47: =IFERROR(RANK($M47,$M$2:M$104)+COUNTIF($M$2:M47,M47)-1,"") ->  | P47: 46 | R47: =IF(Q47="","",RTD("cqg.rtd", ,"ContractData",Q47, "LongDescription",, "T")) ->  | S47: =IFERROR(RTD("cqg.rtd", ,"ContractData",Q47, "PerCentNetLastTrade",, "T")/100,"") ->  | T47: 0
A48: 47 | B48: =IFERROR(VLOOKUP(A48,Data!$H$2:$J$103,3,FALSE),"") ->  | C48: =IFERROR(RTD("cqg.rtd", ,"ContractData",B48, "PerCentNetLastTrade",, "T")/100,"") ->  | D48: =IFERROR(RANK($C48,$C$2:C$103)+COUNTIF($C$2:C48,C48)-1,"") ->  | F48: 47 | H48: =IF(G48="","",RTD("cqg.rtd", ,"ContractData",G48, "LongDescription",, "T")) ->  | I48: =IFERROR(RTD("cqg.rtd", ,"ContractData",G48, "PerCentNetLastTrade",, "T")/100,"") ->  | J48: 0 | K48: 47 | L48: =IFERROR(VLOOKUP(A48,Data!$I$2:$J$103,2,FALSE),"") ->  | M48: =IFERROR(RTD("cqg.rtd", ,"ContractData",L48, "PerCentNetLastTrade",, "T")/100,"") ->  | N48: =IFERROR(RANK($M48,$M$2:M$104)+COUNTIF($M$2:M48,M48)-1,"") ->  | P48: 47 | R48: =IF(Q48="","",RTD("cqg.rtd", ,"ContractData",Q48, "LongDescription",, "T")) ->  | S48: =IFERROR(RTD("cqg.rtd", ,"ContractData",Q48, "PerCentNetLastTrade",, "T")/100,"") ->  | T48: 0
A49: 48 | B49: =IFERROR(VLOOKUP(A49,Data!$H$2:$J$103,3,FALSE),"") ->  | C49: =IFERROR(RTD("cqg.rtd", ,"ContractData",B49, "PerCentNetLastTrade",, "T")/100,"") ->  | D49: =IFERROR(RANK($C49,$C$2:C$103)+COUNTIF($C$2:C49,C49)-1,"") ->  | F49: 48 | H49: =IF(G49="","",RTD("cqg.rtd", ,"ContractData",G49, "LongDescription",, "T")) ->  | I49: =IFERROR(RTD("cqg.rtd", ,"ContractData",G49, "PerCentNetLastTrade",, "T")/100,"") ->  | J49: 0 | K49: 48 | L49: =IFERROR(VLOOKUP(A49,Data!$I$2:$J$103,2,FALSE),"") ->  | M49: =IFERROR(RTD("cqg.rtd", ,"ContractData",L49, "PerCentNetLastTrade",, "T")/100,"") ->  | N49: =IFERROR(RANK($M49,$M$2:M$104)+COUNTIF($M$2:M49,M49)-1,"") ->  | P49: 48 | R49: =IF(Q49="","",RTD("cqg.rtd", ,"ContractData",Q49, "LongDescription",, "T")) ->  | S49: =IFERROR(RTD("cqg.rtd", ,"ContractData",Q49, "PerCentNetLastTrade",, "T")/100,"") ->  | T49: 0
A50: 49 | B50: =IFERROR(VLOOKUP(A50,Data!$H$2:$J$103,3,FALSE),"") ->  | C50: =IFERROR(RTD("cqg.rtd", ,"ContractData",B50, "PerCentNetLastTrade",, "T")/100,"") ->  | D50: =IFERROR(RANK($C50,$C$2:C$103)+COUNTIF($C$2:C50,C50)-1,"") ->  | F50: 49 | H50: =IF(G50="","",RTD("cqg.rtd", ,"ContractData",G50, "LongDescription",, "T")) ->  | I50: =IFERROR(RTD("cqg.rtd", ,"ContractData",G50, "PerCentNetLastTrade",, "T")/100,"") ->  | J50: 0 | K50: 49 | L50: =IFERROR(VLOOKUP(A50,Data!$I$2:$J$103,2,FALSE),"") ->  | M50: =IFERROR(RTD("cqg.rtd", ,"ContractData",L50, "PerCentNetLastTrade",, "T")/100,"") ->  | N50: =IFERROR(RANK($M50,$M$2:M$104)+COUNTIF($M$2:M50,M50)-1,"") ->  | P50: 49 | R50: =IF(Q50="","",RTD("cqg.rtd", ,"ContractData",Q50, "LongDescription",, "T")) ->  | S50: =IFERROR(RTD("cqg.rtd", ,"ContractData",Q50, "PerCentNetLastTrade",, "T")/100,"") ->  | T50: 0
A51: 50 | B51: =IFERROR(VLOOKUP(A51,Data!$H$2:$J$103,3,FALSE),"") ->  | C51: =IFERROR(RTD("cqg.rtd", ,"ContractData",B51, "PerCentNetLastTrade",, "T")/100,"") ->  | D51: =IFERROR(RANK($C51,$C$2:C$103)+COUNTIF($C$2:C51,C51)-1,"") ->  | F51: 50 | H51: =IF(G51="","",RTD("cqg.rtd", ,"ContractData",G51, "LongDescription",, "T")) ->  | I51: =IFERROR(RTD("cqg.rtd", ,"ContractData",G51, "PerCentNetLastTrade",, "T")/100,"") ->  | J51: 0 | K51: 50 | L51: =IFERROR(VLOOKUP(A51,Data!$I$2:$J$103,2,FALSE),"") ->  | M51: =IFERROR(RTD("cqg.rtd", ,"ContractData",L51, "PerCentNetLastTrade",, "T")/100,"") ->  | N51: =IFERROR(RANK($M51,$M$2:M$104)+COUNTIF($M$2:M51,M51)-1,"") ->  | P51: 50 | R51: =IF(Q51="","",RTD("cqg.rtd", ,"ContractData",Q51, "LongDescription",, "T")) ->  | S51: =IFERROR(RTD("cqg.rtd", ,"ContractData",Q51, "PerCentNetLastTrade",, "T")/100,"") ->  | T51: 0
A52: 51 | B52: =IFERROR(VLOOKUP(A52,Data!$H$2:$J$103,3,FALSE),"") ->  | C52: =IFERROR(RTD("cqg.rtd", ,"ContractData",B52, "PerCentNetLastTrade",, "T")/100,"") ->  | D52: =IFERROR(RANK($C52,$C$2:C$103)+COUNTIF($C$2:C52,C52)-1,"") ->  | F52: 51 | H52: =IF(G52="","",RTD("cqg.rtd", ,"ContractData",G52, "LongDescription",, "T")) ->  | I52: =IFERROR(RTD("cqg.rtd", ,"ContractData",G52, "PerCentNetLastTrade",, "T")/100,"") ->  | J52: 0 | K52: 51 | L52: =IFERROR(VLOOKUP(A52,Data!$I$2:$J$103,2,FALSE),"") ->  | M52: =IFERROR(RTD("cqg.rtd", ,"ContractData",L52, "PerCentNetLastTrade",, "T")/100,"") ->  | N52: =IFERROR(RANK($M52,$M$2:M$104)+COUNTIF($M$2:M52,M52)-1,"") ->  | P52: 51 | R52: =IF(Q52="","",RTD("cqg.rtd", ,"ContractData",Q52, "LongDescription",, "T")) ->  | S52: =IFERROR(RTD("cqg.rtd", ,"ContractData",Q52, "PerCentNetLastTrade",, "T")/100,"") ->  | T52: 0
A53: 52 | B53: =IFERROR(VLOOKUP(A53,Data!$H$2:$J$103,3,FALSE),"") ->  | C53: =IFERROR(RTD("cqg.rtd", ,"ContractData",B53, "PerCentNetLastTrade",, "T")/100,"") ->  | D53: =IFERROR(RANK($C53,$C$2:C$103)+COUNTIF($C$2:C53,C53)-1,"") ->  | F53: 52 | H53: =IF(G53="","",RTD("cqg.rtd", ,"ContractData",G53, "LongDescription",, "T")) ->  | I53: =IFERROR(RTD("cqg.rtd", ,"ContractData",G53, "PerCentNetLastTrade",, "T")/100,"") ->  | J53: 0 | K53: 52 | L53: =IFERROR(VLOOKUP(A53,Data!$I$2:$J$103,2,FALSE),"") ->  | M53: =IFERROR(RTD("cqg.rtd", ,"ContractData",L53, "PerCentNetLastTrade",, "T")/100,"") ->  | N53: =IFERROR(RANK($M53,$M$2:M$104)+COUNTIF($M$2:M53,M53)-1,"") ->  | P53: 52 | R53: =IF(Q53="","",RTD("cqg.rtd", ,"ContractData",Q53, "LongDescription",, "T")) ->  | S53: =IFERROR(RTD("cqg.rtd", ,"ContractData",Q53, "PerCentNetLastTrade",, "T")/100,"") ->  | T53: 0
A54: 53 | B54: =IFERROR(VLOOKUP(A54,Data!$H$2:$J$103,3,FALSE),"") ->  | C54: =IFERROR(RTD("cqg.rtd", ,"ContractData",B54, "PerCentNetLastTrade",, "T")/100,"") ->  | D54: =IFERROR(RANK($C54,$C$2:C$103)+COUNTIF($C$2:C54,C54)-1,"") ->  | F54: 53 | H54: =IF(G54="","",RTD("cqg.rtd", ,"ContractData",G54, "LongDescription",, "T")) ->  | I54: =IFERROR(RTD("cqg.rtd", ,"ContractData",G54, "PerCentNetLastTrade",, "T")/100,"") ->  | J54: 0 | K54: 53 | L54: =IFERROR(VLOOKUP(A54,Data!$I$2:$J$103,2,FALSE),"") ->  | M54: =IFERROR(RTD("cqg.rtd", ,"ContractData",L54, "PerCentNetLastTrade",, "T")/100,"") ->  | N54: =IFERROR(RANK($M54,$M$2:M$104)+COUNTIF($M$2:M54,M54)-1,"") ->  | P54: 53 | R54: =IF(Q54="","",RTD("cqg.rtd", ,"ContractData",Q54, "LongDescription",, "T")) ->  | S54: =IFERROR(RTD("cqg.rtd", ,"ContractData",Q54, "PerCentNetLastTrade",, "T")/100,"") ->  | T54: 0
A55: 54 | B55: =IFERROR(VLOOKUP(A55,Data!$H$2:$J$103,3,FALSE),"") ->  | C55: =IFERROR(RTD("cqg.rtd", ,"ContractData",B55, "PerCentNetLastTrade",, "T")/100,"") ->  | D55: =IFERROR(RANK($C55,$C$2:C$103)+COUNTIF($C$2:C55,C55)-1,"") ->  | F55: 54 | H55: =IF(G55="","",RTD("cqg.rtd", ,"ContractData",G55, "LongDescription",, "T")) ->  | I55: =IFERROR(RTD("cqg.rtd", ,"ContractData",G55, "PerCentNetLastTrade",, "T")/100,"") ->  | J55: 0 | K55: 54 | L55: =IFERROR(VLOOKUP(A55,Data!$I$2:$J$103,2,FALSE),"") ->  | M55: =IFERROR(RTD("cqg.rtd", ,"ContractData",L55, "PerCentNetLastTrade",, "T")/100,"") ->  | N55: =IFERROR(RANK($M55,$M$2:M$104)+COUNTIF($M$2:M55,M55)-1,"") ->  | P55: 54 | R55: =IF(Q55="","",RTD("cqg.rtd", ,"ContractData",Q55, "LongDescription",, "T")) ->  | S55: =IFERROR(RTD("cqg.rtd", ,"ContractData",Q55, "PerCentNetLastTrade",, "T")/100,"") ->  | T55: 0
A56: 55 | B56: =IFERROR(VLOOKUP(A56,Data!$H$2:$J$103,3,FALSE),"") ->  | C56: =IFERROR(RTD("cqg.rtd", ,"ContractData",B56, "PerCentNetLastTrade",, "T")/100,"") ->  | D56: =IFERROR(RANK($C56,$C$2:C$103)+COUNTIF($C$2:C56,C56)-1,"") ->  | F56: 55 | H56: =IF(G56="","",RTD("cqg.rtd", ,"ContractData",G56, "LongDescription",, "T")) ->  | I56: =IFERROR(RTD("cqg.rtd", ,"ContractData",G56, "PerCentNetLastTrade",, "T")/100,"") ->  | J56: 0 | K56: 55 | L56: =IFERROR(VLOOKUP(A56,Data!$I$2:$J$103,2,FALSE),"") ->  | M56: =IFERROR(RTD("cqg.rtd", ,"ContractData",L56, "PerCentNetLastTrade",, "T")/100,"") ->  | N56: =IFERROR(RANK($M56,$M$2:M$104)+COUNTIF($M$2:M56,M56)-1,"") ->  | P56: 55 | R56: =IF(Q56="","",RTD("cqg.rtd", ,"ContractData",Q56, "LongDescription",, "T")) ->  | S56: =IFERROR(RTD("cqg.rtd", ,"ContractData",Q56, "PerCentNetLastTrade",, "T")/100,"") ->  | T56: 0
A57: 56 | B57: =IFERROR(VLOOKUP(A57,Data!$H$2:$J$103,3,FALSE),"") ->  | C57: =IFERROR(RTD("cqg.rtd", ,"ContractData",B57, "PerCentNetLastTrade",, "T")/100,"") ->  | D57: =IFERROR(RANK($C57,$C$2:C$103)+COUNTIF($C$2:C57,C57)-1,"") ->  | F57: 56 | H57: =IF(G57="","",RTD("cqg.rtd", ,"ContractData",G57, "LongDescription",, "T")) ->  | I57: =IFERROR(RTD("cqg.rtd", ,"ContractData",G57, "PerCentNetLastTrade",, "T")/100,"") ->  | J57: 0 | K57: 56 | L57: =IFERROR(VLOOKUP(A57,Data!$I$2:$J$103,2,FALSE),"") ->  | M57: =IFERROR(RTD("cqg.rtd", ,"ContractData",L57, "PerCentNetLastTrade",, "T")/100,"") ->  | N57: =IFERROR(RANK($M57,$M$2:M$104)+COUNTIF($M$2:M57,M57)-1,"") ->  | P57: 56 | R57: =IF(Q57="","",RTD("cqg.rtd", ,"ContractData",Q57, "LongDescription",, "T")) ->  | S57: =IFERROR(RTD("cqg.rtd", ,"ContractData",Q57, "PerCentNetLastTrade",, "T")/100,"") ->  | T57: 0
A58: 57 | B58: =IFERROR(VLOOKUP(A58,Data!$H$2:$J$103,3,FALSE),"") ->  | C58: =IFERROR(RTD("cqg.rtd", ,"ContractData",B58, "PerCentNetLastTrade",, "T")/100,"") ->  | D58: =IFERROR(RANK($C58,$C$2:C$103)+COUNTIF($C$2:C58,C58)-1,"") ->  | F58: 57 | H58: =IF(G58="","",RTD("cqg.rtd", ,"ContractData",G58, "LongDescription",, "T")) ->  | I58: =IFERROR(RTD("cqg.rtd", ,"ContractData",G58, "PerCentNetLastTrade",, "T")/100,"") ->  | J58: 0 | K58: 57 | L58: =IFERROR(VLOOKUP(A58,Data!$I$2:$J$103,2,FALSE),"") ->  | M58: =IFERROR(RTD("cqg.rtd", ,"ContractData",L58, "PerCentNetLastTrade",, "T")/100,"") ->  | N58: =IFERROR(RANK($M58,$M$2:M$104)+COUNTIF($M$2:M58,M58)-1,"") ->  | P58: 57 | R58: =IF(Q58="","",RTD("cqg.rtd", ,"ContractData",Q58, "LongDescription",, "T")) ->  | S58: =IFERROR(RTD("cqg.rtd", ,"ContractData",Q58, "PerCentNetLastTrade",, "T")/100,"") ->  | T58: 0
A59: 58 | B59: =IFERROR(VLOOKUP(A59,Data!$H$2:$J$103,3,FALSE),"") ->  | C59: =IFERROR(RTD("cqg.rtd", ,"ContractData",B59, "PerCentNetLastTrade",, "T")/100,"") ->  | D59: =IFERROR(RANK($C59,$C$2:C$103)+COUNTIF($C$2:C59,C59)-1,"") ->  | F59: 58 | H59: =IF(G59="","",RTD("cqg.rtd", ,"ContractData",G59, "LongDescription",, "T")) ->  | I59: =IFERROR(RTD("cqg.rtd", ,"ContractData",G59, "PerCentNetLastTrade",, "T")/100,"") ->  | J59: 0 | K59: 58 | L59: =IFERROR(VLOOKUP(A59,Data!$I$2:$J$103,2,FALSE),"") ->  | M59: =IFERROR(RTD("cqg.rtd", ,"ContractData",L59, "PerCentNetLastTrade",, "T")/100,"") ->  | N59: =IFERROR(RANK($M59,$M$2:M$104)+COUNTIF($M$2:M59,M59)-1,"") ->  | P59: 58 | R59: =IF(Q59="","",RTD("cqg.rtd", ,"ContractData",Q59, "LongDescription",, "T")) ->  | S59: =IFERROR(RTD("cqg.rtd", ,"ContractData",Q59, "PerCentNetLastTrade",, "T")/100,"") ->  | T59: 0
A60: 59 | B60: =IFERROR(VLOOKUP(A60,Data!$H$2:$J$103,3,FALSE),"") ->  | C60: =IFERROR(RTD("cqg.rtd", ,"ContractData",B60, "PerCentNetLastTrade",, "T")/100,"") ->  | D60: =IFERROR(RANK($C60,$C$2:C$103)+COUNTIF($C$2:C60,C60)-1,"") ->  | F60: 59 | H60: =IF(G60="","",RTD("cqg.rtd", ,"ContractData",G60, "LongDescription",, "T")) ->  | I60: =IFERROR(RTD("cqg.rtd", ,"ContractData",G60, "PerCentNetLastTrade",, "T")/100,"") ->  | J60: 0 | K60: 59 | L60: =IFERROR(VLOOKUP(A60,Data!$I$2:$J$103,2,FALSE),"") ->  | M60: =IFERROR(RTD("cqg.rtd", ,"ContractData",L60, "PerCentNetLastTrade",, "T")/100,"") ->  | N60: =IFERROR(RANK($M60,$M$2:M$104)+COUNTIF($M$2:M60,M60)-1,"") ->  | P60: 59 | R60: =IF(Q60="","",RTD("cqg.rtd", ,"ContractData",Q60, "LongDescription",, "T")) ->  | S60: =IFERROR(RTD("cqg.rtd", ,"ContractData",Q60, "PerCentNetLastTrade",, "T")/100,"") ->  | T60: 0
A61: 60 | B61: =IFERROR(VLOOKUP(A61,Data!$H$2:$J$103,3,FALSE),"") ->  | C61: =IFERROR(RTD("cqg.rtd", ,"ContractData",B61, "PerCentNetLastTrade",, "T")/100,"") ->  | D61: =IFERROR(RANK($C61,$C$2:C$103)+COUNTIF($C$2:C61,C61)-1,"") ->  | F61: 60 | H61: =IF(G61="","",RTD("cqg.rtd", ,"ContractData",G61, "LongDescription",, "T")) ->  | I61: =IFERROR(RTD("cqg.rtd", ,"ContractData",G61, "PerCentNetLastTrade",, "T")/100,"") ->  | J61: 0 | K61: 60 | L61: =IFERROR(VLOOKUP(A61,Data!$I$2:$J$103,2,FALSE),"") ->  | M61: =IFERROR(RTD("cqg.rtd", ,"ContractData",L61, "PerCentNetLastTrade",, "T")/100,"") ->  | N61: =IFERROR(RANK($M61,$M$2:M$104)+COUNTIF($M$2:M61,M61)-1,"") ->  | P61: 60 | R61: =IF(Q61="","",RTD("cqg.rtd", ,"ContractData",Q61, "LongDescription",, "T")) ->  | S61: =IFERROR(RTD("cqg.rtd", ,"ContractData",Q61, "PerCentNetLastTrade",, "T")/100,"") ->  | T61: 0
A62: 61 | B62: =IFERROR(VLOOKUP(A62,Data!$H$2:$J$103,3,FALSE),"") ->  | C62: =IFERROR(RTD("cqg.rtd", ,"ContractData",B62, "PerCentNetLastTrade",, "T")/100,"") ->  | D62: =IFERROR(RANK($C62,$C$2:C$103)+COUNTIF($C$2:C62,C62)-1,"") ->  | F62: 61 | H62: =IF(G62="","",RTD("cqg.rtd", ,"ContractData",G62, "LongDescription",, "T")) ->  | I62: =IFERROR(RTD("cqg.rtd", ,"ContractData",G62, "PerCentNetLastTrade",, "T")/100,"") ->  | J62: 0 | K62: 61 | L62: =IFERROR(VLOOKUP(A62,Data!$I$2:$J$103,2,FALSE),"") ->  | M62: =IFERROR(RTD("cqg.rtd", ,"ContractData",L62, "PerCentNetLastTrade",, "T")/100,"") ->  | N62: =IFERROR(RANK($M62,$M$2:M$104)+COUNTIF($M$2:M62,M62)-1,"") ->  | P62: 61 | R62: =IF(Q62="","",RTD("cqg.rtd", ,"ContractData",Q62, "LongDescription",, "T")) ->  | S62: =IFERROR(RTD("cqg.rtd", ,"ContractData",Q62, "PerCentNetLastTrade",, "T")/100,"") ->  | T62: 0
A63: 62 | B63: =IFERROR(VLOOKUP(A63,Data!$H$2:$J$103,3,FALSE),"") ->  | C63: =IFERROR(RTD("cqg.rtd", ,"ContractData",B63, "PerCentNetLastTrade",, "T")/100,"") ->  | D63: =IFERROR(RANK($C63,$C$2:C$103)+COUNTIF($C$2:C63,C63)-1,"") ->  | F63: 62 | H63: =IF(G63="","",RTD("cqg.rtd", ,"ContractData",G63, "LongDescription",, "T")) ->  | I63: =IFERROR(RTD("cqg.rtd", ,"ContractData",G63, "PerCentNetLastTrade",, "T")/100,"") ->  | J63: 0 | K63: 62 | L63: =IFERROR(VLOOKUP(A63,Data!$I$2:$J$103,2,FALSE),"") ->  | M63: =IFERROR(RTD("cqg.rtd", ,"ContractData",L63, "PerCentNetLastTrade",, "T")/100,"") ->  | N63: =IFERROR(RANK($M63,$M$2:M$104)+COUNTIF($M$2:M63,M63)-1,"") ->  | P63: 62 | R63: =IF(Q63="","",RTD("cqg.rtd", ,"ContractData",Q63, "LongDescription",, "T")) ->  | S63: =IFERROR(RTD("cqg.rtd", ,"ContractData",Q63, "PerCentNetLastTrade",, "T")/100,"") ->  | T63: 0
A64: 63 | B64: =IFERROR(VLOOKUP(A64,Data!$H$2:$J$103,3,FALSE),"") ->  | C64: =IFERROR(RTD("cqg.rtd", ,"ContractData",B64, "PerCentNetLastTrade",, "T")/100,"") ->  | D64: =IFERROR(RANK($C64,$C$2:C$103)+COUNTIF($C$2:C64,C64)-1,"") ->  | F64: 63 | H64: =IF(G64="","",RTD("cqg.rtd", ,"ContractData",G64, "LongDescription",, "T")) ->  | I64: =IFERROR(RTD("cqg.rtd", ,"ContractData",G64, "PerCentNetLastTrade",, "T")/100,"") ->  | J64: 0 | K64: 63 | L64: =IFERROR(VLOOKUP(A64,Data!$I$2:$J$103,2,FALSE),"") ->  | M64: =IFERROR(RTD("cqg.rtd", ,"ContractData",L64, "PerCentNetLastTrade",, "T")/100,"") ->  | N64: =IFERROR(RANK($M64,$M$2:M$104)+COUNTIF($M$2:M64,M64)-1,"") ->  | P64: 63 | R64: =IF(Q64="","",RTD("cqg.rtd", ,"ContractData",Q64, "LongDescription",, "T")) ->  | S64: =IFERROR(RTD("cqg.rtd", ,"ContractData",Q64, "PerCentNetLastTrade",, "T")/100,"") ->  | T64: 0
A65: 64 | B65: =IFERROR(VLOOKUP(A65,Data!$H$2:$J$103,3,FALSE),"") ->  | C65: =IFERROR(RTD("cqg.rtd", ,"ContractData",B65, "PerCentNetLastTrade",, "T")/100,"") ->  | D65: =IFERROR(RANK($C65,$C$2:C$103)+COUNTIF($C$2:C65,C65)-1,"") ->  | F65: 64 | H65: =IF(G65="","",RTD("cqg.rtd", ,"ContractData",G65, "LongDescription",, "T")) ->  | I65: =IFERROR(RTD("cqg.rtd", ,"ContractData",G65, "PerCentNetLastTrade",, "T")/100,"") ->  | J65: 0 | K65: 64 | L65: =IFERROR(VLOOKUP(A65,Data!$I$2:$J$103,2,FALSE),"") ->  | M65: =IFERROR(RTD("cqg.rtd", ,"ContractData",L65, "PerCentNetLastTrade",, "T")/100,"") ->  | N65: =IFERROR(RANK($M65,$M$2:M$104)+COUNTIF($M$2:M65,M65)-1,"") ->  | P65: 64 | R65: =IF(Q65="","",RTD("cqg.rtd", ,"ContractData",Q65, "LongDescription",, "T")) ->  | S65: =IFERROR(RTD("cqg.rtd", ,"ContractData",Q65, "PerCentNetLastTrade",, "T")/100,"") ->  | T65: 0
A66: 65 | B66: =IFERROR(VLOOKUP(A66,Data!$H$2:$J$103,3,FALSE),"") ->  | C66: =IFERROR(RTD("cqg.rtd", ,"ContractData",B66, "PerCentNetLastTrade",, "T")/100,"") ->  | D66: =IFERROR(RANK($C66,$C$2:C$103)+COUNTIF($C$2:C66,C66)-1,"") ->  | F66: 65 | H66: =IF(G66="","",RTD("cqg.rtd", ,"ContractData",G66, "LongDescription",, "T")) ->  | I66: =IFERROR(RTD("cqg.rtd", ,"ContractData",G66, "PerCentNetLastTrade",, "T")/100,"") ->  | J66: 0 | K66: 65 | L66: =IFERROR(VLOOKUP(A66,Data!$I$2:$J$103,2,FALSE),"") ->  | M66: =IFERROR(RTD("cqg.rtd", ,"ContractData",L66, "PerCentNetLastTrade",, "T")/100,"") ->  | N66: =IFERROR(RANK($M66,$M$2:M$104)+COUNTIF($M$2:M66,M66)-1,"") ->  | P66: 65 | R66: =IF(Q66="","",RTD("cqg.rtd", ,"ContractData",Q66, "LongDescription",, "T")) ->  | S66: =IFERROR(RTD("cqg.rtd", ,"ContractData",Q66, "PerCentNetLastTrade",, "T")/100,"") ->  | T66: 0
A67: 66 | B67: =IFERROR(VLOOKUP(A67,Data!$H$2:$J$103,3,FALSE),"") ->  | C67: =IFERROR(RTD("cqg.rtd", ,"ContractData",B67, "PerCentNetLastTrade",, "T")/100,"") ->  | D67: =IFERROR(RANK($C67,$C$2:C$103)+COUNTIF($C$2:C67,C67)-1,"") ->  | E67: =IF(B67="","",B67) ->  | F67: 66 | G67: =IFERROR(VLOOKUP(F67,$D$2:$E$103,2,FALSE),"") ->  | H67: =IF(G67="","",RTD("cqg.rtd", ,"ContractData",G67, "LongDescription",, "T")) ->  | I67: =IFERROR(RTD("cqg.rtd", ,"ContractData",G67, "PerCentNetLastTrade",, "T")/100,"") ->  | J67: =IF(I67<>"",1,0) -> 0 | K67: 66 | L67: =IFERROR(VLOOKUP(A67,Data!$I$2:$J$103,2,FALSE),"") ->  | M67: =IFERROR(RTD("cqg.rtd", ,"ContractData",L67, "PerCentNetLastTrade",, "T")/100,"") ->  | N67: =IFERROR(RANK($M67,$M$2:M$104)+COUNTIF($M$2:M67,M67)-1,"") ->  | O67: =IF(L67="","",L67) ->  | P67: 66 | Q67: =IFERROR(VLOOKUP(P67,$N$2:$O$103,2,FALSE),"") ->  | R67: =IF(Q67="","",RTD("cqg.rtd", ,"ContractData",Q67, "LongDescription",, "T")) ->  | S67: =IFERROR(RTD("cqg.rtd", ,"ContractData",Q67, "PerCentNetLastTrade",, "T")/100,"") ->  | T67: =IF(S67<>"",1,0) -> 0
A68: =A67+1 -> 67 | B68: =IFERROR(VLOOKUP(A68,Data!$H$2:$J$103,3,FALSE),"") ->  | C68: =IFERROR(RTD("cqg.rtd", ,"ContractData",B68, "PerCentNetLastTrade",, "T")/100,"") ->  | D68: =IFERROR(RANK($C68,$C$2:C$103)+COUNTIF($C$2:C68,C68)-1,"") ->  | F68: =F67+1 -> 67 | H68: =IF(G68="","",RTD("cqg.rtd", ,"ContractData",G68, "LongDescription",, "T")) ->  | I68: =IFERROR(RTD("cqg.rtd", ,"ContractData",G68, "PerCentNetLastTrade",, "T")/100,"") ->  | J68: 0 | K68: =K67+1 -> 67 | L68: =IFERROR(VLOOKUP(A68,Data!$I$2:$J$103,2,FALSE),"") ->  | M68: =IFERROR(RTD("cqg.rtd", ,"ContractData",L68, "PerCentNetLastTrade",, "T")/100,"") ->  | N68: =IFERROR(RANK($M68,$M$2:M$104)+COUNTIF($M$2:M68,M68)-1,"") ->  | P68: =P67+1 -> 67 | R68: =IF(Q68="","",RTD("cqg.rtd", ,"ContractData",Q68, "LongDescription",, "T")) ->  | S68: =IFERROR(RTD("cqg.rtd", ,"ContractData",Q68, "PerCentNetLastTrade",, "T")/100,"") ->  | T68: 0
A69: 68 | B69: =IFERROR(VLOOKUP(A69,Data!$H$2:$J$103,3,FALSE),"") ->  | C69: =IFERROR(RTD("cqg.rtd", ,"ContractData",B69, "PerCentNetLastTrade",, "T")/100,"") ->  | D69: =IFERROR(RANK($C69,$C$2:C$103)+COUNTIF($C$2:C69,C69)-1,"") ->  | F69: 68 | H69: =IF(G69="","",RTD("cqg.rtd", ,"ContractData",G69, "LongDescription",, "T")) ->  | I69: =IFERROR(RTD("cqg.rtd", ,"ContractData",G69, "PerCentNetLastTrade",, "T")/100,"") ->  | J69: 0 | K69: 68 | L69: =IFERROR(VLOOKUP(A69,Data!$I$2:$J$103,2,FALSE),"") ->  | M69: =IFERROR(RTD("cqg.rtd", ,"ContractData",L69, "PerCentNetLastTrade",, "T")/100,"") ->  | N69: =IFERROR(RANK($M69,$M$2:M$104)+COUNTIF($M$2:M69,M69)-1,"") ->  | P69: 68 | R69: =IF(Q69="","",RTD("cqg.rtd", ,"ContractData",Q69, "LongDescription",, "T")) ->  | S69: =IFERROR(RTD("cqg.rtd", ,"ContractData",Q69, "PerCentNetLastTrade",, "T")/100,"") ->  | T69: 0
A70: 69 | B70: =IFERROR(VLOOKUP(A70,Data!$H$2:$J$103,3,FALSE),"") ->  | C70: =IFERROR(RTD("cqg.rtd", ,"ContractData",B70, "PerCentNetLastTrade",, "T")/100,"") ->  | D70: =IFERROR(RANK($C70,$C$2:C$103)+COUNTIF($C$2:C70,C70)-1,"") ->  | F70: 69 | H70: =IF(G70="","",RTD("cqg.rtd", ,"ContractData",G70, "LongDescription",, "T")) ->  | I70: =IFERROR(RTD("cqg.rtd", ,"ContractData",G70, "PerCentNetLastTrade",, "T")/100,"") ->  | J70: 0 | K70: 69 | L70: =IFERROR(VLOOKUP(A70,Data!$I$2:$J$103,2,FALSE),"") ->  | M70: =IFERROR(RTD("cqg.rtd", ,"ContractData",L70, "PerCentNetLastTrade",, "T")/100,"") ->  | N70: =IFERROR(RANK($M70,$M$2:M$104)+COUNTIF($M$2:M70,M70)-1,"") ->  | P70: 69 | R70: =IF(Q70="","",RTD("cqg.rtd", ,"ContractData",Q70, "LongDescription",, "T")) ->  | S70: =IFERROR(RTD("cqg.rtd", ,"ContractData",Q70, "PerCentNetLastTrade",, "T")/100,"") ->  | T70: 0
A71: 70 | B71: =IFERROR(VLOOKUP(A71,Data!$H$2:$J$103,3,FALSE),"") ->  | C71: =IFERROR(RTD("cqg.rtd", ,"ContractData",B71, "PerCentNetLastTrade",, "T")/100,"") ->  | D71: =IFERROR(RANK($C71,$C$2:C$103)+COUNTIF($C$2:C71,C71)-1,"") ->  | F71: 70 | H71: =IF(G71="","",RTD("cqg.rtd", ,"ContractData",G71, "LongDescription",, "T")) ->  | I71: =IFERROR(RTD("cqg.rtd", ,"ContractData",G71, "PerCentNetLastTrade",, "T")/100,"") ->  | J71: 0 | K71: 70 | L71: =IFERROR(VLOOKUP(A71,Data!$I$2:$J$103,2,FALSE),"") ->  | M71: =IFERROR(RTD("cqg.rtd", ,"ContractData",L71, "PerCentNetLastTrade",, "T")/100,"") ->  | N71: =IFERROR(RANK($M71,$M$2:M$104)+COUNTIF($M$2:M71,M71)-1,"") ->  | P71: 70 | R71: =IF(Q71="","",RTD("cqg.rtd", ,"ContractData",Q71, "LongDescription",, "T")) ->  | S71: =IFERROR(RTD("cqg.rtd", ,"ContractData",Q71, "PerCentNetLastTrade",, "T")/100,"") ->  | T71: 0
A72: 71 | B72: =IFERROR(VLOOKUP(A72,Data!$H$2:$J$103,3,FALSE),"") ->  | C72: =IFERROR(RTD("cqg.rtd", ,"ContractData",B72, "PerCentNetLastTrade",, "T")/100,"") ->  | D72: =IFERROR(RANK($C72,$C$2:C$103)+COUNTIF($C$2:C72,C72)-1,"") ->  | F72: 71 | H72: =IF(G72="","",RTD("cqg.rtd", ,"ContractData",G72, "LongDescription",, "T")) ->  | I72: =IFERROR(RTD("cqg.rtd", ,"ContractData",G72, "PerCentNetLastTrade",, "T")/100,"") ->  | J72: 0 | K72: 71 | L72: =IFERROR(VLOOKUP(A72,Data!$I$2:$J$103,2,FALSE),"") ->  | M72: =IFERROR(RTD("cqg.rtd", ,"ContractData",L72, "PerCentNetLastTrade",, "T")/100,"") ->  | N72: =IFERROR(RANK($M72,$M$2:M$104)+COUNTIF($M$2:M72,M72)-1,"") ->  | P72: 71 | R72: =IF(Q72="","",RTD("cqg.rtd", ,"ContractData",Q72, "LongDescription",, "T")) ->  | S72: =IFERROR(RTD("cqg.rtd", ,"ContractData",Q72, "PerCentNetLastTrade",, "T")/100,"") ->  | T72: 0
A73: 72 | B73: =IFERROR(VLOOKUP(A73,Data!$H$2:$J$103,3,FALSE),"") ->  | C73: =IFERROR(RTD("cqg.rtd", ,"ContractData",B73, "PerCentNetLastTrade",, "T")/100,"") ->  | D73: =IFERROR(RANK($C73,$C$2:C$103)+COUNTIF($C$2:C73,C73)-1,"") ->  | F73: 72 | H73: =IF(G73="","",RTD("cqg.rtd", ,"ContractData",G73, "LongDescription",, "T")) ->  | I73: =IFERROR(RTD("cqg.rtd", ,"ContractData",G73, "PerCentNetLastTrade",, "T")/100,"") ->  | J73: 0 | K73: 72 | L73: =IFERROR(VLOOKUP(A73,Data!$I$2:$J$103,2,FALSE),"") ->  | M73: =IFERROR(RTD("cqg.rtd", ,"ContractData",L73, "PerCentNetLastTrade",, "T")/100,"") ->  | N73: =IFERROR(RANK($M73,$M$2:M$104)+COUNTIF($M$2:M73,M73)-1,"") ->  | P73: 72 | R73: =IF(Q73="","",RTD("cqg.rtd", ,"ContractData",Q73, "LongDescription",, "T")) ->  | S73: =IFERROR(RTD("cqg.rtd", ,"ContractData",Q73, "PerCentNetLastTrade",, "T")/100,"") ->  | T73: 0
A74: 73 | B74: =IFERROR(VLOOKUP(A74,Data!$H$2:$J$103,3,FALSE),"") ->  | C74: =IFERROR(RTD("cqg.rtd", ,"ContractData",B74, "PerCentNetLastTrade",, "T")/100,"") ->  | D74: =IFERROR(RANK($C74,$C$2:C$103)+COUNTIF($C$2:C74,C74)-1,"") ->  | F74: 73 | H74: =IF(G74="","",RTD("cqg.rtd", ,"ContractData",G74, "LongDescription",, "T")) ->  | I74: =IFERROR(RTD("cqg.rtd", ,"ContractData",G74, "PerCentNetLastTrade",, "T")/100,"") ->  | J74: 0 | K74: 73 | L74: =IFERROR(VLOOKUP(A74,Data!$I$2:$J$103,2,FALSE),"") ->  | M74: =IFERROR(RTD("cqg.rtd", ,"ContractData",L74, "PerCentNetLastTrade",, "T")/100,"") ->  | N74: =IFERROR(RANK($M74,$M$2:M$104)+COUNTIF($M$2:M74,M74)-1,"") ->  | P74: 73 | R74: =IF(Q74="","",RTD("cqg.rtd", ,"ContractData",Q74, "LongDescription",, "T")) ->  | S74: =IFERROR(RTD("cqg.rtd", ,"ContractData",Q74, "PerCentNetLastTrade",, "T")/100,"") ->  | T74: 0
A75: 74 | B75: =IFERROR(VLOOKUP(A75,Data!$H$2:$J$103,3,FALSE),"") ->  | C75: =IFERROR(RTD("cqg.rtd", ,"ContractData",B75, "PerCentNetLastTrade",, "T")/100,"") ->  | D75: =IFERROR(RANK($C75,$C$2:C$103)+COUNTIF($C$2:C75,C75)-1,"") ->  | F75: 74 | H75: =IF(G75="","",RTD("cqg.rtd", ,"ContractData",G75, "LongDescription",, "T")) ->  | I75: =IFERROR(RTD("cqg.rtd", ,"ContractData",G75, "PerCentNetLastTrade",, "T")/100,"") ->  | J75: 0 | K75: 74 | L75: =IFERROR(VLOOKUP(A75,Data!$I$2:$J$103,2,FALSE),"") ->  | M75: =IFERROR(RTD("cqg.rtd", ,"ContractData",L75, "PerCentNetLastTrade",, "T")/100,"") ->  | N75: =IFERROR(RANK($M75,$M$2:M$104)+COUNTIF($M$2:M75,M75)-1,"") ->  | P75: 74 | R75: =IF(Q75="","",RTD("cqg.rtd", ,"ContractData",Q75, "LongDescription",, "T")) ->  | S75: =IFERROR(RTD("cqg.rtd", ,"ContractData",Q75, "PerCentNetLastTrade",, "T")/100,"") ->  | T75: 0
A76: 75 | B76: =IFERROR(VLOOKUP(A76,Data!$H$2:$J$103,3,FALSE),"") ->  | C76: =IFERROR(RTD("cqg.rtd", ,"ContractData",B76, "PerCentNetLastTrade",, "T")/100,"") ->  | D76: =IFERROR(RANK($C76,$C$2:C$103)+COUNTIF($C$2:C76,C76)-1,"") ->  | F76: 75 | H76: =IF(G76="","",RTD("cqg.rtd", ,"ContractData",G76, "LongDescription",, "T")) ->  | I76: =IFERROR(RTD("cqg.rtd", ,"ContractData",G76, "PerCentNetLastTrade",, "T")/100,"") ->  | J76: 0 | K76: 75 | L76: =IFERROR(VLOOKUP(A76,Data!$I$2:$J$103,2,FALSE),"") ->  | M76: =IFERROR(RTD("cqg.rtd", ,"ContractData",L76, "PerCentNetLastTrade",, "T")/100,"") ->  | N76: =IFERROR(RANK($M76,$M$2:M$104)+COUNTIF($M$2:M76,M76)-1,"") ->  | P76: 75 | R76: =IF(Q76="","",RTD("cqg.rtd", ,"ContractData",Q76, "LongDescription",, "T")) ->  | S76: =IFERROR(RTD("cqg.rtd", ,"ContractData",Q76, "PerCentNetLastTrade",, "T")/100,"") ->  | T76: 0
A77: 76 | B77: =IFERROR(VLOOKUP(A77,Data!$H$2:$J$103,3,FALSE),"") ->  | C77: =IFERROR(RTD("cqg.rtd", ,"ContractData",B77, "PerCentNetLastTrade",, "T")/100,"") ->  | D77: =IFERROR(RANK($C77,$C$2:C$103)+COUNTIF($C$2:C77,C77)-1,"") ->  | F77: 76 | H77: =IF(G77="","",RTD("cqg.rtd", ,"ContractData",G77, "LongDescription",, "T")) ->  | I77: =IFERROR(RTD("cqg.rtd", ,"ContractData",G77, "PerCentNetLastTrade",, "T")/100,"") ->  | J77: 0 | K77: 76 | L77: =IFERROR(VLOOKUP(A77,Data!$I$2:$J$103,2,FALSE),"") ->  | M77: =IFERROR(RTD("cqg.rtd", ,"ContractData",L77, "PerCentNetLastTrade",, "T")/100,"") ->  | N77: =IFERROR(RANK($M77,$M$2:M$104)+COUNTIF($M$2:M77,M77)-1,"") ->  | P77: 76 | R77: =IF(Q77="","",RTD("cqg.rtd", ,"ContractData",Q77, "LongDescription",, "T")) ->  | S77: =IFERROR(RTD("cqg.rtd", ,"ContractData",Q77, "PerCentNetLastTrade",, "T")/100,"") ->  | T77: 0
A78: 77 | B78: =IFERROR(VLOOKUP(A78,Data!$H$2:$J$103,3,FALSE),"") ->  | C78: =IFERROR(RTD("cqg.rtd", ,"ContractData",B78, "PerCentNetLastTrade",, "T")/100,"") ->  | D78: =IFERROR(RANK($C78,$C$2:C$103)+COUNTIF($C$2:C78,C78)-1,"") ->  | F78: 77 | H78: =IF(G78="","",RTD("cqg.rtd", ,"ContractData",G78, "LongDescription",, "T")) ->  | I78: =IFERROR(RTD("cqg.rtd", ,"ContractData",G78, "PerCentNetLastTrade",, "T")/100,"") ->  | J78: 0 | K78: 77 | L78: =IFERROR(VLOOKUP(A78,Data!$I$2:$J$103,2,FALSE),"") ->  | M78: =IFERROR(RTD("cqg.rtd", ,"ContractData",L78, "PerCentNetLastTrade",, "T")/100,"") ->  | N78: =IFERROR(RANK($M78,$M$2:M$104)+COUNTIF($M$2:M78,M78)-1,"") ->  | P78: 77 | R78: =IF(Q78="","",RTD("cqg.rtd", ,"ContractData",Q78, "LongDescription",, "T")) ->  | S78: =IFERROR(RTD("cqg.rtd", ,"ContractData",Q78, "PerCentNetLastTrade",, "T")/100,"") ->  | T78: 0
A79: 78 | B79: =IFERROR(VLOOKUP(A79,Data!$H$2:$J$103,3,FALSE),"") ->  | C79: =IFERROR(RTD("cqg.rtd", ,"ContractData",B79, "PerCentNetLastTrade",, "T")/100,"") ->  | D79: =IFERROR(RANK($C79,$C$2:C$103)+COUNTIF($C$2:C79,C79)-1,"") ->  | F79: 78 | H79: =IF(G79="","",RTD("cqg.rtd", ,"ContractData",G79, "LongDescription",, "T")) ->  | I79: =IFERROR(RTD("cqg.rtd", ,"ContractData",G79, "PerCentNetLastTrade",, "T")/100,"") ->  | J79: 0 | K79: 78 | L79: =IFERROR(VLOOKUP(A79,Data!$I$2:$J$103,2,FALSE),"") ->  | M79: =IFERROR(RTD("cqg.rtd", ,"ContractData",L79, "PerCentNetLastTrade",, "T")/100,"") ->  | N79: =IFERROR(RANK($M79,$M$2:M$104)+COUNTIF($M$2:M79,M79)-1,"") ->  | P79: 78 | R79: =IF(Q79="","",RTD("cqg.rtd", ,"ContractData",Q79, "LongDescription",, "T")) ->  | S79: =IFERROR(RTD("cqg.rtd", ,"ContractData",Q79, "PerCentNetLastTrade",, "T")/100,"") ->  | T79: 0
A80: 79 | B80: =IFERROR(VLOOKUP(A80,Data!$H$2:$J$103,3,FALSE),"") ->  | C80: =IFERROR(RTD("cqg.rtd", ,"ContractData",B80, "PerCentNetLastTrade",, "T")/100,"") ->  | D80: =IFERROR(RANK($C80,$C$2:C$103)+COUNTIF($C$2:C80,C80)-1,"") ->  | F80: 79 | H80: =IF(G80="","",RTD("cqg.rtd", ,"ContractData",G80, "LongDescription",, "T")) ->  | I80: =IFERROR(RTD("cqg.rtd", ,"ContractData",G80, "PerCentNetLastTrade",, "T")/100,"") ->  | J80: 0 | K80: 79 | L80: =IFERROR(VLOOKUP(A80,Data!$I$2:$J$103,2,FALSE),"") ->  | M80: =IFERROR(RTD("cqg.rtd", ,"ContractData",L80, "PerCentNetLastTrade",, "T")/100,"") ->  | N80: =IFERROR(RANK($M80,$M$2:M$104)+COUNTIF($M$2:M80,M80)-1,"") ->  | P80: 79 | R80: =IF(Q80="","",RTD("cqg.rtd", ,"ContractData",Q80, "LongDescription",, "T")) ->  | S80: =IFERROR(RTD("cqg.rtd", ,"ContractData",Q80, "PerCentNetLastTrade",, "T")/100,"") ->  | T80: 0
A81: 80 | B81: =IFERROR(VLOOKUP(A81,Data!$H$2:$J$103,3,FALSE),"") ->  | C81: =IFERROR(RTD("cqg.rtd", ,"ContractData",B81, "PerCentNetLastTrade",, "T")/100,"") ->  | D81: =IFERROR(RANK($C81,$C$2:C$103)+COUNTIF($C$2:C81,C81)-1,"") ->  | F81: 80 | H81: =IF(G81="","",RTD("cqg.rtd", ,"ContractData",G81, "LongDescription",, "T")) ->  | I81: =IFERROR(RTD("cqg.rtd", ,"ContractData",G81, "PerCentNetLastTrade",, "T")/100,"") ->  | J81: 0 | K81: 80 | L81: =IFERROR(VLOOKUP(A81,Data!$I$2:$J$103,2,FALSE),"") ->  | M81: =IFERROR(RTD("cqg.rtd", ,"ContractData",L81, "PerCentNetLastTrade",, "T")/100,"") ->  | N81: =IFERROR(RANK($M81,$M$2:M$104)+COUNTIF($M$2:M81,M81)-1,"") ->  | P81: 80 | R81: =IF(Q81="","",RTD("cqg.rtd", ,"ContractData",Q81, "LongDescription",, "T")) ->  | S81: =IFERROR(RTD("cqg.rtd", ,"ContractData",Q81, "PerCentNetLastTrade",, "T")/100,"") ->  | T81: 0
A82: 81 | B82: =IFERROR(VLOOKUP(A82,Data!$H$2:$J$103,3,FALSE),"") ->  | C82: =IFERROR(RTD("cqg.rtd", ,"ContractData",B82, "PerCentNetLastTrade",, "T")/100,"") ->  | D82: =IFERROR(RANK($C82,$C$2:C$103)+COUNTIF($C$2:C82,C82)-1,"") ->  | F82: 81 | H82: =IF(G82="","",RTD("cqg.rtd", ,"ContractData",G82, "LongDescription",, "T")) ->  | I82: =IFERROR(RTD("cqg.rtd", ,"ContractData",G82, "PerCentNetLastTrade",, "T")/100,"") ->  | J82: 0 | K82: 81 | L82: =IFERROR(VLOOKUP(A82,Data!$I$2:$J$103,2,FALSE),"") ->  | M82: =IFERROR(RTD("cqg.rtd", ,"ContractData",L82, "PerCentNetLastTrade",, "T")/100,"") ->  | N82: =IFERROR(RANK($M82,$M$2:M$104)+COUNTIF($M$2:M82,M82)-1,"") ->  | P82: 81 | R82: =IF(Q82="","",RTD("cqg.rtd", ,"ContractData",Q82, "LongDescription",, "T")) ->  | S82: =IFERROR(RTD("cqg.rtd", ,"ContractData",Q82, "PerCentNetLastTrade",, "T")/100,"") ->  | T82: 0
A83: 82 | B83: =IFERROR(VLOOKUP(A83,Data!$H$2:$J$103,3,FALSE),"") ->  | C83: =IFERROR(RTD("cqg.rtd", ,"ContractData",B83, "PerCentNetLastTrade",, "T")/100,"") ->  | D83: =IFERROR(RANK($C83,$C$2:C$103)+COUNTIF($C$2:C83,C83)-1,"") ->  | F83: 82 | H83: =IF(G83="","",RTD("cqg.rtd", ,"ContractData",G83, "LongDescription",, "T")) ->  | I83: =IFERROR(RTD("cqg.rtd", ,"ContractData",G83, "PerCentNetLastTrade",, "T")/100,"") ->  | J83: 0 | K83: 82 | L83: =IFERROR(VLOOKUP(A83,Data!$I$2:$J$103,2,FALSE),"") ->  | M83: =IFERROR(RTD("cqg.rtd", ,"ContractData",L83, "PerCentNetLastTrade",, "T")/100,"") ->  | N83: =IFERROR(RANK($M83,$M$2:M$104)+COUNTIF($M$2:M83,M83)-1,"") ->  | P83: 82 | R83: =IF(Q83="","",RTD("cqg.rtd", ,"ContractData",Q83, "LongDescription",, "T")) ->  | S83: =IFERROR(RTD("cqg.rtd", ,"ContractData",Q83, "PerCentNetLastTrade",, "T")/100,"") ->  | T83: 0
A84: 83 | B84: =IFERROR(VLOOKUP(A84,Data!$H$2:$J$103,3,FALSE),"") ->  | C84: =IFERROR(RTD("cqg.rtd", ,"ContractData",B84, "PerCentNetLastTrade",, "T")/100,"") ->  | D84: =IFERROR(RANK($C84,$C$2:C$103)+COUNTIF($C$2:C84,C84)-1,"") ->  | F84: 83 | H84: =IF(G84="","",RTD("cqg.rtd", ,"ContractData",G84, "LongDescription",, "T")) ->  | I84: =IFERROR(RTD("cqg.rtd", ,"ContractData",G84, "PerCentNetLastTrade",, "T")/100,"") ->  | J84: 0 | K84: 83 | L84: =IFERROR(VLOOKUP(A84,Data!$I$2:$J$103,2,FALSE),"") ->  | M84: =IFERROR(RTD("cqg.rtd", ,"ContractData",L84, "PerCentNetLastTrade",, "T")/100,"") ->  | N84: =IFERROR(RANK($M84,$M$2:M$104)+COUNTIF($M$2:M84,M84)-1,"") ->  | P84: 83 | R84: =IF(Q84="","",RTD("cqg.rtd", ,"ContractData",Q84, "LongDescription",, "T")) ->  | S84: =IFERROR(RTD("cqg.rtd", ,"ContractData",Q84, "PerCentNetLastTrade",, "T")/100,"") ->  | T84: 0
A85: 84 | B85: =IFERROR(VLOOKUP(A85,Data!$H$2:$J$103,3,FALSE),"") ->  | C85: =IFERROR(RTD("cqg.rtd", ,"ContractData",B85, "PerCentNetLastTrade",, "T")/100,"") ->  | D85: =IFERROR(RANK($C85,$C$2:C$103)+COUNTIF($C$2:C85,C85)-1,"") ->  | F85: 84 | H85: =IF(G85="","",RTD("cqg.rtd", ,"ContractData",G85, "LongDescription",, "T")) ->  | I85: =IFERROR(RTD("cqg.rtd", ,"ContractData",G85, "PerCentNetLastTrade",, "T")/100,"") ->  | J85: 0 | K85: 84 | L85: =IFERROR(VLOOKUP(A85,Data!$I$2:$J$103,2,FALSE),"") ->  | M85: =IFERROR(RTD("cqg.rtd", ,"ContractData",L85, "PerCentNetLastTrade",, "T")/100,"") ->  | N85: =IFERROR(RANK($M85,$M$2:M$104)+COUNTIF($M$2:M85,M85)-1,"") ->  | P85: 84 | R85: =IF(Q85="","",RTD("cqg.rtd", ,"ContractData",Q85, "LongDescription",, "T")) ->  | S85: =IFERROR(RTD("cqg.rtd", ,"ContractData",Q85, "PerCentNetLastTrade",, "T")/100,"") ->  | T85: 0
A86: 85 | B86: =IFERROR(VLOOKUP(A86,Data!$H$2:$J$103,3,FALSE),"") ->  | C86: =IFERROR(RTD("cqg.rtd", ,"ContractData",B86, "PerCentNetLastTrade",, "T")/100,"") ->  | D86: =IFERROR(RANK($C86,$C$2:C$103)+COUNTIF($C$2:C86,C86)-1,"") ->  | F86: 85 | H86: =IF(G86="","",RTD("cqg.rtd", ,"ContractData",G86, "LongDescription",, "T")) ->  | I86: =IFERROR(RTD("cqg.rtd", ,"ContractData",G86, "PerCentNetLastTrade",, "T")/100,"") ->  | J86: 0 | K86: 85 | L86: =IFERROR(VLOOKUP(A86,Data!$I$2:$J$103,2,FALSE),"") ->  | M86: =IFERROR(RTD("cqg.rtd", ,"ContractData",L86, "PerCentNetLastTrade",, "T")/100,"") ->  | N86: =IFERROR(RANK($M86,$M$2:M$104)+COUNTIF($M$2:M86,M86)-1,"") ->  | P86: 85 | R86: =IF(Q86="","",RTD("cqg.rtd", ,"ContractData",Q86, "LongDescription",, "T")) ->  | S86: =IFERROR(RTD("cqg.rtd", ,"ContractData",Q86, "PerCentNetLastTrade",, "T")/100,"") ->  | T86: 0
A87: 86 | B87: =IFERROR(VLOOKUP(A87,Data!$H$2:$J$103,3,FALSE),"") ->  | C87: =IFERROR(RTD("cqg.rtd", ,"ContractData",B87, "PerCentNetLastTrade",, "T")/100,"") ->  | D87: =IFERROR(RANK($C87,$C$2:C$103)+COUNTIF($C$2:C87,C87)-1,"") ->  | F87: 86 | H87: =IF(G87="","",RTD("cqg.rtd", ,"ContractData",G87, "LongDescription",, "T")) ->  | I87: =IFERROR(RTD("cqg.rtd", ,"ContractData",G87, "PerCentNetLastTrade",, "T")/100,"") ->  | J87: 0 | K87: 86 | L87: =IFERROR(VLOOKUP(A87,Data!$I$2:$J$103,2,FALSE),"") ->  | M87: =IFERROR(RTD("cqg.rtd", ,"ContractData",L87, "PerCentNetLastTrade",, "T")/100,"") ->  | N87: =IFERROR(RANK($M87,$M$2:M$104)+COUNTIF($M$2:M87,M87)-1,"") ->  | P87: 86 | R87: =IF(Q87="","",RTD("cqg.rtd", ,"ContractData",Q87, "LongDescription",, "T")) ->  | S87: =IFERROR(RTD("cqg.rtd", ,"ContractData",Q87, "PerCentNetLastTrade",, "T")/100,"") ->  | T87: 0
A88: 87 | B88: =IFERROR(VLOOKUP(A88,Data!$H$2:$J$103,3,FALSE),"") ->  | C88: =IFERROR(RTD("cqg.rtd", ,"ContractData",B88, "PerCentNetLastTrade",, "T")/100,"") ->  | D88: =IFERROR(RANK($C88,$C$2:C$103)+COUNTIF($C$2:C88,C88)-1,"") ->  | F88: 87 | H88: =IF(G88="","",RTD("cqg.rtd", ,"ContractData",G88, "LongDescription",, "T")) ->  | I88: =IFERROR(RTD("cqg.rtd", ,"ContractData",G88, "PerCentNetLastTrade",, "T")/100,"") ->  | J88: 0 | K88: 87 | L88: =IFERROR(VLOOKUP(A88,Data!$I$2:$J$103,2,FALSE),"") ->  | M88: =IFERROR(RTD("cqg.rtd", ,"ContractData",L88, "PerCentNetLastTrade",, "T")/100,"") ->  | N88: =IFERROR(RANK($M88,$M$2:M$104)+COUNTIF($M$2:M88,M88)-1,"") ->  | P88: 87 | R88: =IF(Q88="","",RTD("cqg.rtd", ,"ContractData",Q88, "LongDescription",, "T")) ->  | S88: =IFERROR(RTD("cqg.rtd", ,"ContractData",Q88, "PerCentNetLastTrade",, "T")/100,"") ->  | T88: 0
A89: 88 | B89: =IFERROR(VLOOKUP(A89,Data!$H$2:$J$103,3,FALSE),"") ->  | C89: =IFERROR(RTD("cqg.rtd", ,"ContractData",B89, "PerCentNetLastTrade",, "T")/100,"") ->  | D89: =IFERROR(RANK($C89,$C$2:C$103)+COUNTIF($C$2:C89,C89)-1,"") ->  | F89: 88 | H89: =IF(G89="","",RTD("cqg.rtd", ,"ContractData",G89, "LongDescription",, "T")) ->  | I89: =IFERROR(RTD("cqg.rtd", ,"ContractData",G89, "PerCentNetLastTrade",, "T")/100,"") ->  | J89: 0 | K89: 88 | L89: =IFERROR(VLOOKUP(A89,Data!$I$2:$J$103,2,FALSE),"") ->  | M89: =IFERROR(RTD("cqg.rtd", ,"ContractData",L89, "PerCentNetLastTrade",, "T")/100,"") ->  | N89: =IFERROR(RANK($M89,$M$2:M$104)+COUNTIF($M$2:M89,M89)-1,"") ->  | P89: 88 | R89: =IF(Q89="","",RTD("cqg.rtd", ,"ContractData",Q89, "LongDescription",, "T")) ->  | S89: =IFERROR(RTD("cqg.rtd", ,"ContractData",Q89, "PerCentNetLastTrade",, "T")/100,"") ->  | T89: 0
A90: 89 | B90: =IFERROR(VLOOKUP(A90,Data!$H$2:$J$103,3,FALSE),"") ->  | C90: =IFERROR(RTD("cqg.rtd", ,"ContractData",B90, "PerCentNetLastTrade",, "T")/100,"") ->  | D90: =IFERROR(RANK($C90,$C$2:C$103)+COUNTIF($C$2:C90,C90)-1,"") ->  | F90: 89 | H90: =IF(G90="","",RTD("cqg.rtd", ,"ContractData",G90, "LongDescription",, "T")) ->  | I90: =IFERROR(RTD("cqg.rtd", ,"ContractData",G90, "PerCentNetLastTrade",, "T")/100,"") ->  | J90: 0 | K90: 89 | L90: =IFERROR(VLOOKUP(A90,Data!$I$2:$J$103,2,FALSE),"") ->  | M90: =IFERROR(RTD("cqg.rtd", ,"ContractData",L90, "PerCentNetLastTrade",, "T")/100,"") ->  | N90: =IFERROR(RANK($M90,$M$2:M$104)+COUNTIF($M$2:M90,M90)-1,"") ->  | P90: 89 | R90: =IF(Q90="","",RTD("cqg.rtd", ,"ContractData",Q90, "LongDescription",, "T")) ->  | S90: =IFERROR(RTD("cqg.rtd", ,"ContractData",Q90, "PerCentNetLastTrade",, "T")/100,"") ->  | T90: 0
A91: 90 | B91: =IFERROR(VLOOKUP(A91,Data!$H$2:$J$103,3,FALSE),"") ->  | C91: =IFERROR(RTD("cqg.rtd", ,"ContractData",B91, "PerCentNetLastTrade",, "T")/100,"") ->  | D91: =IFERROR(RANK($C91,$C$2:C$103)+COUNTIF($C$2:C91,C91)-1,"") ->  | F91: 90 | H91: =IF(G91="","",RTD("cqg.rtd", ,"ContractData",G91, "LongDescription",, "T")) ->  | I91: =IFERROR(RTD("cqg.rtd", ,"ContractData",G91, "PerCentNetLastTrade",, "T")/100,"") ->  | J91: 0 | K91: 90 | L91: =IFERROR(VLOOKUP(A91,Data!$I$2:$J$103,2,FALSE),"") ->  | M91: =IFERROR(RTD("cqg.rtd", ,"ContractData",L91, "PerCentNetLastTrade",, "T")/100,"") ->  | N91: =IFERROR(RANK($M91,$M$2:M$104)+COUNTIF($M$2:M91,M91)-1,"") ->  | P91: 90 | R91: =IF(Q91="","",RTD("cqg.rtd", ,"ContractData",Q91, "LongDescription",, "T")) ->  | S91: =IFERROR(RTD("cqg.rtd", ,"ContractData",Q91, "PerCentNetLastTrade",, "T")/100,"") ->  | T91: 0
A92: 91 | B92: =IFERROR(VLOOKUP(A92,Data!$H$2:$J$103,3,FALSE),"") ->  | C92: =IFERROR(RTD("cqg.rtd", ,"ContractData",B92, "PerCentNetLastTrade",, "T")/100,"") ->  | D92: =IFERROR(RANK($C92,$C$2:C$103)+COUNTIF($C$2:C92,C92)-1,"") ->  | F92: 91 | H92: =IF(G92="","",RTD("cqg.rtd", ,"ContractData",G92, "LongDescription",, "T")) ->  | I92: =IFERROR(RTD("cqg.rtd", ,"ContractData",G92, "PerCentNetLastTrade",, "T")/100,"") ->  | J92: 0 | K92: 91 | L92: =IFERROR(VLOOKUP(A92,Data!$I$2:$J$103,2,FALSE),"") ->  | M92: =IFERROR(RTD("cqg.rtd", ,"ContractData",L92, "PerCentNetLastTrade",, "T")/100,"") ->  | N92: =IFERROR(RANK($M92,$M$2:M$104)+COUNTIF($M$2:M92,M92)-1,"") ->  | P92: 91 | R92: =IF(Q92="","",RTD("cqg.rtd", ,"ContractData",Q92, "LongDescription",, "T")) ->  | S92: =IFERROR(RTD("cqg.rtd", ,"ContractData",Q92, "PerCentNetLastTrade",, "T")/100,"") ->  | T92: 0
A93: 92 | B93: =IFERROR(VLOOKUP(A93,Data!$H$2:$J$103,3,FALSE),"") ->  | C93: =IFERROR(RTD("cqg.rtd", ,"ContractData",B93, "PerCentNetLastTrade",, "T")/100,"") ->  | D93: =IFERROR(RANK($C93,$C$2:C$103)+COUNTIF($C$2:C93,C93)-1,"") ->  | F93: 92 | H93: =IF(G93="","",RTD("cqg.rtd", ,"ContractData",G93, "LongDescription",, "T")) ->  | I93: =IFERROR(RTD("cqg.rtd", ,"ContractData",G93, "PerCentNetLastTrade",, "T")/100,"") ->  | J93: 0 | K93: 92 | L93: =IFERROR(VLOOKUP(A93,Data!$I$2:$J$103,2,FALSE),"") ->  | M93: =IFERROR(RTD("cqg.rtd", ,"ContractData",L93, "PerCentNetLastTrade",, "T")/100,"") ->  | N93: =IFERROR(RANK($M93,$M$2:M$104)+COUNTIF($M$2:M93,M93)-1,"") ->  | P93: 92 | R93: =IF(Q93="","",RTD("cqg.rtd", ,"ContractData",Q93, "LongDescription",, "T")) ->  | S93: =IFERROR(RTD("cqg.rtd", ,"ContractData",Q93, "PerCentNetLastTrade",, "T")/100,"") ->  | T93: 0
A94: 93 | B94: =IFERROR(VLOOKUP(A94,Data!$H$2:$J$103,3,FALSE),"") ->  | C94: =IFERROR(RTD("cqg.rtd", ,"ContractData",B94, "PerCentNetLastTrade",, "T")/100,"") ->  | D94: =IFERROR(RANK($C94,$C$2:C$103)+COUNTIF($C$2:C94,C94)-1,"") ->  | F94: 93 | H94: =IF(G94="","",RTD("cqg.rtd", ,"ContractData",G94, "LongDescription",, "T")) ->  | I94: =IFERROR(RTD("cqg.rtd", ,"ContractData",G94, "PerCentNetLastTrade",, "T")/100,"") ->  | J94: 0 | K94: 93 | L94: =IFERROR(VLOOKUP(A94,Data!$I$2:$J$103,2,FALSE),"") ->  | M94: =IFERROR(RTD("cqg.rtd", ,"ContractData",L94, "PerCentNetLastTrade",, "T")/100,"") ->  | N94: =IFERROR(RANK($M94,$M$2:M$104)+COUNTIF($M$2:M94,M94)-1,"") ->  | P94: 93 | R94: =IF(Q94="","",RTD("cqg.rtd", ,"ContractData",Q94, "LongDescription",, "T")) ->  | S94: =IFERROR(RTD("cqg.rtd", ,"ContractData",Q94, "PerCentNetLastTrade",, "T")/100,"") ->  | T94: 0
A95: 94 | B95: =IFERROR(VLOOKUP(A95,Data!$H$2:$J$103,3,FALSE),"") ->  | C95: =IFERROR(RTD("cqg.rtd", ,"ContractData",B95, "PerCentNetLastTrade",, "T")/100,"") ->  | D95: =IFERROR(RANK($C95,$C$2:C$103)+COUNTIF($C$2:C95,C95)-1,"") ->  | F95: 94 | H95: =IF(G95="","",RTD("cqg.rtd", ,"ContractData",G95, "LongDescription",, "T")) ->  | I95: =IFERROR(RTD("cqg.rtd", ,"ContractData",G95, "PerCentNetLastTrade",, "T")/100,"") ->  | J95: 0 | K95: 94 | L95: =IFERROR(VLOOKUP(A95,Data!$I$2:$J$103,2,FALSE),"") ->  | M95: =IFERROR(RTD("cqg.rtd", ,"ContractData",L95, "PerCentNetLastTrade",, "T")/100,"") ->  | N95: =IFERROR(RANK($M95,$M$2:M$104)+COUNTIF($M$2:M95,M95)-1,"") ->  | P95: 94 | R95: =IF(Q95="","",RTD("cqg.rtd", ,"ContractData",Q95, "LongDescription",, "T")) ->  | S95: =IFERROR(RTD("cqg.rtd", ,"ContractData",Q95, "PerCentNetLastTrade",, "T")/100,"") ->  | T95: 0
A96: 95 | B96: =IFERROR(VLOOKUP(A96,Data!$H$2:$J$103,3,FALSE),"") ->  | C96: =IFERROR(RTD("cqg.rtd", ,"ContractData",B96, "PerCentNetLastTrade",, "T")/100,"") ->  | D96: =IFERROR(RANK($C96,$C$2:C$103)+COUNTIF($C$2:C96,C96)-1,"") ->  | F96: 95 | H96: =IF(G96="","",RTD("cqg.rtd", ,"ContractData",G96, "LongDescription",, "T")) ->  | I96: =IFERROR(RTD("cqg.rtd", ,"ContractData",G96, "PerCentNetLastTrade",, "T")/100,"") ->  | J96: 0 | K96: 95 | L96: =IFERROR(VLOOKUP(A96,Data!$I$2:$J$103,2,FALSE),"") ->  | M96: =IFERROR(RTD("cqg.rtd", ,"ContractData",L96, "PerCentNetLastTrade",, "T")/100,"") ->  | N96: =IFERROR(RANK($M96,$M$2:M$104)+COUNTIF($M$2:M96,M96)-1,"") ->  | P96: 95 | R96: =IF(Q96="","",RTD("cqg.rtd", ,"ContractData",Q96, "LongDescription",, "T")) ->  | S96: =IFERROR(RTD("cqg.rtd", ,"ContractData",Q96, "PerCentNetLastTrade",, "T")/100,"") ->  | T96: 0
A97: 96 | B97: =IFERROR(VLOOKUP(A97,Data!$H$2:$J$103,3,FALSE),"") ->  | C97: =IFERROR(RTD("cqg.rtd", ,"ContractData",B97, "PerCentNetLastTrade",, "T")/100,"") ->  | D97: =IFERROR(RANK($C97,$C$2:C$103)+COUNTIF($C$2:C97,C97)-1,"") ->  | F97: 96 | H97: =IF(G97="","",RTD("cqg.rtd", ,"ContractData",G97, "LongDescription",, "T")) ->  | I97: =IFERROR(RTD("cqg.rtd", ,"ContractData",G97, "PerCentNetLastTrade",, "T")/100,"") ->  | J97: 0 | K97: 96 | L97: =IFERROR(VLOOKUP(A97,Data!$I$2:$J$103,2,FALSE),"") ->  | M97: =IFERROR(RTD("cqg.rtd", ,"ContractData",L97, "PerCentNetLastTrade",, "T")/100,"") ->  | N97: =IFERROR(RANK($M97,$M$2:M$104)+COUNTIF($M$2:M97,M97)-1,"") ->  | P97: 96 | R97: =IF(Q97="","",RTD("cqg.rtd", ,"ContractData",Q97, "LongDescription",, "T")) ->  | S97: =IFERROR(RTD("cqg.rtd", ,"ContractData",Q97, "PerCentNetLastTrade",, "T")/100,"") ->  | T97: 0
A98: 97 | B98: =IFERROR(VLOOKUP(A98,Data!$H$2:$J$103,3,FALSE),"") ->  | C98: =IFERROR(RTD("cqg.rtd", ,"ContractData",B98, "PerCentNetLastTrade",, "T")/100,"") ->  | D98: =IFERROR(RANK($C98,$C$2:C$103)+COUNTIF($C$2:C98,C98)-1,"") ->  | F98: 97 | H98: =IF(G98="","",RTD("cqg.rtd", ,"ContractData",G98, "LongDescription",, "T")) ->  | I98: =IFERROR(RTD("cqg.rtd", ,"ContractData",G98, "PerCentNetLastTrade",, "T")/100,"") ->  | J98: 0 | K98: 97 | L98: =IFERROR(VLOOKUP(A98,Data!$I$2:$J$103,2,FALSE),"") ->  | M98: =IFERROR(RTD("cqg.rtd", ,"ContractData",L98, "PerCentNetLastTrade",, "T")/100,"") ->  | N98: =IFERROR(RANK($M98,$M$2:M$104)+COUNTIF($M$2:M98,M98)-1,"") ->  | P98: 97 | R98: =IF(Q98="","",RTD("cqg.rtd", ,"ContractData",Q98, "LongDescription",, "T")) ->  | S98: =IFERROR(RTD("cqg.rtd", ,"ContractData",Q98, "PerCentNetLastTrade",, "T")/100,"") ->  | T98: 0
A99: 98 | B99: =IFERROR(VLOOKUP(A99,Data!$H$2:$J$103,3,FALSE),"") ->  | C99: =IFERROR(RTD("cqg.rtd", ,"ContractData",B99, "PerCentNetLastTrade",, "T")/100,"") ->  | D99: =IFERROR(RANK($C99,$C$2:C$103)+COUNTIF($C$2:C99,C99)-1,"") ->  | F99: 98 | H99: =IF(G99="","",RTD("cqg.rtd", ,"ContractData",G99, "LongDescription",, "T")) ->  | I99: =IFERROR(RTD("cqg.rtd", ,"ContractData",G99, "PerCentNetLastTrade",, "T")/100,"") ->  | J99: 0 | K99: 98 | L99: =IFERROR(VLOOKUP(A99,Data!$I$2:$J$103,2,FALSE),"") ->  | M99: =IFERROR(RTD("cqg.rtd", ,"ContractData",L99, "PerCentNetLastTrade",, "T")/100,"") ->  | N99: =IFERROR(RANK($M99,$M$2:M$104)+COUNTIF($M$2:M99,M99)-1,"") ->  | P99: 98 | R99: =IF(Q99="","",RTD("cqg.rtd", ,"ContractData",Q99, "LongDescription",, "T")) ->  | S99: =IFERROR(RTD("cqg.rtd", ,"ContractData",Q99, "PerCentNetLastTrade",, "T")/100,"") ->  | T99: 0
A100: 99 | B100: =IFERROR(VLOOKUP(A100,Data!$H$2:$J$103,3,FALSE),"") ->  | C100: =IFERROR(RTD("cqg.rtd", ,"ContractData",B100, "PerCentNetLastTrade",, "T")/100,"") ->  | D100: =IFERROR(RANK($C100,$C$2:C$103)+COUNTIF($C$2:C100,C100)-1,"") ->  | F100: 99 | H100: =IF(G100="","",RTD("cqg.rtd", ,"ContractData",G100, "LongDescription",, "T")) ->  | I100: =IFERROR(RTD("cqg.rtd", ,"ContractData",G100, "PerCentNetLastTrade",, "T")/100,"") ->  | J100: 0 | K100: 99 | L100: =IFERROR(VLOOKUP(A100,Data!$I$2:$J$103,2,FALSE),"") ->  | M100: =IFERROR(RTD("cqg.rtd", ,"ContractData",L100, "PerCentNetLastTrade",, "T")/100,"") ->  | N100: =IFERROR(RANK($M100,$M$2:M$104)+COUNTIF($M$2:M100,M100)-1,"") ->  | P100: 99 | R100: =IF(Q100="","",RTD("cqg.rtd", ,"ContractData",Q100, "LongDescription",, "T")) ->  | S100: =IFERROR(RTD("cqg.rtd", ,"ContractData",Q100, "PerCentNetLastTrade",, "T")/100,"") ->  | T100: 0
A101: 100 | B101: =IFERROR(VLOOKUP(A101,Data!$H$2:$J$103,3,FALSE),"") ->  | C101: =IFERROR(RTD("cqg.rtd", ,"ContractData",B101, "PerCentNetLastTrade",, "T")/100,"") ->  | D101: =IFERROR(RANK($C101,$C$2:C$103)+COUNTIF($C$2:C101,C101)-1,"") ->  | F101: 100 | H101: =IF(G101="","",RTD("cqg.rtd", ,"ContractData",G101, "LongDescription",, "T")) ->  | I101: =IFERROR(RTD("cqg.rtd", ,"ContractData",G101, "PerCentNetLastTrade",, "T")/100,"") ->  | J101: 0 | K101: 100 | L101: =IFERROR(VLOOKUP(A101,Data!$I$2:$J$103,2,FALSE),"") ->  | M101: =IFERROR(RTD("cqg.rtd", ,"ContractData",L101, "PerCentNetLastTrade",, "T")/100,"") ->  | N101: =IFERROR(RANK($M101,$M$2:M$104)+COUNTIF($M$2:M101,M101)-1,"") ->  | P101: 100 | R101: =IF(Q101="","",RTD("cqg.rtd", ,"ContractData",Q101, "LongDescription",, "T")) ->  | S101: =IFERROR(RTD("cqg.rtd", ,"ContractData",Q101, "PerCentNetLastTrade",, "T")/100,"") ->  | T101: 0
A102: 101 | B102: =IFERROR(VLOOKUP(A102,Data!$H$2:$J$103,3,FALSE),"") ->  | C102: =IFERROR(RTD("cqg.rtd", ,"ContractData",B102, "PerCentNetLastTrade",, "T")/100,"") ->  | D102: =IFERROR(RANK($C102,$C$2:C$103)+COUNTIF($C$2:C102,C102)-1,"") ->  | F102: 101 | H102: =IF(G102="","",RTD("cqg.rtd", ,"ContractData",G102, "LongDescription",, "T")) ->  | I102: =IFERROR(RTD("cqg.rtd", ,"ContractData",G102, "PerCentNetLastTrade",, "T")/100,"") ->  | J102: 0 | K102: 101 | L102: =IFERROR(VLOOKUP(A102,Data!$I$2:$J$103,2,FALSE),"") ->  | M102: =IFERROR(RTD("cqg.rtd", ,"ContractData",L102, "PerCentNetLastTrade",, "T")/100,"") ->  | N102: =IFERROR(RANK($M102,$M$2:M$104)+COUNTIF($M$2:M102,M102)-1,"") ->  | P102: 101 | R102: =IF(Q102="","",RTD("cqg.rtd", ,"ContractData",Q102, "LongDescription",, "T")) ->  | S102: =IFERROR(RTD("cqg.rtd", ,"ContractData",Q102, "PerCentNetLastTrade",, "T")/100,"") ->  | T102: 0
A103: 102 | B103: =IFERROR(VLOOKUP(A103,Data!$H$2:$J$103,3,FALSE),"") ->  | C103: =IFERROR(RTD("cqg.rtd", ,"ContractData",B103, "PerCentNetLastTrade",, "T")/100,"") ->  | D103: =IFERROR(RANK($C103,$C$2:C$103)+COUNTIF($C$2:C103,C103)-1,"") ->  | F103: 102 | H103: =IF(G103="","",RTD("cqg.rtd", ,"ContractData",G103, "LongDescription",, "T")) ->  | I103: =IFERROR(RTD("cqg.rtd", ,"ContractData",G103, "PerCentNetLastTrade",, "T")/100,"") ->  | J103: 0 | K103: 102 | L103: =IFERROR(VLOOKUP(A103,Data!$I$2:$J$103,2,FALSE),"") ->  | M103: =IFERROR(RTD("cqg.rtd", ,"ContractData",L103, "PerCentNetLastTrade",, "T")/100,"") ->  | N103: =IFERROR(RANK($M103,$M$2:M$104)+COUNTIF($M$2:M103,M103)-1,"") ->  | P103: 102 | R103: =IF(Q103="","",RTD("cqg.rtd", ,"ContractData",Q103, "LongDescription",, "T")) ->  | S103: =IFERROR(RTD("cqg.rtd", ,"ContractData",Q103, "PerCentNetLastTrade",, "T")/100,"") ->  | T103: 0

Sheet BarData (hidden)
A1: =RTD("cqg.rtd",,"StudyData", $N$2, "Bar", "", "Time", $M$2, $F1,$R$2,$Q$2, "","False") -> 44187.40278 | B1: =IF(RTD("cqg.rtd",,"StudyData", $N$2, "Bar", "", "Open", $M$2, $F1, $R$2,$Q$2,,$O$2,$P$2)="",NA(),RTD("cqg.rtd",,"StudyData", $N$2, "Bar", "", "Open", $M$2, $F1, $R$2,$Q$2,,$O$2,$P$2)) -> 310.2 | C1: =IF(RTD("cqg.rtd",,"StudyData", $N$2, "Bar", "", "High", $M$2, $F1, $R$2,$Q$2,,$O$2,$P$2)="",NA(),RTD("cqg.rtd",,"StudyData", $N$2, "Bar", "", "High", $M$2, $F1, $R$2,$Q$2,,$O$2,$P$2)) -> 310.27 | D1: =IF(RTD("cqg.rtd",,"StudyData", $N$2, "Bar", "", "Low", $M$2, $F1, $R$2,$Q$2,,$O$2,$P$2)="",NA(),RTD("cqg.rtd",,"StudyData", $N$2, "Bar", "", "Low", $M$2, $F1, $R$2,$Q$2,,$O$2,$P$2)) -> 310.02 | E1: =IF(RTD("cqg.rtd",,"StudyData", $N$2, "Bar", "", "Close", $M$2, $F1, $R$2,$Q$2,,$O$2,$P$2)="",NA(),RTD("cqg.rtd",,"StudyData", $N$2, "Bar", "", "Close", $M$2, $F1, $R$2,$Q$2,,$O$2,$P$2)) -> 310.19 | F1: 0 | H1: =A1 -> 44187.40278 | I1: =RTD("cqg.rtd",,"StudyData",$N$2, "Vol", "VolType=Auto,CoCType=Auto", "Vol", $M$2, $F1, $R$2,$Q$2,,$O$2,$P$2) -> 92537 | M1: Chart | N1: Symbol | O1: Continuation | P1: Decimal=T, Tick=D | Q1: CustomSessionName | R1: Type All or PrimaryOnly
A2: =RTD("cqg.rtd",,"StudyData", $N$2, "Bar", "", "Time", $M$2, $F2,$R$2,$Q$2, "","False") -> 44187.39931 | B2: =RTD("cqg.rtd",,"StudyData", $N$2, "Bar", "", "Open", $M$2, $F2, $R$2,$Q$2,,$O$2,$P$2) -> 310.13 | C2: =RTD("cqg.rtd",,"StudyData", $N$2, "Bar", "", "High", $M$2, $F2, $R$2,$Q$2,,$O$2,$P$2) -> 310.26 | D2: =RTD("cqg.rtd",,"StudyData", $N$2, "Bar", "", "Low", $M$2, $F2, $R$2,$Q$2,,$O$2,$P$2) -> 310.06 | E2: =RTD("cqg.rtd",,"StudyData", $N$2, "Bar", "", "Close", $M$2, $F2, $R$2,$Q$2,,$O$2,$P$2) -> 310.21 | F2: =F1-1 -> -1 | H2: =A2 -> 44187.39931 | I2: =RTD("cqg.rtd",,"StudyData",$N$2, "Vol", "VolType=Auto,CoCType=Auto", "Vol", $M$2, $F2, $R$2,$Q$2,,$O$2,$P$2) -> 117876 | M2: =Main!U24 -> 5 | N2: =Main!R24 -> S.QQQ | O2: TRUE | P2: T | R2: =Main!W24 -> All
A3: =RTD("cqg.rtd",,"StudyData", $N$2, "Bar", "", "Time", $M$2, $F3,$R$2,$Q$2, "","False") -> 44187.39583 | B3: =RTD("cqg.rtd",,"StudyData", $N$2, "Bar", "", "Open", $M$2, $F3, $R$2,$Q$2,,$O$2,$P$2) -> 309.57 | C3: =RTD("cqg.rtd",,"StudyData", $N$2, "Bar", "", "High", $M$2, $F3, $R$2,$Q$2,,$O$2,$P$2) -> 310.14 | D3: =RTD("cqg.rtd",,"StudyData", $N$2, "Bar", "", "Low", $M$2, $F3, $R$2,$Q$2,,$O$2,$P$2) -> 309.4 | E3: =RTD("cqg.rtd",,"StudyData", $N$2, "Bar", "", "Close", $M$2, $F3, $R$2,$Q$2,,$O$2,$P$2) -> 310.14 | F3: =F2-1 -> -2 | H3: 44187.39583 | I3: =RTD("cqg.rtd",,"StudyData",$N$2, "Vol", "VolType=Auto,CoCType=Auto", "Vol", $M$2, $F3, $R$2,$Q$2,,$O$2,$P$2) -> 288742
A4: =RTD("cqg.rtd",,"StudyData", $N$2, "Bar", "", "Time", $M$2, $F4,$R$2,$Q$2, "","False") -> 44187.39236 | B4: =RTD("cqg.rtd",,"StudyData", $N$2, "Bar", "", "Open", $M$2, $F4, $R$2,$Q$2,,$O$2,$P$2) -> 309.49 | C4: =RTD("cqg.rtd",,"StudyData", $N$2, "Bar", "", "High", $M$2, $F4, $R$2,$Q$2,,$O$2,$P$2) -> 309.69 | D4: =RTD("cqg.rtd",,"StudyData", $N$2, "Bar", "", "Low", $M$2, $F4, $R$2,$Q$2,,$O$2,$P$2) -> 309.24 | E4: =RTD("cqg.rtd",,"StudyData", $N$2, "Bar", "", "Close", $M$2, $F4, $R$2,$Q$2,,$O$2,$P$2) -> 309.57 | F4: -3 | H4: 44187.39236 | I4: =RTD("cqg.rtd",,"StudyData",$N$2, "Vol", "VolType=Auto,CoCType=Auto", "Vol", $M$2, $F4, $R$2,$Q$2,,$O$2,$P$2) -> 273803
A5: =RTD("cqg.rtd",,"StudyData", $N$2, "Bar", "", "Time", $M$2, $F5,$R$2,$Q$2, "","False") -> 44187.38889 | B5: =RTD("cqg.rtd",,"StudyData", $N$2, "Bar", "", "Open", $M$2, $F5, $R$2,$Q$2,,$O$2,$P$2) -> 309.46 | C5: =RTD("cqg.rtd",,"StudyData", $N$2, "Bar", "", "High", $M$2, $F5, $R$2,$Q$2,,$O$2,$P$2) -> 309.63 | D5: =RTD("cqg.rtd",,"StudyData", $N$2, "Bar", "", "Low", $M$2, $F5, $R$2,$Q$2,,$O$2,$P$2) -> 309.19 | E5: =RTD("cqg.rtd",,"StudyData", $N$2, "Bar", "", "Close", $M$2, $F5, $R$2,$Q$2,,$O$2,$P$2) -> 309.48 | F5: -4 | H5: 44187.38889 | I5: =RTD("cqg.rtd",,"StudyData",$N$2, "Vol", "VolType=Auto,CoCType=Auto", "Vol", $M$2, $F5, $R$2,$Q$2,,$O$2,$P$2) -> 306363
A6: =RTD("cqg.rtd",,"StudyData", $N$2, "Bar", "", "Time", $M$2, $F6,$R$2,$Q$2, "","False") -> 44187.38542 | B6: =RTD("cqg.rtd",,"StudyData", $N$2, "Bar", "", "Open", $M$2, $F6, $R$2,$Q$2,,$O$2,$P$2) -> 309.27 | C6: =RTD("cqg.rtd",,"StudyData", $N$2, "Bar", "", "High", $M$2, $F6, $R$2,$Q$2,,$O$2,$P$2) -> 309.96 | D6: =RTD("cqg.rtd",,"StudyData", $N$2, "Bar", "", "Low", $M$2, $F6, $R$2,$Q$2,,$O$2,$P$2) -> 309.18 | E6: =RTD("cqg.rtd",,"StudyData", $N$2, "Bar", "", "Close", $M$2, $F6, $R$2,$Q$2,,$O$2,$P$2) -> 309.46 | F6: -5 | H6: 44187.38542 | I6: =RTD("cqg.rtd",,"StudyData",$N$2, "Vol", "VolType=Auto,CoCType=Auto", "Vol", $M$2, $F6, $R$2,$Q$2,,$O$2,$P$2) -> 294667
A7: =RTD("cqg.rtd",,"StudyData", $N$2, "Bar", "", "Time", $M$2, $F7,$R$2,$Q$2, "","False") -> 44187.38194 | B7: =RTD("cqg.rtd",,"StudyData", $N$2, "Bar", "", "Open", $M$2, $F7, $R$2,$Q$2,,$O$2,$P$2) -> 310.45 | C7: =RTD("cqg.rtd",,"StudyData", $N$2, "Bar", "", "High", $M$2, $F7, $R$2,$Q$2,,$O$2,$P$2) -> 310.49 | D7: =RTD("cqg.rtd",,"StudyData", $N$2, "Bar", "", "Low", $M$2, $F7, $R$2,$Q$2,,$O$2,$P$2) -> 309.14 | E7: =RTD("cqg.rtd",,"StudyData", $N$2, "Bar", "", "Close", $M$2, $F7, $R$2,$Q$2,,$O$2,$P$2) -> 309.28 | F7: -6 | H7: 44187.38194 | I7: =RTD("cqg.rtd",,"StudyData",$N$2, "Vol", "VolType=Auto,CoCType=Auto", "Vol", $M$2, $F7, $R$2,$Q$2,,$O$2,$P$2) -> 602965
A8: =RTD("cqg.rtd",,"StudyData", $N$2, "Bar", "", "Time", $M$2, $F8,$R$2,$Q$2, "","False") -> 44187.37847 | B8: =RTD("cqg.rtd",,"StudyData", $N$2, "Bar", "", "Open", $M$2, $F8, $R$2,$Q$2,,$O$2,$P$2) -> 310.03 | C8: =RTD("cqg.rtd",,"StudyData", $N$2, "Bar", "", "High", $M$2, $F8, $R$2,$Q$2,,$O$2,$P$2) -> 310.54 | D8: =RTD("cqg.rtd",,"StudyData", $N$2, "Bar", "", "Low", $M$2, $F8, $R$2,$Q$2,,$O$2,$P$2) -> 309.96 | E8: =RTD("cqg.rtd",,"StudyData", $N$2, "Bar", "", "Close", $M$2, $F8, $R$2,$Q$2,,$O$2,$P$2) -> 310.45 | F8: -7 | H8: 44187.37847 | I8: =RTD("cqg.rtd",,"StudyData",$N$2, "Vol", "VolType=Auto,CoCType=Auto", "Vol", $M$2, $F8, $R$2,$Q$2,,$O$2,$P$2) -> 251895
A9: =RTD("cqg.rtd",,"StudyData", $N$2, "Bar", "", "Time", $M$2, $F9,$R$2,$Q$2, "","False") -> 44187.375 | B9: =RTD("cqg.rtd",,"StudyData", $N$2, "Bar", "", "Open", $M$2, $F9, $R$2,$Q$2,,$O$2,$P$2) -> 310.6 | C9: =RTD("cqg.rtd",,"StudyData", $N$2, "Bar", "", "High", $M$2, $F9, $R$2,$Q$2,,$O$2,$P$2) -> 310.61 | D9: =RTD("cqg.rtd",,"StudyData", $N$2, "Bar", "", "Low", $M$2, $F9, $R$2,$Q$2,,$O$2,$P$2) -> 309.71 | E9: =RTD("cqg.rtd",,"StudyData", $N$2, "Bar", "", "Close", $M$2, $F9, $R$2,$Q$2,,$O$2,$P$2) -> 310.06 | F9: -8 | H9: 44187.375 | I9: =RTD("cqg.rtd",,"StudyData",$N$2, "Vol", "VolType=Auto,CoCType=Auto", "Vol", $M$2, $F9, $R$2,$Q$2,,$O$2,$P$2) -> 421310
A10: =RTD("cqg.rtd",,"StudyData", $N$2, "Bar", "", "Time", $M$2, $F10,$R$2,$Q$2, "","False") -> 44187.37153 | B10: =RTD("cqg.rtd",,"StudyData", $N$2, "Bar", "", "Open", $M$2, $F10, $R$2,$Q$2,,$O$2,$P$2) -> 310.41 | C10: =RTD("cqg.rtd",,"StudyData", $N$2, "Bar", "", "High", $M$2, $F10, $R$2,$Q$2,,$O$2,$P$2) -> 310.71 | D10: =RTD("cqg.rtd",,"StudyData", $N$2, "Bar", "", "Low", $M$2, $F10, $R$2,$Q$2,,$O$2,$P$2) -> 310.41 | E10: =RTD("cqg.rtd",,"StudyData", $N$2, "Bar", "", "Close", $M$2, $F10, $R$2,$Q$2,,$O$2,$P$2) -> 310.6 | F10: -9 | H10: 44187.37153 | I10: =RTD("cqg.rtd",,"StudyData",$N$2, "Vol", "VolType=Auto,CoCType=Auto", "Vol", $M$2, $F10, $R$2,$Q$2,,$O$2,$P$2) -> 374543
A11: =RTD("cqg.rtd",,"StudyData", $N$2, "Bar", "", "Time", $M$2, $F11,$R$2,$Q$2, "","False") -> 44187.36806 | B11: =RTD("cqg.rtd",,"StudyData", $N$2, "Bar", "", "Open", $M$2, $F11, $R$2,$Q$2,,$O$2,$P$2) -> 310.04 | C11: =RTD("cqg.rtd",,"StudyData", $N$2, "Bar", "", "High", $M$2, $F11, $R$2,$Q$2,,$O$2,$P$2) -> 310.42 | D11: =RTD("cqg.rtd",,"StudyData", $N$2, "Bar", "", "Low", $M$2, $F11, $R$2,$Q$2,,$O$2,$P$2) -> 309.79 | E11: =RTD("cqg.rtd",,"StudyData", $N$2, "Bar", "", "Close", $M$2, $F11, $R$2,$Q$2,,$O$2,$P$2) -> 310.4 | F11: -10 | H11: 44187.36806 | I11: =RTD("cqg.rtd",,"StudyData",$N$2, "Vol", "VolType=Auto,CoCType=Auto", "Vol", $M$2, $F11, $R$2,$Q$2,,$O$2,$P$2) -> 385889
A12: =RTD("cqg.rtd",,"StudyData", $N$2, "Bar", "", "Time", $M$2, $F12,$R$2,$Q$2, "","False") -> 44187.36458 | B12: =RTD("cqg.rtd",,"StudyData", $N$2, "Bar", "", "Open", $M$2, $F12, $R$2,$Q$2,,$O$2,$P$2) -> 309.75 | C12: =RTD("cqg.rtd",,"StudyData", $N$2, "Bar", "", "High", $M$2, $F12, $R$2,$Q$2,,$O$2,$P$2) -> 310.05 | D12: =RTD("cqg.rtd",,"StudyData", $N$2, "Bar", "", "Low", $M$2, $F12, $R$2,$Q$2,,$O$2,$P$2) -> 309.63 | E12: =RTD("cqg.rtd",,"StudyData", $N$2, "Bar", "", "Close", $M$2, $F12, $R$2,$Q$2,,$O$2,$P$2) -> 310.03 | F12: -11 | H12: 44187.36458 | I12: =RTD("cqg.rtd",,"StudyData",$N$2, "Vol", "VolType=Auto,CoCType=Auto", "Vol", $M$2, $F12, $R$2,$Q$2,,$O$2,$P$2) -> 369700
A13: =RTD("cqg.rtd",,"StudyData", $N$2, "Bar", "", "Time", $M$2, $F13,$R$2,$Q$2, "","False") -> 44187.36111 | B13: =RTD("cqg.rtd",,"StudyData", $N$2, "Bar", "", "Open", $M$2, $F13, $R$2,$Q$2,,$O$2,$P$2) -> 309.52 | C13: =RTD("cqg.rtd",,"StudyData", $N$2, "Bar", "", "High", $M$2, $F13, $R$2,$Q$2,,$O$2,$P$2) -> 309.79 | D13: =RTD("cqg.rtd",,"StudyData", $N$2, "Bar", "", "Low", $M$2, $F13, $R$2,$Q$2,,$O$2,$P$2) -> 309.27 | E13: =RTD("cqg.rtd",,"StudyData", $N$2, "Bar", "", "Close", $M$2, $F13, $R$2,$Q$2,,$O$2,$P$2) -> 309.76 | F13: -12 | H13: 44187.36111 | I13: =RTD("cqg.rtd",,"StudyData",$N$2, "Vol", "VolType=Auto,CoCType=Auto", "Vol", $M$2, $F13, $R$2,$Q$2,,$O$2,$P$2) -> 350794
A14: =RTD("cqg.rtd",,"StudyData", $N$2, "Bar", "", "Time", $M$2, $F14,$R$2,$Q$2, "","False") -> 44187.35764 | B14: =RTD("cqg.rtd",,"StudyData", $N$2, "Bar", "", "Open", $M$2, $F14, $R$2,$Q$2,,$O$2,$P$2) -> 309.07 | C14: =RTD("cqg.rtd",,"StudyData", $N$2, "Bar", "", "High", $M$2, $F14, $R$2,$Q$2,,$O$2,$P$2) -> 309.59 | D14: =RTD("cqg.rtd",,"StudyData", $N$2, "Bar", "", "Low", $M$2, $F14, $R$2,$Q$2,,$O$2,$P$2) -> 308.88 | E14: =RTD("cqg.rtd",,"StudyData", $N$2, "Bar", "", "Close", $M$2, $F14, $R$2,$Q$2,,$O$2,$P$2) -> 309.51 | F14: -13 | H14: 44187.35764 | I14: =RTD("cqg.rtd",,"StudyData",$N$2, "Vol", "VolType=Auto,CoCType=Auto", "Vol", $M$2, $F14, $R$2,$Q$2,,$O$2,$P$2) -> 345416
A15: =RTD("cqg.rtd",,"StudyData", $N$2, "Bar", "", "Time", $M$2, $F15,$R$2,$Q$2, "","False") -> 44187.35417 | B15: =RTD("cqg.rtd",,"StudyData", $N$2, "Bar", "", "Open", $M$2, $F15, $R$2,$Q$2,,$O$2,$P$2) -> 309.85 | C15: =RTD("cqg.rtd",,"StudyData", $N$2, "Bar", "", "High", $M$2, $F15, $R$2,$Q$2,,$O$2,$P$2) -> 309.9 | D15: =RTD("cqg.rtd",,"StudyData", $N$2, "Bar", "", "Low", $M$2, $F15, $R$2,$Q$2,,$O$2,$P$2) -> 309.02 | E15: =RTD("cqg.rtd",,"StudyData", $N$2, "Bar", "", "Close", $M$2, $F15, $R$2,$Q$2,,$O$2,$P$2) -> 309.06 | F15: -14 | H15: 44187.35417 | I15: =RTD("cqg.rtd",,"StudyData",$N$2, "Vol", "VolType=Auto,CoCType=Auto", "Vol", $M$2, $F15, $R$2,$Q$2,,$O$2,$P$2) -> 748324
A16: =RTD("cqg.rtd",,"StudyData", $N$2, "Bar", "", "Time", $M$2, $F16,$R$2,$Q$2, "","False") -> 44186.63194 | B16: =RTD("cqg.rtd",,"StudyData", $N$2, "Bar", "", "Open", $M$2, $F16, $R$2,$Q$2,,$O$2,$P$2) -> 309.05 | C16: =RTD("cqg.rtd",,"StudyData", $N$2, "Bar", "", "High", $M$2, $F16, $R$2,$Q$2,,$O$2,$P$2) -> 309.12 | D16: =RTD("cqg.rtd",,"StudyData", $N$2, "Bar", "", "Low", $M$2, $F16, $R$2,$Q$2,,$O$2,$P$2) -> 308.91 | E16: =RTD("cqg.rtd",,"StudyData", $N$2, "Bar", "", "Close", $M$2, $F16, $R$2,$Q$2,,$O$2,$P$2) -> 309.12 | F16: -15 | H16: 44186.63194 | I16: =RTD("cqg.rtd",,"StudyData",$N$2, "Vol", "VolType=Auto,CoCType=Auto", "Vol", $M$2, $F16, $R$2,$Q$2,,$O$2,$P$2) -> 181713
A17: =RTD("cqg.rtd",,"StudyData", $N$2, "Bar", "", "Time", $M$2, $F17,$R$2,$Q$2, "","False") -> 44186.62847 | B17: =RTD("cqg.rtd",,"StudyData", $N$2, "Bar", "", "Open", $M$2, $F17, $R$2,$Q$2,,$O$2,$P$2) -> 308.96 | C17: =RTD("cqg.rtd",,"StudyData", $N$2, "Bar", "", "High", $M$2, $F17, $R$2,$Q$2,,$O$2,$P$2) -> 309.07 | D17: =RTD("cqg.rtd",,"StudyData", $N$2, "Bar", "", "Low", $M$2, $F17, $R$2,$Q$2,,$O$2,$P$2) -> 308.77 | E17: =RTD("cqg.rtd",,"StudyData", $N$2, "Bar", "", "Close", $M$2, $F17, $R$2,$Q$2,,$O$2,$P$2) -> 309.04 | F17: -16 | H17: 44186.62847 | I17: =RTD("cqg.rtd",,"StudyData",$N$2, "Vol", "VolType=Auto,CoCType=Auto", "Vol", $M$2, $F17, $R$2,$Q$2,,$O$2,$P$2) -> 447894
A18: =RTD("cqg.rtd",,"StudyData", $N$2, "Bar", "", "Time", $M$2, $F18,$R$2,$Q$2, "","False") -> 44186.625 | B18: =RTD("cqg.rtd",,"StudyData", $N$2, "Bar", "", "Open", $M$2, $F18, $R$2,$Q$2,,$O$2,$P$2) -> 309 | C18: =RTD("cqg.rtd",,"StudyData", $N$2, "Bar", "", "High", $M$2, $F18, $R$2,$Q$2,,$O$2,$P$2) -> 309.02 | D18: =RTD("cqg.rtd",,"StudyData", $N$2, "Bar", "", "Low", $M$2, $F18, $R$2,$Q$2,,$O$2,$P$2) -> 308.58 | E18: =RTD("cqg.rtd",,"StudyData", $N$2, "Bar", "", "Close", $M$2, $F18, $R$2,$Q$2,,$O$2,$P$2) -> 308.9 | F18: -17 | H18: 44186.625 | I18: =RTD("cqg.rtd",,"StudyData",$N$2, "Vol", "VolType=Auto,CoCType=Auto", "Vol", $M$2, $F18, $R$2,$Q$2,,$O$2,$P$2) -> 557256
A19: =RTD("cqg.rtd",,"StudyData", $N$2, "Bar", "", "Time", $M$2, $F19,$R$2,$Q$2, "","False") -> 44186.62153 | B19: =RTD("cqg.rtd",,"StudyData", $N$2, "Bar", "", "Open", $M$2, $F19, $R$2,$Q$2,,$O$2,$P$2) -> 308.51 | C19: =RTD("cqg.rtd",,"StudyData", $N$2, "Bar", "", "High", $M$2, $F19, $R$2,$Q$2,,$O$2,$P$2) -> 309.12 | D19: =RTD("cqg.rtd",,"StudyData", $N$2, "Bar", "", "Low", $M$2, $F19, $R$2,$Q$2,,$O$2,$P$2) -> 308.48 | E19: =RTD("cqg.rtd",,"StudyData", $N$2, "Bar", "", "Close", $M$2, $F19, $R$2,$Q$2,,$O$2,$P$2) -> 308.92 | F19: -18 | H19: 44186.62153 | I19: =RTD("cqg.rtd",,"StudyData",$N$2, "Vol", "VolType=Auto,CoCType=Auto", "Vol", $M$2, $F19, $R$2,$Q$2,,$O$2,$P$2) -> 1372965
A20: =RTD("cqg.rtd",,"StudyData", $N$2, "Bar", "", "Time", $M$2, $F20,$R$2,$Q$2, "","False") -> 44186.61806 | B20: =RTD("cqg.rtd",,"StudyData", $N$2, "Bar", "", "Open", $M$2, $F20, $R$2,$Q$2,,$O$2,$P$2) -> 308.38 | C20: =RTD("cqg.rtd",,"StudyData", $N$2, "Bar", "", "High", $M$2, $F20, $R$2,$Q$2,,$O$2,$P$2) -> 308.51 | D20: =RTD("cqg.rtd",,"StudyData", $N$2, "Bar", "", "Low", $M$2, $F20, $R$2,$Q$2,,$O$2,$P$2) -> 307.85 | E20: =RTD("cqg.rtd",,"StudyData", $N$2, "Bar", "", "Close", $M$2, $F20, $R$2,$Q$2,,$O$2,$P$2) -> 308.5 | F20: -19 | H20: 44186.61806 | I20: =RTD("cqg.rtd",,"StudyData",$N$2, "Vol", "VolType=Auto,CoCType=Auto", "Vol", $M$2, $F20, $R$2,$Q$2,,$O$2,$P$2) -> 562553
A21: =RTD("cqg.rtd",,"StudyData", $N$2, "Bar", "", "Time", $M$2, $F21,$R$2,$Q$2, "","False") -> 44186.61458 | B21: =RTD("cqg.rtd",,"StudyData", $N$2, "Bar", "", "Open", $M$2, $F21, $R$2,$Q$2,,$O$2,$P$2) -> 308.3 | C21: =RTD("cqg.rtd",,"StudyData", $N$2, "Bar", "", "High", $M$2, $F21, $R$2,$Q$2,,$O$2,$P$2) -> 308.57 | D21: =RTD("cqg.rtd",,"StudyData", $N$2, "Bar", "", "Low", $M$2, $F21, $R$2,$Q$2,,$O$2,$P$2) -> 308.23 | E21: =RTD("cqg.rtd",,"StudyData", $N$2, "Bar", "", "Close", $M$2, $F21, $R$2,$Q$2,,$O$2,$P$2) -> 308.37 | F21: -20 | H21: 44186.61458 | I21: =RTD("cqg.rtd",,"StudyData",$N$2, "Vol", "VolType=Auto,CoCType=Auto", "Vol", $M$2, $F21, $R$2,$Q$2,,$O$2,$P$2) -> 281531
A22: =RTD("cqg.rtd",,"StudyData", $N$2, "Bar", "", "Time", $M$2, $F22,$R$2,$Q$2, "","False") -> 44186.61111 | B22: =RTD("cqg.rtd",,"StudyData", $N$2, "Bar", "", "Open", $M$2, $F22, $R$2,$Q$2,,$O$2,$P$2) -> 308.55 | C22: =RTD("cqg.rtd",,"StudyData", $N$2, "Bar", "", "High", $M$2, $F22, $R$2,$Q$2,,$O$2,$P$2) -> 308.65 | D22: =RTD("cqg.rtd",,"StudyData", $N$2, "Bar", "", "Low", $M$2, $F22, $R$2,$Q$2,,$O$2,$P$2) -> 308.24 | E22: =RTD("cqg.rtd",,"StudyData", $N$2, "Bar", "", "Close", $M$2, $F22, $R$2,$Q$2,,$O$2,$P$2) -> 308.31 | F22: -21 | H22: 44186.61111 | I22: =RTD("cqg.rtd",,"StudyData",$N$2, "Vol", "VolType=Auto,CoCType=Auto", "Vol", $M$2, $F22, $R$2,$Q$2,,$O$2,$P$2) -> 558190
A23: =RTD("cqg.rtd",,"StudyData", $N$2, "Bar", "", "Time", $M$2, $F23,$R$2,$Q$2, "","False") -> 44186.60764 | B23: =RTD("cqg.rtd",,"StudyData", $N$2, "Bar", "", "Open", $M$2, $F23, $R$2,$Q$2,,$O$2,$P$2) -> 307.98 | C23: =RTD("cqg.rtd",,"StudyData", $N$2, "Bar", "", "High", $M$2, $F23, $R$2,$Q$2,,$O$2,$P$2) -> 308.57 | D23: =RTD("cqg.rtd",,"StudyData", $N$2, "Bar", "", "Low", $M$2, $F23, $R$2,$Q$2,,$O$2,$P$2) -> 307.95 | E23: =RTD("cqg.rtd",,"StudyData", $N$2, "Bar", "", "Close", $M$2, $F23, $R$2,$Q$2,,$O$2,$P$2) -> 308.56 | F23: -22 | H23: 44186.60764 | I23: =RTD("cqg.rtd",,"StudyData",$N$2, "Vol", "VolType=Auto,CoCType=Auto", "Vol", $M$2, $F23, $R$2,$Q$2,,$O$2,$P$2) -> 420178
A24: =RTD("cqg.rtd",,"StudyData", $N$2, "Bar", "", "Time", $M$2, $F24,$R$2,$Q$2, "","False") -> 44186.60417 | B24: =RTD("cqg.rtd",,"StudyData", $N$2, "Bar", "", "Open", $M$2, $F24, $R$2,$Q$2,,$O$2,$P$2) -> 308.57 | C24: =RTD("cqg.rtd",,"StudyData", $N$2, "Bar", "", "High", $M$2, $F24, $R$2,$Q$2,,$O$2,$P$2) -> 308.6 | D24: =RTD("cqg.rtd",,"StudyData", $N$2, "Bar", "", "Low", $M$2, $F24, $R$2,$Q$2,,$O$2,$P$2) -> 307.95 | E24: =RTD("cqg.rtd",,"StudyData", $N$2, "Bar", "", "Close", $M$2, $F24, $R$2,$Q$2,,$O$2,$P$2) -> 307.98 | F24: -23 | H24: 44186.60417 | I24: =RTD("cqg.rtd",,"StudyData",$N$2, "Vol", "VolType=Auto,CoCType=Auto", "Vol", $M$2, $F24, $R$2,$Q$2,,$O$2,$P$2) -> 355370
A25: =RTD("cqg.rtd",,"StudyData", $N$2, "Bar", "", "Time", $M$2, $F25,$R$2,$Q$2, "","False") -> 44186.60069 | B25: =RTD("cqg.rtd",,"StudyData", $N$2, "Bar", "", "Open", $M$2, $F25, $R$2,$Q$2,,$O$2,$P$2) -> 308.63 | C25: =RTD("cqg.rtd",,"StudyData", $N$2, "Bar", "", "High", $M$2, $F25, $R$2,$Q$2,,$O$2,$P$2) -> 308.73 | D25: =RTD("cqg.rtd",,"StudyData", $N$2, "Bar", "", "Low", $M$2, $F25, $R$2,$Q$2,,$O$2,$P$2) -> 308.55 | E25: =RTD("cqg.rtd",,"StudyData", $N$2, "Bar", "", "Close", $M$2, $F25, $R$2,$Q$2,,$O$2,$P$2) -> 308.58 | F25: -24 | H25: 44186.60069 | I25: =RTD("cqg.rtd",,"StudyData",$N$2, "Vol", "VolType=Auto,CoCType=Auto", "Vol", $M$2, $F25, $R$2,$Q$2,,$O$2,$P$2) -> 136670
A26: =RTD("cqg.rtd",,"StudyData", $N$2, "Bar", "", "Time", $M$2, $F26,$R$2,$Q$2, "","False") -> 44186.59722 | B26: =RTD("cqg.rtd",,"StudyData", $N$2, "Bar", "", "Open", $M$2, $F26, $R$2,$Q$2,,$O$2,$P$2) -> 308.56 | C26: =RTD("cqg.rtd",,"StudyData", $N$2, "Bar", "", "High", $M$2, $F26, $R$2,$Q$2,,$O$2,$P$2) -> 308.68 | D26: =RTD("cqg.rtd",,"StudyData", $N$2, "Bar", "", "Low", $M$2, $F26, $R$2,$Q$2,,$O$2,$P$2) -> 308.49 | E26: =RTD("cqg.rtd",,"StudyData", $N$2, "Bar", "", "Close", $M$2, $F26, $R$2,$Q$2,,$O$2,$P$2) -> 308.63 | F26: -25 | H26: 44186.59722 | I26: =RTD("cqg.rtd",,"StudyData",$N$2, "Vol", "VolType=Auto,CoCType=Auto", "Vol", $M$2, $F26, $R$2,$Q$2,,$O$2,$P$2) -> 83743
A27: =RTD("cqg.rtd",,"StudyData", $N$2, "Bar", "", "Time", $M$2, $F27,$R$2,$Q$2, "","False") -> 44186.59375 | B27: =RTD("cqg.rtd",,"StudyData", $N$2, "Bar", "", "Open", $M$2, $F27, $R$2,$Q$2,,$O$2,$P$2) -> 308.7 | C27: =RTD("cqg.rtd",,"StudyData", $N$2, "Bar", "", "High", $M$2, $F27, $R$2,$Q$2,,$O$2,$P$2) -> 308.7 | D27: =RTD("cqg.rtd",,"StudyData", $N$2, "Bar", "", "Low", $M$2, $F27, $R$2,$Q$2,,$O$2,$P$2) -> 308.43 | E27: =RTD("cqg.rtd",,"StudyData", $N$2, "Bar", "", "Close", $M$2, $F27, $R$2,$Q$2,,$O$2,$P$2) -> 308.57 | F27: -26 | H27: 44186.59375 | I27: =RTD("cqg.rtd",,"StudyData",$N$2, "Vol", "VolType=Auto,CoCType=Auto", "Vol", $M$2, $F27, $R$2,$Q$2,,$O$2,$P$2) -> 155333
A28: =RTD("cqg.rtd",,"StudyData", $N$2, "Bar", "", "Time", $M$2, $F28,$R$2,$Q$2, "","False") -> 44186.59028 | B28: =RTD("cqg.rtd",,"StudyData", $N$2, "Bar", "", "Open", $M$2, $F28, $R$2,$Q$2,,$O$2,$P$2) -> 308.53 | C28: =RTD("cqg.rtd",,"StudyData", $N$2, "Bar", "", "High", $M$2, $F28, $R$2,$Q$2,,$O$2,$P$2) -> 308.75 | D28: =RTD("cqg.rtd",,"StudyData", $N$2, "Bar", "", "Low", $M$2, $F28, $R$2,$Q$2,,$O$2,$P$2) -> 308.37 | E28: =RTD("cqg.rtd",,"StudyData", $N$2, "Bar", "", "Close", $M$2, $F28, $R$2,$Q$2,,$O$2,$P$2) -> 308.71 | F28: -27 | H28: 44186.59028 | I28: =RTD("cqg.rtd",,"StudyData",$N$2, "Vol", "VolType=Auto,CoCType=Auto", "Vol", $M$2, $F28, $R$2,$Q$2,,$O$2,$P$2) -> 202645
A29: =RTD("cqg.rtd",,"StudyData", $N$2, "Bar", "", "Time", $M$2, $F29,$R$2,$Q$2, "","False") -> 44186.58681 | B29: =RTD("cqg.rtd",,"StudyData", $N$2, "Bar", "", "Open", $M$2, $F29, $R$2,$Q$2,,$O$2,$P$2) -> 308.94 | C29: =RTD("cqg.rtd",,"StudyData", $N$2, "Bar", "", "High", $M$2, $F29, $R$2,$Q$2,,$O$2,$P$2) -> 309.01 | D29: =RTD("cqg.rtd",,"StudyData", $N$2, "Bar", "", "Low", $M$2, $F29, $R$2,$Q$2,,$O$2,$P$2) -> 308.48 | E29: =RTD("cqg.rtd",,"StudyData", $N$2, "Bar", "", "Close", $M$2, $F29, $R$2,$Q$2,,$O$2,$P$2) -> 308.54 | F29: -28 | H29: 44186.58681 | I29: =RTD("cqg.rtd",,"StudyData",$N$2, "Vol", "VolType=Auto,CoCType=Auto", "Vol", $M$2, $F29, $R$2,$Q$2,,$O$2,$P$2) -> 217465
A30: =RTD("cqg.rtd",,"StudyData", $N$2, "Bar", "", "Time", $M$2, $F30,$R$2,$Q$2, "","False") -> 44186.58333 | B30: =RTD("cqg.rtd",,"StudyData", $N$2, "Bar", "", "Open", $M$2, $F30, $R$2,$Q$2,,$O$2,$P$2) -> 308.96 | C30: =RTD("cqg.rtd",,"StudyData", $N$2, "Bar", "", "High", $M$2, $F30, $R$2,$Q$2,,$O$2,$P$2) -> 309.1 | D30: =RTD("cqg.rtd",,"StudyData", $N$2, "Bar", "", "Low", $M$2, $F30, $R$2,$Q$2,,$O$2,$P$2) -> 308.85 | E30: =RTD("cqg.rtd",,"StudyData", $N$2, "Bar", "", "Close", $M$2, $F30, $R$2,$Q$2,,$O$2,$P$2) -> 308.95 | F30: -29 | H30: 44186.58333 | I30: =RTD("cqg.rtd",,"StudyData",$N$2, "Vol", "VolType=Auto,CoCType=Auto", "Vol", $M$2, $F30, $R$2,$Q$2,,$O$2,$P$2) -> 140677
A31: =RTD("cqg.rtd",,"StudyData", $N$2, "Bar", "", "Time", $M$2, $F31,$R$2,$Q$2, "","False") -> 44186.57986 | B31: =RTD("cqg.rtd",,"StudyData", $N$2, "Bar", "", "Open", $M$2, $F31, $R$2,$Q$2,,$O$2,$P$2) -> 309.12 | C31: =RTD("cqg.rtd",,"StudyData", $N$2, "Bar", "", "High", $M$2, $F31, $R$2,$Q$2,,$O$2,$P$2) -> 309.25 | D31: =RTD("cqg.rtd",,"StudyData", $N$2, "Bar", "", "Low", $M$2, $F31, $R$2,$Q$2,,$O$2,$P$2) -> 308.89 | E31: =RTD("cqg.rtd",,"StudyData", $N$2, "Bar", "", "Close", $M$2, $F31, $R$2,$Q$2,,$O$2,$P$2) -> 308.94 | F31: -30 | H31: 44186.57986 | I31: =RTD("cqg.rtd",,"StudyData",$N$2, "Vol", "VolType=Auto,CoCType=Auto", "Vol", $M$2, $F31, $R$2,$Q$2,,$O$2,$P$2) -> 143970
A32: =RTD("cqg.rtd",,"StudyData", $N$2, "Bar", "", "Time", $M$2, $F32,$R$2,$Q$2, "","False") -> 44186.57639 | B32: =RTD("cqg.rtd",,"StudyData", $N$2, "Bar", "", "Open", $M$2, $F32, $R$2,$Q$2,,$O$2,$P$2) -> 309.08 | C32: =RTD("cqg.rtd",,"StudyData", $N$2, "Bar", "", "High", $M$2, $F32, $R$2,$Q$2,,$O$2,$P$2) -> 309.22 | D32: =RTD("cqg.rtd",,"StudyData", $N$2, "Bar", "", "Low", $M$2, $F32, $R$2,$Q$2,,$O$2,$P$2) -> 309.01 | E32: =RTD("cqg.rtd",,"StudyData", $N$2, "Bar", "", "Close", $M$2, $F32, $R$2,$Q$2,,$O$2,$P$2) -> 309.13 | F32: -31 | H32: 44186.57639 | I32: =RTD("cqg.rtd",,"StudyData",$N$2, "Vol", "VolType=Auto,CoCType=Auto", "Vol", $M$2, $F32, $R$2,$Q$2,,$O$2,$P$2) -> 122107
A33: =RTD("cqg.rtd",,"StudyData", $N$2, "Bar", "", "Time", $M$2, $F33,$R$2,$Q$2, "","False") -> 44186.57292 | B33: =RTD("cqg.rtd",,"StudyData", $N$2, "Bar", "", "Open", $M$2, $F33, $R$2,$Q$2,,$O$2,$P$2) -> 309.14 | C33: =RTD("cqg.rtd",,"StudyData", $N$2, "Bar", "", "High", $M$2, $F33, $R$2,$Q$2,,$O$2,$P$2) -> 309.27 | D33: =RTD("cqg.rtd",,"StudyData", $N$2, "Bar", "", "Low", $M$2, $F33, $R$2,$Q$2,,$O$2,$P$2) -> 309.05 | E33: =RTD("cqg.rtd",,"StudyData", $N$2, "Bar", "", "Close", $M$2, $F33, $R$2,$Q$2,,$O$2,$P$2) -> 309.07 | F33: -32 | H33: 44186.57292 | I33: =RTD("cqg.rtd",,"StudyData",$N$2, "Vol", "VolType=Auto,CoCType=Auto", "Vol", $M$2, $F33, $R$2,$Q$2,,$O$2,$P$2) -> 122728
A34: =RTD("cqg.rtd",,"StudyData", $N$2, "Bar", "", "Time", $M$2, $F34,$R$2,$Q$2, "","False") -> 44186.56944 | B34: =RTD("cqg.rtd",,"StudyData", $N$2, "Bar", "", "Open", $M$2, $F34, $R$2,$Q$2,,$O$2,$P$2) -> 309.13 | C34: =RTD("cqg.rtd",,"StudyData", $N$2, "Bar", "", "High", $M$2, $F34, $R$2,$Q$2,,$O$2,$P$2) -> 309.27 | D34: =RTD("cqg.rtd",,"StudyData", $N$2, "Bar", "", "Low", $M$2, $F34, $R$2,$Q$2,,$O$2,$P$2) -> 308.97 | E34: =RTD("cqg.rtd",,"StudyData", $N$2, "Bar", "", "Close", $M$2, $F34, $R$2,$Q$2,,$O$2,$P$2) -> 309.16 | F34: -33 | H34: 44186.56944 | I34: =RTD("cqg.rtd",,"StudyData",$N$2, "Vol", "VolType=Auto,CoCType=Auto", "Vol", $M$2, $F34, $R$2,$Q$2,,$O$2,$P$2) -> 215889
A35: =RTD("cqg.rtd",,"StudyData", $N$2, "Bar", "", "Time", $M$2, $F35,$R$2,$Q$2, "","False") -> 44186.56597 | B35: =RTD("cqg.rtd",,"StudyData", $N$2, "Bar", "", "Open", $M$2, $F35, $R$2,$Q$2,,$O$2,$P$2) -> 309.21 | C35: =RTD("cqg.rtd",,"StudyData", $N$2, "Bar", "", "High", $M$2, $F35, $R$2,$Q$2,,$O$2,$P$2) -> 309.47 | D35: =RTD("cqg.rtd",,"StudyData", $N$2, "Bar", "", "Low", $M$2, $F35, $R$2,$Q$2,,$O$2,$P$2) -> 309.05 | E35: =RTD("cqg.rtd",,"StudyData", $N$2, "Bar", "", "Close", $M$2, $F35, $R$2,$Q$2,,$O$2,$P$2) -> 309.11 | F35: -34 | H35: 44186.56597 | I35: =RTD("cqg.rtd",,"StudyData",$N$2, "Vol", "VolType=Auto,CoCType=Auto", "Vol", $M$2, $F35, $R$2,$Q$2,,$O$2,$P$2) -> 198863
A36: =RTD("cqg.rtd",,"StudyData", $N$2, "Bar", "", "Time", $M$2, $F36,$R$2,$Q$2, "","False") -> 44186.5625 | B36: =RTD("cqg.rtd",,"StudyData", $N$2, "Bar", "", "Open", $M$2, $F36, $R$2,$Q$2,,$O$2,$P$2) -> 309.11 | C36: =RTD("cqg.rtd",,"StudyData", $N$2, "Bar", "", "High", $M$2, $F36, $R$2,$Q$2,,$O$2,$P$2) -> 309.34 | D36: =RTD("cqg.rtd",,"StudyData", $N$2, "Bar", "", "Low", $M$2, $F36, $R$2,$Q$2,,$O$2,$P$2) -> 309.08 | E36: =RTD("cqg.rtd",,"StudyData", $N$2, "Bar", "", "Close", $M$2, $F36, $R$2,$Q$2,,$O$2,$P$2) -> 309.21 | F36: -35 | H36: 44186.5625 | I36: =RTD("cqg.rtd",,"StudyData",$N$2, "Vol", "VolType=Auto,CoCType=Auto", "Vol", $M$2, $F36, $R$2,$Q$2,,$O$2,$P$2) -> 128383
A37: =RTD("cqg.rtd",,"StudyData", $N$2, "Bar", "", "Time", $M$2, $F37,$R$2,$Q$2, "","False") -> 44186.55903 | B37: =RTD("cqg.rtd",,"StudyData", $N$2, "Bar", "", "Open", $M$2, $F37, $R$2,$Q$2,,$O$2,$P$2) -> 308.85 | C37: =RTD("cqg.rtd",,"StudyData", $N$2, "Bar", "", "High", $M$2, $F37, $R$2,$Q$2,,$O$2,$P$2) -> 309.17 | D37: =RTD("cqg.rtd",,"StudyData", $N$2, "Bar", "", "Low", $M$2, $F37, $R$2,$Q$2,,$O$2,$P$2) -> 308.79 | E37: =RTD("cqg.rtd",,"StudyData", $N$2, "Bar", "", "Close", $M$2, $F37, $R$2,$Q$2,,$O$2,$P$2) -> 309.13 | F37: -36 | H37: 44186.55903 | I37: =RTD("cqg.rtd",,"StudyData",$N$2, "Vol", "VolType=Auto,CoCType=Auto", "Vol", $M$2, $F37, $R$2,$Q$2,,$O$2,$P$2) -> 101443
A38: =RTD("cqg.rtd",,"StudyData", $N$2, "Bar", "", "Time", $M$2, $F38,$R$2,$Q$2, "","False") -> 44186.55556 | B38: =RTD("cqg.rtd",,"StudyData", $N$2, "Bar", "", "Open", $M$2, $F38, $R$2,$Q$2,,$O$2,$P$2) -> 308.9 | C38: =RTD("cqg.rtd",,"StudyData", $N$2, "Bar", "", "High", $M$2, $F38, $R$2,$Q$2,,$O$2,$P$2) -> 308.94 | D38: =RTD("cqg.rtd",,"StudyData", $N$2, "Bar", "", "Low", $M$2, $F38, $R$2,$Q$2,,$O$2,$P$2) -> 308.7 | E38: =RTD("cqg.rtd",,"StudyData", $N$2, "Bar", "", "Close", $M$2, $F38, $R$2,$Q$2,,$O$2,$P$2) -> 308.83 | F38: -37 | H38: 44186.55556 | I38: =RTD("cqg.rtd",,"StudyData",$N$2, "Vol", "VolType=Auto,CoCType=Auto", "Vol", $M$2, $F38, $R$2,$Q$2,,$O$2,$P$2) -> 166478
A39: =RTD("cqg.rtd",,"StudyData", $N$2, "Bar", "", "Time", $M$2, $F39,$R$2,$Q$2, "","False") -> 44186.55208 | B39: =RTD("cqg.rtd",,"StudyData", $N$2, "Bar", "", "Open", $M$2, $F39, $R$2,$Q$2,,$O$2,$P$2) -> 309 | C39: =RTD("cqg.rtd",,"StudyData", $N$2, "Bar", "", "High", $M$2, $F39, $R$2,$Q$2,,$O$2,$P$2) -> 309.06 | D39: =RTD("cqg.rtd",,"StudyData", $N$2, "Bar", "", "Low", $M$2, $F39, $R$2,$Q$2,,$O$2,$P$2) -> 308.85 | E39: =RTD("cqg.rtd",,"StudyData", $N$2, "Bar", "", "Close", $M$2, $F39, $R$2,$Q$2,,$O$2,$P$2) -> 308.91 | F39: -38 | H39: 44186.55208 | I39: =RTD("cqg.rtd",,"StudyData",$N$2, "Vol", "VolType=Auto,CoCType=Auto", "Vol", $M$2, $F39, $R$2,$Q$2,,$O$2,$P$2) -> 112014
A40: =RTD("cqg.rtd",,"StudyData", $N$2, "Bar", "", "Time", $M$2, $F40,$R$2,$Q$2, "","False") -> 44186.54861 | B40: =RTD("cqg.rtd",,"StudyData", $N$2, "Bar", "", "Open", $M$2, $F40, $R$2,$Q$2,,$O$2,$P$2) -> 308.8 | C40: =RTD("cqg.rtd",,"StudyData", $N$2, "Bar", "", "High", $M$2, $F40, $R$2,$Q$2,,$O$2,$P$2) -> 309.04 | D40: =RTD("cqg.rtd",,"StudyData", $N$2, "Bar", "", "Low", $M$2, $F40, $R$2,$Q$2,,$O$2,$P$2) -> 308.65 | E40: =RTD("cqg.rtd",,"StudyData", $N$2, "Bar", "", "Close", $M$2, $F40, $R$2,$Q$2,,$O$2,$P$2) -> 308.98 | F40: -39 | H40: 44186.54861 | I40: =RTD("cqg.rtd",,"StudyData",$N$2, "Vol", "VolType=Auto,CoCType=Auto", "Vol", $M$2, $F40, $R$2,$Q$2,,$O$2,$P$2) -> 158538
A41: =RTD("cqg.rtd",,"StudyData", $N$2, "Bar", "", "Time", $M$2, $F41,$R$2,$Q$2, "","False") -> 44186.54514 | B41: =RTD("cqg.rtd",,"StudyData", $N$2, "Bar", "", "Open", $M$2, $F41, $R$2,$Q$2,,$O$2,$P$2) -> 309.04 | C41: =RTD("cqg.rtd",,"StudyData", $N$2, "Bar", "", "High", $M$2, $F41, $R$2,$Q$2,,$O$2,$P$2) -> 309.11 | D41: =RTD("cqg.rtd",,"StudyData", $N$2, "Bar", "", "Low", $M$2, $F41, $R$2,$Q$2,,$O$2,$P$2) -> 308.79 | E41: =RTD("cqg.rtd",,"StudyData", $N$2, "Bar", "", "Close", $M$2, $F41, $R$2,$Q$2,,$O$2,$P$2) -> 308.8 | F41: -40 | H41: 44186.54514 | I41: =RTD("cqg.rtd",,"StudyData",$N$2, "Vol", "VolType=Auto,CoCType=Auto", "Vol", $M$2, $F41, $R$2,$Q$2,,$O$2,$P$2) -> 124110
A42: =RTD("cqg.rtd",,"StudyData", $N$2, "Bar", "", "Time", $M$2, $F42,$R$2,$Q$2, "","False") -> 44186.54167 | B42: =RTD("cqg.rtd",,"StudyData", $N$2, "Bar", "", "Open", $M$2, $F42, $R$2,$Q$2,,$O$2,$P$2) -> 309.12 | C42: =RTD("cqg.rtd",,"StudyData", $N$2, "Bar", "", "High", $M$2, $F42, $R$2,$Q$2,,$O$2,$P$2) -> 309.17 | D42: =RTD("cqg.rtd",,"StudyData", $N$2, "Bar", "", "Low", $M$2, $F42, $R$2,$Q$2,,$O$2,$P$2) -> 308.96 | E42: =RTD("cqg.rtd",,"StudyData", $N$2, "Bar", "", "Close", $M$2, $F42, $R$2,$Q$2,,$O$2,$P$2) -> 309.06 | F42: -41 | H42: 44186.54167 | I42: =RTD("cqg.rtd",,"StudyData",$N$2, "Vol", "VolType=Auto,CoCType=Auto", "Vol", $M$2, $F42, $R$2,$Q$2,,$O$2,$P$2) -> 152350
A43: =RTD("cqg.rtd",,"StudyData", $N$2, "Bar", "", "Time", $M$2, $F43,$R$2,$Q$2, "","False") -> 44186.53819 | B43: =RTD("cqg.rtd",,"StudyData", $N$2, "Bar", "", "Open", $M$2, $F43, $R$2,$Q$2,,$O$2,$P$2) -> 309.29 | C43: =RTD("cqg.rtd",,"StudyData", $N$2, "Bar", "", "High", $M$2, $F43, $R$2,$Q$2,,$O$2,$P$2) -> 309.4 | D43: =RTD("cqg.rtd",,"StudyData", $N$2, "Bar", "", "Low", $M$2, $F43, $R$2,$Q$2,,$O$2,$P$2) -> 309.1 | E43: =RTD("cqg.rtd",,"StudyData", $N$2, "Bar", "", "Close", $M$2, $F43, $R$2,$Q$2,,$O$2,$P$2) -> 309.11 | F43: -42 | H43: 44186.53819 | I43: =RTD("cqg.rtd",,"StudyData",$N$2, "Vol", "VolType=Auto,CoCType=Auto", "Vol", $M$2, $F43, $R$2,$Q$2,,$O$2,$P$2) -> 140971 | N43: =76+6 -> 82
A44: =RTD("cqg.rtd",,"StudyData", $N$2, "Bar", "", "Time", $M$2, $F44,$R$2,$Q$2, "","False") -> 44186.53472 | B44: =RTD("cqg.rtd",,"StudyData", $N$2, "Bar", "", "Open", $M$2, $F44, $R$2,$Q$2,,$O$2,$P$2) -> 308.96 | C44: =RTD("cqg.rtd",,"StudyData", $N$2, "Bar", "", "High", $M$2, $F44, $R$2,$Q$2,,$O$2,$P$2) -> 309.31 | D44: =RTD("cqg.rtd",,"StudyData", $N$2, "Bar", "", "Low", $M$2, $F44, $R$2,$Q$2,,$O$2,$P$2) -> 308.96 | E44: =RTD("cqg.rtd",,"StudyData", $N$2, "Bar", "", "Close", $M$2, $F44, $R$2,$Q$2,,$O$2,$P$2) -> 309.31 | F44: -43 | H44: 44186.53472 | I44: =RTD("cqg.rtd",,"StudyData",$N$2, "Vol", "VolType=Auto,CoCType=Auto", "Vol", $M$2, $F44, $R$2,$Q$2,,$O$2,$P$2) -> 194443 | N44: =N43*5 -> 410
A45: =RTD("cqg.rtd",,"StudyData", $N$2, "Bar", "", "Time", $M$2, $F45,$R$2,$Q$2, "","False") -> 44186.53125 | B45: =RTD("cqg.rtd",,"StudyData", $N$2, "Bar", "", "Open", $M$2, $F45, $R$2,$Q$2,,$O$2,$P$2) -> 309.15 | C45: =RTD("cqg.rtd",,"StudyData", $N$2, "Bar", "", "High", $M$2, $F45, $R$2,$Q$2,,$O$2,$P$2) -> 309.15 | D45: =RTD("cqg.rtd",,"StudyData", $N$2, "Bar", "", "Low", $M$2, $F45, $R$2,$Q$2,,$O$2,$P$2) -> 308.66 | E45: =RTD("cqg.rtd",,"StudyData", $N$2, "Bar", "", "Close", $M$2, $F45, $R$2,$Q$2,,$O$2,$P$2) -> 308.96 | F45: -44 | H45: 44186.53125 | I45: =RTD("cqg.rtd",,"StudyData",$N$2, "Vol", "VolType=Auto,CoCType=Auto", "Vol", $M$2, $F45, $R$2,$Q$2,,$O$2,$P$2) -> 352661
A46: =RTD("cqg.rtd",,"StudyData", $N$2, "Bar", "", "Time", $M$2, $F46,$R$2,$Q$2, "","False") -> 44186.52778 | B46: =RTD("cqg.rtd",,"StudyData", $N$2, "Bar", "", "Open", $M$2, $F46, $R$2,$Q$2,,$O$2,$P$2) -> 308.9 | C46: =RTD("cqg.rtd",,"StudyData", $N$2, "Bar", "", "High", $M$2, $F46, $R$2,$Q$2,,$O$2,$P$2) -> 309.2 | D46: =RTD("cqg.rtd",,"StudyData", $N$2, "Bar", "", "Low", $M$2, $F46, $R$2,$Q$2,,$O$2,$P$2) -> 308.9 | E46: =RTD("cqg.rtd",,"StudyData", $N$2, "Bar", "", "Close", $M$2, $F46, $R$2,$Q$2,,$O$2,$P$2) -> 309.15 | F46: -45 | H46: 44186.52778 | I46: =RTD("cqg.rtd",,"StudyData",$N$2, "Vol", "VolType=Auto,CoCType=Auto", "Vol", $M$2, $F46, $R$2,$Q$2,,$O$2,$P$2) -> 113655
A47: =RTD("cqg.rtd",,"StudyData", $N$2, "Bar", "", "Time", $M$2, $F47,$R$2,$Q$2, "","False") -> 44186.52431 | B47: =RTD("cqg.rtd",,"StudyData", $N$2, "Bar", "", "Open", $M$2, $F47, $R$2,$Q$2,,$O$2,$P$2) -> 308.95 | C47: =RTD("cqg.rtd",,"StudyData", $N$2, "Bar", "", "High", $M$2, $F47, $R$2,$Q$2,,$O$2,$P$2) -> 309.03 | D47: =RTD("cqg.rtd",,"StudyData", $N$2, "Bar", "", "Low", $M$2, $F47, $R$2,$Q$2,,$O$2,$P$2) -> 308.82 | E47: =RTD("cqg.rtd",,"StudyData", $N$2, "Bar", "", "Close", $M$2, $F47, $R$2,$Q$2,,$O$2,$P$2) -> 308.91 | F47: -46 | H47: 44186.52431 | I47: =RTD("cqg.rtd",,"StudyData",$N$2, "Vol", "VolType=Auto,CoCType=Auto", "Vol", $M$2, $F47, $R$2,$Q$2,,$O$2,$P$2) -> 151475
A48: =RTD("cqg.rtd",,"StudyData", $N$2, "Bar", "", "Time", $M$2, $F48,$R$2,$Q$2, "","False") -> 44186.52083 | B48: =RTD("cqg.rtd",,"StudyData", $N$2, "Bar", "", "Open", $M$2, $F48, $R$2,$Q$2,,$O$2,$P$2) -> 308.69 | C48: =RTD("cqg.rtd",,"StudyData", $N$2, "Bar", "", "High", $M$2, $F48, $R$2,$Q$2,,$O$2,$P$2) -> 309.01 | D48: =RTD("cqg.rtd",,"StudyData", $N$2, "Bar", "", "Low", $M$2, $F48, $R$2,$Q$2,,$O$2,$P$2) -> 308.68 | E48: =RTD("cqg.rtd",,"StudyData", $N$2, "Bar", "", "Close", $M$2, $F48, $R$2,$Q$2,,$O$2,$P$2) -> 308.95 | F48: -47 | H48: 44186.52083 | I48: =RTD("cqg.rtd",,"StudyData",$N$2, "Vol", "VolType=Auto,CoCType=Auto", "Vol", $M$2, $F48, $R$2,$Q$2,,$O$2,$P$2) -> 181839
A49: =RTD("cqg.rtd",,"StudyData", $N$2, "Bar", "", "Time", $M$2, $F49,$R$2,$Q$2, "","False") -> 44186.51736 | B49: =RTD("cqg.rtd",,"StudyData", $N$2, "Bar", "", "Open", $M$2, $F49, $R$2,$Q$2,,$O$2,$P$2) -> 308.71 | C49: =RTD("cqg.rtd",,"StudyData", $N$2, "Bar", "", "High", $M$2, $F49, $R$2,$Q$2,,$O$2,$P$2) -> 308.86 | D49: =RTD("cqg.rtd",,"StudyData", $N$2, "Bar", "", "Low", $M$2, $F49, $R$2,$Q$2,,$O$2,$P$2) -> 308.57 | E49: =RTD("cqg.rtd",,"StudyData", $N$2, "Bar", "", "Close", $M$2, $F49, $R$2,$Q$2,,$O$2,$P$2) -> 308.7 | F49: -48 | H49: 44186.51736 | I49: =RTD("cqg.rtd",,"StudyData",$N$2, "Vol", "VolType=Auto,CoCType=Auto", "Vol", $M$2, $F49, $R$2,$Q$2,,$O$2,$P$2) -> 208975
A50: =RTD("cqg.rtd",,"StudyData", $N$2, "Bar", "", "Time", $M$2, $F50,$R$2,$Q$2, "","False") -> 44186.51389 | B50: =RTD("cqg.rtd",,"StudyData", $N$2, "Bar", "", "Open", $M$2, $F50, $R$2,$Q$2,,$O$2,$P$2) -> 308.82 | C50: =RTD("cqg.rtd",,"StudyData", $N$2, "Bar", "", "High", $M$2, $F50, $R$2,$Q$2,,$O$2,$P$2) -> 308.86 | D50: =RTD("cqg.rtd",,"StudyData", $N$2, "Bar", "", "Low", $M$2, $F50, $R$2,$Q$2,,$O$2,$P$2) -> 308.58 | E50: =RTD("cqg.rtd",,"StudyData", $N$2, "Bar", "", "Close", $M$2, $F50, $R$2,$Q$2,,$O$2,$P$2) -> 308.72 | F50: -49 | H50: 44186.51389 | I50: =RTD("cqg.rtd",,"StudyData",$N$2, "Vol", "VolType=Auto,CoCType=Auto", "Vol", $M$2, $F50, $R$2,$Q$2,,$O$2,$P$2) -> 134074
A51: =RTD("cqg.rtd",,"StudyData", $N$2, "Bar", "", "Time", $M$2, $F51,$R$2,$Q$2, "","False") -> 44186.51042 | B51: =RTD("cqg.rtd",,"StudyData", $N$2, "Bar", "", "Open", $M$2, $F51, $R$2,$Q$2,,$O$2,$P$2) -> 308.83 | C51: =RTD("cqg.rtd",,"StudyData", $N$2, "Bar", "", "High", $M$2, $F51, $R$2,$Q$2,,$O$2,$P$2) -> 308.89 | D51: =RTD("cqg.rtd",,"StudyData", $N$2, "Bar", "", "Low", $M$2, $F51, $R$2,$Q$2,,$O$2,$P$2) -> 308.72 | E51: =RTD("cqg.rtd",,"StudyData", $N$2, "Bar", "", "Close", $M$2, $F51, $R$2,$Q$2,,$O$2,$P$2) -> 308.81 | F51: -50 | H51: 44186.51042 | I51: =RTD("cqg.rtd",,"StudyData",$N$2, "Vol", "VolType=Auto,CoCType=Auto", "Vol", $M$2, $F51, $R$2,$Q$2,,$O$2,$P$2) -> 153169
A52: =RTD("cqg.rtd",,"StudyData", $N$2, "Bar", "", "Time", $M$2, $F52,$R$2,$Q$2, "","False") -> 44186.50694 | B52: =RTD("cqg.rtd",,"StudyData", $N$2, "Bar", "", "Open", $M$2, $F52, $R$2,$Q$2,,$O$2,$P$2) -> 308.44 | C52: =RTD("cqg.rtd",,"StudyData", $N$2, "Bar", "", "High", $M$2, $F52, $R$2,$Q$2,,$O$2,$P$2) -> 308.81 | D52: =RTD("cqg.rtd",,"StudyData", $N$2, "Bar", "", "Low", $M$2, $F52, $R$2,$Q$2,,$O$2,$P$2) -> 308.37 | E52: =RTD("cqg.rtd",,"StudyData", $N$2, "Bar", "", "Close", $M$2, $F52, $R$2,$Q$2,,$O$2,$P$2) -> 308.81 | F52: -51 | H52: 44186.50694 | I52: =RTD("cqg.rtd",,"StudyData",$N$2, "Vol", "VolType=Auto,CoCType=Auto", "Vol", $M$2, $F52, $R$2,$Q$2,,$O$2,$P$2) -> 206563
A53: =RTD("cqg.rtd",,"StudyData", $N$2, "Bar", "", "Time", $M$2, $F53,$R$2,$Q$2, "","False") -> 44186.50347 | B53: =RTD("cqg.rtd",,"StudyData", $N$2, "Bar", "", "Open", $M$2, $F53, $R$2,$Q$2,,$O$2,$P$2) -> 308.06 | C53: =RTD("cqg.rtd",,"StudyData", $N$2, "Bar", "", "High", $M$2, $F53, $R$2,$Q$2,,$O$2,$P$2) -> 308.51 | D53: =RTD("cqg.rtd",,"StudyData", $N$2, "Bar", "", "Low", $M$2, $F53, $R$2,$Q$2,,$O$2,$P$2) -> 308.02 | E53: =RTD("cqg.rtd",,"StudyData", $N$2, "Bar", "", "Close", $M$2, $F53, $R$2,$Q$2,,$O$2,$P$2) -> 308.46 | F53: -52 | H53: 44186.50347 | I53: =RTD("cqg.rtd",,"StudyData",$N$2, "Vol", "VolType=Auto,CoCType=Auto", "Vol", $M$2, $F53, $R$2,$Q$2,,$O$2,$P$2) -> 204734
A54: =RTD("cqg.rtd",,"StudyData", $N$2, "Bar", "", "Time", $M$2, $F54,$R$2,$Q$2, "","False") -> 44186.5 | B54: =RTD("cqg.rtd",,"StudyData", $N$2, "Bar", "", "Open", $M$2, $F54, $R$2,$Q$2,,$O$2,$P$2) -> 308.17 | C54: =RTD("cqg.rtd",,"StudyData", $N$2, "Bar", "", "High", $M$2, $F54, $R$2,$Q$2,,$O$2,$P$2) -> 308.24 | D54: =RTD("cqg.rtd",,"StudyData", $N$2, "Bar", "", "Low", $M$2, $F54, $R$2,$Q$2,,$O$2,$P$2) -> 307.98 | E54: =RTD("cqg.rtd",,"StudyData", $N$2, "Bar", "", "Close", $M$2, $F54, $R$2,$Q$2,,$O$2,$P$2) -> 308.06 | F54: -53 | H54: 44186.5 | I54: =RTD("cqg.rtd",,"StudyData",$N$2, "Vol", "VolType=Auto,CoCType=Auto", "Vol", $M$2, $F54, $R$2,$Q$2,,$O$2,$P$2) -> 233468
A55: =RTD("cqg.rtd",,"StudyData", $N$2, "Bar", "", "Time", $M$2, $F55,$R$2,$Q$2, "","False") -> 44186.49653 | B55: =RTD("cqg.rtd",,"StudyData", $N$2, "Bar", "", "Open", $M$2, $F55, $R$2,$Q$2,,$O$2,$P$2) -> 308.13 | C55: =RTD("cqg.rtd",,"StudyData", $N$2, "Bar", "", "High", $M$2, $F55, $R$2,$Q$2,,$O$2,$P$2) -> 308.24 | D55: =RTD("cqg.rtd",,"StudyData", $N$2, "Bar", "", "Low", $M$2, $F55, $R$2,$Q$2,,$O$2,$P$2) -> 308.03 | E55: =RTD("cqg.rtd",,"StudyData", $N$2, "Bar", "", "Close", $M$2, $F55, $R$2,$Q$2,,$O$2,$P$2) -> 308.17 | F55: -54 | H55: 44186.49653 | I55: =RTD("cqg.rtd",,"StudyData",$N$2, "Vol", "VolType=Auto,CoCType=Auto", "Vol", $M$2, $F55, $R$2,$Q$2,,$O$2,$P$2) -> 261709
A56: =RTD("cqg.rtd",,"StudyData", $N$2, "Bar", "", "Time", $M$2, $F56,$R$2,$Q$2, "","False") -> 44186.49306 | B56: =RTD("cqg.rtd",,"StudyData", $N$2, "Bar", "", "Open", $M$2, $F56, $R$2,$Q$2,,$O$2,$P$2) -> 307.75 | C56: =RTD("cqg.rtd",,"StudyData", $N$2, "Bar", "", "High", $M$2, $F56, $R$2,$Q$2,,$O$2,$P$2) -> 308.37 | D56: =RTD("cqg.rtd",,"StudyData", $N$2, "Bar", "", "Low", $M$2, $F56, $R$2,$Q$2,,$O$2,$P$2) -> 307.72 | E56: =RTD("cqg.rtd",,"StudyData", $N$2, "Bar", "", "Close", $M$2, $F56, $R$2,$Q$2,,$O$2,$P$2) -> 308.1 | F56: -55 | H56: 44186.49306 | I56: =RTD("cqg.rtd",,"StudyData",$N$2, "Vol", "VolType=Auto,CoCType=Auto", "Vol", $M$2, $F56, $R$2,$Q$2,,$O$2,$P$2) -> 366913
A57: =RTD("cqg.rtd",,"StudyData", $N$2, "Bar", "", "Time", $M$2, $F57,$R$2,$Q$2, "","False") -> 44186.48958 | B57: =RTD("cqg.rtd",,"StudyData", $N$2, "Bar", "", "Open", $M$2, $F57, $R$2,$Q$2,,$O$2,$P$2) -> 307.78 | C57: =RTD("cqg.rtd",,"StudyData", $N$2, "Bar", "", "High", $M$2, $F57, $R$2,$Q$2,,$O$2,$P$2) -> 307.83 | D57: =RTD("cqg.rtd",,"StudyData", $N$2, "Bar", "", "Low", $M$2, $F57, $R$2,$Q$2,,$O$2,$P$2) -> 307.59 | E57: =RTD("cqg.rtd",,"StudyData", $N$2, "Bar", "", "Close", $M$2, $F57, $R$2,$Q$2,,$O$2,$P$2) -> 307.75 | F57: -56 | H57: 44186.48958 | I57: =RTD("cqg.rtd",,"StudyData",$N$2, "Vol", "VolType=Auto,CoCType=Auto", "Vol", $M$2, $F57, $R$2,$Q$2,,$O$2,$P$2) -> 143919
A58: =RTD("cqg.rtd",,"StudyData", $N$2, "Bar", "", "Time", $M$2, $F58,$R$2,$Q$2, "","False") -> 44186.48611 | B58: =RTD("cqg.rtd",,"StudyData", $N$2, "Bar", "", "Open", $M$2, $F58, $R$2,$Q$2,,$O$2,$P$2) -> 307.82 | C58: =RTD("cqg.rtd",,"StudyData", $N$2, "Bar", "", "High", $M$2, $F58, $R$2,$Q$2,,$O$2,$P$2) -> 307.89 | D58: =RTD("cqg.rtd",,"StudyData", $N$2, "Bar", "", "Low", $M$2, $F58, $R$2,$Q$2,,$O$2,$P$2) -> 307.6 | E58: =RTD("cqg.rtd",,"StudyData", $N$2, "Bar", "", "Close", $M$2, $F58, $R$2,$Q$2,,$O$2,$P$2) -> 307.76 | F58: -57 | H58: 44186.48611 | I58: =RTD("cqg.rtd",,"StudyData",$N$2, "Vol", "VolType=Auto,CoCType=Auto", "Vol", $M$2, $F58, $R$2,$Q$2,,$O$2,$P$2) -> 223076
A59: =RTD("cqg.rtd",,"StudyData", $N$2, "Bar", "", "Time", $M$2, $F59,$R$2,$Q$2, "","False") -> 44186.48264 | B59: =RTD("cqg.rtd",,"StudyData", $N$2, "Bar", "", "Open", $M$2, $F59, $R$2,$Q$2,,$O$2,$P$2) -> 307.74 | C59: =RTD("cqg.rtd",,"StudyData", $N$2, "Bar", "", "High", $M$2, $F59, $R$2,$Q$2,,$O$2,$P$2) -> 307.92 | D59: =RTD("cqg.rtd",,"StudyData", $N$2, "Bar", "", "Low", $M$2, $F59, $R$2,$Q$2,,$O$2,$P$2) -> 307.67 | E59: =RTD("cqg.rtd",,"StudyData", $N$2, "Bar", "", "Close", $M$2, $F59, $R$2,$Q$2,,$O$2,$P$2) -> 307.82 | F59: -58 | H59: 44186.48264 | I59: =RTD("cqg.rtd",,"StudyData",$N$2, "Vol", "VolType=Auto,CoCType=Auto", "Vol", $M$2, $F59, $R$2,$Q$2,,$O$2,$P$2) -> 118705
A60: =RTD("cqg.rtd",,"StudyData", $N$2, "Bar", "", "Time", $M$2, $F60,$R$2,$Q$2, "","False") -> 44186.47917 | B60: =RTD("cqg.rtd",,"StudyData", $N$2, "Bar", "", "Open", $M$2, $F60, $R$2,$Q$2,,$O$2,$P$2) -> 307.57 | C60: =RTD("cqg.rtd",,"StudyData", $N$2, "Bar", "", "High", $M$2, $F60, $R$2,$Q$2,,$O$2,$P$2) -> 307.82 | D60: =RTD("cqg.rtd",,"StudyData", $N$2, "Bar", "", "Low", $M$2, $F60, $R$2,$Q$2,,$O$2,$P$2) -> 307.57 | E60: =RTD("cqg.rtd",,"StudyData", $N$2, "Bar", "", "Close", $M$2, $F60, $R$2,$Q$2,,$O$2,$P$2) -> 307.75 | F60: -59 | H60: 44186.47917 | I60: =RTD("cqg.rtd",,"StudyData",$N$2, "Vol", "VolType=Auto,CoCType=Auto", "Vol", $M$2, $F60, $R$2,$Q$2,,$O$2,$P$2) -> 157480
A61: =RTD("cqg.rtd",,"StudyData", $N$2, "Bar", "", "Time", $M$2, $F61,$R$2,$Q$2, "","False") -> 44186.47569 | B61: =RTD("cqg.rtd",,"StudyData", $N$2, "Bar", "", "Open", $M$2, $F61, $R$2,$Q$2,,$O$2,$P$2) -> 307.3 | C61: =RTD("cqg.rtd",,"StudyData", $N$2, "Bar", "", "High", $M$2, $F61, $R$2,$Q$2,,$O$2,$P$2) -> 307.61 | D61: =RTD("cqg.rtd",,"StudyData", $N$2, "Bar", "", "Low", $M$2, $F61, $R$2,$Q$2,,$O$2,$P$2) -> 307.26 | E61: =RTD("cqg.rtd",,"StudyData", $N$2, "Bar", "", "Close", $M$2, $F61, $R$2,$Q$2,,$O$2,$P$2) -> 307.58 | F61: -60 | H61: 44186.47569 | I61: =RTD("cqg.rtd",,"StudyData",$N$2, "Vol", "VolType=Auto,CoCType=Auto", "Vol", $M$2, $F61, $R$2,$Q$2,,$O$2,$P$2) -> 215758
A62: =RTD("cqg.rtd",,"StudyData", $N$2, "Bar", "", "Time", $M$2, $F62,$R$2,$Q$2, "","False") -> 44186.47222 | B62: =RTD("cqg.rtd",,"StudyData", $N$2, "Bar", "", "Open", $M$2, $F62, $R$2,$Q$2,,$O$2,$P$2) -> 306.63 | C62: =RTD("cqg.rtd",,"StudyData", $N$2, "Bar", "", "High", $M$2, $F62, $R$2,$Q$2,,$O$2,$P$2) -> 307.31 | D62: =RTD("cqg.rtd",,"StudyData", $N$2, "Bar", "", "Low", $M$2, $F62, $R$2,$Q$2,,$O$2,$P$2) -> 306.61 | E62: =RTD("cqg.rtd",,"StudyData", $N$2, "Bar", "", "Close", $M$2, $F62, $R$2,$Q$2,,$O$2,$P$2) -> 307.31 | F62: -61 | H62: 44186.47222 | I62: =RTD("cqg.rtd",,"StudyData",$N$2, "Vol", "VolType=Auto,CoCType=Auto", "Vol", $M$2, $F62, $R$2,$Q$2,,$O$2,$P$2) -> 121596
A63: =RTD("cqg.rtd",,"StudyData", $N$2, "Bar", "", "Time", $M$2, $F63,$R$2,$Q$2, "","False") -> 44186.46875 | B63: =RTD("cqg.rtd",,"StudyData", $N$2, "Bar", "", "Open", $M$2, $F63, $R$2,$Q$2,,$O$2,$P$2) -> 306.67 | C63: =RTD("cqg.rtd",,"StudyData", $N$2, "Bar", "", "High", $M$2, $F63, $R$2,$Q$2,,$O$2,$P$2) -> 306.86 | D63: =RTD("cqg.rtd",,"StudyData", $N$2, "Bar", "", "Low", $M$2, $F63, $R$2,$Q$2,,$O$2,$P$2) -> 306.56 | E63: =RTD("cqg.rtd",,"StudyData", $N$2, "Bar", "", "Close", $M$2, $F63, $R$2,$Q$2,,$O$2,$P$2) -> 306.59 | F63: -62 | H63: 44186.46875 | I63: =RTD("cqg.rtd",,"StudyData",$N$2, "Vol", "VolType=Auto,CoCType=Auto", "Vol", $M$2, $F63, $R$2,$Q$2,,$O$2,$P$2) -> 102702
A64: =RTD("cqg.rtd",,"StudyData", $N$2, "Bar", "", "Time", $M$2, $F64,$R$2,$Q$2, "","False") -> 44186.46528 | B64: =RTD("cqg.rtd",,"StudyData", $N$2, "Bar", "", "Open", $M$2, $F64, $R$2,$Q$2,,$O$2,$P$2) -> 306.9 | C64: =RTD("cqg.rtd",,"StudyData", $N$2, "Bar", "", "High", $M$2, $F64, $R$2,$Q$2,,$O$2,$P$2) -> 306.97 | D64: =RTD("cqg.rtd",,"StudyData", $N$2, "Bar", "", "Low", $M$2, $F64, $R$2,$Q$2,,$O$2,$P$2) -> 306.63 | E64: =RTD("cqg.rtd",,"StudyData", $N$2, "Bar", "", "Close", $M$2, $F64, $R$2,$Q$2,,$O$2,$P$2) -> 306.66 | F64: -63 | H64: 44186.46528 | I64: =RTD("cqg.rtd",,"StudyData",$N$2, "Vol", "VolType=Auto,CoCType=Auto", "Vol", $M$2, $F64, $R$2,$Q$2,,$O$2,$P$2) -> 105739
A65: =RTD("cqg.rtd",,"StudyData", $N$2, "Bar", "", "Time", $M$2, $F65,$R$2,$Q$2, "","False") -> 44186.46181 | B65: =RTD("cqg.rtd",,"StudyData", $N$2, "Bar", "", "Open", $M$2, $F65, $R$2,$Q$2,,$O$2,$P$2) -> 306.86 | C65: =RTD("cqg.rtd",,"StudyData", $N$2, "Bar", "", "High", $M$2, $F65, $R$2,$Q$2,,$O$2,$P$2) -> 306.98 | D65: =RTD("cqg.rtd",,"StudyData", $N$2, "Bar", "", "Low", $M$2, $F65, $R$2,$Q$2,,$O$2,$P$2) -> 306.74 | E65: =RTD("cqg.rtd",,"StudyData", $N$2, "Bar", "", "Close", $M$2, $F65, $R$2,$Q$2,,$O$2,$P$2) -> 306.91 | F65: -64 | H65: 44186.46181 | I65: =RTD("cqg.rtd",,"StudyData",$N$2, "Vol", "VolType=Auto,CoCType=Auto", "Vol", $M$2, $F65, $R$2,$Q$2,,$O$2,$P$2) -> 99794
A66: =RTD("cqg.rtd",,"StudyData", $N$2, "Bar", "", "Time", $M$2, $F66,$R$2,$Q$2, "","False") -> 44186.45833 | B66: =RTD("cqg.rtd",,"StudyData", $N$2, "Bar", "", "Open", $M$2, $F66, $R$2,$Q$2,,$O$2,$P$2) -> 306.54 | C66: =RTD("cqg.rtd",,"StudyData", $N$2, "Bar", "", "High", $M$2, $F66, $R$2,$Q$2,,$O$2,$P$2) -> 306.9 | D66: =RTD("cqg.rtd",,"StudyData", $N$2, "Bar", "", "Low", $M$2, $F66, $R$2,$Q$2,,$O$2,$P$2) -> 306.54 | E66: =RTD("cqg.rtd",,"StudyData", $N$2, "Bar", "", "Close", $M$2, $F66, $R$2,$Q$2,,$O$2,$P$2) -> 306.87 | F66: -65 | H66: =A66 -> 44186.45833 | I66: =RTD("cqg.rtd",,"StudyData",$N$2, "Vol", "VolType=Auto,CoCType=Auto", "Vol", $M$2, $F66, $R$2,$Q$2,,$O$2,$P$2) -> 138103
A67: =RTD("cqg.rtd",,"StudyData", $N$2, "Bar", "", "Time", $M$2, $F67,$R$2,$Q$2, "","False") -> 44186.45486 | B67: =RTD("cqg.rtd",,"StudyData", $N$2, "Bar", "", "Open", $M$2, $F67, $R$2,$Q$2,,$O$2,$P$2) -> 306.63 | C67: =RTD("cqg.rtd",,"StudyData", $N$2, "Bar", "", "High", $M$2, $F67, $R$2,$Q$2,,$O$2,$P$2) -> 306.67 | D67: =RTD("cqg.rtd",,"StudyData", $N$2, "Bar", "", "Low", $M$2, $F67, $R$2,$Q$2,,$O$2,$P$2) -> 306.46 | E67: =RTD("cqg.rtd",,"StudyData", $N$2, "Bar", "", "Close", $M$2, $F67, $R$2,$Q$2,,$O$2,$P$2) -> 306.54 | F67: =F66-1 -> -66 | H67: 44186.45486 | I67: =RTD("cqg.rtd",,"StudyData",$N$2, "Vol", "VolType=Auto,CoCType=Auto", "Vol", $M$2, $F67, $R$2,$Q$2,,$O$2,$P$2) -> 124458
A68: =RTD("cqg.rtd",,"StudyData", $N$2, "Bar", "", "Time", $M$2, $F68,$R$2,$Q$2, "","False") -> 44186.45139 | B68: =RTD("cqg.rtd",,"StudyData", $N$2, "Bar", "", "Open", $M$2, $F68, $R$2,$Q$2,,$O$2,$P$2) -> 306.8 | C68: =RTD("cqg.rtd",,"StudyData", $N$2, "Bar", "", "High", $M$2, $F68, $R$2,$Q$2,,$O$2,$P$2) -> 306.95 | D68: =RTD("cqg.rtd",,"StudyData", $N$2, "Bar", "", "Low", $M$2, $F68, $R$2,$Q$2,,$O$2,$P$2) -> 306.59 | E68: =RTD("cqg.rtd",,"StudyData", $N$2, "Bar", "", "Close", $M$2, $F68, $R$2,$Q$2,,$O$2,$P$2) -> 306.63 | F68: -67 | H68: 44186.45139 | I68: =RTD("cqg.rtd",,"StudyData",$N$2, "Vol", "VolType=Auto,CoCType=Auto", "Vol", $M$2, $F68, $R$2,$Q$2,,$O$2,$P$2) -> 144648
A69: =RTD("cqg.rtd",,"StudyData", $N$2, "Bar", "", "Time", $M$2, $F69,$R$2,$Q$2, "","False") -> 44186.44792 | B69: =RTD("cqg.rtd",,"StudyData", $N$2, "Bar", "", "Open", $M$2, $F69, $R$2,$Q$2,,$O$2,$P$2) -> 306.57 | C69: =RTD("cqg.rtd",,"StudyData", $N$2, "Bar", "", "High", $M$2, $F69, $R$2,$Q$2,,$O$2,$P$2) -> 306.86 | D69: =RTD("cqg.rtd",,"StudyData", $N$2, "Bar", "", "Low", $M$2, $F69, $R$2,$Q$2,,$O$2,$P$2) -> 306.51 | E69: =RTD("cqg.rtd",,"StudyData", $N$2, "Bar", "", "Close", $M$2, $F69, $R$2,$Q$2,,$O$2,$P$2) -> 306.8 | F69: -68 | H69: 44186.44792 | I69: =RTD("cqg.rtd",,"StudyData",$N$2, "Vol", "VolType=Auto,CoCType=Auto", "Vol", $M$2, $F69, $R$2,$Q$2,,$O$2,$P$2) -> 212874
A70: =RTD("cqg.rtd",,"StudyData", $N$2, "Bar", "", "Time", $M$2, $F70,$R$2,$Q$2, "","False") -> 44186.44444 | B70: =RTD("cqg.rtd",,"StudyData", $N$2, "Bar", "", "Open", $M$2, $F70, $R$2,$Q$2,,$O$2,$P$2) -> 306.38 | C70: =RTD("cqg.rtd",,"StudyData", $N$2, "Bar", "", "High", $M$2, $F70, $R$2,$Q$2,,$O$2,$P$2) -> 306.68 | D70: =RTD("cqg.rtd",,"StudyData", $N$2, "Bar", "", "Low", $M$2, $F70, $R$2,$Q$2,,$O$2,$P$2) -> 306.38 | E70: =RTD("cqg.rtd",,"StudyData", $N$2, "Bar", "", "Close", $M$2, $F70, $R$2,$Q$2,,$O$2,$P$2) -> 306.58 | F70: -69 | H70: 44186.44444 | I70: =RTD("cqg.rtd",,"StudyData",$N$2, "Vol", "VolType=Auto,CoCType=Auto", "Vol", $M$2, $F70, $R$2,$Q$2,,$O$2,$P$2) -> 240439
A71: =RTD("cqg.rtd",,"StudyData", $N$2, "Bar", "", "Time", $M$2, $F71,$R$2,$Q$2, "","False") -> 44186.44097 | B71: =RTD("cqg.rtd",,"StudyData", $N$2, "Bar", "", "Open", $M$2, $F71, $R$2,$Q$2,,$O$2,$P$2) -> 305.92 | C71: =RTD("cqg.rtd",,"StudyData", $N$2, "Bar", "", "High", $M$2, $F71, $R$2,$Q$2,,$O$2,$P$2) -> 306.52 | D71: =RTD("cqg.rtd",,"StudyData", $N$2, "Bar", "", "Low", $M$2, $F71, $R$2,$Q$2,,$O$2,$P$2) -> 305.91 | E71: =RTD("cqg.rtd",,"StudyData", $N$2, "Bar", "", "Close", $M$2, $F71, $R$2,$Q$2,,$O$2,$P$2) -> 306.38 | F71: -70 | H71: 44186.44097 | I71: =RTD("cqg.rtd",,"StudyData",$N$2, "Vol", "VolType=Auto,CoCType=Auto", "Vol", $M$2, $F71, $R$2,$Q$2,,$O$2,$P$2) -> 341606
A72: =RTD("cqg.rtd",,"StudyData", $N$2, "Bar", "", "Time", $M$2, $F72,$R$2,$Q$2, "","False") -> 44186.4375 | B72: =RTD("cqg.rtd",,"StudyData", $N$2, "Bar", "", "Open", $M$2, $F72, $R$2,$Q$2,,$O$2,$P$2) -> 305.63 | C72: =RTD("cqg.rtd",,"StudyData", $N$2, "Bar", "", "High", $M$2, $F72, $R$2,$Q$2,,$O$2,$P$2) -> 306.08 | D72: =RTD("cqg.rtd",,"StudyData", $N$2, "Bar", "", "Low", $M$2, $F72, $R$2,$Q$2,,$O$2,$P$2) -> 305.62 | E72: =RTD("cqg.rtd",,"StudyData", $N$2, "Bar", "", "Close", $M$2, $F72, $R$2,$Q$2,,$O$2,$P$2) -> 305.91 | F72: -71 | H72: 44186.4375 | I72: =RTD("cqg.rtd",,"StudyData",$N$2, "Vol", "VolType=Auto,CoCType=Auto", "Vol", $M$2, $F72, $R$2,$Q$2,,$O$2,$P$2) -> 405834
A73: =RTD("cqg.rtd",,"StudyData", $N$2, "Bar", "", "Time", $M$2, $F73,$R$2,$Q$2, "","False") -> 44186.43403 | B73: =RTD("cqg.rtd",,"StudyData", $N$2, "Bar", "", "Open", $M$2, $F73, $R$2,$Q$2,,$O$2,$P$2) -> 305.59 | C73: =RTD("cqg.rtd",,"StudyData", $N$2, "Bar", "", "High", $M$2, $F73, $R$2,$Q$2,,$O$2,$P$2) -> 305.67 | D73: =RTD("cqg.rtd",,"StudyData", $N$2, "Bar", "", "Low", $M$2, $F73, $R$2,$Q$2,,$O$2,$P$2) -> 305.49 | E73: =RTD("cqg.rtd",,"StudyData", $N$2, "Bar", "", "Close", $M$2, $F73, $R$2,$Q$2,,$O$2,$P$2) -> 305.63 | F73: -72 | H73: 44186.43403 | I73: =RTD("cqg.rtd",,"StudyData",$N$2, "Vol", "VolType=Auto,CoCType=Auto", "Vol", $M$2, $F73, $R$2,$Q$2,,$O$2,$P$2) -> 283421
A74: =RTD("cqg.rtd",,"StudyData", $N$2, "Bar", "", "Time", $M$2, $F74,$R$2,$Q$2, "","False") -> 44186.43056 | B74: =RTD("cqg.rtd",,"StudyData", $N$2, "Bar", "", "Open", $M$2, $F74, $R$2,$Q$2,,$O$2,$P$2) -> 305.02 | C74: =RTD("cqg.rtd",,"StudyData", $N$2, "Bar", "", "High", $M$2, $F74, $R$2,$Q$2,,$O$2,$P$2) -> 305.61 | D74: =RTD("cqg.rtd",,"StudyData", $N$2, "Bar", "", "Low", $M$2, $F74, $R$2,$Q$2,,$O$2,$P$2) -> 304.93 | E74: =RTD("cqg.rtd",,"StudyData", $N$2, "Bar", "", "Close", $M$2, $F74, $R$2,$Q$2,,$O$2,$P$2) -> 305.6 | F74: -73 | H74: 44186.43056 | I74: =RTD("cqg.rtd",,"StudyData",$N$2, "Vol", "VolType=Auto,CoCType=Auto", "Vol", $M$2, $F74, $R$2,$Q$2,,$O$2,$P$2) -> 312838
A75: =RTD("cqg.rtd",,"StudyData", $N$2, "Bar", "", "Time", $M$2, $F75,$R$2,$Q$2, "","False") -> 44186.42708 | B75: =RTD("cqg.rtd",,"StudyData", $N$2, "Bar", "", "Open", $M$2, $F75, $R$2,$Q$2,,$O$2,$P$2) -> 305.03 | C75: =RTD("cqg.rtd",,"StudyData", $N$2, "Bar", "", "High", $M$2, $F75, $R$2,$Q$2,,$O$2,$P$2) -> 305.14 | D75: =RTD("cqg.rtd",,"StudyData", $N$2, "Bar", "", "Low", $M$2, $F75, $R$2,$Q$2,,$O$2,$P$2) -> 304.72 | E75: =RTD("cqg.rtd",,"StudyData", $N$2, "Bar", "", "Close", $M$2, $F75, $R$2,$Q$2,,$O$2,$P$2) -> 305.03 | F75: -74 | H75: 44186.42708 | I75: =RTD("cqg.rtd",,"StudyData",$N$2, "Vol", "VolType=Auto,CoCType=Auto", "Vol", $M$2, $F75, $R$2,$Q$2,,$O$2,$P$2) -> 249292
A76: =RTD("cqg.rtd",,"StudyData", $N$2, "Bar", "", "Time", $M$2, $F76,$R$2,$Q$2, "","False") -> 44186.42361 | B76: =RTD("cqg.rtd",,"StudyData", $N$2, "Bar", "", "Open", $M$2, $F76, $R$2,$Q$2,,$O$2,$P$2) -> 304.82 | C76: =RTD("cqg.rtd",,"StudyData", $N$2, "Bar", "", "High", $M$2, $F76, $R$2,$Q$2,,$O$2,$P$2) -> 305.05 | D76: =RTD("cqg.rtd",,"StudyData", $N$2, "Bar", "", "Low", $M$2, $F76, $R$2,$Q$2,,$O$2,$P$2) -> 304.58 | E76: =RTD("cqg.rtd",,"StudyData", $N$2, "Bar", "", "Close", $M$2, $F76, $R$2,$Q$2,,$O$2,$P$2) -> 305.03 | F76: -75 | H76: 44186.42361 | I76: =RTD("cqg.rtd",,"StudyData",$N$2, "Vol", "VolType=Auto,CoCType=Auto", "Vol", $M$2, $F76, $R$2,$Q$2,,$O$2,$P$2) -> 324337
A77: =RTD("cqg.rtd",,"StudyData", $N$2, "Bar", "", "Time", $M$2, $F77,$R$2,$Q$2, "","False") -> 44186.42014 | B77: =RTD("cqg.rtd",,"StudyData", $N$2, "Bar", "", "Open", $M$2, $F77, $R$2,$Q$2,,$O$2,$P$2) -> 304.95 | C77: =RTD("cqg.rtd",,"StudyData", $N$2, "Bar", "", "High", $M$2, $F77, $R$2,$Q$2,,$O$2,$P$2) -> 305.05 | D77: =RTD("cqg.rtd",,"StudyData", $N$2, "Bar", "", "Low", $M$2, $F77, $R$2,$Q$2,,$O$2,$P$2) -> 304.58 | E77: =RTD("cqg.rtd",,"StudyData", $N$2, "Bar", "", "Close", $M$2, $F77, $R$2,$Q$2,,$O$2,$P$2) -> 304.85 | F77: -76 | H77: 44186.42014 | I77: =RTD("cqg.rtd",,"StudyData",$N$2, "Vol", "VolType=Auto,CoCType=Auto", "Vol", $M$2, $F77, $R$2,$Q$2,,$O$2,$P$2) -> 369152
A78: =RTD("cqg.rtd",,"StudyData", $N$2, "Bar", "", "Time", $M$2, $F78,$R$2,$Q$2, "","False") -> 44186.41667 | B78: =RTD("cqg.rtd",,"StudyData", $N$2, "Bar", "", "Open", $M$2, $F78, $R$2,$Q$2,,$O$2,$P$2) -> 304.41 | C78: =RTD("cqg.rtd",,"StudyData", $N$2, "Bar", "", "High", $M$2, $F78, $R$2,$Q$2,,$O$2,$P$2) -> 305.02 | D78: =RTD("cqg.rtd",,"StudyData", $N$2, "Bar", "", "Low", $M$2, $F78, $R$2,$Q$2,,$O$2,$P$2) -> 304.32 | E78: =RTD("cqg.rtd",,"StudyData", $N$2, "Bar", "", "Close", $M$2, $F78, $R$2,$Q$2,,$O$2,$P$2) -> 304.95 | F78: -77 | H78: 44186.41667 | I78: =RTD("cqg.rtd",,"StudyData",$N$2, "Vol", "VolType=Auto,CoCType=Auto", "Vol", $M$2, $F78, $R$2,$Q$2,,$O$2,$P$2) -> 366226
A79: =RTD("cqg.rtd",,"StudyData", $N$2, "Bar", "", "Time", $M$2, $F79,$R$2,$Q$2, "","False") -> 44186.41319 | B79: =RTD("cqg.rtd",,"StudyData", $N$2, "Bar", "", "Open", $M$2, $F79, $R$2,$Q$2,,$O$2,$P$2) -> 304.08 | C79: =RTD("cqg.rtd",,"StudyData", $N$2, "Bar", "", "High", $M$2, $F79, $R$2,$Q$2,,$O$2,$P$2) -> 304.65 | D79: =RTD("cqg.rtd",,"StudyData", $N$2, "Bar", "", "Low", $M$2, $F79, $R$2,$Q$2,,$O$2,$P$2) -> 303.98 | E79: =RTD("cqg.rtd",,"StudyData", $N$2, "Bar", "", "Close", $M$2, $F79, $R$2,$Q$2,,$O$2,$P$2) -> 304.39 | F79: -78 | H79: 44186.41319 | I79: =RTD("cqg.rtd",,"StudyData",$N$2, "Vol", "VolType=Auto,CoCType=Auto", "Vol", $M$2, $F79, $R$2,$Q$2,,$O$2,$P$2) -> 464680
A80: =RTD("cqg.rtd",,"StudyData", $N$2, "Bar", "", "Time", $M$2, $F80,$R$2,$Q$2, "","False") -> 44186.40972 | B80: =RTD("cqg.rtd",,"StudyData", $N$2, "Bar", "", "Open", $M$2, $F80, $R$2,$Q$2,,$O$2,$P$2) -> 303.91 | C80: =RTD("cqg.rtd",,"StudyData", $N$2, "Bar", "", "High", $M$2, $F80, $R$2,$Q$2,,$O$2,$P$2) -> 304.27 | D80: =RTD("cqg.rtd",,"StudyData", $N$2, "Bar", "", "Low", $M$2, $F80, $R$2,$Q$2,,$O$2,$P$2) -> 303.63 | E80: =RTD("cqg.rtd",,"StudyData", $N$2, "Bar", "", "Close", $M$2, $F80, $R$2,$Q$2,,$O$2,$P$2) -> 304.06 | F80: -79 | H80: 44186.40972 | I80: =RTD("cqg.rtd",,"StudyData",$N$2, "Vol", "VolType=Auto,CoCType=Auto", "Vol", $M$2, $F80, $R$2,$Q$2,,$O$2,$P$2) -> 419873
A81: =RTD("cqg.rtd",,"StudyData", $N$2, "Bar", "", "Time", $M$2, $F81,$R$2,$Q$2, "","False") -> 44186.40625 | B81: =RTD("cqg.rtd",,"StudyData", $N$2, "Bar", "", "Open", $M$2, $F81, $R$2,$Q$2,,$O$2,$P$2) -> 304.39 | C81: =RTD("cqg.rtd",,"StudyData", $N$2, "Bar", "", "High", $M$2, $F81, $R$2,$Q$2,,$O$2,$P$2) -> 304.39 | D81: =RTD("cqg.rtd",,"StudyData", $N$2, "Bar", "", "Low", $M$2, $F81, $R$2,$Q$2,,$O$2,$P$2) -> 303.6 | E81: =RTD("cqg.rtd",,"StudyData", $N$2, "Bar", "", "Close", $M$2, $F81, $R$2,$Q$2,,$O$2,$P$2) -> 303.9 | F81: -80 | H81: 44186.40625 | I81: =RTD("cqg.rtd",,"StudyData",$N$2, "Vol", "VolType=Auto,CoCType=Auto", "Vol", $M$2, $F81, $R$2,$Q$2,,$O$2,$P$2) -> 478001
A82: =RTD("cqg.rtd",,"StudyData", $N$2, "Bar", "", "Time", $M$2, $F82,$R$2,$Q$2, "","False") -> 44186.40278 | B82: =RTD("cqg.rtd",,"StudyData", $N$2, "Bar", "", "Open", $M$2, $F82, $R$2,$Q$2,,$O$2,$P$2) -> 304.41 | C82: =RTD("cqg.rtd",,"StudyData", $N$2, "Bar", "", "High", $M$2, $F82, $R$2,$Q$2,,$O$2,$P$2) -> 304.51 | D82: =RTD("cqg.rtd",,"StudyData", $N$2, "Bar", "", "Low", $M$2, $F82, $R$2,$Q$2,,$O$2,$P$2) -> 303.99 | E82: =RTD("cqg.rtd",,"StudyData", $N$2, "Bar", "", "Close", $M$2, $F82, $R$2,$Q$2,,$O$2,$P$2) -> 304.4 | F82: -81 | H82: 44186.40278 | I82: =RTD("cqg.rtd",,"StudyData",$N$2, "Vol", "VolType=Auto,CoCType=Auto", "Vol", $M$2, $F82, $R$2,$Q$2,,$O$2,$P$2) -> 443406
A83: =RTD("cqg.rtd",,"StudyData", $N$2, "Bar", "", "Time", $M$2, $F83,$R$2,$Q$2, "","False") -> 44186.39931 | B83: =RTD("cqg.rtd",,"StudyData", $N$2, "Bar", "", "Open", $M$2, $F83, $R$2,$Q$2,,$O$2,$P$2) -> 304.53 | C83: =RTD("cqg.rtd",,"StudyData", $N$2, "Bar", "", "High", $M$2, $F83, $R$2,$Q$2,,$O$2,$P$2) -> 304.75 | D83: =RTD("cqg.rtd",,"StudyData", $N$2, "Bar", "", "Low", $M$2, $F83, $R$2,$Q$2,,$O$2,$P$2) -> 303.78 | E83: =RTD("cqg.rtd",,"StudyData", $N$2, "Bar", "", "Close", $M$2, $F83, $R$2,$Q$2,,$O$2,$P$2) -> 304.44 | F83: -82 | H83: 44186.39931 | I83: =RTD("cqg.rtd",,"StudyData",$N$2, "Vol", "VolType=Auto,CoCType=Auto", "Vol", $M$2, $F83, $R$2,$Q$2,,$O$2,$P$2) -> 559482
A84: =RTD("cqg.rtd",,"StudyData", $N$2, "Bar", "", "Time", $M$2, $F84,$R$2,$Q$2, "","False") -> 44186.39583 | B84: =RTD("cqg.rtd",,"StudyData", $N$2, "Bar", "", "Open", $M$2, $F84, $R$2,$Q$2,,$O$2,$P$2) -> 304.67 | C84: =RTD("cqg.rtd",,"StudyData", $N$2, "Bar", "", "High", $M$2, $F84, $R$2,$Q$2,,$O$2,$P$2) -> 304.85 | D84: =RTD("cqg.rtd",,"StudyData", $N$2, "Bar", "", "Low", $M$2, $F84, $R$2,$Q$2,,$O$2,$P$2) -> 304.12 | E84: =RTD("cqg.rtd",,"StudyData", $N$2, "Bar", "", "Close", $M$2, $F84, $R$2,$Q$2,,$O$2,$P$2) -> 304.52 | F84: -83 | H84: 44186.39583 | I84: =RTD("cqg.rtd",,"StudyData",$N$2, "Vol", "VolType=Auto,CoCType=Auto", "Vol", $M$2, $F84, $R$2,$Q$2,,$O$2,$P$2) -> 310985
A85: =RTD("cqg.rtd",,"StudyData", $N$2, "Bar", "", "Time", $M$2, $F85,$R$2,$Q$2, "","False") -> 44186.39236 | B85: =RTD("cqg.rtd",,"StudyData", $N$2, "Bar", "", "Open", $M$2, $F85, $R$2,$Q$2,,$O$2,$P$2) -> 304.77 | C85: =RTD("cqg.rtd",,"StudyData", $N$2, "Bar", "", "High", $M$2, $F85, $R$2,$Q$2,,$O$2,$P$2) -> 304.93 | D85: =RTD("cqg.rtd",,"StudyData", $N$2, "Bar", "", "Low", $M$2, $F85, $R$2,$Q$2,,$O$2,$P$2) -> 304.37 | E85: =RTD("cqg.rtd",,"StudyData", $N$2, "Bar", "", "Close", $M$2, $F85, $R$2,$Q$2,,$O$2,$P$2) -> 304.68 | F85: -84 | H85: 44186.39236 | I85: =RTD("cqg.rtd",,"StudyData",$N$2, "Vol", "VolType=Auto,CoCType=Auto", "Vol", $M$2, $F85, $R$2,$Q$2,,$O$2,$P$2) -> 289917
A86: =RTD("cqg.rtd",,"StudyData", $N$2, "Bar", "", "Time", $M$2, $F86,$R$2,$Q$2, "","False") -> 44186.38889 | B86: =RTD("cqg.rtd",,"StudyData", $N$2, "Bar", "", "Open", $M$2, $F86, $R$2,$Q$2,,$O$2,$P$2) -> 304.17 | C86: =RTD("cqg.rtd",,"StudyData", $N$2, "Bar", "", "High", $M$2, $F86, $R$2,$Q$2,,$O$2,$P$2) -> 304.9 | D86: =RTD("cqg.rtd",,"StudyData", $N$2, "Bar", "", "Low", $M$2, $F86, $R$2,$Q$2,,$O$2,$P$2) -> 304.04 | E86: =RTD("cqg.rtd",,"StudyData", $N$2, "Bar", "", "Close", $M$2, $F86, $R$2,$Q$2,,$O$2,$P$2) -> 304.78 | F86: -85 | H86: 44186.38889 | I86: =RTD("cqg.rtd",,"StudyData",$N$2, "Vol", "VolType=Auto,CoCType=Auto", "Vol", $M$2, $F86, $R$2,$Q$2,,$O$2,$P$2) -> 391113
A87: =RTD("cqg.rtd",,"StudyData", $N$2, "Bar", "", "Time", $M$2, $F87,$R$2,$Q$2, "","False") -> 44186.38542 | B87: =RTD("cqg.rtd",,"StudyData", $N$2, "Bar", "", "Open", $M$2, $F87, $R$2,$Q$2,,$O$2,$P$2) -> 304.5 | C87: =RTD("cqg.rtd",,"StudyData", $N$2, "Bar", "", "High", $M$2, $F87, $R$2,$Q$2,,$O$2,$P$2) -> 305.06 | D87: =RTD("cqg.rtd",,"StudyData", $N$2, "Bar", "", "Low", $M$2, $F87, $R$2,$Q$2,,$O$2,$P$2) -> 304.03 | E87: =RTD("cqg.rtd",,"StudyData", $N$2, "Bar", "", "Close", $M$2, $F87, $R$2,$Q$2,,$O$2,$P$2) -> 304.16 | F87: -86 | H87: 44186.38542 | I87: =RTD("cqg.rtd",,"StudyData",$N$2, "Vol", "VolType=Auto,CoCType=Auto", "Vol", $M$2, $F87, $R$2,$Q$2,,$O$2,$P$2) -> 464723
A88: =RTD("cqg.rtd",,"StudyData", $N$2, "Bar", "", "Time", $M$2, $F88,$R$2,$Q$2, "","False") -> 44186.38194 | B88: =RTD("cqg.rtd",,"StudyData", $N$2, "Bar", "", "Open", $M$2, $F88, $R$2,$Q$2,,$O$2,$P$2) -> 305.09 | C88: =RTD("cqg.rtd",,"StudyData", $N$2, "Bar", "", "High", $M$2, $F88, $R$2,$Q$2,,$O$2,$P$2) -> 305.33 | D88: =RTD("cqg.rtd",,"StudyData", $N$2, "Bar", "", "Low", $M$2, $F88, $R$2,$Q$2,,$O$2,$P$2) -> 304.46 | E88: =RTD("cqg.rtd",,"StudyData", $N$2, "Bar", "", "Close", $M$2, $F88, $R$2,$Q$2,,$O$2,$P$2) -> 304.55 | F88: -87 | H88: 44186.38194 | I88: =RTD("cqg.rtd",,"StudyData",$N$2, "Vol", "VolType=Auto,CoCType=Auto", "Vol", $M$2, $F88, $R$2,$Q$2,,$O$2,$P$2) -> 331972
A89: =RTD("cqg.rtd",,"StudyData", $N$2, "Bar", "", "Time", $M$2, $F89,$R$2,$Q$2, "","False") -> 44186.37847 | B89: =RTD("cqg.rtd",,"StudyData", $N$2, "Bar", "", "Open", $M$2, $F89, $R$2,$Q$2,,$O$2,$P$2) -> 305.34 | C89: =RTD("cqg.rtd",,"StudyData", $N$2, "Bar", "", "High", $M$2, $F89, $R$2,$Q$2,,$O$2,$P$2) -> 305.44 | D89: =RTD("cqg.rtd",,"StudyData", $N$2, "Bar", "", "Low", $M$2, $F89, $R$2,$Q$2,,$O$2,$P$2) -> 304.58 | E89: =RTD("cqg.rtd",,"StudyData", $N$2, "Bar", "", "Close", $M$2, $F89, $R$2,$Q$2,,$O$2,$P$2) -> 305.06 | F89: -88 | H89: 44186.37847 | I89: =RTD("cqg.rtd",,"StudyData",$N$2, "Vol", "VolType=Auto,CoCType=Auto", "Vol", $M$2, $F89, $R$2,$Q$2,,$O$2,$P$2) -> 669164
A90: =RTD("cqg.rtd",,"StudyData", $N$2, "Bar", "", "Time", $M$2, $F90,$R$2,$Q$2, "","False") -> 44186.375 | B90: =RTD("cqg.rtd",,"StudyData", $N$2, "Bar", "", "Open", $M$2, $F90, $R$2,$Q$2,,$O$2,$P$2) -> 306.43 | C90: =RTD("cqg.rtd",,"StudyData", $N$2, "Bar", "", "High", $M$2, $F90, $R$2,$Q$2,,$O$2,$P$2) -> 306.78 | D90: =RTD("cqg.rtd",,"StudyData", $N$2, "Bar", "", "Low", $M$2, $F90, $R$2,$Q$2,,$O$2,$P$2) -> 305.11 | E90: =RTD("cqg.rtd",,"StudyData", $N$2, "Bar", "", "Close", $M$2, $F90, $R$2,$Q$2,,$O$2,$P$2) -> 305.33 | F90: -89 | H90: 44186.375 | I90: =RTD("cqg.rtd",,"StudyData",$N$2, "Vol", "VolType=Auto,CoCType=Auto", "Vol", $M$2, $F90, $R$2,$Q$2,,$O$2,$P$2) -> 570312
A91: =RTD("cqg.rtd",,"StudyData", $N$2, "Bar", "", "Time", $M$2, $F91,$R$2,$Q$2, "","False") -> 44186.37153 | B91: =RTD("cqg.rtd",,"StudyData", $N$2, "Bar", "", "Open", $M$2, $F91, $R$2,$Q$2,,$O$2,$P$2) -> 306.57 | C91: =RTD("cqg.rtd",,"StudyData", $N$2, "Bar", "", "High", $M$2, $F91, $R$2,$Q$2,,$O$2,$P$2) -> 307.13 | D91: =RTD("cqg.rtd",,"StudyData", $N$2, "Bar", "", "Low", $M$2, $F91, $R$2,$Q$2,,$O$2,$P$2) -> 306.35 | E91: =RTD("cqg.rtd",,"StudyData", $N$2, "Bar", "", "Close", $M$2, $F91, $R$2,$Q$2,,$O$2,$P$2) -> 306.49 | F91: -90 | H91: 44186.37153 | I91: =RTD("cqg.rtd",,"StudyData",$N$2, "Vol", "VolType=Auto,CoCType=Auto", "Vol", $M$2, $F91, $R$2,$Q$2,,$O$2,$P$2) -> 605900
A92: =RTD("cqg.rtd",,"StudyData", $N$2, "Bar", "", "Time", $M$2, $F92,$R$2,$Q$2, "","False") -> 44186.36806 | B92: =RTD("cqg.rtd",,"StudyData", $N$2, "Bar", "", "Open", $M$2, $F92, $R$2,$Q$2,,$O$2,$P$2) -> 306.28 | C92: =RTD("cqg.rtd",,"StudyData", $N$2, "Bar", "", "High", $M$2, $F92, $R$2,$Q$2,,$O$2,$P$2) -> 306.72 | D92: =RTD("cqg.rtd",,"StudyData", $N$2, "Bar", "", "Low", $M$2, $F92, $R$2,$Q$2,,$O$2,$P$2) -> 306.07 | E92: =RTD("cqg.rtd",,"StudyData", $N$2, "Bar", "", "Close", $M$2, $F92, $R$2,$Q$2,,$O$2,$P$2) -> 306.57 | F92: -91 | H92: 44186.36806 | I92: =RTD("cqg.rtd",,"StudyData",$N$2, "Vol", "VolType=Auto,CoCType=Auto", "Vol", $M$2, $F92, $R$2,$Q$2,,$O$2,$P$2) -> 553911
A93: =RTD("cqg.rtd",,"StudyData", $N$2, "Bar", "", "Time", $M$2, $F93,$R$2,$Q$2, "","False") -> 44186.36458 | B93: =RTD("cqg.rtd",,"StudyData", $N$2, "Bar", "", "Open", $M$2, $F93, $R$2,$Q$2,,$O$2,$P$2) -> 307.1 | C93: =RTD("cqg.rtd",,"StudyData", $N$2, "Bar", "", "High", $M$2, $F93, $R$2,$Q$2,,$O$2,$P$2) -> 307.31 | D93: =RTD("cqg.rtd",,"StudyData", $N$2, "Bar", "", "Low", $M$2, $F93, $R$2,$Q$2,,$O$2,$P$2) -> 306.1 | E93: =RTD("cqg.rtd",,"StudyData", $N$2, "Bar", "", "Close", $M$2, $F93, $R$2,$Q$2,,$O$2,$P$2) -> 306.29 | F93: -92 | H93: 44186.36458 | I93: =RTD("cqg.rtd",,"StudyData",$N$2, "Vol", "VolType=Auto,CoCType=Auto", "Vol", $M$2, $F93, $R$2,$Q$2,,$O$2,$P$2) -> 531538
A94: =RTD("cqg.rtd",,"StudyData", $N$2, "Bar", "", "Time", $M$2, $F94,$R$2,$Q$2, "","False") -> 44186.36111 | B94: =RTD("cqg.rtd",,"StudyData", $N$2, "Bar", "", "Open", $M$2, $F94, $R$2,$Q$2,,$O$2,$P$2) -> 307.89 | C94: =RTD("cqg.rtd",,"StudyData", $N$2, "Bar", "", "High", $M$2, $F94, $R$2,$Q$2,,$O$2,$P$2) -> 307.99 | D94: =RTD("cqg.rtd",,"StudyData", $N$2, "Bar", "", "Low", $M$2, $F94, $R$2,$Q$2,,$O$2,$P$2) -> 306.98 | E94: =RTD("cqg.rtd",,"StudyData", $N$2, "Bar", "", "Close", $M$2, $F94, $R$2,$Q$2,,$O$2,$P$2) -> 307.08 | F94: -93 | H94: 44186.36111 | I94: =RTD("cqg.rtd",,"StudyData",$N$2, "Vol", "VolType=Auto,CoCType=Auto", "Vol", $M$2, $F94, $R$2,$Q$2,,$O$2,$P$2) -> 640865
A95: =RTD("cqg.rtd",,"StudyData", $N$2, "Bar", "", "Time", $M$2, $F95,$R$2,$Q$2, "","False") -> 44186.35764 | B95: =RTD("cqg.rtd",,"StudyData", $N$2, "Bar", "", "Open", $M$2, $F95, $R$2,$Q$2,,$O$2,$P$2) -> 307.62 | C95: =RTD("cqg.rtd",,"StudyData", $N$2, "Bar", "", "High", $M$2, $F95, $R$2,$Q$2,,$O$2,$P$2) -> 308.14 | D95: =RTD("cqg.rtd",,"StudyData", $N$2, "Bar", "", "Low", $M$2, $F95, $R$2,$Q$2,,$O$2,$P$2) -> 307.34 | E95: =RTD("cqg.rtd",,"StudyData", $N$2, "Bar", "", "Close", $M$2, $F95, $R$2,$Q$2,,$O$2,$P$2) -> 307.91 | F95: -94 | H95: 44186.35764 | I95: =RTD("cqg.rtd",,"StudyData",$N$2, "Vol", "VolType=Auto,CoCType=Auto", "Vol", $M$2, $F95, $R$2,$Q$2,,$O$2,$P$2) -> 545553
A96: =RTD("cqg.rtd",,"StudyData", $N$2, "Bar", "", "Time", $M$2, $F96,$R$2,$Q$2, "","False") -> 44186.35417 | B96: =RTD("cqg.rtd",,"StudyData", $N$2, "Bar", "", "Open", $M$2, $F96, $R$2,$Q$2,,$O$2,$P$2) -> 306.46 | C96: =RTD("cqg.rtd",,"StudyData", $N$2, "Bar", "", "High", $M$2, $F96, $R$2,$Q$2,,$O$2,$P$2) -> 307.85 | D96: =RTD("cqg.rtd",,"StudyData", $N$2, "Bar", "", "Low", $M$2, $F96, $R$2,$Q$2,,$O$2,$P$2) -> 306.17 | E96: =RTD("cqg.rtd",,"StudyData", $N$2, "Bar", "", "Close", $M$2, $F96, $R$2,$Q$2,,$O$2,$P$2) -> 307.62 | F96: -95 | H96: 44186.35417 | I96: =RTD("cqg.rtd",,"StudyData",$N$2, "Vol", "VolType=Auto,CoCType=Auto", "Vol", $M$2, $F96, $R$2,$Q$2,,$O$2,$P$2) -> 1177481
A97: =RTD("cqg.rtd",,"StudyData", $N$2, "Bar", "", "Time", $M$2, $F97,$R$2,$Q$2, "","False") -> 44183.63194 | B97: =RTD("cqg.rtd",,"StudyData", $N$2, "Bar", "", "Open", $M$2, $F97, $R$2,$Q$2,,$O$2,$P$2) -> 310.69 | C97: =RTD("cqg.rtd",,"StudyData", $N$2, "Bar", "", "High", $M$2, $F97, $R$2,$Q$2,,$O$2,$P$2) -> 310.88 | D97: =RTD("cqg.rtd",,"StudyData", $N$2, "Bar", "", "Low", $M$2, $F97, $R$2,$Q$2,,$O$2,$P$2) -> 310.65 | E97: =RTD("cqg.rtd",,"StudyData", $N$2, "Bar", "", "Close", $M$2, $F97, $R$2,$Q$2,,$O$2,$P$2) -> 310.8 | F97: -96 | H97: 44183.63194 | I97: =RTD("cqg.rtd",,"StudyData",$N$2, "Vol", "VolType=Auto,CoCType=Auto", "Vol", $M$2, $F97, $R$2,$Q$2,,$O$2,$P$2) -> 153952
A98: =RTD("cqg.rtd",,"StudyData", $N$2, "Bar", "", "Time", $M$2, $F98,$R$2,$Q$2, "","False") -> 44183.62847 | B98: =RTD("cqg.rtd",,"StudyData", $N$2, "Bar", "", "Open", $M$2, $F98, $R$2,$Q$2,,$O$2,$P$2) -> 310.77 | C98: =RTD("cqg.rtd",,"StudyData", $N$2, "Bar", "", "High", $M$2, $F98, $R$2,$Q$2,,$O$2,$P$2) -> 310.92 | D98: =RTD("cqg.rtd",,"StudyData", $N$2, "Bar", "", "Low", $M$2, $F98, $R$2,$Q$2,,$O$2,$P$2) -> 309.36 | E98: =RTD("cqg.rtd",,"StudyData", $N$2, "Bar", "", "Close", $M$2, $F98, $R$2,$Q$2,,$O$2,$P$2) -> 310.67 | F98: -97 | H98: 44183.62847 | I98: =RTD("cqg.rtd",,"StudyData",$N$2, "Vol", "VolType=Auto,CoCType=Auto", "Vol", $M$2, $F98, $R$2,$Q$2,,$O$2,$P$2) -> 186214
A99: =RTD("cqg.rtd",,"StudyData", $N$2, "Bar", "", "Time", $M$2, $F99,$R$2,$Q$2, "","False") -> 44183.625 | B99: =RTD("cqg.rtd",,"StudyData", $N$2, "Bar", "", "Open", $M$2, $F99, $R$2,$Q$2,,$O$2,$P$2) -> 309.87 | C99: =RTD("cqg.rtd",,"StudyData", $N$2, "Bar", "", "High", $M$2, $F99, $R$2,$Q$2,,$O$2,$P$2) -> 310.81 | D99: =RTD("cqg.rtd",,"StudyData", $N$2, "Bar", "", "Low", $M$2, $F99, $R$2,$Q$2,,$O$2,$P$2) -> 309.84 | E99: =RTD("cqg.rtd",,"StudyData", $N$2, "Bar", "", "Close", $M$2, $F99, $R$2,$Q$2,,$O$2,$P$2) -> 310.77 | F99: -98 | H99: 44183.625 | I99: =RTD("cqg.rtd",,"StudyData",$N$2, "Vol", "VolType=Auto,CoCType=Auto", "Vol", $M$2, $F99, $R$2,$Q$2,,$O$2,$P$2) -> 763025
A100: =RTD("cqg.rtd",,"StudyData", $N$2, "Bar", "", "Time", $M$2, $F100,$R$2,$Q$2, "","False") -> 44183.62153 | B100: =RTD("cqg.rtd",,"StudyData", $N$2, "Bar", "", "Open", $M$2, $F100, $R$2,$Q$2,,$O$2,$P$2) -> 309.58 | C100: =RTD("cqg.rtd",,"StudyData", $N$2, "Bar", "", "High", $M$2, $F100, $R$2,$Q$2,,$O$2,$P$2) -> 310.35 | D100: =RTD("cqg.rtd",,"StudyData", $N$2, "Bar", "", "Low", $M$2, $F100, $R$2,$Q$2,,$O$2,$P$2) -> 309.33 | E100: =RTD("cqg.rtd",,"StudyData", $N$2, "Bar", "", "Close", $M$2, $F100, $R$2,$Q$2,,$O$2,$P$2) -> 310.06 | F100: -99 | H100: 44183.62153 | I100: =RTD("cqg.rtd",,"StudyData",$N$2, "Vol", "VolType=Auto,CoCType=Auto", "Vol", $M$2, $F100, $R$2,$Q$2,,$O$2,$P$2) -> 2661252
A101: =RTD("cqg.rtd",,"StudyData", $N$2, "Bar", "", "Time", $M$2, $F101,$R$2,$Q$2, "","False") -> 44183.61806 | B101: =RTD("cqg.rtd",,"StudyData", $N$2, "Bar", "", "Open", $M$2, $F101, $R$2,$Q$2,,$O$2,$P$2) -> 308.33 | C101: =RTD("cqg.rtd",,"StudyData", $N$2, "Bar", "", "High", $M$2, $F101, $R$2,$Q$2,,$O$2,$P$2) -> 309.86 | D101: =RTD("cqg.rtd",,"StudyData", $N$2, "Bar", "", "Low", $M$2, $F101, $R$2,$Q$2,,$O$2,$P$2) -> 308.08 | E101: =RTD("cqg.rtd",,"StudyData", $N$2, "Bar", "", "Close", $M$2, $F101, $R$2,$Q$2,,$O$2,$P$2) -> 309.57 | F101: -100 | H101: 44183.61806 | I101: =RTD("cqg.rtd",,"StudyData",$N$2, "Vol", "VolType=Auto,CoCType=Auto", "Vol", $M$2, $F101, $R$2,$Q$2,,$O$2,$P$2) -> 1856516
A102: =RTD("cqg.rtd",,"StudyData", $N$2, "Bar", "", "Time", $M$2, $F102,$R$2,$Q$2, "","False") -> 44183.61458 | B102: =RTD("cqg.rtd",,"StudyData", $N$2, "Bar", "", "Open", $M$2, $F102, $R$2,$Q$2,,$O$2,$P$2) -> 308.29 | C102: =RTD("cqg.rtd",,"StudyData", $N$2, "Bar", "", "High", $M$2, $F102, $R$2,$Q$2,,$O$2,$P$2) -> 308.51 | D102: =RTD("cqg.rtd",,"StudyData", $N$2, "Bar", "", "Low", $M$2, $F102, $R$2,$Q$2,,$O$2,$P$2) -> 308.03 | E102: =RTD("cqg.rtd",,"StudyData", $N$2, "Bar", "", "Close", $M$2, $F102, $R$2,$Q$2,,$O$2,$P$2) -> 308.35 | F102: -101 | H102: 44183.61458 | I102: =RTD("cqg.rtd",,"StudyData",$N$2, "Vol", "VolType=Auto,CoCType=Auto", "Vol", $M$2, $F102, $R$2,$Q$2,,$O$2,$P$2) -> 588611
A103: =RTD("cqg.rtd",,"StudyData", $N$2, "Bar", "", "Time", $M$2, $F103,$R$2,$Q$2, "","False") -> 44183.61111 | B103: =RTD("cqg.rtd",,"StudyData", $N$2, "Bar", "", "Open", $M$2, $F103, $R$2,$Q$2,,$O$2,$P$2) -> 307.8 | C103: =RTD("cqg.rtd",,"StudyData", $N$2, "Bar", "", "High", $M$2, $F103, $R$2,$Q$2,,$O$2,$P$2) -> 308.34 | D103: =RTD("cqg.rtd",,"StudyData", $N$2, "Bar", "", "Low", $M$2, $F103, $R$2,$Q$2,,$O$2,$P$2) -> 307.61 | E103: =RTD("cqg.rtd",,"StudyData", $N$2, "Bar", "", "Close", $M$2, $F103, $R$2,$Q$2,,$O$2,$P$2) -> 308.27 | F103: -102 | H103: 44183.61111 | I103: =RTD("cqg.rtd",,"StudyData",$N$2, "Vol", "VolType=Auto,CoCType=Auto", "Vol", $M$2, $F103, $R$2,$Q$2,,$O$2,$P$2) -> 923112
A104: =RTD("cqg.rtd",,"StudyData", $N$2, "Bar", "", "Time", $M$2, $F104,$R$2,$Q$2, "","False") -> 44183.60764 | B104: =RTD("cqg.rtd",,"StudyData", $N$2, "Bar", "", "Open", $M$2, $F104, $R$2,$Q$2,,$O$2,$P$2) -> 308.37 | C104: =RTD("cqg.rtd",,"StudyData", $N$2, "Bar", "", "High", $M$2, $F104, $R$2,$Q$2,,$O$2,$P$2) -> 308.44 | D104: =RTD("cqg.rtd",,"StudyData", $N$2, "Bar", "", "Low", $M$2, $F104, $R$2,$Q$2,,$O$2,$P$2) -> 307.7 | E104: =RTD("cqg.rtd",,"StudyData", $N$2, "Bar", "", "Close", $M$2, $F104, $R$2,$Q$2,,$O$2,$P$2) -> 307.8 | F104: -103 | H104: 44183.60764 | I104: =RTD("cqg.rtd",,"StudyData",$N$2, "Vol", "VolType=Auto,CoCType=Auto", "Vol", $M$2, $F104, $R$2,$Q$2,,$O$2,$P$2) -> 892151
A105: =RTD("cqg.rtd",,"StudyData", $N$2, "Bar", "", "Time", $M$2, $F105,$R$2,$Q$2, "","False") -> 44183.60417 | B105: =RTD("cqg.rtd",,"StudyData", $N$2, "Bar", "", "Open", $M$2, $F105, $R$2,$Q$2,,$O$2,$P$2) -> 308.26 | C105: =RTD("cqg.rtd",,"StudyData", $N$2, "Bar", "", "High", $M$2, $F105, $R$2,$Q$2,,$O$2,$P$2) -> 308.62 | D105: =RTD("cqg.rtd",,"StudyData", $N$2, "Bar", "", "Low", $M$2, $F105, $R$2,$Q$2,,$O$2,$P$2) -> 307.99 | E105: =RTD("cqg.rtd",,"StudyData", $N$2, "Bar", "", "Close", $M$2, $F105, $R$2,$Q$2,,$O$2,$P$2) -> 308.36 | F105: -104 | H105: 44183.60417 | I105: =RTD("cqg.rtd",,"StudyData",$N$2, "Vol", "VolType=Auto,CoCType=Auto", "Vol", $M$2, $F105, $R$2,$Q$2,,$O$2,$P$2) -> 595166
A106: =RTD("cqg.rtd",,"StudyData", $N$2, "Bar", "", "Time", $M$2, $F106,$R$2,$Q$2, "","False") -> 44183.60069 | B106: =RTD("cqg.rtd",,"StudyData", $N$2, "Bar", "", "Open", $M$2, $F106, $R$2,$Q$2,,$O$2,$P$2) -> 308.3 | C106: =RTD("cqg.rtd",,"StudyData", $N$2, "Bar", "", "High", $M$2, $F106, $R$2,$Q$2,,$O$2,$P$2) -> 308.36 | D106: =RTD("cqg.rtd",,"StudyData", $N$2, "Bar", "", "Low", $M$2, $F106, $R$2,$Q$2,,$O$2,$P$2) -> 307.82 | E106: =RTD("cqg.rtd",,"StudyData", $N$2, "Bar", "", "Close", $M$2, $F106, $R$2,$Q$2,,$O$2,$P$2) -> 308.25 | F106: -105 | H106: 44183.60069 | I106: =RTD("cqg.rtd",,"StudyData",$N$2, "Vol", "VolType=Auto,CoCType=Auto", "Vol", $M$2, $F106, $R$2,$Q$2,,$O$2,$P$2) -> 459407
A107: =RTD("cqg.rtd",,"StudyData", $N$2, "Bar", "", "Time", $M$2, $F107,$R$2,$Q$2, "","False") -> 44183.59722 | B107: =RTD("cqg.rtd",,"StudyData", $N$2, "Bar", "", "Open", $M$2, $F107, $R$2,$Q$2,,$O$2,$P$2) -> 308.67 | C107: =RTD("cqg.rtd",,"StudyData", $N$2, "Bar", "", "High", $M$2, $F107, $R$2,$Q$2,,$O$2,$P$2) -> 308.7 | D107: =RTD("cqg.rtd",,"StudyData", $N$2, "Bar", "", "Low", $M$2, $F107, $R$2,$Q$2,,$O$2,$P$2) -> 308.12 | E107: =RTD("cqg.rtd",,"StudyData", $N$2, "Bar", "", "Close", $M$2, $F107, $R$2,$Q$2,,$O$2,$P$2) -> 308.27 | F107: -106 | H107: 44183.59722 | I107: =RTD("cqg.rtd",,"StudyData",$N$2, "Vol", "VolType=Auto,CoCType=Auto", "Vol", $M$2, $F107, $R$2,$Q$2,,$O$2,$P$2) -> 332117
A108: =RTD("cqg.rtd",,"StudyData", $N$2, "Bar", "", "Time", $M$2, $F108,$R$2,$Q$2, "","False") -> 44183.59375 | B108: =RTD("cqg.rtd",,"StudyData", $N$2, "Bar", "", "Open", $M$2, $F108, $R$2,$Q$2,,$O$2,$P$2) -> 308.66 | C108: =RTD("cqg.rtd",,"StudyData", $N$2, "Bar", "", "High", $M$2, $F108, $R$2,$Q$2,,$O$2,$P$2) -> 308.93 | D108: =RTD("cqg.rtd",,"StudyData", $N$2, "Bar", "", "Low", $M$2, $F108, $R$2,$Q$2,,$O$2,$P$2) -> 308.52 | E108: =RTD("cqg.rtd",,"StudyData", $N$2, "Bar", "", "Close", $M$2, $F108, $R$2,$Q$2,,$O$2,$P$2) -> 308.68 | F108: -107 | H108: 44183.59375 | I108: =RTD("cqg.rtd",,"StudyData",$N$2, "Vol", "VolType=Auto,CoCType=Auto", "Vol", $M$2, $F108, $R$2,$Q$2,,$O$2,$P$2) -> 204217
A109: =RTD("cqg.rtd",,"StudyData", $N$2, "Bar", "", "Time", $M$2, $F109,$R$2,$Q$2, "","False") -> 44183.59028 | B109: =RTD("cqg.rtd",,"StudyData", $N$2, "Bar", "", "Open", $M$2, $F109, $R$2,$Q$2,,$O$2,$P$2) -> 308.68 | C109: =RTD("cqg.rtd",,"StudyData", $N$2, "Bar", "", "High", $M$2, $F109, $R$2,$Q$2,,$O$2,$P$2) -> 308.72 | D109: =RTD("cqg.rtd",,"StudyData", $N$2, "Bar", "", "Low", $M$2, $F109, $R$2,$Q$2,,$O$2,$P$2) -> 308.43 | E109: =RTD("cqg.rtd",,"StudyData", $N$2, "Bar", "", "Close", $M$2, $F109, $R$2,$Q$2,,$O$2,$P$2) -> 308.65 | F109: -108 | H109: 44183.59028 | I109: =RTD("cqg.rtd",,"StudyData",$N$2, "Vol", "VolType=Auto,CoCType=Auto", "Vol", $M$2, $F109, $R$2,$Q$2,,$O$2,$P$2) -> 180020
